Workbook

Sheet INDEX
B2: Supply Curve - High Gas Case
B3: Note that this document may contain values not used in the final analysis.
B4: This spreadsheet contains both values used in our final results, and values used in previous modeling rounds, maintained here for comparison purposes.
B5: Please work "backwards" from the final results to trace the values used as final inputs to the modeling.
B7: Author | C7: Pat Knight
C8: Synapse Energy Economics
B9: Date | C9: 2015-01-07
B10: Purpose | C10: DOER Low Demand Analysis
B12: Index | C12: Index of sheets
B13: Avoided Costs | C13: Background data on Avoided Costs
B14: SC_2015 | C14: Supply curve table for 2015
B15: SC_2020 | C15: Supply curve table for 2020
B16: SC_2030 | C16: Supply curve table for 2030
B17: Outputs_2015 | C17: Supply curve chart for 2015
B18: Outputs_2020 | C18: Supply curve chart for 2020
B19: Outputs_2030 | C19: Supply curve chart for 2030
B20: Output_to_MarketAnalytics | C20: Supply curve data used in Market Analytics
B21: Ref | C21: Background refernece tables
B22: Pipeline_Threshold | C22: Background data on pipeline threshold
B23: AlternateResourcesClearing | C23: Summary of resources clearing in each year
B24: Balancing Measures | C24: Background data on balancing measures
B25: SolarHotWater | C25: Background data on Solar Hot Water
B26: Biomass_Chip | C26: Background data on woodchip biomass
B27: GndHeatPump | C27: Background data on Ground-source heat pump
B28: AirHeatPump | C28: Background data on Air-source heat pump
B29: CA_Hydro | C29: Background data on Canadian Hydro
B30: Appliance_standards | C30: Background data on Appliance standards
B31: EE | C31: Background data on energy efficiency
B32: Pipeline and LNG | C32: Background data on Pipeline and LNG
B33: Winter_Reliability | C33: Background data on Winter Reliability
B34: Elec_DR | C34: Background data on Electric demand response
B35: TVR | C35: Background data on time-varying rates
B36: Pump_Hyd | C36: Background data on pumped hydro
B37: Battery | C37: Background data on Battery storage
B38: Biomass_Pwr | C38: Background data on Biomass
B39: GroundPV | C39: Background data on utility-scale PV
B40: ComPV | C40: Background data on commercial PV
B41: ResPV | C41: Background data on residential PV
B42: Small_CHP | C42: Background data on small CHP
B43: Large_CHP | C43: Background data on large CHP
B44: Small_Wind | C44: Background data on small wind
B45: Dist_Wind | C45: Background data on distributed wind
B46: Large_Wind | C46: Background data on large wind
B47: OS_Wind | C47: Background data on off-shore wind
B48: DevHyd_Wo_Power | C48: Background data on converted hydro
B49: Anaerobic_Digestion | C49: Background data on Anaerobic Digestion
B50: LFG | C50: Background data on LFG
B51: AEO2014-Natural_Gas_Supply-Disp | C51: Natural gas supply and disposition per AEO 2014

Sheet Avoided Costs
F1: G-1
B2: Assigned to | C2: Pat | D2: Pat | E2: Pat | F2: Pat | G2: Pat | H2: Pat | I2: Pat | J2: Pat | K2: Pat | L2: Pat | M2: Pat | N2: Pat | O2: Pat | P2: Pat | Q2: Pat | R2: Pat | S2: Pat | T2: Pat | U2: Pat | V2: Pat | W2: Pat | X2: Pat | Y2: Pat | Z2: Pat | AA2: Pat | AB2: Joe | AD2: Geoff | AE2: Geoff | AG2: Pat | AH2: Pat | AI2: Pat
B3: Category | C3: Supply curve | D3: Supply Curve | E3: Supply Curve | F3: Supply Curve | G3: Supply Curve | H3: Supply Curve | I3: Supply Curve | J3: Supply Curve | K3: Supply curve | L3: Supply curve | M3: Supply Curve | N3: Supply Curve | O3: Supply curve | P3: Supply curve | Q3: Supply curve | R3: Supply curve | S3: Supply curve | T3: Supply curve | U3: Supply curve | V3: Supply curve | W3: Supply curve | X3: Supply curve | Y3: Supply curve | Z3: Supply curve | AA3: Supply curve | AB3: Supply curve | AD3: Supply curve | AE3: Supply curve | AG3: Supply curve | AH3: Supply curve | AI3: Supply curve
B4: Item | C4: Avoided Capacity (FCA) Price | D4: Avoided Capacity Value (excluding T&D) | E4: 5 year growth trend - Avoided Capacity Price | F4: Avoided T&D Capacity | G4: Avoided Capacity Value (including T&D) | H4: 5 year growth trend - Avoided Capacity Price | I4: Avoided Energy (CO2 Price Backed Out) | J4: GWSA Compliance Costs | K4: Avoided Energy For EE | L4: 5 year growth trend - Avoided Energy Price | M4: Avoided Energy (CO2 Price Backed Out) | N4: RGGI/Synapse (AESC 2013) | O4: Avoided Energy For RE Dist | P4: 5 year growth trend - Avoided Energy Price | Q4: Avoided Energy For RE (non Dist) | R4: 5 year growth trend - Avoided Energy Price | S4: Avoided Gas Cost (AESC) | T4: 5 year growth trend - Gas Price | U4: Avoided Gas Cost (AESC sclaed to low demand forecast) | V4: Avoided Gas GWSA | W4: 5 year growth trend - Gas Price | X4: Total Avoided Gas with GWSA | Y4: 5 year growth trend - Gas Price | Z4: High Gas Price | AA4: 5 year growth trend - Gas Price | AB4: Reference NG Price AESC | AD4: Biomass Chip Fuel Cost | AE4: Biomass Pellet Fuel Cost | AG4: Low Gas Price | AH4: Ref gas Price | AI4: High Gas Price
B5: Temporal Resolution | C5: Annual | E5: Annual | F5: Annaul | H5: Annual | I5: Annual | J5: Annual | K5: Annual | L5: Annual | M5: Annual | N5: Annual | O5: Annual | P5: Annual | Q5: Annual | R5: Annual | S5: Annual | T5: Annual | V5: Annual | W5: Annual | X5: Annual | Y5: Annual | Z5: Annual | AA5: Annual | AB5: Annual | AD5: Annual | AE5: Annual | AG5: Annual | AH5: Annual | AI5: Annual
B6: Geographic Resolution | C6: New England | E6: New England | F6: MA | H6: New England | I6: New England | J6: New England | K6: New England | L6: New England | M6: New England | N6: New England | O6: New England | P6: New England | Q6: New England | R6: New England | S6: New England | T6: New England | V6: New England | W6: New England | X6: New England | Y6: New England | Z6: New England | AA6: New England | AB6: New England | AD6: New England | AE6: New England | AG6: New England | AH6: New England | AI6: New England
B7: Units | C7: 2013 $/kW-yr | E7: % | F7: 2013 $/kW-yr | H7: % | I7: 2013 $/MWh | J7: 2013 $/MWh | K7: 2013 $/MWh | L7: % | M7: 2013 $/MWh | N7: 2013 $/MWh | O7: 2013 $/MWh | P7: % | Q7: 2013 $/MWh | R7: % | S7: 2013 $/MMBtu | T7: % | V7: 2013 $/MMBtu | W7: % | X7: 2013 $/MMBtu | Y7: % | Z7: 2013 $/MMBtu | AA7: % | AB7: 2013 $/MMBtu | AD7: $2013/ton | AE7: $2013/ton | AG7: 2013 $/MMBtu | AH7: 2013 $/MMBtu | AI7: 2013 $/MMBtu
B8: 2015 | C8: 39.6 | D8: =C8 -> 39.6 | F8: =AVERAGE(SUM(Ref!$D$387:$E$387),SUM(Ref!$D$388:$E$388),SUM(Ref!$D$389:$E$389),SUM(Ref!$D$390:$E$390),SUM(Ref!$D$392:$E$392)) -> 95.41666696 | G8: =D8+F8 -> 135.016667 | I8: 57.83906857 | J8: 18.3008 | K8: =(I8+J8)*($Z8/$AB8) -> 170.0128778 | M8: 57.83906857 | N8: 2.21167678 | O8: =N8+M8*($Z8/$AB8) -> 131.3606586 | Q8: =(O8/(1+Ref!$C$63)) -> 121.6302394 | S8: 5.67 | U8: =S8*($Z8/$AB8) -> 12.66055531 | V8: 0.02549117275 | X8: =V8+U8 -> 12.68604648 | Z8: =INDEX(AG8:AI8,MATCH($Z$4,$AG$4:$AI$4,0)) -> 9.647812055 | AB8: 4.32075 | AD8: =40*((1.0072)^2) -> 40.5780736 | AE8: =220*((1.0072)^2) -> 223.1794048 | AG8: 9.647812055 | AH8: 9.647812055 | AI8: 9.647812055
B9: =B8+1 -> 2016 | C9: 35.64 | D9: =C9 -> 35.64 | F9: =AVERAGE(SUM(Ref!$D$387:$E$387),SUM(Ref!$D$388:$E$388),SUM(Ref!$D$389:$E$389),SUM(Ref!$D$390:$E$390),SUM(Ref!$D$392:$E$392)) -> 95.41666696 | G9: =D9+F9 -> 131.056667 | I9: 59.70295314 | J9: 18.61000102 | K9: =(I9+J9)*($Z9/$AB9) -> 191.1577009 | M9: 59.70295314 | N9: 2.651498867 | O9: =N9+M9*($Z9/$AB9) -> 148.3831902 | Q9: =(O9/(1+Ref!$C$63)) -> 137.3918428 | S9: 5.74 | U9: 14.01103068 | V9: 0.02557614333 | X9: =V9+U9 -> 14.03660682 | Z9: =INDEX(AG9:AI9,MATCH($Z$4,$AG$4:$AI$4,0)) -> 10.21392047 | AB9: 4.184410471 | AD9: =AD8*(1.0072) -> 40.87023573 | AE9: =AE8*(1.0072) -> 224.7862965 | AG9: 10.0961864 | AH9: 10.15463019 | AI9: 10.21392047
B10: =B9+1 -> 2017 | C10: 39.6 | D10: 39.6 | F10: =AVERAGE(SUM(Ref!$D$387:$E$387),SUM(Ref!$D$388:$E$388),SUM(Ref!$D$389:$E$389),SUM(Ref!$D$390:$E$390),SUM(Ref!$D$392:$E$392)) -> 95.41666696 | G10: 135.016667 | I10: 65.22630416 | J10: 18.91920203 | K10: 76.16119065 | M10: 65.22630416 | N10: 3.095509736 | O10: 62.13268488 | Q10: =(O10/(1+Ref!$C$63)) -> 57.53026378 | S10: 6.04 | U10: 5.466882455 | V10: 0.02600826485 | X10: 5.49289072 | Z10: 4.076366949 | AB10: 4.503710583 | AD10: =AD9*(1.0072) -> 41.16450143 | AE10: =AE9*(1.0072) -> 226.4047578 | AG10: 3.566315968 | AH10: 3.873010292 | AI10: 4.076366949
B11: 2018 | C11: 44.64 | D11: 44.64 | F11: =AVERAGE(SUM(Ref!$D$387:$E$387),SUM(Ref!$D$388:$E$388),SUM(Ref!$D$389:$E$389),SUM(Ref!$D$390:$E$390),SUM(Ref!$D$392:$E$392)) -> 95.41666696 | G11: 140.056667 | I11: 66.95491875 | J11: 19.22840305 | K11: 77.40543163 | M11: 66.95491875 | N11: 3.535331823 | O11: 63.67079977 | Q11: =(O11/(1+Ref!$C$63)) -> 58.95444423 | S11: 5.73 | U11: 5.146391598 | V11: 0.02644038637 | X11: 5.172831985 | Z11: 4.281046231 | AB11: 4.766523191 | AD11: 41.46088584 | AE11: 228.0348721 | AG11: 3.778557794 | AH11: 4.266382779 | AI11: 4.281046231
B12: 2019 | C12: 49.32 | D12: 49.32 | F12: =AVERAGE(SUM(Ref!$D$387:$E$387),SUM(Ref!$D$388:$E$388),SUM(Ref!$D$389:$E$389),SUM(Ref!$D$390:$E$390),SUM(Ref!$D$392:$E$392)) -> 95.41666696 | G12: 144.736667 | I12: 67.67296587 | J12: 19.53760406 | K12: 75.34621728 | M12: 67.67296587 | N12: 3.979342692 | O12: 62.44590235 | Q12: =(O12/(1+Ref!$C$63)) -> 57.82027996 | S12: 6.59 | U12: 5.693479268 | V12: 0.02687250789 | X12: 5.720351776 | Z12: 4.33212323 | AB12: 5.014278746 | AD12: 41.75940422 | AE12: 229.6767232 | AG12: 3.654049533 | AH12: 4.127636634 | AI12: 4.33212323
B13: 2020 | C13: 91.08 | D13: 91.08 | F13: =AVERAGE(SUM(Ref!$D$387:$E$387),SUM(Ref!$D$388:$E$388),SUM(Ref!$D$389:$E$389),SUM(Ref!$D$390:$E$390),SUM(Ref!$D$392:$E$392)) -> 95.41666696 | G13: 186.496667 | I13: 70.25763097 | J13: 19.84680508 | K13: 75.77231056 | M13: 70.25763097 | N13: 8.503227015 | O13: 67.5855904 | Q13: =(O13/(1+Ref!$C$63)) -> 62.57925037 | S13: 6.85 | U13: 5.760430342 | V13: 0.0273046294 | X13: 5.787734972 | Z13: 4.491025931 | AB13: 5.340491213 | AD13: 42.06007193 | AE13: 231.3303956 | AG13: 3.415936036 | AH13: 3.862505186 | AI13: 4.491025931
B14: 2021 | C14: 110.88 | D14: 110.88 | F14: =AVERAGE(SUM(Ref!$D$387:$E$387),SUM(Ref!$D$388:$E$388),SUM(Ref!$D$389:$E$389),SUM(Ref!$D$390:$E$390),SUM(Ref!$D$392:$E$392)) -> 95.41666696 | G14: 206.296667 | I14: 68.86131766 | J14: 20.11215146 | K14: 76.63933951 | M14: 68.86131766 | N14: 9.458269262 | O14: 68.77354555 | Q14: =(O14/(1+Ref!$C$63)) -> 63.67920884 | S14: 7.06 | U14: 6.081293022 | V14: 0.02773675092 | X14: 6.109029773 | Z14: 4.72446046 | AB14: 5.484802447 | AD14: 42.36290444 | AE14: 232.9959744 | AG14: 3.497840033 | AH14: 4.134188361 | AI14: 4.72446046
B15: 2022 | C15: 110.88 | D15: 110.88 | F15: =AVERAGE(SUM(Ref!$D$387:$E$387),SUM(Ref!$D$388:$E$388),SUM(Ref!$D$389:$E$389),SUM(Ref!$D$390:$E$390),SUM(Ref!$D$392:$E$392)) -> 95.41666696 | G15: 206.296667 | I15: 67.68620992 | J15: 20.37749785 | K15: 76.78309665 | M15: 67.68620992 | N15: 10.41750029 | O15: 69.43337561 | Q15: =(O15/(1+Ref!$C$63)) -> 64.2901626 | S15: 7.3 | U15: 6.364899 | V15: 0.02810758374 | X15: 6.393006584 | Z15: 5.027987982 | AB15: 5.766676307 | AD15: 42.66791736 | AE15: 234.6735455 | AG15: 3.587728376 | AH15: 4.288400318 | AI15: 5.027987982
B16: 2023 | C16: 110.88 | D16: 110.88 | F16: =AVERAGE(SUM(Ref!$D$387:$E$387),SUM(Ref!$D$388:$E$388),SUM(Ref!$D$389:$E$389),SUM(Ref!$D$390:$E$390),SUM(Ref!$D$392:$E$392)) -> 95.41666696 | G16: 206.296667 | I16: 68.42907641 | J16: 20.64284423 | K16: 79.57929328 | M16: 68.42907641 | N16: 11.37254254 | O16: 72.50895344 | Q16: =(O16/(1+Ref!$C$63)) -> 67.13791985 | S16: 7.46 | U16: 6.664968304 | V16: 0.02847841655 | X16: 6.693446721 | Z16: 5.31684201 | AB16: 5.951062268 | AD16: 42.97512636 | AE16: 236.363195 | AG16: 3.672276145 | AH16: 4.423396159 | AI16: 5.31684201
B17: 2024 | C17: 110.88 | D17: 110.88 | E17: =D17/D16-1 -> 0 | F17: =AVERAGE(SUM(Ref!$D$387:$E$387),SUM(Ref!$D$388:$E$388),SUM(Ref!$D$389:$E$389),SUM(Ref!$D$390:$E$390),SUM(Ref!$D$392:$E$392)) -> 95.41666696 | G17: 206.296667 | H17: =G17/G16-1 -> 0 | I17: 70.15099936 | J17: 20.90819062 | K17: 84.46472676 | L17: =K17/K16-1 -> 0.06139076227 | M17: 70.15099936 | N17: 12.33177356 | O17: 77.40247092 | P17: =O17/O16-1 -> 0.06748845827 | Q17: =(O17/(1+Ref!$C$63)) -> 71.66895455 | R17: =Q17/Q16-1 -> 0.06748845827 | S17: 7.62 | T17: =S17/S16-1 -> 0.02144772118 | U17: 7.068163225 | V17: 0.02884924937 | X17: 7.097012474 | Y17: =X17/X16-1 -> 0.06029266691 | Z17: 5.627191726 | AB17: 6.066526704 | AC17: =AB17/AB16-1 -> 0.01940232364 | AD17: 43.28454727 | AE17: 238.06501 | AG17: 3.766703693 | AH17: 4.601409493 | AI17: 5.627191726
B18: 2025 | C18: 110.88 | D18: 110.88 | E18: =D18/D17-1 -> 0 | F18: =AVERAGE(SUM(Ref!$D$387:$E$387),SUM(Ref!$D$388:$E$388),SUM(Ref!$D$389:$E$389),SUM(Ref!$D$390:$E$390),SUM(Ref!$D$392:$E$392)) -> 95.41666696 | G18: 206.296667 | H18: =G18/G17-1 -> 0 | I18: 73.66169491 | J18: 21.173537 | K18: 91.00421888 | L18: =K18/K17-1 -> 0.07742275829 | M18: 73.66169491 | N18: 13.28681581 | O18: 83.97283483 | P18: =O18/O17-1 -> 0.0848857127 | Q18: =(O18/(1+Ref!$C$63)) -> 77.75262484 | R18: =Q18/Q17-1 -> 0.0848857127 | S18: 7.8 | T18: =S18/S17-1 -> 0.02362204724 | U18: 7.484907169 | V18: 0.02922008218 | X18: 7.514127252 | Y18: =X18/X17-1 -> 0.05877329069 | Z18: 6.008243508 | AB18: 6.261173091 | AC18: =AB18/AB17-1 -> 0.0320853095 | AD18: 43.59619601 | AE18: 239.7790781 | AG18: 3.828076196 | AH18: 4.6962484 | AI18: 6.008243508
B19: 2026 | C19: 110.88 | D19: 110.88 | E19: =D19/D18-1 -> 0 | F19: =AVERAGE(SUM(Ref!$D$387:$E$387),SUM(Ref!$D$388:$E$388),SUM(Ref!$D$389:$E$389),SUM(Ref!$D$390:$E$390),SUM(Ref!$D$392:$E$392)) -> 95.41666696 | G19: 206.296667 | H19: =G19/G18-1 -> 0 | I19: 75.04509413 | J19: 21.43888339 | K19: 95.18311575 | L19: =K19/K18-1 -> 0.04591981476 | M19: 75.04509413 | N19: 14.24185806 | O19: 88.27514384 | P19: =O19/O18-1 -> 0.05123453343 | Q19: =(O19/(1+Ref!$C$63)) -> 81.7362443 | R19: =Q19/Q18-1 -> 0.05123453343 | S19: 7.97 | T19: =S19/S18-1 -> 0.02179487179 | U19: 7.862543108 | V19: 0.029590915 | W19: =V19/V18-1 -> 0.01269102573 | X19: 7.892134023 | Y19: 0.05030614457 | Z19: 6.325596895 | AA19: 0.05281966143 | AB19: 6.412048438 | AC19: 0.02409697744 | AD19: 43.91008862 | AE19: 241.5054874 | AG19: 3.899866765 | AH19: 4.822272069 | AI19: 6.325596895
B20: 2027 | C20: 110.88 | D20: 110.88 | E20: =D20/D19-1 -> 0 | F20: =AVERAGE(SUM(Ref!$D$387:$E$387),SUM(Ref!$D$388:$E$388),SUM(Ref!$D$389:$E$389),SUM(Ref!$D$390:$E$390),SUM(Ref!$D$392:$E$392)) -> 95.41666696 | G20: 206.296667 | H20: =G20/G19-1 -> 0 | I20: 74.94032409 | J20: 21.70422977 | K20: 96.84475835 | L20: =K20/K19-1 -> 0.01745732505 | M20: 74.94032409 | N20: 15.20108908 | O20: 90.29665616 | P20: =O20/O19-1 -> 0.0229001305 | Q20: =(O20/(1+Ref!$C$63)) -> 83.60801496 | R20: =Q20/Q19-1 -> 0.0229001305 | S20: 8.11 | T20: =S20/S19-1 -> 0.01756587202 | U20: 8.126800308 | V20: 0.02996174781 | W20: 0.01253198203 | X20: 8.156762056 | Y20: 0.03353060554 | Z20: 6.598629661 | AA20: 0.04316316234 | AB20: 6.584988497 | AC20: 0.02697110933 | AD20: 44.22624126 | AE20: 243.2443269 | AG20: 3.967065141 | AH20: 4.947733212 | AI20: 6.598629661
B21: 2028 | C21: 110.88 | D21: 110.88 | E21: =D21/D20-1 -> 0 | F21: =AVERAGE(SUM(Ref!$D$387:$E$387),SUM(Ref!$D$388:$E$388),SUM(Ref!$D$389:$E$389),SUM(Ref!$D$390:$E$390),SUM(Ref!$D$392:$E$392)) -> 95.41666696 | G21: 206.296667 | H21: =G21/G20-1 -> 0 | I21: 74.71917948 | J21: 21.96957616 | K21: 99.43111611 | L21: =K21/K20-1 -> 0.02670622355 | M21: 74.71917948 | N21: 16.15613133 | O21: 92.99455335 | P21: =O21/O20-1 -> 0.02987815177 | Q21: =(O21/(1+Ref!$C$63)) -> 86.10606792 | R21: =Q21/Q20-1 -> 0.02987815177 | S21: 8.21 | T21: =S21/S20-1 -> 0.01233045623 | U21: 8.442858302 | V21: 0.03033258063 | W21: 0.01237687525 | X21: 8.473190882 | Y21: 0.03879343593 | Z21: 6.87500937 | AA21: 0.04188440988 | AB21: 6.685393135 | AC21: 0.01524750389 | AD21: 44.5446702 | AE21: 244.9956861 | AG21: 4.045482222 | AH21: 5.073783038 | AI21: 6.87500937
B22: 2029 | D22: =D21*(1+AVERAGE($E$17:$E$21)) -> 110.88 | G22: =G21*(1+AVERAGE($E$17:$E$21)) -> 206.296667 | K22: =K21*(1+AVERAGE($L$17:$L$21)) -> 103.9830106 | N22: 17.11117358 | O22: =O21*(1+AVERAGE($P$17:$P$21)) -> 97.76307201 | Q22: =Q21*(1+AVERAGE($P$17:$P$21)) -> 90.52136298 | S22: =S21*(1+AVERAGE(T$17:T$21)) -> 8.36888151 | U22: 8.588940202 | V22: 0.03070341344 | W22: 0.012225561 | X22: =X21*(1+AVERAGE(Y$17:Y$21)) -> 8.882778395 | Z22: 7.022838646 | AA22: 0.02150241078 | AB22: =AB21*(1+AVERAGE(AC$17:AC$21)) -> 6.842905308 | AD22: 44.86539182 | AE22: 246.759655 | AG22: 4.08620585 | AH22: 5.233752997 | AI22: 7.022838646
B23: 2030 | D23: =D22*(1+AVERAGE($E$17:$E$21)) -> 110.88 | G23: =G22*(1+AVERAGE($E$17:$E$21)) -> 206.296667 | K23: =K22*(1+AVERAGE($L$17:$L$21)) -> 108.7432881 | N23: 18.0704046 | O23: =O22*(1+AVERAGE($P$17:$P$21)) -> 102.7761079 | Q23: =Q22*(1+AVERAGE($P$17:$P$21)) -> 95.16306287 | S23: =S22*(1+AVERAGE($T$17:$T$21)) -> 8.530837726 | U23: 8.877214775 | V23: 0.03107424626 | W23: 0.01207790188 | X23: =X22*(1+AVERAGE($T$17:$T$21)) -> 9.054679643 | Z23: 7.258549428 | AA23: 0.03356346255 | AB23: =AB22*(1+AVERAGE($T$17:$T$21)) -> 6.975330537 | AD23: 45.18842264 | AE23: 248.5363245 | AG23: 4.137151124 | AH23: 5.489842813 | AI23: 7.258549428
B24: 2031 | D24: =D23*(1+AVERAGE($E$17:$E$21)) -> 110.88 | G24: 206.296667 | K24: 113.721488 | O24: 108.0461992 | Q24: 100.0427771 | S24: 8.69592815 | U24: 9.2197565 | V24: 0.03144507907 | W24: 0.01193376701 | X24: 9.229907557 | Z24: =Z23*(1+AVERAGE($AA$19:$AA$23)) -> 7.538632327 | AB24: 7.110318484 | AD24: 45.51377929 | AE24: 250.3257861
B25: 2032 | D25: 110.88 | G25: 206.296667 | K25: 118.9275869 | O25: 113.5865271 | Q25: 105.1727103 | S25: 8.864213436 | U25: 9.575515754 | V25: =V24*(1+AVERAGE($W$19:$W$23)) -> 0.03183439019 | X25: 9.408526516 | Z25: =Z24*(1+AVERAGE($AA$19:$AA$23)) -> 7.829522678 | AB25: 7.247918745 | AD25: 45.8414785 | AE25: 252.1281317
B26: 2033 | D26: 110.88 | G26: 206.296667 | K26: 124.3720177 | O26: 119.4109486 | Q26: 110.5656931 | S26: 9.035755412 | U26: 9.945002555 | V26: =V25*(1+AVERAGE($W$19:$W$23)) -> 0.03222852125 | X26: 9.590602143 | Z26: 8.131637505 | AB26: 7.388181872 | AD26: 46.17153714 | AE26: 253.9434543
B27: 2034 | D27: 110.88 | G27: 206.296667 | K27: 130.0656911 | O27: 125.5340313 | Q27: 116.2352141 | S27: 9.2106171 | U27: 10.3287466 | V27: 0.03262753191 | X27: 9.776201334 | Z27: 8.445409923 | AB27: 7.531159399 | AD27: 46.50397221 | AE27: 255.7718472
B28: 2035 | D28: 110.88 | G28: 206.296667 | K28: 136.0200174 | O28: 131.9710897 | Q28: 122.1954534 | S28: 9.388862747 | U28: 10.72729804 | V28: 0.03303148258 | X28: 9.965392275 | Z28: 8.771289758 | AB28: 7.676903854 | AD28: 46.83880081 | AE28: 257.6134045
B29: 2036 | D29: 110.88 | G29: 206.296667 | K29: 142.246929 | O29: 138.7382237 | Q29: 128.4613182 | S29: 9.570557837 | U29: 11.14122823 | V29: 0.03344043444 | X29: 10.15824448 | Z29: 9.109744196 | AB29: 7.825468785 | AD29: 47.17604018 | AE29: 259.468221
B30: 2037 | D30: 110.88 | G30: 206.296667 | K30: 148.7589048 | O30: 145.8523587 | Q30: 135.0484803 | S30: 9.755769126 | U30: 11.57113058 | V30: 0.0338544494 | X30: 10.35482879 | Z30: 9.461258446 | AB30: 7.976908772 | AD30: 47.51570767 | AE30: 261.3363922
B31: 2038 | D31: 110.88 | G31: 206.296667 | K31: 155.5689948 | O31: 153.331288 | Q31: 141.9734148 | S31: 9.94456466 | U31: 12.01762142 | V31: 0.03427359014 | X31: 10.55521744 | Z31: 9.826336443 | AB31: 8.131279456 | AD31: 47.85782076 | AE31: 263.2180142
B32: 2039 | D32: 110.88 | G32: 206.296667 | K32: 162.6908464 | O32: 161.1937174 | Q32: 149.253442 | S32: 10.1370138 | U32: 12.48134082 | V32: 0.03469792012 | X32: 10.75948406 | Z32: 10.20550157 | AB32: 8.288637551 | AD32: 48.20239707 | AE32: 265.1131839
B33: 2040 | D33: 110.88 | G33: 206.296667 | K33: 170.1387319 | O33: 169.4593117 | Q33: 156.9067701 | S33: 10.33318726 | U33: 12.9629536 | V33: 0.03512750359 | X33: 10.96770368 | Z33: 10.59929739 | AB33: 8.44904087 | AD33: 48.54945433 | AE33: 267.0219988
B34: 2041 | D34: 110.88 | G34: 206.296667 | K34: 177.9275771 | O34: 178.1487442 | Q34: 164.9525409 | S34: 10.5331571 | U34: 13.46315018 | V34: 0.03556240559 | X34: 11.1799528 | Z34: 11.00828847 | AB34: 8.612548346 | AD34: 48.8990104 | AE34: 268.9445572
B35: 2042 | D35: 110.88 | G35: 206.296667 | K35: 186.0729907 | O35: 187.2837481 | Q35: 173.4108779 | S35: 10.73699679 | U35: 13.98264766 | V35: 0.03600269197 | X35: 11.39630941 | Z35: 11.43306113 | AB35: 8.77922005 | AD35: 49.25108327 | AE35: 270.880958
B36: 2043 | D36: 110.88 | G36: 206.296667 | K36: 194.5912962 | O36: 196.8871713 | Q36: 182.3029363 | S36: 10.94478123 | U36: 14.52219079 | V36: 0.03644842939 | X36: 11.616853 | Z36: 11.87422433 | AB36: 8.949117217 | AD36: 49.60569107 | AE36: 272.8313009
B37: 2044 | D37: 110.88 | G37: 206.296667 | K37: 203.4995645 | O37: 206.983033 | Q37: 191.6509565 | S37: 11.15658676 | U37: 15.08255307 | V37: 0.03689968533 | X37: 11.84166459 | Z37: 12.33241053 | AB37: 9.122302266 | AD37: 49.96285205 | AE37: 274.7956863
B38: 2045 | D38: 110.88 | G38: 206.296667 | K38: 212.8156477 | O38: 217.5965842 | Q38: 201.4783187 | S38: 11.37249119 | U38: 15.66453783 | V38: 0.03735652813 | X38: 12.07082678 | Z38: 12.80827658 | AB38: 9.298838827 | AD38: 50.32258458 | AE38: 276.7742152
B39: 2046 | D39: 110.88 | G39: 206.296667 | K39: 222.5582154 | O39: 228.7543707 | Q39: 211.8096025 | S39: 11.59257384 | U39: 16.26897942 | V39: 0.03781902695 | X39: 12.30442376 | Z39: 13.3025047 | AB39: 9.478791757 | AD39: 50.68490719 | AE39: 278.7669896
B40: 2047 | D40: 110.88 | G40: 206.296667 | K40: 232.7467918 | O40: 240.4842995 | Q40: 222.6706476 | S40: 11.81691558 | U40: 16.89674437 | V40: 0.03828725181 | X40: 12.54254135 | Z40: 13.81580342 | AB40: 9.662227171 | AD40: 51.04983853 | AE40: 280.7741119
B41: 2048 | D41: =D40*(1+AVERAGE($E$17:$E$21)) -> 110.88 | G41: =G40*(1+AVERAGE($E$17:$E$21)) -> 206.296667 | K41: 243.4017949 | O41: 252.8157084 | Q41: 234.0886189 | S41: 12.04559882 | U41: 17.54873265 | V41: 0.03876127361 | X41: 12.78526704 | Z41: 14.34890859 | AB41: 9.849212463 | AD41: 51.41739736 | AE41: 282.7956855
B42: 2049 | D42: 110.88 | G42: 206.296667 | K42: 254.5445774 | O42: 265.77944 | Q42: 246.092074 | S42: 12.27870758 | U42: 18.22587895 | V42: 0.03924116411 | X42: 13.03269 | Z42: 14.90258449 | AB42: 10.03981633 | AD42: 51.78760262 | AE42: 284.8318144
B43: 2050 | D43: 110.88 | G43: 206.296667 | K43: =K42*(1+AVERAGE($L$17:$L$21)) -> 266.1974695 | O43: =O42*(1+AVERAGE($P$17:$P$21)) -> 279.4079179 | Q43: 258.7110351 | S43: 12.5163275 | U43: 18.92915404 | V43: 0.03972699598 | X43: 13.28490114 | Z43: 15.47762488 | AB43: 10.2341088 | AD43: 52.16047336 | AE43: 286.8826035
B46: Source | C46: AESC 2013 Page B-14 | E46: Calculated | H46: Calculated | J46: GWSA Testimony G:\14-030 MA DOER GWSA Avoided Costs\Restored 3. Intermediate calculations\TW Exhibit 01 Avoided Costs AESC and GWSA.xlsx | K46: AESC 2013 background data. Available at G:\13-029 AESC 2013\Task_5_Draft_Report\Workbooks\Chapter_8_Senstivity\Sensitivity Analysis May20 mc.xlsx, sheet "Exhibits-CO2". 2029-2030 is projection based on average of 5-year growth trend | L46: Calculated | N46: GWSA Testimony G:\14-030 MA DOER GWSA Avoided Costs\Restored 3. Intermediate calculations\TW Exhibit 01 Avoided Costs AESC and GWSA.xlsx | O46: AESC 2013 background data. Available at G:\13-029 AESC 2013\Task_5_Draft_Report\Workbooks\Chapter_8_Senstivity\Sensitivity Analysis May20 mc.xlsx, sheet "Exhibits-CO2". 2029-2030 is projection based on average of 5-year growth trend | P46: Calculated | R46: Calculated | S46: AESC 2013 Page 8-2. 2029-2030 calculated based on 5-year growth trend | T46: Calculated | V46: AESC 2013 Page 8-2. 2029-2030 calculated based on 5-year growth trend | W46: Calculated | X46: AESC 2013 Page 8-2. 2029-2030 calculated based on 5-year growth trend | Y46: Calculated | Z46: Dropdown | AA46: Calculated | AB46: AESC 2013, G:\13-029 AESC 2013\Task_5_Draft_Report\Workbooks\Chapter_8_Senstivity\Sensitivity Analysis May20 mc.xlsx | AG46: G:\14-128 MA DOER Low Demand Scenario\Task 2. Supply Curve\Low Demand Task List (20141113).xlsx | AH46: G:\14-128 MA DOER Low Demand Scenario\Task 2. Supply Curve\Low Demand Task List (20141113).xlsx | AI46: G:\14-128 MA DOER Low Demand Scenario\Task 2. Supply Curve\Low Demand Task List (20141113).xlsx
B47: Notes
T69: Cost of GWSA Compliance (2013 $ / Therms NG)
T70: 0.2549117275 | U70: =T70*0.1 -> 0.02549117275
T71: 0.2557614333 | U71: =T71*0.1 -> 0.02557614333
T72: 0.2600826485 | U72: 0.02600826485
T73: 0.2644038637 | U73: 0.02644038637
T74: 0.2687250789 | U74: 0.02687250789
T75: 0.273046294 | U75: 0.0273046294
T76: 0.2773675092 | U76: 0.02773675092
T77: 0.2810758374 | U77: 0.02810758374
T78: 0.2847841655 | U78: 0.02847841655
T79: 0.2884924937 | U79: 0.02884924937
T80: 0.2922008218 | U80: 0.02922008218
T81: 0.29590915 | U81: 0.029590915
T82: 0.2996174781 | U82: 0.02996174781
T83: 0.3033258063 | U83: 0.03033258063
T84: 0.3070341344 | U84: 0.03070341344
T85: 0.3107424626 | U85: 0.03107424626
T86: 0.3144507907 | U86: 0.03144507907

Sheet SC_2015
B2: 2015 Supply Curve | V2: =B2&" Summary" -> 2015 Supply Curve Summary | AL2: 1500 | AM2: lbs/MWh | AN2: Emission rate of NGCC per EPA
B3: All dollar values are in 2013 dollars. | V3: All dollar values are in 2013 dollars. | AL3: 1.1 | AM3: short tons per metric ton
AL4: 2000 | AM4: lbs per short ton
C5: (a) | D5: (b) | E5: (c) | F5: (d) | G5: (e) | H5: (f) | I5: (g) | J5: (h) | K5: (i) | L5: (j) | M5: (k) | N5: (l) | O5: (m) | P5: (n) | Q5: (o) | R5: (p) | S5: (q) | T5: (r)
B6: Electricity Technologies | V6: =B6 -> Electricity Technologies
B7: Technology | C7: Annual Capacity Factor | D7: Total Potential Capacity | E7: Annual Energy Production | F7: Annual Energy Production | G7: Installed Cost | H7: Lifetime | I7: Real Levelization Rate | J7: Annual Fixed O&M | K7: Annual Variable O&M | L7: Annual Levelized Fuel Cost | M7: Annual Levelized Cost | N7: Avoided Energy Cost | O7: Avoided Capacity Cost | P7: Capacity Payment Proxy | Q7: Annual Net Levelized Cost | R7: Annual Net Levelized Cost | S7: Winter Load Carrying Capcity | T7: Peak Hour Gas Savings | V7: Technology | W7: Annual Capacity Factor | X7: Total Potential Capacity | Y7: Annual Net Levelized Cost | Z7: Annual Net Levelized Cost | AA7: Annual Energy Production | AB7: Peak Hour Gas Savings
C8: % | D8: MW | E8: MWh | F8: MMBtu NG | G8: $/kW | H8: Yrs | I8: % | J8: $/kW-yr | K8: $/MWh | L8: $/MMBtu | M8: $/MWh | N8: $/MWh | O8: $/MWh | P8: $/MWh | Q8: $/MWh | R8: $/MMBtu NG | S8: % | T8: MMBtu NG | W8: % | X8: MW | Y8: $/MWh | Z8: $/MMBtu NG | AA8: MMBtu NG | AB8: MMBtu NG | AE8: In Supply Curve? | AF8: Clear Supply Curve | AI8: In old | AJ8: In new | AK8: In new but not old | AL8: MWh | AM8: Emissions | AN8: Capital ($ M) | AO8: Fixed ($ M) | AP8: Variable ($M) | AQ8: Fuel ($M) | AR8: Total ($M)
B9: Wind (<10 kW) | C9: =Small_Wind!E6 -> 0.16 | D9: =E9/(C9*8760) -> 1 | E9: =Small_Wind!E32 -> 1401.6 | F9: =E9*annual_marginal_heat_rate -> 11773.44 | G9: =Small_Wind!E4 -> 11500 | H9: =Ref!$J$145 -> 20 | I9: =Ref!$J$151 -> 0.09044711643 | J9: =Small_Wind!E10 -> 25 | K9: =Small_Wind!E11 -> 0 | L9: =Small_Wind!E8 -> 0 | M9: =Small_Wind!E18 -> 759.9470883 | N9: =Small_Wind!E21 -> 90.70844598 | P9: =Small_Wind!E24 -> 25.72820835 | Q9: =M9-SUM(N9:P9) -> 643.5104339 | R9: =Q9/annual_marginal_heat_rate -> 76.60838499 | S9: =Small_Wind!E33 -> 0.35 | T9: =Small_Wind!E35 -> 2.66 | V9: =B9 -> Wind (<10 kW) | W9: =C9 -> 0.16 | X9: =D9 -> 1 | Y9: =Q9 -> 643.5104339 | Z9: =R9 -> 76.60838499 | AA9: =F9 -> 11773.44 | AB9: =T9 -> 2.66 | AD9: DG | AE9: =IF(ISNA(MATCH(B9,Outputs_2015!$BD$7:$BD$20,0)),0,1) -> 1 | AF9: =IF(AND(AE9=1,R9<=$R$48),1,0) -> 0 | AI9: 0 | AJ9: =IF(R9<=[20]Outputs_2020!$BE$19,1,0) -> 0 | AK9: =IF(AND(AJ9=1,AI9=0),1,0) -> 0 | AL9: =IF(AK9=1,X9*8760*W9,0) -> 0 | AN9: =IF(AK9=1,I9*G9*X9*1000*10^-6,0) -> 0 | AO9: =IF($AK9=1,J9*X9*1000*10^-6,0) -> 0 | AP9: =IF($AK9=1,K9*X9*W9*8760*10^-6,0) -> 0 | AR9: =SUM(AN9:AQ9) -> 0
B10: Wind (<100 kW) | C10: =Dist_Wind!E6 -> 0.25 | D10: =E10/(C10*8760) -> 1 | E10: =Dist_Wind!E32 -> 2190 | F10: =E10*annual_marginal_heat_rate -> 18396 | G10: =Dist_Wind!E4 -> 5000 | H10: =Ref!$J$145 -> 20 | I10: =Ref!$J$151 -> 0.09044711643 | J10: =Dist_Wind!E10 -> 25 | K10: =Dist_Wind!E11 -> 0 | L10: =Dist_Wind!E8 -> 0 | M10: =Dist_Wind!E18 -> 217.9157909 | N10: =Dist_Wind!E21 -> 90.70844598 | P10: =Dist_Wind!E24 -> 16.46605335 | Q10: =M10-SUM(N10:P10) -> 110.7412916 | R10: =Q10/annual_marginal_heat_rate -> 13.1834871 | S10: =Dist_Wind!E33 -> 0.35 | T10: =Dist_Wind!E35 -> 2.66 | V10: =B10 -> Wind (<100 kW) | W10: =C10 -> 0.25 | X10: =D10 -> 1 | Y10: =Q10 -> 110.7412916 | Z10: =R10 -> 13.1834871 | AA10: =F10 -> 18396 | AB10: =T10 -> 2.66 | AD10: DG | AE10: =IF(ISNA(MATCH(B10,Outputs_2015!$BD$7:$BD$20,0)),0,1) -> 1 | AF10: 0 | AI10: 0 | AJ10: =IF(R10<=[20]Outputs_2020!$BE$19,1,0) -> 0 | AK10: =IF(AND(AJ10=1,AI10=0),1,0) -> 0 | AL10: =IF(AK10=1,X10*8760*W10,0) -> 0 | AN10: =IF(AK10=1,I10*G10*X10*1000*10^-6,0) -> 0 | AO10: =IF($AK10=1,J10*X10*1000*10^-6,0) -> 0 | AP10: =IF($AK10=1,K10*X10*W10*8760*10^-6,0) -> 0 | AR10: =SUM(AN10:AQ10) -> 0
B11: Large Wind C5 | C11: no incremental capacity available by 2015 | V11: Large Wind C5 | W11: no incremental capacity available by 2015 | AE11: =IF(ISNA(MATCH(B11,Outputs_2015!$BD$7:$BD$20,0)),0,1) -> 0 | AF11: 0 | AI11: 1 | AJ11: =IF(R11<=[20]Outputs_2020!$BE$19,1,0) -> 1 | AK11: 0 | AL11: =IF(AK11=1,X11*8760*W11,0) -> 0 | AN11: 0 | AO11: 0 | AP11: 0 | AR11: 0
B12: Large Wind C4 | C12: no incremental capacity available by 2015 | V12: Large Wind C4 | W12: no incremental capacity available by 2015 | AE12: =IF(ISNA(MATCH(B12,Outputs_2015!$BD$7:$BD$20,0)),0,1) -> 0 | AF12: 0 | AI12: 1 | AJ12: =IF(R12<=[20]Outputs_2020!$BE$19,1,0) -> 1 | AK12: 0 | AL12: 0 | AN12: 0 | AO12: 0 | AP12: 0 | AR12: 0
B13: Offshore Wind | C13: no incremental capacity available by 2015 | V13: Offshore Wind | W13: no incremental capacity available by 2015 | AE13: =IF(ISNA(MATCH(B13,Outputs_2015!$BD$7:$BD$20,0)),0,1) -> 0 | AF13: 0 | AI13: 1 | AJ13: =IF(R13<=[20]Outputs_2020!$BE$19,1,0) -> 1 | AK13: 0 | AL13: 0 | AN13: 0 | AO13: 0 | AP13: 0 | AR13: 0
B14: Utility-Scale PV | C14: no incremental capacity available by 2015 | V14: Utility-Scale PV | W14: no incremental capacity available by 2015 | AE14: =IF(ISNA(MATCH(B14,Outputs_2015!$BD$7:$BD$20,0)),0,1) -> 0 | AF14: 0 | AI14: 1 | AJ14: =IF(R14<=[20]Outputs_2020!$BE$19,1,0) -> 1 | AK14: 0 | AL14: 0 | AN14: 0 | AO14: 0 | AP14: 0 | AR14: 0
B15: Commercial PV | C15: =ComPV!E6 -> 0.144 | D15: =ComPV!E32 -> 1.6 | E15: =ComPV!E33 -> 2522.88 | F15: =E15*annual_marginal_heat_rate -> 21192.192 | G15: =ComPV!E4 -> 2593.018664 | H15: =Ref!I145 -> 25 | I15: =Ref!I151 -> 0.07979277742 | J15: =ComPV!E10 -> 25 | K15: 0 | L15: 0 | M15: =ComPV!E18 -> 183.8408177 | N15: =ComPV!E21 -> 90.70844598 | P15: =ComPV!E24 -> 29.7303741 | Q15: =M15-SUM(N15:P15) -> 63.40199765 | R15: =Q15/annual_marginal_heat_rate -> 7.547856863 | S15: =ComPV!E34 -> 0 | T15: =ComPV!E36 -> 0 | V15: Commercial PV | W15: =C15 -> 0.144 | X15: =D15 -> 1.6 | Y15: =Q15 -> 63.40199765 | Z15: =R15 -> 7.547856863 | AA15: =F15 -> 21192.192 | AB15: =T15 -> 0 | AD15: DG | AE15: =IF(ISNA(MATCH(B15,Outputs_2015!$BD$7:$BD$20,0)),0,1) -> 1 | AF15: 0 | AI15: 0 | AJ15: =IF(R15<=[20]Outputs_2020!$BE$19,1,0) -> 0 | AK15: 0 | AL15: 0 | AN15: 0 | AO15: 0 | AP15: 0 | AR15: 0
B16: Residential PV | C16: =ResPV!E6 -> 0.13 | D16: =ResPV!E32 -> 0.2 | E16: =ResPV!E33 -> 284.7 | F16: =E16*annual_marginal_heat_rate -> 2391.48 | G16: =ResPV!E4 -> 2841.66429 | H16: =Ref!O148 -> 25 | I16: =Ref!O151 -> 0.07592958133 | J16: =ResPV!E10 -> 25 | K16: 0 | L16: 0 | M16: =ResPV!E18 -> 211.4211273 | N16: =ResPV!E21 -> 90.70844598 | P16: =ResPV!E24 -> 32.93210669 | Q16: 87.78057465 | R16: =Q16/annual_marginal_heat_rate -> 10.45006841 | S16: =ResPV!E34 -> 0 | T16: =ResPV!E36 -> 0 | V16: Residential PV | W16: 0.13 | X16: 0.2 | Y16: 87.78057465 | Z16: 10.45006841 | AA16: 2391.48 | AB16: 0 | AD16: DG | AE16: =IF(ISNA(MATCH(B16,Outputs_2015!$BD$7:$BD$20,0)),0,1) -> 1 | AF16: 0 | AI16: 0 | AJ16: =IF(R16<=[20]Outputs_2020!$BE$19,1,0) -> 0 | AK16: 0 | AL16: 0 | AN16: 0 | AO16: 0 | AP16: 0 | AR16: 0
B17: Large CHP | C17: no incremental capacity available by 2015 | V17: Large CHP | W17: no incremental capacity available by 2015 | AD17: DG | AE17: =IF(ISNA(MATCH(B17,Outputs_2015!$BD$7:$BD$20,0)),0,1) -> 0 | AF17: 0 | AI17: 1 | AJ17: =IF(R17<=[20]Outputs_2020!$BE$19,1,0) -> 1 | AK17: 0 | AL17: 0 | AN17: 0 | AO17: 0 | AP17: 0 | AR17: 0
B18: Small CHP | C18: =Small_CHP!E6 -> 0.5 | D18: =E18/(C18*8760) -> 5 | E18: =Small_CHP!E74 -> 21900 | F18: =E18*annual_marginal_heat_rate -> 183960 | G18: =Small_CHP!E4 -> 2180.977342 | H18: =Ref!H145 -> 10 | I18: =Ref!H151 -> 0.1542230488 | J18: 0 | K18: =Small_CHP!E11 -> 11.35 | L18: =Small_CHP!E10 -> 10.83772401 | M18: =Small_CHP!E18 -> 135.0061486 | N18: =Small_CHP!E66+Small_CHP!E58 -> 123.7794785 | P18: =Small_CHP!E57+Small_CHP!E65 -> 39.1068767 | Q18: =M18-SUM(N18:P18) -> -27.88020667 | R18: =Q18/annual_marginal_heat_rate -> -3.319072223 | S18: =Small_CHP!E75 -> 0.95 | T18: =Small_CHP!E77 -> 19.361 | V18: Small CHP | W18: 0.5 | X18: 5 | Y18: -27.88020667 | Z18: -3.319072223 | AA18: 183960 | AB18: 19.361 | AD18: DG | AE18: =IF(ISNA(MATCH(B18,Outputs_2015!$BD$7:$BD$20,0)),0,1) -> 1 | AF18: 1 | AI18: 1 | AJ18: =IF(R18<=[20]Outputs_2020!$BE$19,1,0) -> 1 | AK18: 0 | AL18: 0 | AN18: 0 | AO18: 0 | AP18: 0 | AR18: 0
B19: Landfill Gas | C19: =LFG!E6 -> 0.7848173516 | D19: 0.3 | E19: =LFG!E32 -> 2062.5 | F19: =E19*annual_marginal_heat_rate -> 17325 | G19: =LFG!E4 -> 1420.832145 | H19: =Ref!$J$145 -> 20 | I19: =Ref!$J$151 -> 0.09044711643 | J19: =LFG!E10 -> 131.9344134 | K19: =LFG!E11 -> 0 | L19: =LFG!E8 -> 0 | M19: =LFG!E18 -> 37.88284856 | N19: =LFG!E21 -> 83.98930183 | P19: =LFG!E24 -> 11.7297871 | Q19: -57.83624037 | R19: =Q19/annual_marginal_heat_rate -> -6.885266711 | S19: =LFG!E33 -> 0.95 | T19: =LFG!E35 -> 2.166 | V19: Landfill Gas | W19: 0.7848173516 | X19: 0.3 | Y19: -57.83624037 | Z19: -6.885266711 | AA19: 17325 | AB19: 2.166 | AD19: DG | AE19: =IF(ISNA(MATCH(B19,Outputs_2015!$BD$7:$BD$20,0)),0,1) -> 1 | AF19: 1 | AI19: 1 | AJ19: =IF(R19<=[20]Outputs_2020!$BE$19,1,0) -> 1 | AK19: 0 | AL19: 0 | AN19: 0 | AO19: 0 | AP19: 0 | AR19: 0
B20: Anaerobic Digestion | C20: =Anaerobic_Digestion!E6 -> 0.9 | D20: 0.3 | E20: =Anaerobic_Digestion!E32 -> 2365.2 | F20: =E20*annual_marginal_heat_rate -> 19867.68 | G20: =Anaerobic_Digestion!E4 -> 4102.064502 | H20: =Ref!$J$145 -> 20 | I20: =Ref!$J$151 -> 0.09044711643 | J20: =Anaerobic_Digestion!E10 -> 0 | K20: =Anaerobic_Digestion!E11 -> 0 | L20: =Anaerobic_Digestion!E8 -> 0 | M20: =Anaerobic_Digestion!E18 -> 47.05985612 | N20: =Anaerobic_Digestion!E21 -> 90.70844598 | P20: =Anaerobic_Digestion!E24 -> 21.72604261 | Q20: -65.37463247 | R20: =Q20/annual_marginal_heat_rate -> -7.782694342 | S20: =Anaerobic_Digestion!E33 -> 0.95 | T20: =Anaerobic_Digestion!E35 -> 2.166 | V20: Anaerobic Digestion | W20: 0.9 | X20: 0.3 | Y20: -65.37463247 | Z20: -7.782694342 | AA20: 19867.68 | AB20: 2.166 | AD20: DG | AE20: =IF(ISNA(MATCH(B20,Outputs_2015!$BD$7:$BD$20,0)),0,1) -> 1 | AF20: 1 | AI20: 1 | AJ20: =IF(R20<=[20]Outputs_2020!$BE$19,1,0) -> 1 | AK20: 0 | AL20: 0 | AN20: 0 | AO20: 0 | AP20: 0 | AR20: 0
B21: Biomass Power C1 | C21: no incremental capacity available by 2015 | V21: Biomass Power C1 | W21: no incremental capacity available by 2015 | AE21: =IF(ISNA(MATCH(B21,Outputs_2015!$BD$7:$BD$20,0)),0,1) -> 0 | AF21: 0 | AI21: 1 | AJ21: =IF(R21<=[20]Outputs_2020!$BE$19,1,0) -> 1 | AK21: 0 | AL21: 0 | AN21: 0 | AO21: 0 | AP21: 0 | AR21: 0
B22: Biomass Power C2 | C22: no incremental capacity available by 2015 | V22: Biomass Power C2 | W22: no incremental capacity available by 2015 | AE22: =IF(ISNA(MATCH(B22,Outputs_2015!$BD$7:$BD$20,0)),0,1) -> 0 | AF22: 0 | AI22: 1 | AJ22: =IF(R22<=[20]Outputs_2020!$BE$19,1,0) -> 1 | AK22: 0 | AL22: 0 | AN22: 0 | AO22: 0 | AP22: 0 | AR22: 0
B23: Biomass Power C3 | C23: no incremental capacity available by 2015 | V23: Biomass Power C3 | W23: no incremental capacity available by 2015 | AE23: =IF(ISNA(MATCH(B23,Outputs_2015!$BD$7:$BD$20,0)),0,1) -> 0 | AF23: 0 | AI23: 1 | AJ23: =IF(R23<=[20]Outputs_2020!$BE$19,1,0) -> 1 | AK23: 0 | AL23: 0 | AN23: 0 | AO23: 0 | AP23: 0 | AR23: 0
B24: Biomass Power C4 | C24: no incremental capacity available by 2015 | V24: Biomass Power C4 | W24: no incremental capacity available by 2015 | AE24: =IF(ISNA(MATCH(B24,Outputs_2015!$BD$7:$BD$20,0)),0,1) -> 0 | AF24: 0 | AI24: 1 | AJ24: =IF(R24<=[20]Outputs_2020!$BE$19,1,0) -> 1 | AK24: 0 | AL24: 0 | AN24: 0 | AO24: 0 | AP24: 0 | AR24: 0
B25: Converted Hydro | C25: =DevHyd_wo_power!E6 -> 0.3805175038 | D25: 0.5 | E25: =DevHyd_wo_power!E32 -> 1666.666667 | F25: =E25*annual_marginal_heat_rate -> 14000 | G25: =DevHyd_wo_power!E4 -> 2083.333333 | H25: =Ref!$C$145 -> 30 | I25: =Ref!$C$151 -> 0.09333184907 | J25: =DevHyd_wo_power!E10 -> 14.13 | K25: =DevHyd_wo_power!E11 -> 0 | L25: =DevHyd_wo_power!E8 -> 0 | M25: =DevHyd_wo_power!E18 -> 62.57140567 | N25: =DevHyd_wo_power!E21 -> 83.98930183 | P25: =DevHyd_wo_power!E24 -> 24.1926859 | Q25: =M25-SUM(N25:P25) -> -45.61058206 | R25: =Q25/annual_marginal_heat_rate -> -5.429831197 | S25: =DevHyd_wo_power!E33 -> 0.95 | T25: =DevHyd_wo_power!E35 -> 3.61 | V25: Converted Hydro | W25: =C25 -> 0.3805175038 | X25: =D25 -> 0.5 | Y25: =Q25 -> -45.61058206 | Z25: =R25 -> -5.429831197 | AA25: =F25 -> 14000 | AB25: =T25 -> 3.61 | AE25: =IF(ISNA(MATCH(B25,Outputs_2015!$BD$7:$BD$20,0)),0,1) -> 1 | AF25: 1 | AI25: 1 | AJ25: =IF(R25<=[20]Outputs_2020!$BE$19,1,0) -> 1 | AK25: 0 | AL25: 0 | AN25: 0 | AO25: 0 | AP25: 0 | AR25: 0
B26: Res. Electric EE | C26: =Ref!$C$396 -> 0.55 | D26: =E26/(C26*8760) -> 0 | E26: =EE!F40 -> 0 | F26: =E26*annual_marginal_heat_rate -> 0 | M26: =EE!F22 -> 9.189204122 | N26: =Ref!$C$263 -> 104.0456176 | O26: =Ref!$C$267/(Ref!$C$395*Ref!$C$396) -> 37.42284851 | Q26: -132.279262 | R26: =Q26/annual_marginal_heat_rate -> -15.7475312 | S26: 0.55 | T26: =winter_marginal_heat_rate*D26*S26 -> 0 | V26: Res. Electric EE | W26: 0.55 | X26: 0 | Y26: -132.279262 | Z26: -15.7475312 | AA26: 0 | AB26: 0 | AD26: EE | AE26: =IF(ISNA(MATCH(B26,Outputs_2015!$BD$7:$BD$20,0)),0,1) -> 0 | AF26: 0 | AI26: 1 | AJ26: =IF(R26<=[20]Outputs_2020!$BE$19,1,0) -> 1 | AK26: 0 | AL26: 0 | AN26: 0 | AO26: 0 | AP26: 0 | AR26: 0
B27: LI Electric EE | C27: =Ref!$C$396 -> 0.55 | D27: =E27/(C27*8760) -> 0 | E27: =EE!F41 -> 0 | F27: =E27*annual_marginal_heat_rate -> 0 | M27: =EE!F23 -> 104.2632263 | N27: =Ref!$C$263 -> 104.0456176 | O27: =Ref!$C$267/(Ref!$C$395*Ref!$C$396) -> 37.42284851 | Q27: -37.20523988 | R27: =Q27/annual_marginal_heat_rate -> -4.429195224 | S27: 0.55 | T27: =winter_marginal_heat_rate*D27*S27 -> 0 | V27: LI Electric EE | W27: 0.55 | X27: 0 | Y27: -37.20523988 | Z27: -4.429195224 | AA27: 0 | AB27: 0 | AD27: EE | AE27: =IF(ISNA(MATCH(B27,Outputs_2015!$BD$7:$BD$20,0)),0,1) -> 0 | AF27: 0 | AI27: 1 | AJ27: =IF(R27<=[20]Outputs_2020!$BE$19,1,0) -> 1 | AK27: 0 | AL27: 0 | AN27: 0 | AO27: 0 | AP27: 0 | AR27: 0
B28: CI Electric EE | C28: =Ref!$C$396 -> 0.55 | D28: 0 | E28: =EE!F42 -> 0 | F28: =E28*annual_marginal_heat_rate -> 0 | M28: =EE!F24 -> 30.74979379 | N28: =Ref!$C$263 -> 104.0456176 | O28: =Ref!$C$267/(Ref!$C$395*Ref!$C$396) -> 37.42284851 | Q28: -110.7186724 | R28: =Q28/annual_marginal_heat_rate -> -13.18079433 | S28: 0.55 | T28: =winter_marginal_heat_rate*D28*S28 -> 0 | V28: CI Electric EE | W28: 0.55 | X28: 0 | Y28: -110.7186724 | Z28: -13.18079433 | AA28: 0 | AB28: 0 | AD28: EE | AE28: =IF(ISNA(MATCH(B28,Outputs_2015!$BD$7:$BD$20,0)),0,1) -> 0 | AF28: 0 | AI28: 1 | AJ28: =IF(R28<=[20]Outputs_2020!$BE$19,1,0) -> 1 | AK28: 0 | AL28: 0 | AN28: 0 | AO28: 0 | AP28: 0 | AR28: 0
B29: Appliance Standards | C29: no incremental capacity available by 2015 | V29: Appliance Standards | W29: no incremental capacity available by 2015 | AD29: EE | AE29: =IF(ISNA(MATCH(B29,Outputs_2015!$BD$7:$BD$20,0)),0,1) -> 0 | AF29: 0 | AI29: 1 | AJ29: =IF(R29<=[20]Outputs_2020!$BE$19,1,0) -> 1 | AK29: 0 | AL29: 0 | AN29: 0 | AO29: 0 | AP29: 0 | AR29: 0
B30: Direct Gas Reduction Technologies | V30: =B30 -> Direct Gas Reduction Technologies | AL30: =SUM(AL9:AL29) -> 0 | AM30: =AL30*AL2*10^-6/($AL$4*$AL$3) -> 0 | AN30: =SUM(AN9:AN29) -> 0 | AO30: =SUM(AO9:AO29) -> 0 | AP30: 0 | AQ30: 0 | AR30: 0
B31: Technology | F31: Potential Energy Production | G31: Installed Cost | H31: Lifetime | I31: Real Levelization Rate | J31: Annual Fixed O&M | K31: Annual Variable O&M | L31: Annual Levelized Fuel Cost | M31: Annual Levelized Cost | N31: Avoided Energy Cost | O31: Avoided Capacity Cost | P31: Capacity Payment Proxy | R31: Annual Net Levelized Cost | S31: Winter Load Carrying Capcity | T31: Peak Hour Gas Savings | V31: Technology | W31: Annual Capacity Factor | X31: Total Potential Capacity | Y31: Annual Net Levelized Cost | Z31: Annual Net Levelized Cost | AA31: Annual Energy Production | AB31: Peak Hour Gas Savings
F32: MMBtu NG | G32: $/MMBtu | H32: Yrs | I32: % | J32: $/MMBtu-yr | K32: $/MMBtu | L32: $/MMBtu | M32: $/MMBtu | N32: $/MMBtu | O32: $/MMBtu | P32: $/MMBtu | R32: $/MMBtu NG | S32: % | T32: MMBtu NG | W32: % | X32: MW | Y32: $/MWh | Z32: $/MMBtu NG | AA32: MMBtu NG | AB32: MMBtu NG
B33: AS Heat Pump | F33: =AirHeatPump!E73 -> 6307.2 | G33: =AirHeatPump!E5 -> 281898.1481 | H33: =Ref!$K$145 -> 15 | I33: =Ref!$K$151 -> 0.1088708492 | J33: =AirHeatPump!E13 -> 2000 | K33: 0 | L33: =AirHeatPump!E12/1000/3412*10^6 -> 49.82415006 | M33: =AirHeatPump!E20 -> 17.93417207 | N33: =Ref!C$270 -> 8.113599747 | R33: =AirHeatPump!E69 -> 17.45443682 | S33: =AirHeatPump!E74 -> 0.95 | T33: =AirHeatPump!E76 -> 8.664 | V33: =B33 -> AS Heat Pump | W33: =C33 -> 0 | X33: =D33 -> 0 | Y33: =Q33 -> 0 | Z33: =R33 -> 17.45443682 | AA33: =F33 -> 6307.2 | AB33: =T33 -> 8.664 | AE33: =IF(ISNA(MATCH(B33,Outputs_2015!$BD$7:$BD$20,0)),0,1) -> 1 | AF33: =IF(AND(AE33=1,R33<=$R$48),1,0) -> 0
B34: GS Heat Pump | F34: =GndHeatPump!E73 -> 1576.8 | G34: =GndHeatPump!E5 -> 324979.1667 | H34: =Ref!$K$145 -> 15 | I34: =Ref!$K$151 -> 0.1088708492 | J34: =GndHeatPump!E13 -> 2000 | K34: 0 | L34: =GndHeatPump!E12/1000/3412*10^6 -> 49.82415006 | M34: =GndHeatPump!E20 -> 16.34368518 | N34: =Ref!$C$270 -> 8.113599747 | R34: =GndHeatPump!E69 -> 14.53915241 | S34: =GndHeatPump!E74 -> 0.95 | T34: =GndHeatPump!E76 -> 2.166 | V34: GS Heat Pump | W34: 0 | X34: 0 | Y34: 0 | Z34: 14.53915241 | AA34: 1576.8 | AB34: 2.166 | AE34: =IF(ISNA(MATCH(B34,Outputs_2015!$BD$7:$BD$20,0)),0,1) -> 1 | AF34: 0
B35: Solar Hot Water | F35: =SolarHotWater!E70 -> 1572.8 | G35: =SolarHotWater!E20 -> 53.34987228 | H35: =Ref!$K$145 -> 15 | I35: =Ref!$K$151 -> 0.1088708492 | J35: =SolarHotWater!E17 -> 0 | K35: =SolarHotWater!E17 -> 0 | L35: =SolarHotWater!E18 -> 3250 | M35: =SolarHotWater!$E$20 -> 53.34987228 | N35: =Ref!$C$270 -> 8.113599747 | R35: =SolarHotWater!E66 -> 1.459082105 | S35: =SolarHotWater!E71 -> 0.1692307692 | T35: =SolarHotWater!E73 -> 0.02091328894 | V35: Solar Hot Water | W35: 0 | X35: 0 | Y35: 0 | Z35: 1.459082105 | AA35: 1572.8 | AB35: 0.02091328894 | AE35: =IF(ISNA(MATCH(B35,Outputs_2015!$BD$7:$BD$20,0)),0,1) -> 1 | AF35: 1
B36: Biomass Thermal | F36: =Biomass_Chip!E33 -> 6291 | G36: =Biomass_Chip!E6/Biomass_Chip!E3 -> 367964.0292 | H36: =Ref!$K$145 -> 15 | I36: =Ref!$K$151 -> 0.1088708492 | J36: =Biomass_Chip!E12*Biomass_Chip!E4/Biomass_Chip!E3 -> 879.3103448 | K36: 0 | L36: =Biomass_Chip!E10/Biomass_Chip!E11 -> 4.629122702 | M36: =Biomass_Chip!E19 -> 15.57989842 | N36: =Ref!$C$270 -> 8.113599747 | R36: =Biomass_Chip!E29 -> 7.46629867 | S36: =Biomass_Chip!E34 -> 0.95 | T36: =Biomass_Chip!E36 -> 10.43747686 | V36: Biomass Thermal | W36: =C36 -> 0 | X36: 0 | Y36: =Q36 -> 0 | Z36: =R36 -> 7.46629867 | AA36: =F36 -> 6291 | AB36: =T36 -> 10.43747686 | AE36: =IF(ISNA(MATCH(B36,Outputs_2015!$BD$7:$BD$20,0)),0,1) -> 1 | AF36: 0
B37: Res. Gas EE | F37: =EE!F43 -> 0 | M37: =EE!F25 -> -71.52687299 | N37: =Ref!$D$271 -> 8.128601754 | R37: =M37-N37-P37 -> -79.65547474 | S37: 0.55 | T37: =F37*S37/8760 -> 0 | V37: Res. Gas EE | W37: 0 | X37: 0 | Y37: =Q37 -> 0 | Z37: -79.65547474 | AA37: =F37 -> 0 | AB37: =T37 -> 0 | AE37: =IF(ISNA(MATCH(B37,Outputs_2015!$BD$7:$BD$20,0)),0,1) -> 0 | AF37: 0
B38: LI Gas EE | F38: =EE!F44 -> 0 | M38: =EE!F26 -> -9.255161792 | N38: =Ref!$D$271 -> 8.128601754 | R38: =M38-N38-P38 -> -17.38376355 | S38: 0.55 | T38: =F38*S38/8760 -> 0 | V38: LI Gas EE | W38: 0 | X38: 0 | Y38: 0 | Z38: -17.38376355 | AA38: 0 | AB38: 0 | AE38: =IF(ISNA(MATCH(B38,Outputs_2015!$BD$7:$BD$20,0)),0,1) -> 0 | AF38: 0
B39: CI Gas EE | F39: =EE!F45 -> 0 | M39: =EE!F27 -> -16.87618697 | N39: =Ref!$D$271 -> 8.128601754 | R39: -25.00478873 | S39: 0.55 | T39: 0 | V39: CI Gas EE | W39: 0 | X39: 0 | Y39: 0 | Z39: -25.00478873 | AA39: 0 | AB39: 0 | AE39: =IF(ISNA(MATCH(B39,Outputs_2015!$BD$7:$BD$20,0)),0,1) -> 0 | AF39: 0
B40: Hydro Sensitivity | V40: Hydro Sensitivity
B41: Technology | C41: Annual Capacity Factor | D41: Total Potential Capacity | E41: Annual Energy Production | F41: Annual Energy Production | G41: Installed Cost | H41: Lifetime | I41: Discount Rate | J41: Annual Fixed O&M | K41: Annual Variable O&M | L41: Annual Levelized Fuel Cost | M41: Annual Levelized Cost | N41: Avoided Energy Cost | O41: Avoided Capacity Cost | P41: Avoided Capacity Cost | Q41: Annual Net Levelized Cost | R41: Annual Net Levelized Cost | S41: Winter Load Carrying Capcity | T41: Peak Hour Gas Savings | V41: Technology | W41: Annual Capacity Factor | X41: Total Potential Capacity | Y41: Annual Net Levelized Cost | Z41: Annual Net Levelized Cost | AA41: Annual Energy Production | AB41: Peak Hour Gas Savings
C42: % | D42: MW | E42: MWh | F42: MMBtu NG | G42: $/kW | H42: Yrs | I42: % | J42: $/kW-yr | K42: $/MWh | L42: $/MMBtu | M42: $/MMBtu | N42: $/MMBtu | O42: $/MMBtu | P42: $/MMBtu | Q42: $/MWh | R42: $/MMBtu NG | S42: % | T42: MMBtu NG | W42: % | X42: MW | Y42: $/MWh | Z42: $/MMBtu NG | AA42: MMBtu NG | AB42: MMBtu NG
B43: CA Hydro HVDC 1 | C43: no incremental capacity available by 2015 | V43: =B43 -> CA Hydro HVDC 1 | W43: =C43 -> no incremental capacity available by 2015
B44: CA Hydro HVDC 2 | C44: no incremental capacity available by 2015 | V44: =B44 -> CA Hydro HVDC 2 | W44: =C44 -> no incremental capacity available by 2015
B45: Economic Threshold | V45: =B45 -> Economic Threshold
B46: Technology | F46: Potential Energy Production | G46: Installed Cost | H46: Lifetime | I46: Discount Rate | J46: Annual Fixed O&M | K46: Annual Variable O&M | L46: Annual Levelized Fuel Cost | M46: Annual Levelized Cost | R46: Annual Net Levelized Cost | S46: Winter Load Carrying Capcity | T46: Peak Hour Gas Savings | V46: Technology | W46: Annual Capacity Factor | X46: Total Potential Capacity | Y46: Annual Net Levelized Cost | Z46: Annual Net Levelized Cost | AA46: Annual Energy Production | AB46: Peak Hour Gas Savings
F47: MMBtu | G47: $/MMBtu | H47: Yrs | I47: % | J47: $/MMBtu-yr | K47: $/MMBtu | L47: $/MMBtu | M47: $/MMBtu | R47: $/MMBtu NG | S47: % | T47: MMBtu NG | W47: % | X47: MW | Y47: $/MWh | Z47: $/MMBtu NG | AA47: MMBtu NG | AB47: MMBtu NG
B48: Pipeline @ 80% winter usage | F48: Unlimited | M48: =Pipeline_Threshold!F20 -> 4.481578947 | R48: =M48 -> 4.481578947 | V48: =B48 -> Pipeline @ 80% winter usage | W48: =C48 -> 0 | X48: =D48 -> 0 | Y48: =Q48 -> 0 | Z48: =R48 -> 4.481578947 | AA48: =F48 -> Unlimited | AB48: =T48 -> 0
AD49: For Charts
B50: (continued) | AD50: =Z7 -> Annual Net Levelized Cost | AE50: =V7 -> Technology | AF50: =AA7 -> Annual Energy Production | AG50: =AB7 -> Peak Hour Gas Savings
AC51: Electric | AD51: =Z9+ROW()*10^-6 -> 76.60843599 | AE51: =V9 -> Wind (<10 kW) | AF51: =AA9+ROW()*10^-6 -> 11773.44005 | AG51: =AB9+ROW()*10^-6 -> 2.660051
AD52: 13.1835391 | AE52: Wind (<100 kW) | AF52: 18396.00005 | AG52: 2.660052
AD53: 5.3e-05 | AE53: Large Wind C5 | AF53: 5.3e-05 | AG53: 5.3e-05
AD54: 5.4e-05 | AE54: Large Wind C4 | AF54: 5.4e-05 | AG54: 5.4e-05
AD55: 5.5e-05 | AE55: Offshore Wind | AF55: 5.5e-05 | AG55: 5.5e-05
AD56: 5.6e-05 | AE56: Utility-Scale PV | AF56: 5.6e-05 | AG56: 5.6e-05
AD57: 7.547913863 | AE57: Commercial PV | AF57: 21192.19206 | AG57: 5.7e-05
AD58: 10.45012641 | AE58: Residential PV | AF58: 2391.480058 | AG58: 5.8e-05
B59: (a) | C59: Percent of time over a year that a resource produces energy | AD59: 5.9e-05 | AE59: Large CHP | AF59: 5.9e-05 | AG59: 5.9e-05
B60: (b) | C60: Peak generating ability | AD60: -3.319012223 | AE60: Small CHP | AF60: 183960.0001 | AG60: 19.36106
B61: (c) | C61: (a) x (b) x 8,760 hours/year | AD61: -6.885205711 | AE61: Landfill Gas | AF61: 17325.00006 | AG61: 2.166061
B62: (d) | C62: (c) x peak hour natural gas heat rate | AD62: -7.782632342 | AE62: Anaerobic Digestion | AF62: 19867.68006 | AG62: 2.166062
B63: (e) | C63: Cost per kilowatt of constructing the resource | L63: Other: | M63: Electric vehicles | AD63: 6.3e-05 | AE63: Biomass Power C1 | AF63: 6.3e-05 | AG63: 6.3e-05
B64: (f) | C64: Average useful life of resource | M64: Time-varying rates | AD64: 6.4e-05 | AE64: Biomass Power C2 | AF64: 6.4e-05 | AG64: 6.4e-05
B65: (g) | M65: existing LNG | AD65: 6.5e-05 | AE65: Biomass Power C3 | AF65: 6.5e-05 | AG65: 6.5e-05
B66: (h) | C66: Annual fixed operating and maintenance expenditures | M66: incremental LNG | AD66: 6.6e-05 | AE66: Biomass Power C4 | AF66: 6.6e-05 | AG66: 6.6e-05
B67: (i) | C67: Annual variable operating and maintenance expenditures; includes carbon costs for CHP and biomass | M67: Market rule changes | AD67: =Z25+ROW()*10^-6 -> -5.429764197 | AE67: =V25 -> Converted Hydro | AF67: =AA25+ROW()*10^-6 -> 14000.00007 | AG67: 3.610067
B68: (j) | C68: Fuel cost; for pumped and battery storage this represents the cost of purchasing energy in non-peak hours | M68: Gas Pipeline | AD68: -15.7474632 | AE68: Res. Electric EE | AF68: =AA26+ROW()*10^-6 -> 6.8e-05 | AG68: 6.8e-05
B69: (k) | C69: (e) x (g) + (h) x (a) + (i) + (j) | AD69: -4.429126224 | AE69: LI Electric EE | AF69: =AA27+ROW()*10^-6 -> 6.9e-05 | AG69: 6.9e-05
B70: (l) | C70: Average cost of avoiding the purchase of energy in the New England ISO | AD70: -13.18072433 | AE70: CI Electric EE | AF70: =AA28+ROW()*10^-6 -> 7e-05 | AG70: 7e-05
B71: (m) | C71: Average cost of avoiding the purchase of capacity in the New England ISO | AD71: 7.1e-05 | AE71: Appliance Standards | AF71: =AA29+ROW()*10^-6 -> 7.1e-05 | AG71: 7.1e-05
B72: (n) | C72: (k) - (l) - (m) | AC72: Gas | AD72: =Z33+ROW()*10^-6 -> 17.45450882 | AE72: =V33 -> AS Heat Pump | AF72: =AA33+ROW()*10^-6 -> 6307.200072 | AG72: 8.664072
B73: (o) | C73: (n) x peak hour natural gas heat rate | AD73: =Z34+ROW()*10^-6 -> 14.53922541 | AE73: =V34 -> GS Heat Pump | AF73: =AA34+ROW()*10^-6 -> 1576.800073 | AG73: =AB34+ROW()*10^-6 -> 2.166073
AD74: 1.459156105 | AE74: Solar Hot Water | AF74: 1572.800074 | AG74: 0.02098728894
AD75: 7.46637367 | AE75: Biomass Thermal | AF75: 6291.000075 | AG75: 10.43755186
B76: Large CHP | C76: Annual Capacity Factor | D76: Total Potential Capacity | E76: Annual Net Levelized Cost | F76: Annual Net Levelized Cost | G76: Annual Energy Production | H76: Peak Hour Gas Savings | AD76: -79.65539874 | AE76: Res. Gas EE | AF76: 7.6e-05 | AG76: 7.6e-05
C77: % | D77: MW | E77: $/MWh | F77: $/MMBtu NG | G77: MMBtu NG | H77: MMBtu NG | AD77: -17.38368655 | AE77: LI Gas EE | AF77: 7.7e-05 | AG77: 7.7e-05
B78: 2015 | C78: =SUMIF($V$9:$V$48,$B$76,SC_2015!W$9:W$48) -> 0 | D78: =SUMIF($V$9:$V$48,$B$76,SC_2015!X$9:X$48) -> 0 | E78: =SUMIF($V$9:$V$48,$B$76,SC_2015!Y$9:Y$48) -> 0 | F78: =SUMIF($V$9:$V$48,$B$76,SC_2015!Z$9:Z$48) -> 0 | G78: =SUMIF($V$9:$V$48,$B$76,SC_2015!AA$9:AA$48) -> 0 | H78: =SUMIF($V$9:$V$48,$B$76,SC_2015!AB$9:AB$48) -> 0 | AD78: -25.00471073 | AE78: CI Gas EE | AF78: 7.8e-05 | AG78: 7.8e-05
B79: 2020 | C79: =SUMIF($V$9:$V$48,$B$76,SC_2020!W$9:W$48) -> 0.67 | D79: =SUMIF($V$9:$V$48,$B$76,SC_2020!X$9:X$48) -> 25 | E79: =SUMIF($V$9:$V$48,$B$76,SC_2020!Y$9:Y$48) -> -73.33682814 | F79: =SUMIF($V$9:$V$48,$B$76,SC_2020!Z$9:Z$48) -> -8.730574778 | G79: =SUMIF($V$9:$V$48,$B$76,SC_2020!AA$9:AA$48) -> 1232532 | H79: =SUMIF($V$9:$V$48,$B$76,SC_2020!AB$9:AB$48) -> 58.840625 | AC79: Threshold | AD79: =Z48+ROW()*10^-6 -> 4.481657947 | AE79: =V48 -> Pipeline @ 80% winter usage | AF79: =AA48 -> Unlimited | AG79: =AB48 -> 0
B80: 2030 | C80: =SUMIF($V$9:$V$48,$B$76,SC_2030!W$9:W$48) -> 0.67 | D80: =SUMIF($V$9:$V$48,$B$76,SC_2030!X$9:X$48) -> 50 | E80: =SUMIF($V$9:$V$48,$B$76,SC_2030!Y$9:Y$48) -> -147.3982681 | F80: =SUMIF($V$9:$V$48,$B$76,SC_2030!Z$9:Z$48) -> -17.54741287 | G80: =SUMIF($V$9:$V$48,$B$76,SC_2030!AA$9:AA$48) -> 2465064 | H80: =SUMIF($V$9:$V$48,$B$76,SC_2030!AB$9:AB$48) -> 117.68125
B82: Landfill Gas | C82: Annual Capacity Factor | D82: Total Potential Capacity | E82: Annual Net Levelized Cost | F82: Annual Net Levelized Cost | G82: Annual Energy Production | H82: Peak Hour Gas Savings
C83: % | D83: MMBtu / yr | E83: $/MMBtu | F83: $/MMBtu NG | G83: MMBtu NG | H83: MMBtu NG
B84: 2015 | C84: =SUMIF($V$9:$V$48,$B$76,SC_2015!W$9:W$48) -> 0 | D84: =SUMIF($V$9:$V$48,$B$76,SC_2015!X$9:X$48) -> 0 | E84: =SUMIF($V$9:$V$48,$B$76,SC_2015!Y$9:Y$48) -> 0 | F84: =SUMIF($V$9:$V$48,$B$76,SC_2015!Z$9:Z$48) -> 0 | G84: =SUMIF($V$9:$V$48,$B$76,SC_2015!AA$9:AA$48) -> 0 | H84: =SUMIF($V$9:$V$48,$B$76,SC_2015!AB$9:AB$48) -> 0
B85: 2020 | C85: =SUMIF($V$9:$V$48,$B$76,SC_2020!W$9:W$48) -> 0.67 | D85: =SUMIF($V$9:$V$48,$B$76,SC_2020!X$9:X$48) -> 25 | E85: =SUMIF($V$9:$V$48,$B$76,SC_2020!Y$9:Y$48) -> -73.33682814 | F85: =SUMIF($V$9:$V$48,$B$76,SC_2020!Z$9:Z$48) -> -8.730574778 | G85: =SUMIF($V$9:$V$48,$B$76,SC_2020!AA$9:AA$48) -> 1232532 | H85: =SUMIF($V$9:$V$48,$B$76,SC_2020!AB$9:AB$48) -> 58.840625
B86: 2030 | C86: =SUMIF($V$9:$V$48,$B$76,SC_2030!W$9:W$48) -> 0.67 | D86: =SUMIF($V$9:$V$48,$B$76,SC_2030!X$9:X$48) -> 50 | E86: =SUMIF($V$9:$V$48,$B$76,SC_2030!Y$9:Y$48) -> -147.3982681 | F86: =SUMIF($V$9:$V$48,$B$76,SC_2030!Z$9:Z$48) -> -17.54741287 | G86: =SUMIF($V$9:$V$48,$B$76,SC_2030!AA$9:AA$48) -> 2465064 | H86: =SUMIF($V$9:$V$48,$B$76,SC_2030!AB$9:AB$48) -> 117.68125

Sheet SC_2020
B2: 2020 Supply Curve | V2: =B2&" Summary" -> 2020 Supply Curve Summary | AL2: 1500 | AM2: lbs/MWh | AN2: Emission rate of NGCC per EPA
B3: All dollar values are in 2013 dollars. | V3: All dollar values are in 2013 dollars. | AL3: 1.1 | AM3: short tons per metric ton
AL4: 2000 | AM4: lbs per short ton
C5: (a) | D5: (b) | E5: (c) | F5: (d) | G5: (e) | H5: (f) | I5: (g) | J5: (h) | K5: (i) | L5: (j) | M5: (k) | N5: (l) | O5: (m) | P5: (n) | Q5: (o) | R5: (p) | S5: (q) | T5: (r)
B6: Electricity Technologies | V6: =B6 -> Electricity Technologies
B7: Technology | C7: Annual Capacity Factor | D7: Total Potential Capacity | E7: Annual Energy Production | F7: Annual Energy Production | G7: Installed Cost | H7: Lifetime | I7: Real Levelization Rate | J7: Annual Fixed O&M | K7: Annual Variable O&M | L7: Annual Levelized Fuel Cost | M7: Annual Levelized Cost | N7: Avoided Energy Cost | O7: Avoided Capacity Cost | P7: Capacity Payment Proxy | Q7: Annual Net Levelized Cost | R7: Annual Net Levelized Cost | S7: Winter Load Carrying Capcity | T7: Peak Hour Gas Savings | V7: Technology | W7: Annual Capacity Factor | X7: Total Potential Capacity | Y7: Annual Net Levelized Cost | Z7: Annual Net Levelized Cost | AA7: Annual Energy Production | AB7: Peak Hour Gas Savings
C8: % | D8: MW | E8: MWh | F8: MMBtu NG | G8: $/kW | H8: Yrs | I8: % | J8: $/kW-yr | K8: $/MWh | L8: $/MMBtu | M8: $/MWh | N8: $/MWh | O8: $/MWh | P8: $/MWh | Q8: $/MWh | R8: $/MMBtu NG | S8: % | T8: MMBtu NG | W8: % | X8: MW | Y8: $/MWh | Z8: $/MMBtu NG | AA8: MMBtu NG | AB8: MMBtu NG | AE8: In Supply Curve? | AF8: Clear Supply Curve | AI8: In old | AJ8: In new | AK8: In new but not old | AL8: MWh | AM8: Emissions | AN8: Capital ($ M) | AO8: Fixed ($ M) | AP8: Variable ($M) | AQ8: Fuel ($M) | AR8: Total ($M)
B9: Wind (<10 kW) | C9: =Small_Wind!F6 -> 0.16 | D9: =E9/(C9*8760) -> 100 | E9: =Small_Wind!F32 -> 140160 | F9: =E9*annual_marginal_heat_rate -> 1177344 | G9: =Small_Wind!F4 -> 9200 | H9: =Ref!$J$145 -> 20 | I9: =Ref!$J$151 -> 0.09044711643 | J9: =Small_Wind!F10 -> 115 | K9: =Small_Wind!F11 -> 0 | L9: =Small_Wind!F8 -> 0 | M9: =Small_Wind!F18 -> 675.737351 | N9: =Small_Wind!F21 -> 97.01259709 | P9: =Small_Wind!F24 -> 29.21337381 | Q9: =M9-SUM(N9:P9) -> 549.5113801 | R9: =Q9/annual_marginal_heat_rate -> 65.41802144 | S9: =Small_Wind!F33 -> 0.35 | T9: =Small_Wind!F35 -> 266 | V9: =B9 -> Wind (<10 kW) | W9: 0.16 | X9: 100 | Y9: =Q9 -> 549.5113801 | Z9: =R9 -> 65.41802144 | AA9: =F9 -> 1177344 | AB9: =T9 -> 266 | AD9: DG | AE9: =IF(ISNA(MATCH(B9,Outputs_2020!$BD$7:$BD$35,0)),0,1) -> 1 | AF9: =IF(AND(AE9=1,R9<=$R$48),1,0) -> 0 | AI9: 0 | AJ9: =IF(R9<=[20]Outputs_2020!$BE$19,1,0) -> 0 | AK9: =IF(AND(AJ9=1,AI9=0),1,0) -> 0 | AL9: =IF(AK9=1,X9*8760*W9,0) -> 0 | AN9: =IF(AK9=1,I9*G9*X9*1000*10^-6,0) -> 0 | AO9: =IF($AK9=1,J9*X9*1000*10^-6,0) -> 0 | AP9: =IF($AK9=1,K9*X9*W9*8760*10^-6,0) -> 0 | AR9: =SUM(AN9:AQ9) -> 0
B10: Wind (<100 kW) | C10: =Dist_Wind!F6 -> 0.25 | D10: =E10/(C10*8760) -> 100 | E10: =Dist_Wind!F32 -> 219000 | F10: =E10*annual_marginal_heat_rate -> 1839600 | G10: =Dist_Wind!F4 -> 4000 | H10: =Ref!$J$145 -> 20 | I10: =Ref!$J$151 -> 0.09044711643 | J10: =Dist_Wind!F10 -> 25 | K10: =Dist_Wind!F11 -> 0 | L10: =Dist_Wind!F8 -> 0 | M10: =Dist_Wind!F18 -> 176.6157378 | N10: =Dist_Wind!F21 -> 97.01259709 | P10: =Dist_Wind!F24 -> 18.69655924 | Q10: =M10-SUM(N10:P10) -> 60.90658144 | R10: =Q10/annual_marginal_heat_rate -> 7.250783505 | S10: =Dist_Wind!F33 -> 0.35 | T10: =Dist_Wind!F35 -> 266 | V10: Wind (<100 kW) | W10: 0.25 | X10: 100 | Y10: =Q10 -> 60.90658144 | Z10: 7.250783505 | AA10: =F10 -> 1839600 | AB10: =T10 -> 266 | AD10: DG | AE10: =IF(ISNA(MATCH(B10,Outputs_2020!$BD$7:$BD$35,0)),0,1) -> 1 | AF10: 0 | AI10: 0 | AJ10: =IF(R10<=[20]Outputs_2020!$BE$19,1,0) -> 0 | AK10: =IF(AND(AJ10=1,AI10=0),1,0) -> 0 | AL10: =IF(AK10=1,X10*8760*W10,0) -> 0 | AN10: =IF(AK10=1,I10*G10*X10*1000*10^-6,0) -> 0 | AO10: =IF($AK10=1,J10*X10*1000*10^-6,0) -> 0 | AP10: =IF($AK10=1,K10*X10*W10*8760*10^-6,0) -> 0 | AR10: =SUM(AN10:AQ10) -> 0
B11: Large Wind C5 | C11: =Large_Wind!J6 -> 0.41 | D11: =E11/(C11*8760) -> 200 | E11: =Large_Wind!J33 -> 718320 | F11: =E11*annual_marginal_heat_rate -> 6033888 | G11: =Large_Wind!J4 -> 2359.142005 | H11: =Ref!$F$145 -> 20 | I11: =Ref!$F$151 -> 0.09724179748 | J11: =Large_Wind!J10 -> 50 | K11: =Large_Wind!J11 -> 0 | L11: =Large_Wind!F8 -> 0 | M11: =Large_Wind!J19 -> 112.7946344 | N11: =Large_Wind!J22 -> 89.82647878 | P11: =Large_Wind!J25 -> 6.087017302 | Q11: 16.88113835 | R11: =Q11/annual_marginal_heat_rate -> 2.009659328 | S11: =Large_Wind!J34 -> 0.35 | T11: =Large_Wind!J36 -> 532 | V11: =B11 -> Large Wind C5 | W11: =C11 -> 0.41 | X11: =D11 -> 200 | Y11: =Q11 -> 16.88113835 | Z11: =R11 -> 2.009659328 | AA11: =F11 -> 6033888 | AB11: =T11 -> 532 | AE11: =IF(ISNA(MATCH(B11,Outputs_2020!$BD$7:$BD$35,0)),0,1) -> 1 | AF11: 1 | AI11: 0 | AJ11: =IF(R11<=[20]Outputs_2020!$BE$19,1,0) -> 1 | AK11: 1 | AL11: =IF(AK11=1,X11*8760*W11,0) -> 718320 | AN11: 45.88144181 | AO11: 10 | AP11: 0 | AR11: 55.88144181
B12: Large Wind C4 | C12: Assuming wind projects built in 2020 are constructed in best wind locations (i.e., C5) | V12: Large Wind C4 | W12: =C12 -> Assuming wind projects built in 2020 are constructed in best wind locations (i.e., C5) | AE12: =IF(ISNA(MATCH(B12,Outputs_2020!$BD$7:$BD$35,0)),0,1) -> 0 | AF12: 0 | AI12: 1 | AJ12: =IF(R12<=[20]Outputs_2020!$BE$19,1,0) -> 1 | AK12: 0 | AL12: 0 | AN12: 0 | AO12: 0 | AP12: 0 | AR12: 0
B13: Offshore Wind | C13: =OS_Wind!F6 -> 0.44 | D13: =E13/(C13*8760) -> 800 | E13: =OS_Wind!F32 -> 3083520 | F13: =E13*annual_marginal_heat_rate -> 25901568 | G13: =OS_Wind!F4 -> 5600 | H13: =Ref!M145 -> 20 | I13: =Ref!M151 -> 0.1219541291 | J13: =OS_Wind!F10 -> 115 | K13: =OS_Wind!F11 -> 0 | L13: =OS_Wind!F8 -> 0 | M13: =OS_Wind!F18 -> 207.0213581 | N13: =OS_Wind!F21 -> 89.82647878 | P13: =OS_Wind!F24 -> 5.671993395 | Q13: =M13-SUM(N13:P13) -> 111.522886 | R13: =Q13/annual_marginal_heat_rate -> 13.27653404 | S13: =OS_Wind!F33 -> 0.35 | T13: =OS_Wind!F35 -> 2128 | V13: Offshore Wind | W13: 0.44 | X13: 800 | Y13: 111.522886 | Z13: 13.27653404 | AA13: 25901568 | AB13: 2128 | AE13: =IF(ISNA(MATCH(B13,Outputs_2020!$BD$7:$BD$35,0)),0,1) -> 1 | AF13: 0 | AI13: 0 | AJ13: =IF(R13<=[20]Outputs_2020!$BE$19,1,0) -> 0 | AK13: 0 | AL13: 0 | AN13: 0 | AO13: 0 | AP13: 0 | AR13: 0
B14: Utility-Scale PV | C14: =GroundPV!F6 -> 0.147 | D14: =GroundPV!F32 -> 16 | E14: =GroundPV!F33 -> 25754.4 | F14: 216336.96 | G14: =GroundPV!F4 -> 2232.736228 | H14: =Ref!E145 -> 25 | I14: =Ref!E151 -> 0.0866196381 | J14: =GroundPV!F10 -> 15.75 | K14: 0 | L14: 0 | M14: =GroundPV!F18 -> 162.4186966 | N14: =GroundPV!F21 -> 89.82647878 | P14: =GroundPV!F24 -> 17.656491 | Q14: 54.93572683 | R14: 6.53996748 | S14: =GroundPV!F34 -> 0 | T14: =GroundPV!F36 -> 0 | V14: Utility-Scale PV | W14: 0.147 | X14: 16 | Y14: 54.93572683 | Z14: 6.53996748 | AA14: 216336.96 | AB14: 0 | AE14: =IF(ISNA(MATCH(B14,Outputs_2020!$BD$7:$BD$35,0)),0,1) -> 1 | AF14: 0 | AI14: 0 | AJ14: =IF(R14<=[20]Outputs_2020!$BE$19,1,0) -> 0 | AK14: 0 | AL14: 0 | AN14: 0 | AO14: 0 | AP14: 0 | AR14: 0
B15: Commercial PV | C15: =ComPV!F6 -> 0.144 | D15: =ComPV!F32 -> 50 | E15: =ComPV!F33 -> 78840 | F15: 662256 | G15: =ComPV!F4 -> 2841.66429 | H15: =Ref!I145 -> 25 | I15: =Ref!I151 -> 0.07979277742 | J15: =ComPV!F10 -> 24 | K15: 0 | L15: 0 | M15: =ComPV!F18 -> 198.7762289 | N15: =ComPV!F21 -> 97.01259709 | P15: =ComPV!F24 -> 33.7576764 | Q15: 68.00595538 | R15: 8.09594707 | S15: =ComPV!F34 -> 0 | T15: =ComPV!F36 -> 0 | V15: Commercial PV | W15: 0.144 | X15: 50 | Y15: 68.00595538 | Z15: 8.09594707 | AA15: 662256 | AB15: 0 | AD15: DG | AE15: =IF(ISNA(MATCH(B15,Outputs_2020!$BD$7:$BD$35,0)),0,1) -> 1 | AF15: 0 | AI15: 0 | AJ15: =IF(R15<=[20]Outputs_2020!$BE$19,1,0) -> 0 | AK15: 0 | AL15: 0 | AN15: 0 | AO15: 0 | AP15: 0 | AR15: 0
B16: Residential PV | C16: =ResPV!F6 -> 0.13 | D16: =E16/(C16*8760) -> 5 | E16: =ResPV!F33 -> 5694 | F16: 47829.6 | G16: =ResPV!F4 -> 2943.1523 | H16: =Ref!O145 -> 25 | I16: =Ref!O151 -> 0.07592958133 | J16: =ResPV!F10 -> 24 | K16: 0 | L16: 0 | M16: =ResPV!F18 -> 217.3097312 | N16: =ResPV!F21 -> 97.01259709 | P16: =ResPV!F24 -> 37.39311848 | Q16: 82.90401567 | R16: 9.869525675 | S16: =ResPV!F34 -> 0 | T16: =ResPV!F36 -> 0 | V16: Residential PV | W16: 0.13 | X16: 5 | Y16: 82.90401567 | Z16: 9.869525675 | AA16: 47829.6 | AB16: 0 | AD16: DG | AE16: =IF(ISNA(MATCH(B16,Outputs_2020!$BD$7:$BD$35,0)),0,1) -> 1 | AF16: 0 | AI16: 0 | AJ16: =IF(R16<=[20]Outputs_2020!$BE$19,1,0) -> 0 | AK16: 0 | AL16: 0 | AN16: 0 | AO16: 0 | AP16: 0 | AR16: 0
B17: Large CHP | C17: =Large_CHP!F6 -> 0.67 | D17: 25 | E17: =Large_CHP!F74 -> 146730 | F17: 1232532 | G17: =Large_CHP!F4 -> 1750 | H17: =Ref!F145 -> 20 | I17: =Ref!F151 -> 0.09724179748 | J17: 0 | K17: =Large_CHP!F11 -> 5.11 | L17: =Large_CHP!F10 -> 7.316187144 | M17: =Large_CHP!F18 -> 77.43438429 | N17: =Large_CHP!F66+Large_CHP!F58 -> 117.6336541 | P17: =Large_CHP!F65+Large_CHP!F57 -> 33.13755835 | Q17: -73.33682814 | R17: -8.730574778 | S17: =Large_CHP!F75 -> 0.95 | T17: =Large_CHP!F77 -> 58.840625 | V17: Large CHP | W17: =C17 -> 0.67 | X17: 25 | Y17: -73.33682814 | Z17: -8.730574778 | AA17: 1232532 | AB17: 58.840625 | AD17: DG | AE17: =IF(ISNA(MATCH(B17,Outputs_2020!$BD$7:$BD$35,0)),0,1) -> 1 | AF17: 1 | AI17: 1 | AJ17: =IF(R17<=[20]Outputs_2020!$BE$19,1,0) -> 1 | AK17: 0 | AL17: 0 | AN17: 0 | AO17: 0 | AP17: 0 | AR17: 0
B18: Small CHP | C18: =Small_CHP!F6 -> 0.5 | D18: 35 | E18: =Small_CHP!F74 -> 153300 | F18: 1287720 | G18: =Small_CHP!F4 -> 2457 | H18: =Ref!H145 -> 10 | I18: =Ref!H151 -> 0.1542230488 | J18: 0 | K18: =Small_CHP!F11 -> 11.35 | L18: =Small_CHP!F10 -> 11.56858625 | M18: =Small_CHP!F18 -> 147.8853594 | N18: =Small_CHP!F66+Small_CHP!F58 -> 130.9385015 | P18: =Small_CHP!F65+Small_CHP!F57 -> 44.40432819 | Q18: -27.45747031 | R18: -3.268746466 | S18: =Small_CHP!F75 -> 0.95 | T18: =Small_CHP!F77 -> 135.527 | V18: Small CHP | W18: 0.5 | X18: 35 | Y18: -27.45747031 | Z18: -3.268746466 | AA18: 1287720 | AB18: 135.527 | AD18: DG | AE18: =IF(ISNA(MATCH(B18,Outputs_2020!$BD$7:$BD$35,0)),0,1) -> 1 | AF18: 1 | AI18: 1 | AJ18: =IF(R18<=[20]Outputs_2020!$BE$19,1,0) -> 1 | AK18: 0 | AL18: 0 | AN18: 0 | AO18: 0 | AP18: 0 | AR18: 0
B19: Landfill Gas | C19: =LFG!F6 -> 0.7848173516 | D19: 20 | E19: =LFG!F32 -> 137500 | F19: 1155000 | G19: =LFG!F4 -> 1420.832145 | H19: =Ref!$J$145 -> 20 | I19: =Ref!$J$151 -> 0.09044711643 | J19: =LFG!F10 -> 131.9344134 | K19: =LFG!F11 -> 0 | L19: =LFG!F8 -> 0 | M19: =LFG!F18 -> 37.88284856 | N19: =LFG!F21 -> 89.82647878 | P19: =LFG!F24 -> 15.10474529 | Q19: -67.04837551 | R19: -7.981949466 | S19: =LFG!F33 -> 0.95 | T19: =LFG!F35 -> 144.4 | V19: Landfill Gas | W19: 0.7848173516 | X19: 20 | Y19: -67.04837551 | Z19: -7.981949466 | AA19: 1155000 | AB19: 144.4 | AD19: DG | AE19: =IF(ISNA(MATCH(B19,Outputs_2020!$BD$7:$BD$35,0)),0,1) -> 1 | AF19: 1 | AI19: 1 | AJ19: =IF(R19<=[20]Outputs_2020!$BE$19,1,0) -> 1 | AK19: 0 | AL19: 0 | AN19: 0 | AO19: 0 | AP19: 0 | AR19: 0
B20: Anaerobic Digestion | C20: =Anaerobic_Digestion!F6 -> 0.9 | D20: 20 | E20: =Anaerobic_Digestion!F32 -> 157680 | F20: 1324512 | G20: =Anaerobic_Digestion!F4 -> 4102.064502 | H20: =Ref!$J$145 -> 20 | I20: =Ref!$J$151 -> 0.09044711643 | J20: =Anaerobic_Digestion!F10 -> 0 | K20: =Anaerobic_Digestion!F11 -> 0 | L20: =Anaerobic_Digestion!F8 -> 0 | M20: =Anaerobic_Digestion!F18 -> 47.05985612 | N20: =Anaerobic_Digestion!F21 -> 97.01259709 | P20: =Anaerobic_Digestion!F24 -> 24.66907122 | Q20: -74.62181219 | R20: -8.88354907 | S20: =Anaerobic_Digestion!F33 -> 0.95 | T20: =Anaerobic_Digestion!F35 -> 144.4 | V20: Anaerobic Digestion | W20: 0.9 | X20: 20 | Y20: -74.62181219 | Z20: -8.88354907 | AA20: 1324512 | AB20: 144.4 | AD20: DG | AE20: =IF(ISNA(MATCH(B20,Outputs_2020!$BD$7:$BD$35,0)),0,1) -> 1 | AF20: 1 | AI20: 1 | AJ20: =IF(R20<=[20]Outputs_2020!$BE$19,1,0) -> 1 | AK20: 0 | AL20: 0 | AN20: 0 | AO20: 0 | AP20: 0 | AR20: 0
B21: Biomass Power C1 | C21: 0.8 | D21: 20 | E21: =Biomass_Pwr!F32 -> 140160 | F21: 1177344 | G21: =Biomass_Pwr!F4 -> 4175 | H21: =Ref!$D$145 -> 30 | I21: =Ref!$D$151 -> 0.07993559063 | J21: =Biomass_Pwr!F10 -> 105 | K21: =Biomass_Pwr!F11 -> 11 | L21: =Biomass_Pwr!F8 -> 2.68 | M21: =Biomass_Pwr!F18 -> 110.4543223 | N21: =Biomass_Pwr!F21 -> 89.82647878 | P21: =Biomass_Pwr!F24 -> 14.81808274 | Q21: 5.809760798 | R21: 0.6916381902 | S21: =Biomass_Pwr!F33 -> 0.95 | T21: =Biomass_Pwr!F35 -> 144.4 | V21: Biomass Power C1 | W21: 0.8 | X21: 20 | Y21: 5.809760798 | Z21: 0.6916381902 | AA21: 1177344 | AB21: 144.4 | AE21: =IF(ISNA(MATCH(B21,Outputs_2020!$BD$7:$BD$35,0)),0,1) -> 1 | AF21: 1 | AI21: 0 | AJ21: =IF(R21<=[20]Outputs_2020!$BE$19,1,0) -> 1 | AK21: 1 | AL21: 140160 | AN21: 6.674621817 | AO21: 2.1 | AP21: 1.54176 | AR21: 10.31638182
B22: Biomass Power C2 | C22: 0.8 | D22: 40 | E22: =Biomass_Pwr!H32 -> 280320 | F22: 2354688 | G22: =Biomass_Pwr!H4 -> 4175 | H22: =Ref!$D$145 -> 30 | I22: =Ref!$D$151 -> 0.07993559063 | J22: =Biomass_Pwr!H10 -> 105 | K22: =Biomass_Pwr!H11 -> 11 | L22: =Biomass_Pwr!H8 -> 3.94 | M22: =Biomass_Pwr!H18 -> 127.7793223 | N22: =Biomass_Pwr!H21 -> 89.82647878 | P22: =Biomass_Pwr!H24 -> 14.81808274 | Q22: 23.1347608 | R22: 2.75413819 | S22: =Biomass_Pwr!H33 -> 0.95 | T22: =Biomass_Pwr!H35 -> 288.8 | V22: Biomass Power C2 | W22: =C22 -> 0.8 | X22: =D22 -> 40 | Y22: =Q22 -> 23.1347608 | Z22: =R22 -> 2.75413819 | AA22: =F22 -> 2354688 | AB22: =T22 -> 288.8 | AE22: =IF(ISNA(MATCH(B22,Outputs_2020!$BD$7:$BD$35,0)),0,1) -> 1 | AF22: 1 | AI22: 0 | AJ22: =IF(R22<=[20]Outputs_2020!$BE$19,1,0) -> 1 | AK22: 1 | AL22: 280320 | AN22: 13.34924363 | AO22: 4.2 | AP22: 3.08352 | AR22: 20.63276363
B23: Biomass Power C3 | C23: 0.8 | D23: 40 | E23: =Biomass_Pwr!J32 -> 280320 | F23: 2354688 | G23: =Biomass_Pwr!J4 -> 4175 | H23: =Ref!$D$145 -> 30 | I23: =Ref!$D$151 -> 0.07993559063 | J23: =Biomass_Pwr!J10 -> 105 | K23: =Biomass_Pwr!J11 -> 11 | L23: =Biomass_Pwr!J8 -> 10.22 | M23: =Biomass_Pwr!J18 -> 214.1293223 | N23: =Biomass_Pwr!J21 -> 89.82647878 | P23: =Biomass_Pwr!J24 -> 14.81808274 | Q23: 109.4847608 | R23: 13.03390009 | S23: =Biomass_Pwr!J33 -> 0.95 | T23: =Biomass_Pwr!J35 -> 288.8 | V23: Biomass Power C3 | W23: 0.8 | X23: 40 | Y23: 109.4847608 | Z23: 13.03390009 | AA23: 2354688 | AB23: 288.8 | AE23: =IF(ISNA(MATCH(B23,Outputs_2020!$BD$7:$BD$35,0)),0,1) -> 1 | AF23: 0 | AI23: 0 | AJ23: =IF(R23<=[20]Outputs_2020!$BE$19,1,0) -> 0 | AK23: 0 | AL23: 0 | AN23: 0 | AO23: 0 | AP23: 0 | AR23: 0
B24: Biomass Power C4 | C24: 0.8 | D24: 50 | E24: =Biomass_Pwr!L32 -> 350400 | F24: 2943360 | G24: =Biomass_Pwr!L4 -> 4175 | H24: =Ref!$D$145 -> 30 | I24: =Ref!$D$151 -> 0.07993559063 | J24: =Biomass_Pwr!L10 -> 105 | K24: =Biomass_Pwr!L11 -> 11 | L24: =Biomass_Pwr!L8 -> 13.47 | M24: =Biomass_Pwr!L18 -> 258.8168223 | N24: =Biomass_Pwr!L21 -> 89.82647878 | P24: =Biomass_Pwr!L24 -> 14.81808274 | Q24: 154.1722608 | R24: 18.35384057 | S24: =Biomass_Pwr!L33 -> 0.95 | T24: =Biomass_Pwr!L35 -> 361 | V24: Biomass Power C4 | W24: 0.8 | X24: 50 | Y24: 154.1722608 | Z24: 18.35384057 | AA24: 2943360 | AB24: 361 | AE24: =IF(ISNA(MATCH(B24,Outputs_2020!$BD$7:$BD$35,0)),0,1) -> 1 | AF24: 0 | AI24: 0 | AJ24: =IF(R24<=[20]Outputs_2020!$BE$19,1,0) -> 0 | AK24: 0 | AL24: 0 | AN24: 0 | AO24: 0 | AP24: 0 | AR24: 0
B25: Converted Hydro | C25: =DevHyd_wo_power!F6 -> 0.3805175038 | D25: =E25/(C25*8760) -> 61 | E25: =DevHyd_wo_power!F32 -> 203333.3333 | F25: 1708000 | G25: =DevHyd_wo_power!F4 -> 2083.333333 | H25: =Ref!$C$145 -> 30 | I25: =Ref!$C$151 -> 0.09333184907 | J25: =DevHyd_wo_power!F10 -> 14.13 | K25: =DevHyd_wo_power!F11 -> 0 | L25: =DevHyd_wo_power!F8 -> 0 | M25: =DevHyd_wo_power!F18 -> 62.57140567 | N25: =DevHyd_wo_power!F21 -> 89.82647878 | P25: =DevHyd_wo_power!F24 -> 31.15353716 | Q25: -58.40861027 | R25: -6.953405985 | S25: =DevHyd_wo_power!F33 -> 0.95 | T25: =DevHyd_wo_power!F35 -> 440.42 | V25: Converted Hydro | W25: =C25 -> 0.3805175038 | X25: =D25 -> 61 | Y25: =Q25 -> -58.40861027 | Z25: =R25 -> -6.953405985 | AA25: =F25 -> 1708000 | AB25: =T25 -> 440.42 | AE25: =IF(ISNA(MATCH(B25,Outputs_2020!$BD$7:$BD$35,0)),0,1) -> 1 | AF25: 1 | AI25: 1 | AJ25: =IF(R25<=[20]Outputs_2020!$BE$19,1,0) -> 1 | AK25: 0 | AL25: 0 | AN25: 0 | AO25: 0 | AP25: 0 | AR25: 0
B26: Res. Electric EE | C26: =Ref!$C$396 -> 0.55 | D26: =E26/(C26*8760) -> 28.34362267 | E26: =EE!G40 -> 136559.574 | F26: 1147100.422 | M26: =EE!G22 -> 9.189204122 | N26: =Ref!$D$263 -> 103.1056402 | O26: =Ref!$D$267/(Ref!$C$395*Ref!$C$396) -> 42.49218009 | Q26: -136.4086161 | R26: -16.23912097 | S26: 0.55 | T26: =winter_marginal_heat_rate*D26*S26 -> 118.4763428 | V26: Res. Electric EE | W26: =C26 -> 0.55 | X26: 28.34362267 | Y26: -136.4086161 | Z26: -16.23912097 | AA26: 1147100.422 | AB26: 118.4763428 | AD26: EE | AE26: =IF(ISNA(MATCH(B26,Outputs_2020!$BD$7:$BD$35,0)),0,1) -> 1 | AF26: 1 | AI26: 1 | AJ26: =IF(R26<=[20]Outputs_2020!$BE$19,1,0) -> 1 | AK26: 0 | AL26: 0 | AN26: 0 | AO26: 0 | AP26: 0 | AR26: 0
B27: LI Electric EE | C27: =Ref!$C$396 -> 0.55 | D27: 3.422882661 | E27: =EE!G41 -> 16491.44866 | F27: 138528.1688 | M27: =EE!G23 -> 104.2632263 | N27: =Ref!$D$263 -> 103.1056402 | O27: =Ref!$D$267/(Ref!$C$395*Ref!$C$396) -> 42.49218009 | Q27: -41.33459397 | R27: -4.920784997 | S27: 0.55 | T27: =winter_marginal_heat_rate*D27*S27 -> 14.30764952 | V27: LI Electric EE | W27: 0.55 | X27: 3.422882661 | Y27: -41.33459397 | Z27: -4.920784997 | AA27: 138528.1688 | AB27: 14.30764952 | AD27: EE | AE27: =IF(ISNA(MATCH(B27,Outputs_2020!$BD$7:$BD$35,0)),0,1) -> 1 | AF27: 1 | AI27: 1 | AJ27: =IF(R27<=[20]Outputs_2020!$BE$19,1,0) -> 1 | AK27: 0 | AL27: 0 | AN27: 0 | AO27: 0 | AP27: 0 | AR27: 0
B28: CI Electric EE | C28: =Ref!$C$396 -> 0.55 | D28: 113.1023098 | E28: =EE!G42 -> 544926.9288 | F28: 4577386.202 | M28: =EE!G24 -> 30.74979379 | N28: =Ref!$D$263 -> 103.1056402 | O28: =Ref!$D$267/(Ref!$C$395*Ref!$C$396) -> 42.49218009 | Q28: -114.8480265 | R28: -13.6723841 | S28: 0.55 | T28: =winter_marginal_heat_rate*D28*S28 -> 472.7676551 | V28: CI Electric EE | W28: 0.55 | X28: 113.1023098 | Y28: -114.8480265 | Z28: -13.6723841 | AA28: 4577386.202 | AB28: 472.7676551 | AD28: EE | AE28: =IF(ISNA(MATCH(B28,Outputs_2020!$BD$7:$BD$35,0)),0,1) -> 1 | AF28: 1 | AI28: 1 | AJ28: =IF(R28<=[20]Outputs_2020!$BE$19,1,0) -> 1 | AK28: 0 | AL28: 0 | AN28: 0 | AO28: 0 | AP28: 0 | AR28: 0
B29: Appliance Standards | C29: =Ref!$C$396 -> 0.55 | D29: 215.8572022 | E29: =Appliance_Standards!D8*1000 -> 1040000 | F29: 8736000 | M29: =Appliance_Standards!D10 -> -273.1354428 | N29: =Ref!$D$263 -> 103.1056402 | O29: =Ref!$D$267/(Ref!$C$395*Ref!$C$396) -> 42.49218009 | Q29: -418.7332631 | R29: -49.84919799 | S29: 0.55 | T29: =winter_marginal_heat_rate*D29*S29 -> 902.283105 | V29: =B29 -> Appliance Standards | W29: =C29 -> 0.55 | X29: =D29 -> 215.8572022 | Y29: =Q29 -> -418.7332631 | Z29: =R29 -> -49.84919799 | AA29: =F29 -> 8736000 | AB29: =T29 -> 902.283105 | AD29: EE | AE29: =IF(ISNA(MATCH(B29,Outputs_2020!$BD$7:$BD$35,0)),0,1) -> 1 | AF29: 1 | AI29: 1 | AJ29: =IF(R29<=[20]Outputs_2020!$BE$19,1,0) -> 1 | AK29: 0 | AL29: 0 | AN29: 0 | AO29: 0 | AP29: 0 | AR29: 0
B30: Direct Gas Reduction Technologies | V30: =B30 -> Direct Gas Reduction Technologies | AL30: =SUM(AL9:AL29) -> 1138800 | AM30: =AL30*AL2*10^-6/($AL$4*$AL$3) -> 0.7764545455 | AN30: =SUM(AN9:AN29) -> 65.90530726 | AO30: =SUM(AO9:AO29) -> 16.3 | AP30: 4.62528 | AQ30: 0 | AR30: 86.83058726
B31: Technology | F31: Potential Energy Production | G31: Installed Cost | H31: Lifetime | I31: Real Levelization Rate | J31: Annual Fixed O&M | K31: Annual Variable O&M | L31: Annual Levelized Fuel Cost | M31: Annual Levelized Cost | N31: Avoided Energy Cost | O31: Avoided Capacity Cost | P31: Capacity Payment Proxy | R31: Annual Net Levelized Cost | S31: Winter Load Carrying Capcity | T31: Peak Hour Gas Savings | V31: Technology | W31: Annual Capacity Factor | X31: Total Potential Capacity | Y31: Annual Net Levelized Cost | Z31: Annual Net Levelized Cost | AA31: Annual Energy Production | AB31: Peak Hour Gas Savings
F32: MMBtu NG | G32: $/MMBtu | H32: Yrs | I32: % | J32: $/MMBtu-yr | K32: $/MMBtu | L32: $/MMBtu | M32: $/MMBtu | N32: $/MMBtu | O32: $/MMBtu | P32: $/MMBtu | R32: $/MMBtu NG | S32: % | T32: MMBtu NG | W32: % | X32: MW | Y32: $/MWh | Z32: $/MMBtu NG | AA32: MMBtu NG | AB32: MMBtu NG
B33: AS Heat Pump | F33: =AirHeatPump!F73 -> 75686.4 | G33: =AirHeatPump!F5 -> 281898.1481 | H33: =Ref!$K$145 -> 15 | I33: =Ref!$K$151 -> 0.1088708492 | J33: =AirHeatPump!F13 -> 2000 | K33: 0 | L33: =AirHeatPump!F12/1000/3412*10^6 -> 58.61664713 | M33: =AirHeatPump!F20 -> 20.00144032 | N33: =Ref!D$270 -> 8.32333279 | R33: =AirHeatPump!F69 -> 19.64759302 | S33: =AirHeatPump!F74 -> 0.95 | T33: =AirHeatPump!F76 -> 103.968 | V33: =B33 -> AS Heat Pump | W33: 0 | X33: 0 | Y33: =Q33 -> 0 | Z33: 19.64759302 | AA33: =F33 -> 75686.4 | AB33: =T33 -> 103.968 | AE33: =IF(ISNA(MATCH(B33,Outputs_2020!$BD$7:$BD$35,0)),0,1) -> 1 | AF33: =IF(AND(AE33=1,R33<=$R$48),1,0) -> 0
B34: GS Heat Pump | F34: =GndHeatPump!F73 -> 18921.6 | G34: =GndHeatPump!F5 -> 324979.1667 | H34: =Ref!$K$145 -> 15 | I34: =Ref!$K$151 -> 0.1088708492 | J34: =GndHeatPump!F13 -> 2000 | K34: 0 | L34: =GndHeatPump!F12/1000/3412*10^6 -> 58.61664713 | M34: =GndHeatPump!F20 -> 17.97280321 | N34: =Ref!D$270 -> 8.32333279 | R34: =GndHeatPump!F69 -> 16.20208621 | S34: =GndHeatPump!F74 -> 0.95 | T34: =GndHeatPump!F76 -> 25.992 | V34: GS Heat Pump | W34: 0 | X34: 0 | Y34: 0 | Z34: 16.20208621 | AA34: 18921.6 | AB34: 25.992 | AE34: =IF(ISNA(MATCH(B34,Outputs_2020!$BD$7:$BD$35,0)),0,1) -> 1 | AF34: 0
B35: Solar Hot Water | F35: =SolarHotWater!F70 -> 18896.4 | G35: =SolarHotWater!F20 -> 62.17340169 | H35: =Ref!$K$145 -> 15 | I35: =Ref!$K$151 -> 0.1088708492 | J35: =SolarHotWater!F17 -> 0 | K35: =SolarHotWater!F17 -> 0 | L35: =SolarHotWater!F18 -> 3823.529412 | M35: =SolarHotWater!F20 -> 62.17340169 | N35: =Ref!D$270 -> 8.32333279 | R35: =SolarHotWater!F66 -> 13.44685064 | S35: =SolarHotWater!F71 -> 0.1692307692 | T35: =SolarHotWater!F73 -> 0.2512626355 | V35: Solar Hot Water | W35: 0 | X35: 0 | Y35: 0 | Z35: 13.44685064 | AA35: =F35 -> 18896.4 | AB35: =T35 -> 0.2512626355 | AE35: =IF(ISNA(MATCH(B35,Outputs_2020!$BD$7:$BD$35,0)),0,1) -> 1 | AF35: 0
B36: Biomass Thermal | F36: =Biomass_Chip!F33 -> 75586 | G36: =Biomass_Chip!F6/Biomass_Chip!F3 -> 367964.0292 | H36: =Ref!$K$145 -> 15 | I36: =Ref!$K$151 -> 0.1088708492 | J36: =Biomass_Chip!F12*Biomass_Chip!F4/Biomass_Chip!F3 -> 879.3103448 | K36: 0 | L36: =Biomass_Chip!F10/Biomass_Chip!F11 -> 4.798188196 | M36: =Biomass_Chip!F19 -> 15.80531908 | N36: =Ref!D$270 -> 8.32333279 | R36: =Biomass_Chip!F29 -> 7.481986287 | S36: =Biomass_Chip!F34 -> 0.95 | T36: =Biomass_Chip!F36 -> 125.4056789 | V36: =B36 -> Biomass Thermal | W36: =C36 -> 0 | X36: =D36 -> 0 | Y36: =Q36 -> 0 | Z36: =R36 -> 7.481986287 | AA36: =F36 -> 75586 | AB36: =T36 -> 125.4056789 | AE36: =IF(ISNA(MATCH(B36,Outputs_2020!$BD$7:$BD$35,0)),0,1) -> 1 | AF36: 0
B37: Res. Gas EE | F37: =EE!G43 -> 3758369.261 | M37: =EE!G25 -> -71.52687299 | N37: =Ref!$D$271 -> 8.128601754 | R37: =M37-N37-P37 -> -79.65547474 | S37: 0.55 | T37: =F37*S37/8760 -> 235.9706728 | V37: =B37 -> Res. Gas EE | W37: =C37 -> 0 | X37: 0 | Y37: 0 | Z37: -79.65547474 | AA37: 3758369.261 | AB37: 235.9706728 | AE37: =IF(ISNA(MATCH(B37,Outputs_2020!$BD$7:$BD$35,0)),0,1) -> 1 | AF37: 1
B38: LI Gas EE | F38: =EE!G44 -> 584036.4834 | M38: =EE!G26 -> -9.255161792 | N38: =Ref!$D$271 -> 8.128601754 | R38: =M38-N38-P38 -> -17.38376355 | S38: 0.55 | T38: =F38*S38/8760 -> 36.66895729 | V38: =B38 -> LI Gas EE | W38: 0 | X38: 0 | Y38: 0 | Z38: -17.38376355 | AA38: 584036.4834 | AB38: 36.66895729 | AE38: =IF(ISNA(MATCH(B38,Outputs_2020!$BD$7:$BD$35,0)),0,1) -> 1 | AF38: 1
B39: CI Gas EE | F39: =EE!G45 -> 4121834.251 | M39: =EE!G27 -> -16.87618697 | N39: =Ref!$D$271 -> 8.128601754 | R39: -25.00478873 | S39: 0.55 | T39: 258.7909632 | V39: =B39 -> CI Gas EE | W39: 0 | X39: 0 | Y39: 0 | Z39: -25.00478873 | AA39: 4121834.251 | AB39: 258.7909632 | AE39: =IF(ISNA(MATCH(B39,Outputs_2020!$BD$7:$BD$35,0)),0,1) -> 1 | AF39: 1
B40: Hydro Sensitivity | V40: =B40 -> Hydro Sensitivity
B41: Technology | C41: Annual Capacity Factor | D41: Total Potential Capacity | E41: Annual Energy Production | F41: Annual Energy Production | G41: Installed Cost | H41: Lifetime | I41: Discount Rate | J41: Annual Fixed O&M | K41: Annual Variable O&M | L41: Annual Levelized Fuel Cost | M41: Annual Levelized Cost | N41: Avoided Energy Cost | O41: Avoided Capacity Cost | P41: Avoided Capacity Cost | Q41: Annual Net Levelized Cost | R41: Annual Net Levelized Cost | S41: Winter Load Carrying Capcity | T41: Peak Hour Gas Savings | V41: Technology | W41: Annual Capacity Factor | X41: Total Potential Capacity | Y41: Annual Net Levelized Cost | Z41: Annual Net Levelized Cost | AA41: Annual Energy Production | AB41: Peak Hour Gas Savings
C42: % | D42: MW | E42: MWh | F42: MMBtu NG | G42: $/kW | H42: Yrs | I42: % | J42: $/kW-yr | K42: $/MWh | L42: $/MMBtu | M42: $/MWh | N42: $/MWh | O42: $/MMBtu | P42: $/MMBtu | Q42: $/MWh | R42: $/MMBtu NG | S42: % | T42: MMBtu NG | W42: % | X42: MW | Y42: $/MWh | Z42: $/MMBtu NG | AA42: MMBtu NG | AB42: MMBtu NG
B43: CA Hydro HVDC 1 | C43: =CA_Hydro!K6 -> 0.67 | D43: =CA_Hydro!D6 -> 1200 | E43: =D43*C43*8760 -> 7043040 | F43: =E43*annual_marginal_heat_rate -> 59161536 | G43: =(CA_Hydro!L6*10^9)/(CA_Hydro!D6*1000) -> 1250 | H43: 30 | I43: =Ref!$D$151 -> 0.07993559063 | M43: =G43*I43 -> 99.91948828 | Q43: =M43-N43-P43 -> 99.91948828 | R43: =Q43*annual_marginal_heat_rate -> 839.3237016 | S43: =CA_Hydro!G6 -> 0.75 | T43: =D43*S43*winter_marginal_heat_rate -> 6840 | V43: =B43 -> CA Hydro HVDC 1 | W43: =C43 -> 0.67 | X43: =D43 -> 1200 | Y43: =Q43 -> 99.91948828 | Z43: =R43 -> 839.3237016 | AA43: =F43 -> 59161536 | AB43: =T43 -> 6840
B44: CA Hydro HVDC 2 | C44: no incremental capacity available by 2020 | V44: =B44 -> CA Hydro HVDC 2 | W44: =C44 -> no incremental capacity available by 2020
B45: Economic Threshold | V45: =B45 -> Economic Threshold
B46: Technology | F46: Potential Energy Production | G46: Installed Cost | H46: Lifetime | I46: Discount Rate | J46: Annual Fixed O&M | K46: Annual Variable O&M | L46: Annual Levelized Fuel Cost | M46: Annual Levelized Cost | R46: Annual Net Levelized Cost | S46: Winter Load Carrying Capcity | T46: Peak Hour Gas Savings | V46: Technology | W46: Annual Capacity Factor | X46: Total Potential Capacity | Y46: Annual Net Levelized Cost | Z46: Annual Net Levelized Cost | AA46: Annual Energy Production | AB46: Peak Hour Gas Savings
F47: MMBtu | G47: $/MMBtu | H47: Yrs | I47: % | J47: $/MMBtu-yr | K47: $/MMBtu | L47: $/MMBtu | M47: $/MMBtu | R47: $/MMBtu NG | S47: % | T47: MMBtu NG | W47: % | X47: MW | Y47: $/MWh | Z47: $/MMBtu NG | AA47: MMBtu NG | AB47: MMBtu NG
B48: Pipeline @ 80% winter usage | F48: Unlimited | M48: =Pipeline_Threshold!F20 -> 4.481578947 | R48: =M48 -> 4.481578947 | V48: =B48 -> Pipeline @ 80% winter usage | W48: =C48 -> 0 | X48: =D48 -> 0 | Y48: =Q48 -> 0 | Z48: =R48 -> 4.481578947 | AA48: =F48 -> Unlimited | AB48: =T48 -> 0
AD49: For Charts
B50: (continued) | AD50: =Z7 -> Annual Net Levelized Cost | AE50: =V7 -> Technology | AF50: =AA7 -> Annual Energy Production | AG50: =AB7 -> Peak Hour Gas Savings
AC51: Electric | AD51: =Z9+ROW()*10^-6 -> 65.41807244 | AE51: =V9 -> Wind (<10 kW) | AF51: =AA9+ROW()*10^-6 -> 1177344 | AG51: =AB9+ROW()*10^-6 -> 266.000051
AD52: 7.250835505 | AE52: Wind (<100 kW) | AF52: 1839600 | AG52: 266.000052
AD53: 2.009712328 | AE53: Large Wind C5 | AF53: 6033888 | AG53: 532.000053
AD54: 5.4e-05 | AE54: Large Wind C4 | AF54: 5.4e-05 | AG54: 5.4e-05
AD55: 13.27658904 | AE55: Offshore Wind | AF55: 25901568 | AG55: 2128.000055
AD56: 6.54002348 | AE56: Utility-Scale PV | AF56: 216336.9601 | AG56: 5.6e-05
AD57: 8.09600407 | AE57: Commercial PV | AF57: 662256.0001 | AG57: 5.7e-05
AD58: 9.869583675 | AE58: Residential PV | AF58: 47829.60006 | AG58: 5.8e-05
AD59: -8.730515778 | AE59: Large CHP | AF59: 1232532 | AG59: 58.840684
AD60: -3.268686466 | AE60: Small CHP | AF60: 1287720 | AG60: 135.52706
AD61: -7.981888466 | AE61: Landfill Gas | AF61: 1155000 | AG61: 144.400061
AD62: -8.88348707 | AE62: Anaerobic Digestion | AF62: 1324512 | AG62: 144.400062
AD63: 0.6917011902 | AE63: Biomass Power C1 | AF63: 1177344 | AG63: 144.400063
AD64: 2.75420219 | AE64: Biomass Power C2 | AF64: 2354688 | AG64: 288.800064
AD65: 13.03396509 | AE65: Biomass Power C3 | AF65: 2354688 | AG65: 288.800065
AD66: 18.35390657 | AE66: Biomass Power C4 | AF66: 2943360 | AG66: 361.000066
AD67: -6.953338985 | AE67: Converted Hydro | AF67: 1708000 | AG67: 440.420067
AD68: -16.23905297 | AE68: Res. Electric EE | AF68: 1147100.422 | AG68: 118.4764108
AD69: -4.920715997 | AE69: LI Electric EE | AF69: 138528.1688 | AG69: 14.30771852
AD70: -13.6723141 | AE70: CI Electric EE | AF70: 4577386.202 | AG70: 472.7677251
AD71: -49.84912699 | AE71: Appliance Standards | AF71: 8736000 | AG71: 902.283176
AC72: Gas | AD72: =Z33+ROW()*10^-6 -> 19.64766502 | AE72: =V33 -> AS Heat Pump | AF72: =AA33+ROW()*10^-6 -> 75686.40007 | AG72: =AB33+ROW()*10^-6 -> 103.968072
AD73: =Z34+ROW()*10^-6 -> 16.20215921 | AE73: =V34 -> GS Heat Pump | AF73: =AA34+ROW()*10^-6 -> 18921.60007 | AG73: 25.992073
AD74: 13.44692464 | AE74: Solar Hot Water | AF74: 18896.40007 | AG74: 0.2513366355
AD75: 7.482061287 | AE75: Biomass Thermal | AF75: 75586.00007 | AG75: 125.4057539
AD76: -79.65539874 | AE76: Res. Gas EE | AF76: 3758369.261 | AG76: 235.9707488
AD77: -17.38368655 | AE77: LI Gas EE | AF77: 584036.4834 | AG77: 36.66903429
AD78: -25.00471073 | AE78: CI Gas EE | AF78: 4121834.251 | AG78: 258.7910412
AC79: Threshold | AD79: =Z48+ROW()*10^-6 -> 4.481657947 | AE79: =V48 -> Pipeline @ 80% winter usage | AF79: =AA48 -> Unlimited | AG79: =AB48 -> 0

Sheet SC_2030
B2: 2030 Supply Curve | V2: =B2&" Summary" -> 2030 Supply Curve Summary | AL2: 1500 | AM2: lbs/MWh | AN2: Emission rate of NGCC per EPA
B3: All dollar values are in 2013 dollars. | V3: All dollar values are in 2013 dollars. | AL3: 1.1 | AM3: short tons per metric ton
AL4: 2000 | AM4: lbs per short ton
C5: (a) | D5: (b) | E5: (c) | F5: (d) | G5: (e) | H5: (f) | I5: (g) | J5: (h) | K5: (i) | L5: (j) | M5: (k) | N5: (l) | O5: (m) | P5: (n) | Q5: (o) | R5: (p) | S5: (q) | T5: (r)
B6: Electricity Technologies | V6: =B6 -> Electricity Technologies
B7: Technology | C7: Annual Capacity Factor | D7: Total Potential Capacity | E7: Annual Energy Production | F7: Annual Energy Production | G7: Installed Cost | H7: Lifetime | I7: Real Levelization Rate | J7: Annual Fixed O&M | K7: Annual Variable O&M | L7: Annual Levelized Fuel Cost | M7: Annual Levelized Cost | N7: Avoided Energy Cost | O7: Avoided Capacity Cost | P7: Capacity Payment Proxy | Q7: Annual Net Levelized Cost | R7: Annual Net Levelized Cost | S7: Winter Load Carrying Capcity | T7: Peak Hour Gas Savings | V7: Technology | W7: Annual Capacity Factor | X7: Total Potential Capacity | Y7: Annual Net Levelized Cost | Z7: Annual Net Levelized Cost | AA7: Annual Energy Production | AB7: Peak Hour Gas Savings
C8: % | D8: MW | E8: MWh | F8: MMBtu NG | G8: $/kW | H8: Yrs | I8: % | J8: $/kW-yr | K8: $/MWh | L8: $/MMBtu | M8: $/MWh | N8: $/MWh | O8: $/MWh | P8: $/MWh | Q8: $/MWh | R8: $/MMBtu NG | S8: % | T8: MMBtu NG | W8: % | X8: MW | Y8: $/MWh | Z8: $/MMBtu NG | AA8: MMBtu NG | AB8: MMBtu NG | AE8: In Supply Curve? | AF8: Clear Supply Curve | AI8: In old | AJ8: In new | AK8: In new but not old | AL8: MWh | AM8: Emissions | AN8: Capital ($ M) | AO8: Fixed ($ M) | AP8: Variable ($M) | AQ8: Fuel ($M) | AR8: Total ($M)
B9: Wind (<10 kW) | C9: =Small_Wind!G6 -> 0.16 | D9: =E9/(C9*8760) -> 200 | E9: =Small_Wind!G32 -> 280320 | F9: =E9*annual_marginal_heat_rate -> 2354688 | G9: =Small_Wind!G4 -> 8050 | H9: =Ref!$J$145 -> 20 | I9: =Ref!$J$151 -> 0.09044711643 | J9: =Small_Wind!G10 -> 102 | K9: =Small_Wind!G11 -> 0 | L9: =Small_Wind!G8 -> 0 | M9: =Small_Wind!G18 -> 592.2512038 | N9: =Small_Wind!G21 -> 165.314451 | P9: =Small_Wind!G24 -> 30.23845066 | Q9: =M9-SUM(N9:P9) -> 396.6983021 | R9: =Q9/annual_marginal_heat_rate -> 47.22598835 | S9: =Small_Wind!G33 -> 0.35 | T9: =Small_Wind!G35 -> 532 | V9: =B9 -> Wind (<10 kW) | W9: 0.16 | X9: 200 | Y9: =Q9 -> 396.6983021 | Z9: =R9 -> 47.22598835 | AA9: =F9 -> 2354688 | AB9: =T9 -> 532 | AD9: DG | AE9: =IF(ISNA(MATCH(B9,Outputs_2030!$BD$7:$BD$35,0)),0,1) -> 1 | AF9: =IF(AND(AE9=1,R9<=$R$48),1,0) -> 0 | AI9: 0 | AJ9: =IF(R9<=[20]Outputs_2020!$BE$19,1,0) -> 0 | AK9: =IF(AND(AJ9=1,AI9=0),1,0) -> 0 | AL9: =IF(AK9=1,X9*8760*W9,0) -> 0 | AN9: =IF(AK9=1,I9*G9*X9*1000*10^-6,0) -> 0 | AO9: =IF($AK9=1,J9*X9*1000*10^-6,0) -> 0 | AP9: =IF($AK9=1,K9*X9*W9*8760*10^-6,0) -> 0 | AR9: =SUM(AN9:AQ9) -> 0
B10: Wind (<100 kW) | C10: =Dist_Wind!G6 -> 0.25 | D10: =E10/(C10*8760) -> 300 | E10: =Dist_Wind!G32 -> 657000 | F10: 5518800 | G10: =Dist_Wind!G4 -> 3500 | H10: =Ref!$J$145 -> 20 | I10: =Ref!$J$151 -> 0.09044711643 | J10: =Dist_Wind!G10 -> 25 | K10: =Dist_Wind!G11 -> 0 | L10: =Dist_Wind!G8 -> 0 | M10: =Dist_Wind!G18 -> 155.9657112 | N10: =Dist_Wind!G21 -> 165.314451 | P10: =Dist_Wind!G24 -> 19.35260842 | Q10: -28.70134825 | R10: -3.416827173 | S10: =Dist_Wind!G33 -> 0.35 | T10: =Dist_Wind!G35 -> 798 | V10: Wind (<100 kW) | W10: 0.25 | X10: 300 | Y10: =Q10 -> -28.70134825 | Z10: -3.416827173 | AA10: =F10 -> 5518800 | AB10: =T10 -> 798 | AD10: DG | AE10: =IF(ISNA(MATCH(B10,Outputs_2030!$BD$7:$BD$35,0)),0,1) -> 1 | AF10: 1 | AI10: 0 | AJ10: =IF(R10<=[20]Outputs_2020!$BE$19,1,0) -> 1 | AK10: =IF(AND(AJ10=1,AI10=0),1,0) -> 1 | AL10: =IF(AK10=1,X10*8760*W10,0) -> 657000 | AN10: =IF(AK10=1,I10*G10*X10*1000*10^-6,0) -> 94.96947225 | AO10: =IF($AK10=1,J10*X10*1000*10^-6,0) -> 7.5 | AP10: =IF($AK10=1,K10*X10*W10*8760*10^-6,0) -> 0 | AR10: =SUM(AN10:AQ10) -> 102.4694722
B11: Large Wind C5 | C11: =Large_Wind!K6 -> 0.42 | D11: 480 | E11: =Large_Wind!K33 -> 1766016 | F11: 14834534.4 | G11: =Large_Wind!K4 -> 2359.142005 | H11: =Ref!$F$145 -> 20 | I11: =Ref!$F$151 -> 0.09724179748 | J11: =Large_Wind!K10 -> 50 | K11: =Large_Wind!K11 -> 0 | L11: =Large_Wind!K8 -> 0 | M11: =Large_Wind!K19 -> 110.9423812 | N11: =Large_Wind!K22 -> 153.0689361 | P11: =Large_Wind!K25 -> 6.191433797 | Q11: -48.31798868 | R11: -5.75214151 | S11: =Large_Wind!K34 -> 0.35 | T11: =Large_Wind!K36 -> 1276.8 | V11: Large Wind C5 | W11: 0.42 | X11: 480 | Y11: -48.31798868 | Z11: -5.75214151 | AA11: 14834534.4 | AB11: 1276.8 | AE11: =IF(ISNA(MATCH(B11,Outputs_2030!$BD$7:$BD$35,0)),0,1) -> 1 | AF11: 1 | AI11: 1 | AJ11: =IF(R11<=[20]Outputs_2020!$BE$19,1,0) -> 1 | AK11: 0 | AL11: =IF(AK11=1,X11*8760*W11,0) -> 0 | AN11: 0 | AO11: 0 | AP11: 0 | AR11: 0
B12: Large Wind C4 | C12: =Large_Wind!I6 -> 0.4 | D12: 800 | E12: =Large_Wind!I33 -> 2803200 | F12: 23546880 | G12: =Large_Wind!I4 -> 2459.651578 | H12: =Ref!$F$145 -> 20 | I12: =Ref!$F$151 -> 0.09724179748 | J12: =Large_Wind!I10 -> 50 | K12: =Large_Wind!I11 -> 0 | L12: =Large_Wind!I8 -> 0 | M12: =Large_Wind!I19 -> 117.5288072 | N12: =Large_Wind!I22 -> 153.0689361 | P12: =Large_Wind!I25 -> 6.501005486 | Q12: -42.04113437 | R12: -5.004896948 | S12: =Large_Wind!I34 -> 0.35 | T12: =Large_Wind!I36 -> 2128 | V12: =B12 -> Large Wind C4 | W12: =C12 -> 0.4 | X12: =D12 -> 800 | Y12: =Q12 -> -42.04113437 | Z12: =R12 -> -5.004896948 | AA12: =F12 -> 23546880 | AB12: =T12 -> 2128 | AE12: =IF(ISNA(MATCH(B12,Outputs_2030!$BD$7:$BD$35,0)),0,1) -> 1 | AF12: 1 | AI12: 1 | AJ12: =IF(R12<=[20]Outputs_2020!$BE$19,1,0) -> 1 | AK12: 0 | AL12: 0 | AN12: 0 | AO12: 0 | AP12: 0 | AR12: 0
B13: Offshore Wind | C13: =OS_Wind!G6 -> 0.45 | D13: 4000 | E13: =OS_Wind!G32 -> 15768000 | F13: 132451200 | G13: =OS_Wind!G4 -> 4760 | H13: =Ref!N145 -> 20 | I13: =Ref!N151 -> 0.112671223 | J13: =OS_Wind!G10 -> 102 | K13: =OS_Wind!G11 -> 0 | L13: =OS_Wind!G8 -> 0 | M13: =OS_Wind!G18 -> 161.9266924 | N13: =OS_Wind!G21 -> 153.0689361 | P13: =OS_Wind!G24 -> 5.778671543 | Q13: 3.079084721 | R13: 0.3665577049 | S13: =OS_Wind!G33 -> 0.35 | T13: =OS_Wind!G35 -> 10640 | V13: Offshore Wind | W13: 0.45 | X13: 4000 | Y13: 3.079084721 | Z13: 0.3665577049 | AA13: 132451200 | AB13: 10640 | AE13: =IF(ISNA(MATCH(B13,Outputs_2030!$BD$7:$BD$35,0)),0,1) -> 1 | AF13: 1 | AI13: 0 | AJ13: =IF(R13<=[20]Outputs_2020!$BE$19,1,0) -> 1 | AK13: 1 | AL13: 15768000 | AN13: =IF(AK13=1,I13*G13*X13*1000*10^-6,0) -> 2145.260086 | AO13: 408 | AP13: 0 | AR13: 2553.260086
B14: Utility-Scale PV | C14: =GroundPV!G6 -> 0.147 | D14: =GroundPV!G32 -> 160 | E14: =GroundPV!G33 -> 257544 | F14: 2163369.6 | G14: =GroundPV!G4 -> 1600 | H14: =Ref!E145 -> 25 | I14: =Ref!E151 -> 0.0866196381 | J14: =GroundPV!G10 -> 14 | K14: 0 | L14: 0 | M14: =GroundPV!G18 -> 118.4989136 | N14: =GroundPV!G21 -> 153.0689361 | P14: =GroundPV!G24 -> 18.39740328 | Q14: -52.96742585 | R14: -6.305645935 | S14: =GroundPV!G34 -> 0 | T14: =GroundPV!G36 -> 0 | V14: Utility-Scale PV | W14: 0.147 | X14: 160 | Y14: -52.96742585 | Z14: -6.305645935 | AA14: 2163369.6 | AB14: 0 | AE14: =IF(ISNA(MATCH(B14,Outputs_2030!$BD$7:$BD$35,0)),0,1) -> 1 | AF14: 1 | AI14: 1 | AJ14: =IF(R14<=[20]Outputs_2020!$BE$19,1,0) -> 1 | AK14: 0 | AL14: 0 | AN14: 0 | AO14: 0 | AP14: 0 | AR14: 0
B15: Commercial PV | C15: =ComPV!G6 -> 0.144 | D15: =ComPV!G32 -> 800 | E15: =ComPV!G33 -> 1261440 | F15: 10596096 | G15: =ComPV!G4 -> 2075 | H15: =Ref!I145 -> 25 | I15: =Ref!I151 -> 0.07979277742 | J15: =ComPV!G10 -> 22 | K15: 0 | L15: 0 | M15: =ComPV!G18 -> 148.6951525 | N15: =ComPV!G21 -> 165.314451 | P15: =ComPV!G24 -> 34.94220965 | Q15: -51.56150819 | R15: -6.138274785 | S15: =ComPV!G34 -> 0 | T15: =ComPV!G36 -> 0 | V15: Commercial PV | W15: 0.144 | X15: 800 | Y15: -51.56150819 | Z15: -6.138274785 | AA15: 10596096 | AB15: 0 | AD15: DG | AE15: =IF(ISNA(MATCH(B15,Outputs_2030!$BD$7:$BD$35,0)),0,1) -> 1 | AF15: 1 | AI15: 1 | AJ15: =IF(R15<=[20]Outputs_2020!$BE$19,1,0) -> 1 | AK15: 0 | AL15: 0 | AN15: 0 | AO15: 0 | AP15: 0 | AR15: 0
B16: Residential PV | C16: =ResPV!G6 -> 0.13 | D16: =ResPV!G32 -> 200 | E16: =ResPV!G33 -> 284700 | F16: 2391480 | G16: =ResPV!G4 -> 2150 | H16: =Ref!O145 -> 25 | I16: =Ref!O151 -> 0.07592958133 | J16: =ResPV!G10 -> 22 | K16: 0 | L16: 0 | M16: =ResPV!G18 -> 162.6700034 | N16: =ResPV!G21 -> 165.314451 | P16: =ResPV!G24 -> 38.70521685 | Q16: -41.34966447 | R16: -4.922579104 | S16: =ResPV!G34 -> 0 | T16: =ResPV!G36 -> 0 | V16: Residential PV | W16: 0.13 | X16: 200 | Y16: -41.34966447 | Z16: -4.922579104 | AA16: 2391480 | AB16: 0 | AD16: DG | AE16: =IF(ISNA(MATCH(B16,Outputs_2030!$BD$7:$BD$35,0)),0,1) -> 1 | AF16: 1 | AI16: 1 | AJ16: =IF(R16<=[20]Outputs_2020!$BE$19,1,0) -> 1 | AK16: 0 | AL16: 0 | AN16: 0 | AO16: 0 | AP16: 0 | AR16: 0
B17: Large CHP | C17: =Large_CHP!G6 -> 0.67 | D17: 50 | E17: =Large_CHP!G74 -> 293460 | F17: 2465064 | G17: =Large_CHP!G4 -> 1750 | H17: =Ref!F145 -> 20 | I17: =Ref!F151 -> 0.09724179748 | J17: 0 | K17: =Large_CHP!G11 -> 5.11 | L17: =Large_CHP!G10 -> 8.370678122 | M17: =Large_CHP!G18 -> 83.67960711 | N17: =Large_CHP!G66+Large_CHP!G58 -> 196.7775431 | P17: =Large_CHP!G65+Large_CHP!G57 -> 34.30033209 | Q17: -147.3982681 | R17: -17.54741287 | S17: =Large_CHP!G75 -> 0.95 | T17: =Large_CHP!G77 -> 117.68125 | V17: Large CHP | W17: 0.67 | X17: 50 | Y17: -147.3982681 | Z17: -17.54741287 | AA17: 2465064 | AB17: 117.68125 | AD17: DG | AE17: =IF(ISNA(MATCH(B17,Outputs_2030!$BD$7:$BD$35,0)),0,1) -> 1 | AF17: 1 | AI17: 1 | AJ17: =IF(R17<=[20]Outputs_2020!$BE$19,1,0) -> 1 | AK17: 0 | AL17: 0 | AN17: 0 | AO17: 0 | AP17: 0 | AR17: 0
B18: Small CHP | C18: =Small_CHP!G6 -> 0.5 | D18: 65 | E18: =Small_CHP!G74 -> 284700 | F18: 2391480 | G18: =Small_CHP!G4 -> 2457 | H18: =Ref!H145 -> 10 | I18: =Ref!H151 -> 0.1542230488 | J18: 0 | K18: =Small_CHP!G11 -> 11.35 | L18: =Small_CHP!G10 -> 12.86408449 | M18: =Small_CHP!G18 -> 153.4870938 | N18: =Small_CHP!G66+Small_CHP!G58 -> 217.0777461 | P18: =Small_CHP!G65+Small_CHP!G57 -> 45.96244501 | Q18: -109.5530973 | R18: -13.04203539 | S18: =Small_CHP!G75 -> 0.95 | T18: =Small_CHP!G77 -> 251.693 | V18: Small CHP | W18: 0.5 | X18: 65 | Y18: -109.5530973 | Z18: -13.04203539 | AA18: 2391480 | AB18: 251.693 | AD18: DG | AE18: =IF(ISNA(MATCH(B18,Outputs_2030!$BD$7:$BD$35,0)),0,1) -> 1 | AF18: 1 | AI18: 1 | AJ18: =IF(R18<=[20]Outputs_2020!$BE$19,1,0) -> 1 | AK18: 0 | AL18: 0 | AN18: 0 | AO18: 0 | AP18: 0 | AR18: 0
B19: Landfill Gas | C19: =LFG!G6 -> 0.7848173516 | D19: 6 | E19: =LFG!G32 -> 41250 | F19: 346500 | G19: =LFG!G4 -> 1420.832145 | H19: =Ref!$J$145 -> 20 | I19: =Ref!$J$151 -> 0.09044711643 | J19: =LFG!G10 -> 131.9344134 | K19: =LFG!G11 -> 0 | L19: =LFG!G8 -> 0 | M19: =LFG!G18 -> 37.88284856 | N19: =LFG!G21 -> 153.0689361 | P19: =LFG!G24 -> 15.73857968 | Q19: -130.9246672 | R19: -15.58626991 | S19: =LFG!G33 -> 0.95 | T19: =LFG!G35 -> 43.32 | V19: Landfill Gas | W19: 0.7848173516 | X19: 6 | Y19: -130.9246672 | Z19: -15.58626991 | AA19: 346500 | AB19: 43.32 | AD19: DG | AE19: =IF(ISNA(MATCH(B19,Outputs_2030!$BD$7:$BD$35,0)),0,1) -> 1 | AF19: 1 | AI19: 1 | AJ19: =IF(R19<=[20]Outputs_2020!$BE$19,1,0) -> 1 | AK19: 0 | AL19: 0 | AN19: 0 | AO19: 0 | AP19: 0 | AR19: 0
B20: Anaerobic Digestion | C20: =Anaerobic_Digestion!G6 -> 0.9 | D20: 6 | E20: =Anaerobic_Digestion!G32 -> 47304 | F20: 397353.6 | G20: =Anaerobic_Digestion!G4 -> 4102.064502 | H20: =Ref!$J$145 -> 20 | I20: =Ref!$J$151 -> 0.09044711643 | J20: =Anaerobic_Digestion!G10 -> 0 | K20: =Anaerobic_Digestion!G11 -> 0 | L20: =Anaerobic_Digestion!G8 -> 0 | M20: =Anaerobic_Digestion!G18 -> 47.05985612 | N20: =Anaerobic_Digestion!G21 -> 165.314451 | P20: =Anaerobic_Digestion!G24 -> 25.53469167 | Q20: -143.7892866 | R20: -17.11777221 | S20: =Anaerobic_Digestion!G33 -> 0.95 | T20: =Anaerobic_Digestion!G35 -> 43.32 | V20: Anaerobic Digestion | W20: 0.9 | X20: 6 | Y20: -143.7892866 | Z20: -17.11777221 | AA20: 397353.6 | AB20: 43.32 | AD20: DG | AE20: =IF(ISNA(MATCH(B20,Outputs_2030!$BD$7:$BD$35,0)),0,1) -> 1 | AF20: 1 | AI20: 1 | AJ20: =IF(R20<=[20]Outputs_2020!$BE$19,1,0) -> 1 | AK20: 0 | AL20: 0 | AN20: 0 | AO20: 0 | AP20: 0 | AR20: 0
B21: Biomass Power C1 | C21: 0.8 | D21: 20 | E21: =Biomass_Pwr!G32 -> 140160 | F21: 1177344 | G21: =Biomass_Pwr!G4 -> 4175 | H21: =Ref!$D$145 -> 30 | I21: =Ref!$D$151 -> 0.07993559063 | J21: =Biomass_Pwr!G10 -> 105 | K21: =Biomass_Pwr!G11 -> 11 | L21: =Biomass_Pwr!G8 -> 2.68 | M21: =Biomass_Pwr!G18 -> 110.4543223 | N21: =Biomass_Pwr!G21 -> 153.0689361 | P21: =Biomass_Pwr!G24 -> 15.43988803 | Q21: -58.05450183 | R21: -6.911250218 | S21: =Biomass_Pwr!G33 -> 0.95 | T21: =Biomass_Pwr!G35 -> 144.4 | V21: Biomass Power C1 | W21: 0.8 | X21: 20 | Y21: -58.05450183 | Z21: -6.911250218 | AA21: 1177344 | AB21: 144.4 | AE21: =IF(ISNA(MATCH(B21,Outputs_2030!$BD$7:$BD$35,0)),0,1) -> 1 | AF21: 1 | AI21: 1 | AJ21: =IF(R21<=[20]Outputs_2020!$BE$19,1,0) -> 1 | AK21: 0 | AL21: 0 | AN21: 0 | AO21: 0 | AP21: 0 | AR21: 0
B22: Biomass Power C2 | C22: 0.8 | D22: 40 | E22: =Biomass_Pwr!I32 -> 280320 | F22: 2354688 | G22: =Biomass_Pwr!I4 -> 4175 | H22: =Ref!$D$145 -> 30 | I22: =Ref!$D$151 -> 0.07993559063 | J22: =Biomass_Pwr!I10 -> 105 | K22: =Biomass_Pwr!I11 -> 11 | L22: =Biomass_Pwr!I8 -> 3.94 | M22: =Biomass_Pwr!I18 -> 127.7793223 | N22: =Biomass_Pwr!I21 -> 153.0689361 | P22: =Biomass_Pwr!I24 -> 15.43988803 | Q22: -40.72950183 | R22: -4.848750218 | S22: =Biomass_Pwr!I33 -> 0.95 | T22: =Biomass_Pwr!I35 -> 288.8 | V22: Biomass Power C2 | W22: 0.8 | X22: 40 | Y22: -40.72950183 | Z22: -4.848750218 | AA22: 2354688 | AB22: 288.8 | AE22: =IF(ISNA(MATCH(B22,Outputs_2030!$BD$7:$BD$35,0)),0,1) -> 1 | AF22: 1 | AI22: 1 | AJ22: =IF(R22<=[20]Outputs_2020!$BE$19,1,0) -> 1 | AK22: 0 | AL22: 0 | AN22: 0 | AO22: 0 | AP22: 0 | AR22: 0
B23: Biomass Power C3 | C23: 0.8 | D23: 60 | E23: =Biomass_Pwr!K32 -> 420480 | F23: 3532032 | G23: =Biomass_Pwr!K4 -> 4175 | H23: =Ref!$D$145 -> 30 | I23: =Ref!$D$151 -> 0.07993559063 | J23: =Biomass_Pwr!K10 -> 105 | K23: =Biomass_Pwr!K11 -> 11 | L23: =Biomass_Pwr!K8 -> 10.22 | M23: =Biomass_Pwr!K18 -> 214.1293223 | N23: =Biomass_Pwr!K21 -> 153.0689361 | P23: =Biomass_Pwr!K24 -> 15.43988803 | Q23: 45.62049817 | R23: 5.431011687 | S23: =Biomass_Pwr!K33 -> 0.95 | T23: =Biomass_Pwr!K35 -> 433.2 | V23: Biomass Power C3 | W23: 0.8 | X23: 60 | Y23: 45.62049817 | Z23: 5.431011687 | AA23: 3532032 | AB23: 433.2 | AE23: =IF(ISNA(MATCH(B23,Outputs_2030!$BD$7:$BD$35,0)),0,1) -> 1 | AF23: 0 | AI23: 0 | AJ23: =IF(R23<=[20]Outputs_2020!$BE$19,1,0) -> 0 | AK23: 0 | AL23: 0 | AN23: 0 | AO23: 0 | AP23: 0 | AR23: 0
B24: Biomass Power C4 | C24: 0.8 | D24: 70 | E24: =Biomass_Pwr!M32 -> 490560 | F24: 4120704 | G24: =Biomass_Pwr!M4 -> 4175 | H24: =Ref!$D$145 -> 30 | I24: =Ref!$D$151 -> 0.07993559063 | J24: =Biomass_Pwr!M10 -> 105 | K24: =Biomass_Pwr!M11 -> 11 | L24: =Biomass_Pwr!M8 -> 13.47 | M24: =Biomass_Pwr!M18 -> 258.8168223 | N24: =Biomass_Pwr!M21 -> 153.0689361 | P24: =Biomass_Pwr!M24 -> 15.43988803 | Q24: 90.30799817 | R24: 10.75095216 | S24: =Biomass_Pwr!M33 -> 0.95 | T24: =Biomass_Pwr!M35 -> 505.4 | V24: Biomass Power C4 | W24: 0.8 | X24: 70 | Y24: 90.30799817 | Z24: 10.75095216 | AA24: 4120704 | AB24: 505.4 | AE24: =IF(ISNA(MATCH(B24,Outputs_2030!$BD$7:$BD$35,0)),0,1) -> 1 | AF24: 0 | AI24: 0 | AJ24: =IF(R24<=[20]Outputs_2020!$BE$19,1,0) -> 0 | AK24: 0 | AL24: 0 | AN24: 0 | AO24: 0 | AP24: 0 | AR24: 0
B25: Converted Hydro | C25: =DevHyd_wo_power!G6 -> 0.3805175038 | D25: =E25/(C25*8760) -> 56 | E25: =DevHyd_wo_power!G32 -> 186666.6667 | F25: 1568000 | G25: =DevHyd_wo_power!G4 -> 2083.333333 | H25: =Ref!$C$145 -> 30 | I25: =Ref!$C$151 -> 0.09333184907 | J25: =DevHyd_wo_power!G10 -> 14.13 | K25: =DevHyd_wo_power!G11 -> 0 | L25: =DevHyd_wo_power!G8 -> 0 | M25: =DevHyd_wo_power!G18 -> 62.57140567 | N25: =DevHyd_wo_power!G21 -> 153.0689361 | P25: =DevHyd_wo_power!G24 -> 32.46082059 | Q25: -122.958351 | R25: -14.63789893 | S25: =DevHyd_wo_power!G33 -> 0.95 | T25: =DevHyd_wo_power!G35 -> 404.32 | V25: Converted Hydro | W25: 0.3805175038 | X25: 56 | Y25: -122.958351 | Z25: -14.63789893 | AA25: 1568000 | AB25: 404.32 | AE25: =IF(ISNA(MATCH(B25,Outputs_2030!$BD$7:$BD$35,0)),0,1) -> 1 | AF25: 1 | AI25: 1 | AJ25: =IF(R25<=[20]Outputs_2020!$BE$19,1,0) -> 1 | AK25: 0 | AL25: 0 | AN25: 0 | AO25: 0 | AP25: 0 | AR25: 0
B26: Res. Electric EE | C26: =Ref!$C$396 -> 0.55 | D26: 64.36006992 | E26: =EE!H40 -> 310086.8169 | F26: 2604729.262 | M26: =EE!H22 -> 9.189204122 | N26: =Ref!$E$263 -> 166.1708031 | O26: =Ref!$E$267/(Ref!$C$395*Ref!$C$396) -> 43.98320096 | Q26: =M26-SUM(N26:P26) -> -200.9647999 | R26: -23.92438094 | S26: 0.55 | T26: =winter_marginal_heat_rate*D26*S26 -> 269.0250923 | V26: Res. Electric EE | W26: =C26 -> 0.55 | X26: 64.36006992 | Y26: -200.9647999 | Z26: -23.92438094 | AA26: 2604729.262 | AB26: 269.0250923 | AD26: EE | AE26: =IF(ISNA(MATCH(B26,Outputs_2030!$BD$7:$BD$35,0)),0,1) -> 1 | AF26: 1 | AI26: 1 | AJ26: =IF(R26<=[20]Outputs_2020!$BE$19,1,0) -> 1 | AK26: 0 | AL26: 0 | AN26: 0 | AO26: 0 | AP26: 0 | AR26: 0
B27: LI Electric EE | C27: =Ref!$C$396 -> 0.55 | D27: 7.458593916 | E27: =EE!H41 -> 35935.50549 | F27: 301858.2461 | M27: =EE!H23 -> 104.2632263 | N27: =Ref!$E$263 -> 166.1708031 | O27: =Ref!$E$267/(Ref!$C$395*Ref!$C$396) -> 43.98320096 | Q27: -105.8907778 | R27: -12.60604497 | S27: 0.55 | T27: =winter_marginal_heat_rate*D27*S27 -> 31.17692257 | V27: LI Electric EE | W27: 0.55 | X27: 7.458593916 | Y27: -105.8907778 | Z27: -12.60604497 | AA27: 301858.2461 | AB27: 31.17692257 | AD27: EE | AE27: =IF(ISNA(MATCH(B27,Outputs_2030!$BD$7:$BD$35,0)),0,1) -> 1 | AF27: 1 | AI27: 1 | AJ27: =IF(R27<=[20]Outputs_2020!$BE$19,1,0) -> 1 | AK27: 0 | AL27: 0 | AN27: 0 | AO27: 0 | AP27: 0 | AR27: 0
B28: CI Electric EE | C28: =Ref!$C$396 -> 0.55 | D28: 380.0753511 | E28: =EE!H42 -> 1831203.042 | F28: 15382105.55 | M28: =EE!H24 -> 30.74979379 | N28: =Ref!$E$263 -> 166.1708031 | O28: =Ref!$E$267/(Ref!$C$395*Ref!$C$396) -> 43.98320096 | Q28: -179.4042103 | R28: -21.35764408 | S28: 0.55 | T28: =winter_marginal_heat_rate*D28*S28 -> 1588.714968 | V28: CI Electric EE | W28: 0.55 | X28: 380.0753511 | Y28: -179.4042103 | Z28: -21.35764408 | AA28: 15382105.55 | AB28: 1588.714968 | AD28: EE | AE28: =IF(ISNA(MATCH(B28,Outputs_2030!$BD$7:$BD$35,0)),0,1) -> 1 | AF28: 1 | AI28: 1 | AJ28: =IF(R28<=[20]Outputs_2020!$BE$19,1,0) -> 1 | AK28: 0 | AL28: 0 | AN28: 0 | AO28: 0 | AP28: 0 | AR28: 0
B29: Appliance Standards | C29: =Ref!$C$396 -> 0.55 | D29: 618.9290162 | E29: =Appliance_Standards!E8*1000 -> 2982000 | F29: 25048800 | M29: =Appliance_Standards!E10 -> -205.391132 | N29: =Ref!$E$263 -> 166.1708031 | O29: =Ref!$E$267/(Ref!$C$395*Ref!$C$396) -> 43.98320096 | Q29: -415.5451361 | R29: -49.46965905 | S29: 0.55 | T29: =winter_marginal_heat_rate*D29*S29 -> 2587.123288 | V29: =B29 -> Appliance Standards | W29: =C29 -> 0.55 | X29: =D29 -> 618.9290162 | Y29: =Q29 -> -415.5451361 | Z29: =R29 -> -49.46965905 | AA29: =F29 -> 25048800 | AB29: =T29 -> 2587.123288 | AD29: EE | AE29: =IF(ISNA(MATCH(B29,Outputs_2030!$BD$7:$BD$35,0)),0,1) -> 1 | AF29: 1 | AI29: 1 | AJ29: =IF(R29<=[20]Outputs_2020!$BE$19,1,0) -> 1 | AK29: 0 | AL29: 0 | AN29: 0 | AO29: 0 | AP29: 0 | AR29: 0
B30: Direct Gas Reduction Technologies | V30: =B30 -> Direct Gas Reduction Technologies | AL30: =SUM(AL9:AL29) -> 16425000 | AM30: =AL30*AL2*10^-6/($AL$4*$AL$3) -> 11.19886364 | AN30: =SUM(AN9:AN29) -> 2240.229558 | AO30: =SUM(AO9:AO29) -> 415.5 | AP30: 0 | AQ30: 0 | AR30: 2655.729558
B31: Technology | F31: Potential Energy Production | G31: Installed Cost | H31: Lifetime | I31: Real Levelization Rate | J31: Annual Fixed O&M | K31: Annual Variable O&M | L31: Annual Levelized Fuel Cost | M31: Annual Levelized Cost | N31: Avoided Energy Cost | O31: Avoided Capacity Cost | P31: Capacity Payment Proxy | R31: Annual Net Levelized Cost | S31: Winter Load Carrying Capcity | T31: Peak Hour Gas Savings | V31: Technology | W31: Annual Capacity Factor | X31: Total Potential Capacity | Y31: Annual Net Levelized Cost | Z31: Annual Net Levelized Cost | AA31: Annual Energy Production | AB31: Peak Hour Gas Savings
F32: MMBtu NG | G32: $/MMBtu | H32: Yrs | I32: % | J32: $/MMBtu-yr | K32: $/MMBtu | L32: $/MMBtu | M32: $/MMBtu | N32: $/MMBtu | O32: $/MMBtu | P32: $/MMBtu | R32: $/MMBtu NG | S32: % | T32: MMBtu NG | W32: % | X32: MW | Y32: $/MWh | Z32: $/MMBtu NG | AA32: MMBtu NG | AB32: MMBtu NG
B33: AS Heat Pump | F33: =AirHeatPump!G73 -> 1127727.36 | G33: =AirHeatPump!G5 -> 281898.1481 | H33: =Ref!$K$145 -> 15 | I33: =Ref!$K$151 -> 0.1088708492 | J33: =AirHeatPump!G13 -> 2000 | K33: 0 | L33: =AirHeatPump!G12/1000/3412*10^6 -> 82.06330598 | M33: =AirHeatPump!G20 -> 25.51415567 | N33: =Ref!E$270 -> 12.69953264 | R33: =AirHeatPump!G69 -> 25.96684225 | S33: =AirHeatPump!G74 -> 0.95 | T33: =AirHeatPump!G76 -> 1549.1232 | V33: =B33 -> AS Heat Pump | W33: 0 | X33: 0 | Y33: =Q33 -> 0 | Z33: 25.96684225 | AA33: =F33 -> 1127727.36 | AB33: =T33 -> 1549.1232 | AE33: =IF(ISNA(MATCH(B33,Outputs_2030!$BD$7:$BD$35,0)),0,1) -> 1 | AF33: =IF(AND(AE33=1,R33<=$R$48),1,0) -> 0
B34: GS Heat Pump | F34: =GndHeatPump!G73 -> 281931.84 | G34: =GndHeatPump!G5 -> 324979.1667 | H34: =Ref!$K$145 -> 15 | I34: =Ref!$K$151 -> 0.1088708492 | J34: =GndHeatPump!G13 -> 2000 | K34: 0 | L34: =GndHeatPump!G12/1000/3412*10^6 -> 82.06330598 | M34: =GndHeatPump!G20 -> 22.31711796 | N34: =Ref!E$270 -> 12.69953264 | R34: =GndHeatPump!G69 -> 20.35538578 | S34: =GndHeatPump!G74 -> 0.95 | T34: =GndHeatPump!G76 -> 387.2808 | V34: GS Heat Pump | W34: 0 | X34: 0 | Y34: 0 | Z34: 20.35538578 | AA34: 281931.84 | AB34: 387.2808 | AE34: =IF(ISNA(MATCH(B34,Outputs_2030!$BD$7:$BD$35,0)),0,1) -> 1 | AF34: 0
B35: Solar Hot Water | F35: =SolarHotWater!G70 -> 281607 | G35: =SolarHotWater!G20 -> 85.70281346 | H35: =Ref!$K$145 -> 15 | I35: =Ref!$K$151 -> 0.1088708492 | J35: =SolarHotWater!G17 -> 0 | K35: =SolarHotWater!G17 -> 0 | L35: =SolarHotWater!G18 -> 5352.941176 | M35: =SolarHotWater!G20 -> 85.70281346 | N35: =Ref!E$270 -> 12.69953264 | R35: =SolarHotWater!G66 -> 31.03806681 | S35: =SolarHotWater!G71 -> 0.1692307692 | T35: =SolarHotWater!G73 -> 3.744486621 | V35: Solar Hot Water | W35: 0 | X35: 0 | Y35: 0 | Z35: 31.03806681 | AA35: =F35 -> 281607 | AB35: =T35 -> 3.744486621 | AE35: =IF(ISNA(MATCH(B35,Outputs_2030!$BD$7:$BD$35,0)),0,1) -> 1 | AF35: 0
B36: Biomass Thermal | F36: =Biomass_Chip!G33 -> 1126428 | G36: =Biomass_Chip!G6/Biomass_Chip!G3 -> 367964.0292 | H36: =Ref!$K$145 -> 15 | I36: =Ref!$K$151 -> 0.1088708492 | J36: =Biomass_Chip!F12*Biomass_Chip!F4/Biomass_Chip!F3 -> 879.3103448 | K36: 0 | L36: =Biomass_Chip!G10/Biomass_Chip!G11 -> 5.155068601 | M36: =Biomass_Chip!G19 -> 16.28115962 | N36: =Ref!E$270 -> 12.69953264 | R36: =Biomass_Chip!G29 -> 3.581626975 | S36: =Biomass_Chip!G34 -> 0.95 | T36: =Biomass_Chip!G36 -> 1868.870797 | V36: =B36 -> Biomass Thermal | W36: =C36 -> 0 | X36: =D36 -> 0 | Y36: =Q36 -> 0 | Z36: =R36 -> 3.581626975 | AA36: =F36 -> 1126428 | AB36: =T36 -> 1868.870797 | AE36: =IF(ISNA(MATCH(B36,Outputs_2030!$BD$7:$BD$35,0)),0,1) -> 1 | AF36: 1
B37: Res. Gas EE | F37: =[21]EE!H43 -> 5290472.554 | M37: =[21]EE!H25 -> -71.52687299 | N37: =[21]Ref!$E$271 -> 7.885326536 | R37: =M37-N37-P37 -> -79.41219953 | S37: 0.55 | T37: =F37*S37/8760 -> 332.1643727 | V37: =B37 -> Res. Gas EE | W37: 0 | X37: 0 | Y37: 0 | Z37: -79.41219953 | AA37: 5290472.554 | AB37: 332.1643727 | AE37: =IF(ISNA(MATCH(B37,Outputs_2030!$BD$7:$BD$35,0)),0,1) -> 1 | AF37: 1
B38: LI Gas EE | F38: =EE!H44 -> 1818670.615 | M38: =EE!H26 -> -9.255161792 | N38: =Ref!$E$271 -> 10.92907113 | R38: =M38-N38-P38 -> -20.18423292 | S38: 0.55 | T38: =F38*S38/8760 -> 114.1859404 | V38: =B38 -> LI Gas EE | W38: =C38 -> 0 | X38: 0 | Y38: 0 | Z38: -20.18423292 | AA38: 1818670.615 | AB38: 114.1859404 | AE38: =IF(ISNA(MATCH(B38,Outputs_2030!$BD$7:$BD$35,0)),0,1) -> 1 | AF38: 1
B39: CI Gas EE | F39: =EE!H45 -> 9748497.558 | M39: =EE!H27 -> -16.87618697 | N39: =Ref!$E$271 -> 10.92907113 | R39: -27.8052581 | S39: 0.55 | T39: 612.0632028 | V39: =B39 -> CI Gas EE | W39: 0 | X39: 0 | Y39: 0 | Z39: -27.8052581 | AA39: 9748497.558 | AB39: 612.0632028 | AE39: =IF(ISNA(MATCH(B39,Outputs_2030!$BD$7:$BD$35,0)),0,1) -> 1 | AF39: 1
B40: Hydro Sensitivity | V40: =B40 -> Hydro Sensitivity
B41: Technology | C41: Annual Capacity Factor | D41: Total Potential Capacity | E41: Annual Energy Production | F41: Annual Energy Production | G41: Installed Cost | H41: Lifetime | I41: Discount Rate | J41: Annual Fixed O&M | K41: Annual Variable O&M | L41: Annual Levelized Fuel Cost | M41: Annual Levelized Cost | N41: Avoided Energy Cost | O41: Avoided Capacity Cost | P41: Avoided Capacity Cost | Q41: Annual Net Levelized Cost | R41: Annual Net Levelized Cost | S41: Winter Load Carrying Capcity | T41: Peak Hour Gas Savings | V41: Technology | W41: Annual Capacity Factor | X41: Total Potential Capacity | Y41: Annual Net Levelized Cost | Z41: Annual Net Levelized Cost | AA41: Annual Energy Production | AB41: Peak Hour Gas Savings
C42: % | D42: MW | E42: MWh | F42: MMBtu NG | G42: $/kW | H42: Yrs | I42: % | J42: $/kW-yr | K42: $/MWh | L42: $/MMBtu | M42: $/MMBtu | N42: $/MMBtu | O42: $/MMBtu | P42: $/MMBtu | Q42: $/MWh | R42: $/MMBtu NG | S42: % | T42: MMBtu NG | W42: % | X42: MW | Y42: $/MWh | Z42: $/MMBtu NG | AA42: MMBtu NG | AB42: MMBtu NG
B43: CA Hydro HVDC 1 | C43: no additional incremental capacity available | V43: =B43 -> CA Hydro HVDC 1 | W43: =C43 -> no additional incremental capacity available
B44: CA Hydro HVDC 2 | C44: =CA_Hydro!K7 -> 0.5 | D44: =CA_Hydro!D7 -> 1200 | E44: =D44*C44*8760 -> 5256000 | F44: =E44*annual_marginal_heat_rate -> 44150400 | G44: =(CA_Hydro!L7*10^9)/(CA_Hydro!D7*1000) -> 1833.333333 | H44: 30 | I44: =Ref!$D$151 -> 0.07993559063 | M44: =G44*I44 -> 146.5485828 | Q44: =M44-N44-P44 -> 146.5485828 | R44: =Q44*annual_marginal_heat_rate -> 1231.008096 | S44: =CA_Hydro!G7 -> 0.75 | T44: =D44*S44*winter_marginal_heat_rate -> 6840 | V44: =B44 -> CA Hydro HVDC 2 | W44: =C44 -> 0.5 | X44: =D44 -> 1200 | Y44: =Q44 -> 146.5485828 | Z44: =R44 -> 1231.008096 | AA44: =F44 -> 44150400 | AB44: =T44 -> 6840
B45: Economic Threshold | V45: =B45 -> Economic Threshold
B46: Technology | F46: Potential Energy Production | G46: Installed Cost | H46: Lifetime | I46: Discount Rate | J46: Annual Fixed O&M | K46: Annual Variable O&M | L46: Annual Levelized Fuel Cost | M46: Annual Levelized Cost | R46: Annual Net Levelized Cost | S46: Winter Load Carrying Capcity | T46: Peak Hour Gas Savings | V46: Technology | W46: Annual Capacity Factor | X46: Total Potential Capacity | Y46: Annual Net Levelized Cost | Z46: Annual Net Levelized Cost | AA46: Annual Energy Production | AB46: Peak Hour Gas Savings
F47: MMBtu | G47: $/MMBtu | H47: Yrs | I47: % | J47: $/MMBtu-yr | K47: $/MMBtu | L47: $/MMBtu | M47: $/MMBtu | R47: $/MMBtu NG | S47: % | T47: MMBtu NG | W47: % | X47: MW | Y47: $/MWh | Z47: $/MMBtu NG | AA47: MMBtu NG | AB47: MMBtu NG
B48: Pipeline @ 80% winter usage | F48: Unlimited | M48: =Pipeline_Threshold!F20 -> 4.481578947 | R48: =M48 -> 4.481578947 | V48: =B48 -> Pipeline @ 80% winter usage | W48: =C48 -> 0 | X48: =D48 -> 0 | Y48: =Q48 -> 0 | Z48: =R48 -> 4.481578947 | AA48: =F48 -> Unlimited | AB48: =T48 -> 0
AD49: For Charts
B50: (continued) | AD50: =Z7 -> Annual Net Levelized Cost | AE50: =V7 -> Technology | AF50: =AA7 -> Annual Energy Production | AG50: =AB7 -> Peak Hour Gas Savings
AC51: Electric | AD51: =Z9+ROW()*10^-6 -> 47.22603935 | AE51: =V9 -> Wind (<10 kW) | AF51: =AA9+ROW()*10^-6 -> 2354688 | AG51: =AB9+ROW()*10^-6 -> 532.000051
AD52: -3.416775173 | AE52: Wind (<100 kW) | AF52: 5518800 | AG52: 798.000052
AD53: -5.75208851 | AE53: Large Wind C5 | AF53: 14834534.4 | AG53: 1276.800053
AD54: -5.004842948 | AE54: Large Wind C4 | AF54: 23546880 | AG54: 2128.000054
AD55: 0.3666127049 | AE55: Offshore Wind | AF55: 132451200 | AG55: 10640.00006
AD56: -6.305589935 | AE56: Utility-Scale PV | AF56: 2163369.6 | AG56: 5.6e-05
AD57: -6.138217785 | AE57: Commercial PV | AF57: 10596096 | AG57: 5.7e-05
AD58: -4.922521104 | AE58: Residential PV | AF58: 2391480 | AG58: 5.8e-05
AD59: -17.54735387 | AE59: Large CHP | AF59: 2465064 | AG59: 117.681309
AD60: -13.04197539 | AE60: Small CHP | AF60: 2391480 | AG60: 251.69306
AD61: -15.58620891 | AE61: Landfill Gas | AF61: 346500.0001 | AG61: 43.320061
AD62: -17.11771021 | AE62: Anaerobic Digestion | AF62: 397353.6001 | AG62: 43.320062
AD63: -6.911187218 | AE63: Biomass Power C1 | AF63: 1177344 | AG63: 144.400063
AD64: -4.848686218 | AE64: Biomass Power C2 | AF64: 2354688 | AG64: 288.800064
AD65: 5.431076687 | AE65: Biomass Power C3 | AF65: 3532032 | AG65: 433.200065
AD66: 10.75101816 | AE66: Biomass Power C4 | AF66: 4120704 | AG66: 505.400066
AD67: -14.63783193 | AE67: Converted Hydro | AF67: 1568000 | AG67: 404.320067
AD68: -23.92431294 | AE68: Res. Electric EE | AF68: 2604729.262 | AG68: 269.0251603
AD69: -12.60597597 | AE69: LI Electric EE | AF69: 301858.2462 | AG69: 31.17699157
AD70: -21.35757408 | AE70: CI Electric EE | AF70: 15382105.55 | AG70: 1588.715038
AD71: -49.46958805 | AE71: Appliance Standards | AF71: 25048800 | AG71: 2587.123359
AC72: Gas | AD72: =Z33+ROW()*10^-6 -> 25.96691425 | AE72: =V33 -> AS Heat Pump | AF72: =AA33+ROW()*10^-6 -> 1127727.36 | AG72: =AB33+ROW()*10^-6 -> 1549.123272
AD73: =Z34+ROW()*10^-6 -> 20.35545878 | AE73: =V34 -> GS Heat Pump | AF73: =AA34+ROW()*10^-6 -> 281931.8401 | AG73: 387.280873
AD74: 31.03814081 | AE74: Solar Hot Water | AF74: 281607.0001 | AG74: 3.744560621
AD75: 3.581701975 | AE75: Biomass Thermal | AF75: 1126428 | AG75: 1868.870872
AD76: -79.41212353 | AE76: Res. Gas EE | AF76: 5290472.554 | AG76: 332.1644487
AD77: -20.18415592 | AE77: LI Gas EE | AF77: 1818670.615 | AG77: 114.1860174
AD78: -27.8051801 | AE78: CI Gas EE | AF78: 9748497.558 | AG78: 612.0632808
AC79: Threshold | AD79: =Z48+ROW()*10^-6 -> 4.481657947 | AE79: =V48 -> Pipeline @ 80% winter usage | AF79: =AA48 -> Unlimited | AG79: =AB48 -> 0

Sheet Outputs_2015
B2: 2015 Supply Curve | P2: (Billion Btu Natural Gas Savings Potential per Year versus Annual Net Levelized Cost)
BH3: Rank by Cost | BI3: Policy | BJ3: Annual Net Levelized Cost | BK3: Annual Energy Production | BL3: Peak Hour Gas Savings | BP3: For Axes
BE4: Annual Net Levelized Cost | BF4: Annual Savings Potential | BJ4: $/MMBtu NG | BK4: Billion Btu NG | BL4: MMBtu NG | BN4: For display | BR4: Total Annual Savings | BT4: Max Cost | BU4: Min Cost
BH5: 1 | BI5: =INDEX(SC_2015!$AE$51:$AE$78,MATCH(BJ5,SC_2015!$AD$51:$AD$78,0)) -> Res. Gas EE | BJ5: =SMALL(SC_2015!$AD$51:$AD$78,BH5) -> -79.65539874 | BK5: =INDEX(SC_2015!$AF$51:$AF$78,MATCH($BJ5,SC_2015!$AD$51:$AD$78,0))*10^-3 -> 7.6e-08 | BL5: =INDEX(SC_2015!$AG$51:$AG$78,MATCH($BJ5,SC_2015!$AD$51:$AD$78,0)) -> 7.6e-05 | BN5: =IF(ROUND(BK5,3)=0,"","Include") ->  | BP5: billion | BQ5: 2015 | BR5: =SUM(SC_2015!$AF$51:$AF$78)*10^-3 -> 304.6535938 | BT5: =MAX(SC_2015!$AD$51:$AD$80) -> 76.60843599 | BU5: =MIN(SC_2015!$AD$51:$AD$80) -> -79.65539874
BE6: ($/MMBtu) | BF6: (billion Btu) | BH6: =BH5+1 -> 2 | BI6: =INDEX(SC_2015!$AE$51:$AE$78,MATCH(BJ6,SC_2015!$AD$51:$AD$78,0)) -> CI Gas EE | BJ6: =SMALL(SC_2015!$AD$51:$AD$78,BH6) -> -25.00471073 | BK6: =INDEX(SC_2015!$AF$51:$AF$78,MATCH($BJ6,SC_2015!$AD$51:$AD$78,0))*10^-3 -> 7.8e-08 | BL6: =INDEX(SC_2015!$AG$51:$AG$78,MATCH($BJ6,SC_2015!$AD$51:$AD$78,0)) -> 7.8e-05 | BN6: =IF(ROUND(BK6,3)=0,"","Include") ->  | BP6: trillion | BQ6: 2020 | BR6: =SUM(SC_2020!$AF$51:$AF$78)*10^-6 -> 74.66901175 | BT6: =MAX(SC_2020!$AD$51:$AD$79) -> 65.41807244 | BU6: =MIN(SC_2020!$AD$51:$AD$79) -> -79.65539874
BC7: 1 | BD7: =BI10 -> Anaerobic Digestion | BE7: =BJ10 -> -7.782632342 | BF7: =BK10 -> 19.86768006 | BH7: 3 | BI7: =INDEX(SC_2015!$AE$51:$AE$78,MATCH(BJ7,SC_2015!$AD$51:$AD$78,0)) -> LI Gas EE | BJ7: =SMALL(SC_2015!$AD$51:$AD$78,BH7) -> -17.38368655 | BK7: =INDEX(SC_2015!$AF$51:$AF$78,MATCH($BJ7,SC_2015!$AD$51:$AD$78,0))*10^-3 -> 7.7e-08 | BL7: =INDEX(SC_2015!$AG$51:$AG$78,MATCH($BJ7,SC_2015!$AD$51:$AD$78,0)) -> 7.7e-05 | BP7: trillion | BQ7: 2030 | BR7: =SUM(SC_2030!$AF$51:$AF$79)*10^-6 -> 275.2230416 | BT7: =MAX(SC_2030!$AD$51:$AD$79) -> 47.22603935 | BU7: =MIN(SC_2030!$AD$51:$AD$79) -> -79.41212353
BC8: =BC7+1 -> 2 | BD8: =BI11 -> Landfill Gas | BE8: =BJ11 -> -6.885205711 | BF8: 17.32500006 | BH8: 4 | BI8: =INDEX(SC_2015!$AE$51:$AE$78,MATCH(BJ8,SC_2015!$AD$51:$AD$78,0)) -> Res. Electric EE | BJ8: =SMALL(SC_2015!$AD$51:$AD$78,BH8) -> -15.7474632 | BK8: =INDEX(SC_2015!$AF$51:$AF$78,MATCH($BJ8,SC_2015!$AD$51:$AD$78,0))*10^-3 -> 6.8e-08 | BL8: =INDEX(SC_2015!$AG$51:$AG$78,MATCH($BJ8,SC_2015!$AD$51:$AD$78,0)) -> 6.8e-05
BC9: =BC8+1 -> 3 | BD9: Converted Hydro | BE9: =BJ12 -> -5.429764197 | BF9: 14.00000007 | BH9: 5 | BI9: =INDEX(SC_2015!$AE$51:$AE$78,MATCH(BJ9,SC_2015!$AD$51:$AD$78,0)) -> CI Electric EE | BJ9: =SMALL(SC_2015!$AD$51:$AD$78,BH9) -> -13.18072433 | BK9: =INDEX(SC_2015!$AF$51:$AF$78,MATCH($BJ9,SC_2015!$AD$51:$AD$78,0))*10^-3 -> 7e-08 | BL9: =INDEX(SC_2015!$AG$51:$AG$78,MATCH($BJ9,SC_2015!$AD$51:$AD$78,0)) -> 7e-05 | BS9: global | BT9: =MAX(BT5:BT7) -> 76.60843599 | BU9: =MIN(BU5:BU7) -> -79.65539874
BC10: =BC9+1 -> 4 | BD10: =BI14 -> Small CHP | BE10: =BJ14 -> -3.319012223 | BF10: =BK14 -> 183.9600001 | BH10: 6 | BI10: =INDEX(SC_2015!$AE$51:$AE$78,MATCH(BJ10,SC_2015!$AD$51:$AD$78,0)) -> Anaerobic Digestion | BJ10: =SMALL(SC_2015!$AD$51:$AD$78,BH10) -> -7.782632342 | BK10: =INDEX(SC_2015!$AF$51:$AF$78,MATCH($BJ10,SC_2015!$AD$51:$AD$78,0))*10^-3 -> 19.86768006 | BL10: =INDEX(SC_2015!$AG$51:$AG$78,MATCH($BJ10,SC_2015!$AD$51:$AD$78,0)) -> 2.166062 | BN10: Include
BC11: =BC10+1 -> 5 | BD11: =BI25 -> Solar Hot Water | BE11: =BJ25 -> 1.459156105 | BF11: 1.572800074 | BH11: 7 | BI11: =INDEX(SC_2015!$AE$51:$AE$78,MATCH(BJ11,SC_2015!$AD$51:$AD$78,0)) -> Landfill Gas | BJ11: =SMALL(SC_2015!$AD$51:$AD$78,BH11) -> -6.885205711 | BK11: =INDEX(SC_2015!$AF$51:$AF$78,MATCH($BJ11,SC_2015!$AD$51:$AD$78,0))*10^-3 -> 17.32500006 | BL11: =INDEX(SC_2015!$AG$51:$AG$78,MATCH($BJ11,SC_2015!$AD$51:$AD$78,0)) -> 2.166061 | BN11: Include | BP11: 600 | BR11: =BP11 -> 1901-08-22
BC12: =BI38 -> Pipeline @ 80% winter usage | BE12: =BJ38 -> 4.481657947 | BF12: - | BH12: 8 | BI12: =INDEX(SC_2015!$AE$51:$AE$78,MATCH(BJ12,SC_2015!$AD$51:$AD$78,0)) -> Converted Hydro | BJ12: =SMALL(SC_2015!$AD$51:$AD$78,BH12) -> -5.429764197 | BK12: =INDEX(SC_2015!$AF$51:$AF$78,MATCH($BJ12,SC_2015!$AD$51:$AD$78,0))*10^-3 -> 14.00000007 | BL12: =INDEX(SC_2015!$AG$51:$AG$78,MATCH($BJ12,SC_2015!$AD$51:$AD$78,0)) -> 3.610067 | BN12: Include
BC13: =BC11+1 -> 6 | BD13: =BI26 -> Biomass Thermal | BE13: =BJ26 -> 7.46637367 | BF13: =BK26 -> 6.291000075 | BH13: 9 | BI13: =INDEX(SC_2015!$AE$51:$AE$78,MATCH(BJ13,SC_2015!$AD$51:$AD$78,0)) -> LI Electric EE | BJ13: =SMALL(SC_2015!$AD$51:$AD$78,BH13) -> -4.429126224 | BK13: =INDEX(SC_2015!$AF$51:$AF$78,MATCH($BJ13,SC_2015!$AD$51:$AD$78,0))*10^-3 -> 6.9e-08 | BL13: =INDEX(SC_2015!$AG$51:$AG$78,MATCH($BJ13,SC_2015!$AD$51:$AD$78,0)) -> 6.9e-05
BC14: 7 | BD14: =BI27 -> Commercial PV | BE14: 7.547913863 | BF14: 21.19219206 | BH14: 10 | BI14: =INDEX(SC_2015!$AE$51:$AE$78,MATCH(BJ14,SC_2015!$AD$51:$AD$78,0)) -> Small CHP | BJ14: =SMALL(SC_2015!$AD$51:$AD$78,BH14) -> -3.319012223 | BK14: =INDEX(SC_2015!$AF$51:$AF$78,MATCH($BJ14,SC_2015!$AD$51:$AD$78,0))*10^-3 -> 183.9600001 | BL14: =INDEX(SC_2015!$AG$51:$AG$78,MATCH($BJ14,SC_2015!$AD$51:$AD$78,0)) -> 19.36106 | BN14: Include
BC15: 8 | BD15: Residential PV | BE15: 10.45012641 | BF15: 2.391480058 | BH15: 11 | BI15: =INDEX(SC_2015!$AE$51:$AE$78,MATCH(BJ15,SC_2015!$AD$51:$AD$78,0)) -> Large Wind C5 | BJ15: =SMALL(SC_2015!$AD$51:$AD$78,BH15) -> 5.3e-05 | BK15: =INDEX(SC_2015!$AF$51:$AF$78,MATCH($BJ15,SC_2015!$AD$51:$AD$78,0))*10^-3 -> 5.3e-08 | BL15: =INDEX(SC_2015!$AG$51:$AG$78,MATCH($BJ15,SC_2015!$AD$51:$AD$78,0)) -> 5.3e-05
BC16: =BC15+1 -> 9 | BD16: Wind (<100 kW) | BE16: 13.1835391 | BF16: 18.39600005 | BH16: 12 | BI16: =INDEX(SC_2015!$AE$51:$AE$78,MATCH(BJ16,SC_2015!$AD$51:$AD$78,0)) -> Large Wind C4 | BJ16: =SMALL(SC_2015!$AD$51:$AD$78,BH16) -> 5.4e-05 | BK16: =INDEX(SC_2015!$AF$51:$AF$78,MATCH($BJ16,SC_2015!$AD$51:$AD$78,0))*10^-3 -> 5.4e-08 | BL16: =INDEX(SC_2015!$AG$51:$AG$78,MATCH($BJ16,SC_2015!$AD$51:$AD$78,0)) -> 5.4e-05
BC17: 10 | BD17: GS Heat Pump | BE17: 14.53922541 | BF17: 1.576800073 | BH17: 13 | BI17: =INDEX(SC_2015!$AE$51:$AE$78,MATCH(BJ17,SC_2015!$AD$51:$AD$78,0)) -> Offshore Wind | BJ17: =SMALL(SC_2015!$AD$51:$AD$78,BH17) -> 5.5e-05 | BK17: =INDEX(SC_2015!$AF$51:$AF$78,MATCH($BJ17,SC_2015!$AD$51:$AD$78,0))*10^-3 -> 5.5e-08 | BL17: =INDEX(SC_2015!$AG$51:$AG$78,MATCH($BJ17,SC_2015!$AD$51:$AD$78,0)) -> 5.5e-05
BC18: 11 | BD18: AS Heat Pump | BE18: 17.45450882 | BF18: 6.307200072 | BH18: 14 | BI18: =INDEX(SC_2015!$AE$51:$AE$78,MATCH(BJ18,SC_2015!$AD$51:$AD$78,0)) -> Utility-Scale PV | BJ18: =SMALL(SC_2015!$AD$51:$AD$78,BH18) -> 5.6e-05 | BK18: =INDEX(SC_2015!$AF$51:$AF$78,MATCH($BJ18,SC_2015!$AD$51:$AD$78,0))*10^-3 -> 5.6e-08 | BL18: =INDEX(SC_2015!$AG$51:$AG$78,MATCH($BJ18,SC_2015!$AD$51:$AD$78,0)) -> 5.6e-05
BC19: 12 | BD19: Wind (<10 kW) | BE19: 76.60843599 | BF19: 11.77344005 | BH19: 15 | BI19: =INDEX(SC_2015!$AE$51:$AE$78,MATCH(BJ19,SC_2015!$AD$51:$AD$78,0)) -> Large CHP | BJ19: =SMALL(SC_2015!$AD$51:$AD$78,BH19) -> 5.9e-05 | BK19: =INDEX(SC_2015!$AF$51:$AF$78,MATCH($BJ19,SC_2015!$AD$51:$AD$78,0))*10^-3 -> 5.9e-08 | BL19: =INDEX(SC_2015!$AG$51:$AG$78,MATCH($BJ19,SC_2015!$AD$51:$AD$78,0)) -> 5.9e-05
BH20: 16 | BI20: =INDEX(SC_2015!$AE$51:$AE$78,MATCH(BJ20,SC_2015!$AD$51:$AD$78,0)) -> Biomass Power C1 | BJ20: =SMALL(SC_2015!$AD$51:$AD$78,BH20) -> 6.3e-05 | BK20: =INDEX(SC_2015!$AF$51:$AF$78,MATCH($BJ20,SC_2015!$AD$51:$AD$78,0))*10^-3 -> 6.3e-08 | BL20: =INDEX(SC_2015!$AG$51:$AG$78,MATCH($BJ20,SC_2015!$AD$51:$AD$78,0)) -> 6.3e-05
BH21: 17 | BI21: =INDEX(SC_2015!$AE$51:$AE$78,MATCH(BJ21,SC_2015!$AD$51:$AD$78,0)) -> Biomass Power C2 | BJ21: =SMALL(SC_2015!$AD$51:$AD$78,BH21) -> 6.4e-05 | BK21: =INDEX(SC_2015!$AF$51:$AF$78,MATCH($BJ21,SC_2015!$AD$51:$AD$78,0))*10^-3 -> 6.4e-08 | BL21: =INDEX(SC_2015!$AG$51:$AG$78,MATCH($BJ21,SC_2015!$AD$51:$AD$78,0)) -> 6.4e-05
B22: This chart zooms in to the marginal resources. The y-axis is truncated, but the x-axis is unchanged. | BH22: 18 | BI22: =INDEX(SC_2015!$AE$51:$AE$78,MATCH(BJ22,SC_2015!$AD$51:$AD$78,0)) -> Biomass Power C3 | BJ22: =SMALL(SC_2015!$AD$51:$AD$78,BH22) -> 6.5e-05 | BK22: =INDEX(SC_2015!$AF$51:$AF$78,MATCH($BJ22,SC_2015!$AD$51:$AD$78,0))*10^-3 -> 6.5e-08 | BL22: =INDEX(SC_2015!$AG$51:$AG$78,MATCH($BJ22,SC_2015!$AD$51:$AD$78,0)) -> 6.5e-05
BH23: 19 | BI23: =INDEX(SC_2015!$AE$51:$AE$78,MATCH(BJ23,SC_2015!$AD$51:$AD$78,0)) -> Biomass Power C4 | BJ23: =SMALL(SC_2015!$AD$51:$AD$78,BH23) -> 6.6e-05 | BK23: =INDEX(SC_2015!$AF$51:$AF$78,MATCH($BJ23,SC_2015!$AD$51:$AD$78,0))*10^-3 -> 6.6e-08 | BL23: =INDEX(SC_2015!$AG$51:$AG$78,MATCH($BJ23,SC_2015!$AD$51:$AD$78,0)) -> 6.6e-05
BH24: 20 | BI24: =INDEX(SC_2015!$AE$51:$AE$78,MATCH(BJ24,SC_2015!$AD$51:$AD$78,0)) -> Appliance Standards | BJ24: =SMALL(SC_2015!$AD$51:$AD$78,BH24) -> 7.1e-05 | BK24: =INDEX(SC_2015!$AF$51:$AF$78,MATCH($BJ24,SC_2015!$AD$51:$AD$78,0))*10^-3 -> 7.1e-08 | BL24: =INDEX(SC_2015!$AG$51:$AG$78,MATCH($BJ24,SC_2015!$AD$51:$AD$78,0)) -> 7.1e-05
BH25: 21 | BI25: =INDEX(SC_2015!$AE$51:$AE$78,MATCH(BJ25,SC_2015!$AD$51:$AD$78,0)) -> Solar Hot Water | BJ25: =SMALL(SC_2015!$AD$51:$AD$78,BH25) -> 1.459156105 | BK25: =INDEX(SC_2015!$AF$51:$AF$78,MATCH($BJ25,SC_2015!$AD$51:$AD$78,0))*10^-3 -> 1.572800074 | BL25: =INDEX(SC_2015!$AG$51:$AG$78,MATCH($BJ25,SC_2015!$AD$51:$AD$78,0)) -> 0.02098728894 | BN25: Include
BH26: 22 | BI26: =INDEX(SC_2015!$AE$51:$AE$78,MATCH(BJ26,SC_2015!$AD$51:$AD$78,0)) -> Biomass Thermal | BJ26: =SMALL(SC_2015!$AD$51:$AD$78,BH26) -> 7.46637367 | BK26: =INDEX(SC_2015!$AF$51:$AF$78,MATCH($BJ26,SC_2015!$AD$51:$AD$78,0))*10^-3 -> 6.291000075 | BL26: =INDEX(SC_2015!$AG$51:$AG$78,MATCH($BJ26,SC_2015!$AD$51:$AD$78,0)) -> 10.43755186 | BN26: Include
BH27: 23 | BI27: =INDEX(SC_2015!$AE$51:$AE$78,MATCH(BJ27,SC_2015!$AD$51:$AD$78,0)) -> Commercial PV | BJ27: =SMALL(SC_2015!$AD$51:$AD$78,BH27) -> 7.547913863 | BK27: =INDEX(SC_2015!$AF$51:$AF$78,MATCH($BJ27,SC_2015!$AD$51:$AD$78,0))*10^-3 -> 21.19219206 | BL27: =INDEX(SC_2015!$AG$51:$AG$78,MATCH($BJ27,SC_2015!$AD$51:$AD$78,0)) -> 5.7e-05 | BN27: Include
BH28: 24 | BI28: =INDEX(SC_2015!$AE$51:$AE$78,MATCH(BJ28,SC_2015!$AD$51:$AD$78,0)) -> Residential PV | BJ28: =SMALL(SC_2015!$AD$51:$AD$78,BH28) -> 10.45012641 | BK28: =INDEX(SC_2015!$AF$51:$AF$78,MATCH($BJ28,SC_2015!$AD$51:$AD$78,0))*10^-3 -> 2.391480058 | BL28: =INDEX(SC_2015!$AG$51:$AG$78,MATCH($BJ28,SC_2015!$AD$51:$AD$78,0)) -> 5.8e-05 | BN28: Include
BH29: 25 | BI29: =INDEX(SC_2015!$AE$51:$AE$78,MATCH(BJ29,SC_2015!$AD$51:$AD$78,0)) -> Wind (<100 kW) | BJ29: =SMALL(SC_2015!$AD$51:$AD$78,BH29) -> 13.1835391 | BK29: =INDEX(SC_2015!$AF$51:$AF$78,MATCH($BJ29,SC_2015!$AD$51:$AD$78,0))*10^-3 -> 18.39600005 | BL29: =INDEX(SC_2015!$AG$51:$AG$78,MATCH($BJ29,SC_2015!$AD$51:$AD$78,0)) -> 2.660052 | BN29: Include
BH30: 26 | BI30: =INDEX(SC_2015!$AE$51:$AE$78,MATCH(BJ30,SC_2015!$AD$51:$AD$78,0)) -> GS Heat Pump | BJ30: =SMALL(SC_2015!$AD$51:$AD$78,BH30) -> 14.53922541 | BK30: =INDEX(SC_2015!$AF$51:$AF$78,MATCH($BJ30,SC_2015!$AD$51:$AD$78,0))*10^-3 -> 1.576800073 | BL30: =INDEX(SC_2015!$AG$51:$AG$78,MATCH($BJ30,SC_2015!$AD$51:$AD$78,0)) -> 2.166073 | BN30: Include
BH31: 27 | BI31: =INDEX(SC_2015!$AE$51:$AE$78,MATCH(BJ31,SC_2015!$AD$51:$AD$78,0)) -> AS Heat Pump | BJ31: =SMALL(SC_2015!$AD$51:$AD$78,BH31) -> 17.45450882 | BK31: =INDEX(SC_2015!$AF$51:$AF$78,MATCH($BJ31,SC_2015!$AD$51:$AD$78,0))*10^-3 -> 6.307200072 | BL31: =INDEX(SC_2015!$AG$51:$AG$78,MATCH($BJ31,SC_2015!$AD$51:$AD$78,0)) -> 8.664072 | BN31: Include
BH32: 28 | BI32: =INDEX(SC_2015!$AE$51:$AE$78,MATCH(BJ32,SC_2015!$AD$51:$AD$78,0)) -> Wind (<10 kW) | BJ32: =SMALL(SC_2015!$AD$51:$AD$78,BH32) -> 76.60843599 | BK32: =INDEX(SC_2015!$AF$51:$AF$78,MATCH($BJ32,SC_2015!$AD$51:$AD$78,0))*10^-3 -> 11.77344005 | BL32: =INDEX(SC_2015!$AG$51:$AG$78,MATCH($BJ32,SC_2015!$AD$51:$AD$78,0)) -> 2.660051 | BN32: Include
BI38: =SC_2015!AE79 -> Pipeline @ 80% winter usage | BJ38: =SC_2015!AD79 -> 4.481657947 | BN38: =COUNTIF($BN$5:$BN$36,"Include") -> 12
BI39: =SC_2015!AE80 -> 0 | BJ39: =SC_2015!AD80 -> 0
BK44: 1 | BL44: =BK44+1 -> 2 | BM44: =BL44+1 -> 3 | BN44: 4 | BO44: 5 | BP44: 6 | BQ44: 7 | BR44: 8 | BS44: 9 | BT44: 10 | BU44: 11 | BV44: 12 | BW44: 13 | BX44: =BW44+1 -> 14 | BY44: =BX44+1 -> 15 | BZ44: =BY44+1 -> 16 | CA44: =BZ44+1 -> 17 | CB44: =CA44+1 -> 18 | CC44: =CB44+1 -> 19 | CD44: =CC44+1 -> 20 | CE44: =CD44+1 -> 21 | CF44: =CE44+1 -> 22 | CG44: =CF44+1 -> 23 | CH44: =CG44+1 -> 24 | CI44: =CH44+1 -> 25 | CJ44: =CI44+1 -> 26 | CK44: =CJ44+1 -> 27 | CL44: 28
BI45: Peak | BJ45: Annual | BK45: =INDEX($BI$5:$BI$36,BK44) -> Res. Gas EE | BL45: =INDEX($BI$5:$BI$36,BL44) -> CI Gas EE | BM45: LI Gas EE | BN45: Res. Electric EE | BO45: CI Electric EE | BP45: Anaerobic Digestion | BQ45: Landfill Gas | BR45: Converted Hydro | BS45: LI Electric EE | BT45: Small CHP | BU45: Large Wind C5 | BV45: Large Wind C4 | BW45: Offshore Wind | BX45: Utility-Scale PV | BY45: Large CHP | BZ45: Biomass Power C1 | CA45: Biomass Power C2 | CB45: Biomass Power C3 | CC45: Biomass Power C4 | CD45: Appliance Standards | CE45: Solar Hot Water | CF45: Biomass Thermal | CG45: Commercial PV | CH45: Residential PV | CI45: Wind (<100 kW) | CJ45: GS Heat Pump | CK45: AS Heat Pump | CL45: Wind (<10 kW) | CM45: =BI38 -> Pipeline @ 80% winter usage
BH46: 0 | BI46: 0 | BJ46: 0 | BK46: 0 | CM46: =$BJ$38 -> 4.481657947
BI47: 0 | BJ47: 0 | BK47: =BK48 -> -79.65539874 | CM47: =CM46 -> 4.481657947
BH48: 1 | BI48: =INDEX($BL$5:$BL$36,MATCH($BH48,$BH$5:$BH$36,0))+BI47 -> 7.6e-05 | BJ48: =INDEX($BK$5:$BK$36,MATCH($BH48,$BH$5:$BH$36,0))+BJ47 -> 7.6e-08 | BK48: =INDEX($BJ$5:$BJ$36,MATCH(BK$44,$BH$5:$BH$36,0)) -> -79.65539874 | CM48: =CM47 -> 4.481657947
BI49: =BI48 -> 7.6e-05 | BJ49: =BJ48 -> 7.6e-08 | BK49: 0 | BL49: 0 | CM49: 4.481657947
BI50: =BI48 -> 7.6e-05 | BJ50: =BJ48 -> 7.6e-08 | BL50: =BL51 -> -25.00471073 | CM50: 4.481657947
BH51: =BH48+1 -> 2 | BI51: =INDEX($BL$5:$BL$36,MATCH($BH51,$BH$5:$BH$36,0))+BI50 -> 0.000154 | BJ51: =INDEX($BK$5:$BK$36,MATCH($BH51,$BH$5:$BH$36,0))+BJ50 -> 1.54e-07 | BL51: =INDEX($BJ$5:$BJ$36,MATCH(BL$44,$BH$5:$BH$36,0)) -> -25.00471073 | CM51: 4.481657947
BI52: =BI51 -> 0.000154 | BJ52: =BJ51 -> 1.54e-07 | BL52: 0 | BM52: 0 | CM52: 4.481657947
BI53: =BI51 -> 0.000154 | BJ53: =BJ51 -> 1.54e-07 | BM53: =BM54 -> -17.38368655 | CM53: 4.481657947
BH54: =BH51+1 -> 3 | BI54: =INDEX($BL$5:$BL$36,MATCH($BH54,$BH$5:$BH$36,0))+BI53 -> 0.000231 | BJ54: =INDEX($BK$5:$BK$36,MATCH($BH54,$BH$5:$BH$36,0))+BJ53 -> 2.31e-07 | BM54: =INDEX($BJ$5:$BJ$36,MATCH(BM$44,$BH$5:$BH$36,0)) -> -17.38368655 | CM54: 4.481657947
BI55: =BI54 -> 0.000231 | BJ55: =BJ54 -> 2.31e-07 | BM55: 0 | BN55: 0 | CM55: 4.481657947
BI56: =BI54 -> 0.000231 | BJ56: =BJ54 -> 2.31e-07 | BN56: =BN57 -> -15.7474632 | CM56: 4.481657947
BH57: =BH54+1 -> 4 | BI57: =INDEX($BL$5:$BL$36,MATCH($BH57,$BH$5:$BH$36,0))+BI56 -> 0.000299 | BJ57: =INDEX($BK$5:$BK$36,MATCH($BH57,$BH$5:$BH$36,0))+BJ56 -> 2.99e-07 | BN57: =INDEX($BJ$5:$BJ$36,MATCH(BN$44,$BH$5:$BH$36,0)) -> -15.7474632 | CM57: 4.481657947
BI58: =BI57 -> 0.000299 | BJ58: =BJ57 -> 2.99e-07 | BN58: 0 | BO58: 0 | CM58: 4.481657947
BI59: =BI57 -> 0.000299 | BJ59: =BJ57 -> 2.99e-07 | BO59: =BO60 -> -13.18072433 | CM59: 4.481657947
BH60: =BH57+1 -> 5 | BI60: =INDEX($BL$5:$BL$36,MATCH($BH60,$BH$5:$BH$36,0))+BI59 -> 0.000369 | BJ60: =INDEX($BK$5:$BK$36,MATCH($BH60,$BH$5:$BH$36,0))+BJ59 -> 3.69e-07 | BO60: =INDEX($BJ$5:$BJ$36,MATCH(BO$44,$BH$5:$BH$36,0)) -> -13.18072433 | CM60: 4.481657947
BI61: =BI60 -> 0.000369 | BJ61: =BJ60 -> 3.69e-07 | BO61: 0 | BP61: 0 | CM61: 4.481657947
BI62: =BI60 -> 0.000369 | BJ62: =BJ60 -> 3.69e-07 | BP62: =BP63 -> -7.782632342 | CM62: 4.481657947
BH63: =BH60+1 -> 6 | BI63: =INDEX($BL$5:$BL$36,MATCH($BH63,$BH$5:$BH$36,0))+BI62 -> 2.166431 | BJ63: =INDEX($BK$5:$BK$36,MATCH($BH63,$BH$5:$BH$36,0))+BJ62 -> 19.86768043 | BP63: =INDEX($BJ$5:$BJ$36,MATCH(BP$44,$BH$5:$BH$36,0)) -> -7.782632342 | CM63: 4.481657947
BI64: =BI63 -> 2.166431 | BJ64: =BJ63 -> 19.86768043 | BP64: 0 | BQ64: 0 | CM64: 4.481657947
BI65: =BI63 -> 2.166431 | BJ65: =BJ63 -> 19.86768043 | BQ65: =BQ66 -> -6.885205711 | CM65: 4.481657947
BH66: =BH63+1 -> 7 | BI66: =INDEX($BL$5:$BL$36,MATCH($BH66,$BH$5:$BH$36,0))+BI65 -> 4.332492 | BJ66: =INDEX($BK$5:$BK$36,MATCH($BH66,$BH$5:$BH$36,0))+BJ65 -> 37.19268049 | BQ66: =INDEX($BJ$5:$BJ$36,MATCH(BQ$44,$BH$5:$BH$36,0)) -> -6.885205711 | CM66: 4.481657947
BI67: =BI66 -> 4.332492 | BJ67: =BJ66 -> 37.19268049 | BQ67: 0 | BR67: 0 | CM67: 4.481657947
BI68: =BI66 -> 4.332492 | BJ68: =BJ66 -> 37.19268049 | BR68: =BR69 -> -5.429764197 | CM68: 4.481657947
BH69: =BH66+1 -> 8 | BI69: =INDEX($BL$5:$BL$36,MATCH($BH69,$BH$5:$BH$36,0))+BI68 -> 7.942559 | BJ69: =INDEX($BK$5:$BK$36,MATCH($BH69,$BH$5:$BH$36,0))+BJ68 -> 51.19268056 | BR69: =INDEX($BJ$5:$BJ$36,MATCH(BR$44,$BH$5:$BH$36,0)) -> -5.429764197 | CM69: 4.481657947
BI70: =BI69 -> 7.942559 | BJ70: =BJ69 -> 51.19268056 | BR70: 0 | BS70: 0 | CM70: 4.481657947
BI71: =BI69 -> 7.942559 | BJ71: =BJ69 -> 51.19268056 | BS71: =BS72 -> -4.429126224 | CM71: 4.481657947
BH72: =BH69+1 -> 9 | BI72: =INDEX($BL$5:$BL$36,MATCH($BH72,$BH$5:$BH$36,0))+BI71 -> 7.942628 | BJ72: =INDEX($BK$5:$BK$36,MATCH($BH72,$BH$5:$BH$36,0))+BJ71 -> 51.19268063 | BS72: =INDEX($BJ$5:$BJ$36,MATCH(BS$44,$BH$5:$BH$36,0)) -> -4.429126224 | CM72: 4.481657947
BI73: =BI72 -> 7.942628 | BJ73: =BJ72 -> 51.19268063 | BS73: 0 | BT73: 0 | CM73: 4.481657947
BI74: =BI72 -> 7.942628 | BJ74: =BJ72 -> 51.19268063 | BT74: =BT75 -> -3.319012223 | CM74: 4.481657947
BH75: =BH72+1 -> 10 | BI75: =INDEX($BL$5:$BL$36,MATCH($BH75,$BH$5:$BH$36,0))+BI74 -> 27.303688 | BJ75: =INDEX($BK$5:$BK$36,MATCH($BH75,$BH$5:$BH$36,0))+BJ74 -> 235.1526807 | BT75: =INDEX($BJ$5:$BJ$36,MATCH(BT$44,$BH$5:$BH$36,0)) -> -3.319012223 | CM75: 4.481657947
BI76: =BI75 -> 27.303688 | BJ76: =BJ75 -> 235.1526807 | BT76: 0 | BU76: 0 | CM76: 4.481657947
BI77: =BI75 -> 27.303688 | BJ77: =BJ75 -> 235.1526807 | BU77: =BU78 -> 5.3e-05 | CM77: 4.481657947
BH78: =BH75+1 -> 11 | BI78: =INDEX($BL$5:$BL$36,MATCH($BH78,$BH$5:$BH$36,0))+BI77 -> 27.303741 | BJ78: =INDEX($BK$5:$BK$36,MATCH($BH78,$BH$5:$BH$36,0))+BJ77 -> 235.1526807 | BU78: =INDEX($BJ$5:$BJ$36,MATCH(BU$44,$BH$5:$BH$36,0)) -> 5.3e-05 | CM78: 4.481657947
BI79: =BI78 -> 27.303741 | BJ79: =BJ78 -> 235.1526807 | BU79: 0 | BV79: 0 | CM79: 4.481657947
BI80: =BI78 -> 27.303741 | BJ80: =BJ78 -> 235.1526807 | BV80: =BV81 -> 5.4e-05 | CM80: 4.481657947
BH81: =BH78+1 -> 12 | BI81: =INDEX($BL$5:$BL$36,MATCH($BH81,$BH$5:$BH$36,0))+BI80 -> 27.303795 | BJ81: =INDEX($BK$5:$BK$36,MATCH($BH81,$BH$5:$BH$36,0))+BJ80 -> 235.1526808 | BV81: =INDEX($BJ$5:$BJ$36,MATCH(BV$44,$BH$5:$BH$36,0)) -> 5.4e-05 | CM81: 4.481657947
BI82: =BI81 -> 27.303795 | BJ82: =BJ81 -> 235.1526808 | BV82: 0 | BW82: 0 | CM82: 4.481657947
BI83: =BI81 -> 27.303795 | BJ83: =BJ81 -> 235.1526808 | BW83: =BW84 -> 5.5e-05 | CM83: 4.481657947
BH84: =BH81+1 -> 13 | BI84: =INDEX($BL$5:$BL$36,MATCH($BH84,$BH$5:$BH$36,0))+BI83 -> 27.30385 | BJ84: =INDEX($BK$5:$BK$36,MATCH($BH84,$BH$5:$BH$36,0))+BJ83 -> 235.1526808 | BW84: =INDEX($BJ$5:$BJ$36,MATCH(BW$44,$BH$5:$BH$36,0)) -> 5.5e-05 | CM84: 4.481657947
BI85: =BI84 -> 27.30385 | BJ85: =BJ84 -> 235.1526808 | BW85: 0 | BX85: 0 | CM85: 4.481657947
BI86: =BI84 -> 27.30385 | BJ86: =BJ84 -> 235.1526808 | BX86: =BX87 -> 5.6e-05 | CM86: 4.481657947
BH87: =BH84+1 -> 14 | BI87: =INDEX($BL$5:$BL$36,MATCH($BH87,$BH$5:$BH$36,0))+BI86 -> 27.303906 | BJ87: =INDEX($BK$5:$BK$36,MATCH($BH87,$BH$5:$BH$36,0))+BJ86 -> 235.1526809 | BX87: =INDEX($BJ$5:$BJ$36,MATCH(BX$44,$BH$5:$BH$36,0)) -> 5.6e-05 | CM87: 4.481657947
BI88: =BI87 -> 27.303906 | BJ88: =BJ87 -> 235.1526809 | BX88: 0 | BY88: 0 | CM88: 4.481657947
BI89: =BI87 -> 27.303906 | BJ89: =BJ87 -> 235.1526809 | BY89: =BY90 -> 5.9e-05 | CM89: 4.481657947
BH90: =BH87+1 -> 15 | BI90: =INDEX($BL$5:$BL$36,MATCH($BH90,$BH$5:$BH$36,0))+BI89 -> 27.303965 | BJ90: =INDEX($BK$5:$BK$36,MATCH($BH90,$BH$5:$BH$36,0))+BJ89 -> 235.152681 | BY90: =INDEX($BJ$5:$BJ$36,MATCH(BY$44,$BH$5:$BH$36,0)) -> 5.9e-05 | CM90: 4.481657947
BI91: =BI90 -> 27.303965 | BJ91: =BJ90 -> 235.152681 | BY91: 0 | BZ91: 0 | CM91: 4.481657947
BI92: =BI90 -> 27.303965 | BJ92: =BJ90 -> 235.152681 | BZ92: =BZ93 -> 6.3e-05 | CM92: 4.481657947
BH93: =BH90+1 -> 16 | BI93: =INDEX($BL$5:$BL$36,MATCH($BH93,$BH$5:$BH$36,0))+BI92 -> 27.304028 | BJ93: =INDEX($BK$5:$BK$36,MATCH($BH93,$BH$5:$BH$36,0))+BJ92 -> 235.152681 | BZ93: =INDEX($BJ$5:$BJ$36,MATCH(BZ$44,$BH$5:$BH$36,0)) -> 6.3e-05 | CM93: 4.481657947
BI94: =BI93 -> 27.304028 | BJ94: =BJ93 -> 235.152681 | BZ94: 0 | CA94: 0 | CM94: 4.481657947
BI95: =BI93 -> 27.304028 | BJ95: =BJ93 -> 235.152681 | CA95: =CA96 -> 6.4e-05 | CM95: 4.481657947
BH96: =BH93+1 -> 17 | BI96: =INDEX($BL$5:$BL$36,MATCH($BH96,$BH$5:$BH$36,0))+BI95 -> 27.304092 | BJ96: =INDEX($BK$5:$BK$36,MATCH($BH96,$BH$5:$BH$36,0))+BJ95 -> 235.1526811 | CA96: =INDEX($BJ$5:$BJ$36,MATCH(CA$44,$BH$5:$BH$36,0)) -> 6.4e-05 | CM96: 4.481657947
BI97: =BI96 -> 27.304092 | BJ97: =BJ96 -> 235.1526811 | CA97: 0 | CB97: 0 | CM97: 4.481657947
BI98: =BI96 -> 27.304092 | BJ98: =BJ96 -> 235.1526811 | CB98: =CB99 -> 6.5e-05 | CM98: 4.481657947
BH99: =BH96+1 -> 18 | BI99: =INDEX($BL$5:$BL$36,MATCH($BH99,$BH$5:$BH$36,0))+BI98 -> 27.304157 | BJ99: =INDEX($BK$5:$BK$36,MATCH($BH99,$BH$5:$BH$36,0))+BJ98 -> 235.1526812 | CB99: =INDEX($BJ$5:$BJ$36,MATCH(CB$44,$BH$5:$BH$36,0)) -> 6.5e-05 | CM99: 4.481657947
BI100: =BI99 -> 27.304157 | BJ100: =BJ99 -> 235.1526812 | CB100: 0 | CC100: 0 | CM100: 4.481657947
BI101: =BI99 -> 27.304157 | BJ101: =BJ99 -> 235.1526812 | CC101: =CC102 -> 6.6e-05 | CM101: 4.481657947
BH102: =BH99+1 -> 19 | BI102: =INDEX($BL$5:$BL$36,MATCH($BH102,$BH$5:$BH$36,0))+BI101 -> 27.304223 | BJ102: =INDEX($BK$5:$BK$36,MATCH($BH102,$BH$5:$BH$36,0))+BJ101 -> 235.1526812 | CC102: =INDEX($BJ$5:$BJ$36,MATCH(CC$44,$BH$5:$BH$36,0)) -> 6.6e-05 | CM102: 4.481657947
BI103: =BI102 -> 27.304223 | BJ103: =BJ102 -> 235.1526812 | CC103: 0 | CD103: 0 | CM103: 4.481657947
BI104: =BI102 -> 27.304223 | BJ104: =BJ102 -> 235.1526812 | CD104: =CD105 -> 7.1e-05 | CM104: 4.481657947
BH105: =BH102+1 -> 20 | BI105: =INDEX($BL$5:$BL$36,MATCH($BH105,$BH$5:$BH$36,0))+BI104 -> 27.304294 | BJ105: =INDEX($BK$5:$BK$36,MATCH($BH105,$BH$5:$BH$36,0))+BJ104 -> 235.1526813 | CD105: =INDEX($BJ$5:$BJ$36,MATCH(CD$44,$BH$5:$BH$36,0)) -> 7.1e-05 | CM105: 4.481657947
BI106: =BI105 -> 27.304294 | BJ106: =BJ105 -> 235.1526813 | CD106: 0 | CE106: 0 | CM106: 4.481657947
BI107: =BI105 -> 27.304294 | BJ107: =BJ105 -> 235.1526813 | CE107: =CE108 -> 1.459156105 | CM107: 4.481657947
BH108: =BH105+1 -> 21 | BI108: =INDEX($BL$5:$BL$36,MATCH($BH108,$BH$5:$BH$36,0))+BI107 -> 27.32528129 | BJ108: =INDEX($BK$5:$BK$36,MATCH($BH108,$BH$5:$BH$36,0))+BJ107 -> 236.7254814 | CE108: =INDEX($BJ$5:$BJ$36,MATCH(CE$44,$BH$5:$BH$36,0)) -> 1.459156105 | CM108: 4.481657947
BI109: =BI108 -> 27.32528129 | BJ109: =BJ108 -> 236.7254814 | CE109: 0 | CF109: 0 | CM109: 4.481657947
BI110: =BI108 -> 27.32528129 | BJ110: =BJ108 -> 236.7254814 | CF110: =CF111 -> 7.46637367 | CM110: 4.481657947
BH111: =BH108+1 -> 22 | BI111: =INDEX($BL$5:$BL$36,MATCH($BH111,$BH$5:$BH$36,0))+BI110 -> 37.76283315 | BJ111: =INDEX($BK$5:$BK$36,MATCH($BH111,$BH$5:$BH$36,0))+BJ110 -> 243.0164814 | CF111: =INDEX($BJ$5:$BJ$36,MATCH(CF$44,$BH$5:$BH$36,0)) -> 7.46637367 | CM111: 4.481657947
BI112: =BI111 -> 37.76283315 | BJ112: =BJ111 -> 243.0164814 | CF112: 0 | CG112: 0 | CM112: =CM111 -> 4.481657947
BI113: =BI111 -> 37.76283315 | BJ113: =BJ111 -> 243.0164814 | CG113: =CG114 -> 7.547913863 | CM113: 4.481657947
BH114: =BH111+1 -> 23 | BI114: =INDEX($BL$5:$BL$36,MATCH($BH114,$BH$5:$BH$36,0))+BI113 -> 37.76289015 | BJ114: =INDEX($BK$5:$BK$36,MATCH($BH114,$BH$5:$BH$36,0))+BJ113 -> 264.2086735 | CG114: =INDEX($BJ$5:$BJ$36,MATCH(CG$44,$BH$5:$BH$36,0)) -> 7.547913863 | CM114: 4.481657947
BI115: =BI114 -> 37.76289015 | BJ115: =BJ114 -> 264.2086735 | CG115: 0 | CH115: 0 | CM115: 4.481657947
BI116: =BI114 -> 37.76289015 | BJ116: =BJ114 -> 264.2086735 | CH116: =CH117 -> 10.45012641 | CM116: 4.481657947
BH117: =BH114+1 -> 24 | BI117: =INDEX($BL$5:$BL$36,MATCH($BH117,$BH$5:$BH$36,0))+BI116 -> 37.76294815 | BJ117: =INDEX($BK$5:$BK$36,MATCH($BH117,$BH$5:$BH$36,0))+BJ116 -> 266.6001536 | CH117: =INDEX($BJ$5:$BJ$36,MATCH(CH$44,$BH$5:$BH$36,0)) -> 10.45012641 | CM117: 4.481657947
BI118: =BI117 -> 37.76294815 | BJ118: =BJ117 -> 266.6001536 | CH118: 0 | CI118: 0 | CM118: 4.481657947
BI119: =BI117 -> 37.76294815 | BJ119: =BJ117 -> 266.6001536 | CI119: =CI120 -> 13.1835391 | CM119: 4.481657947
BH120: =BH117+1 -> 25 | BI120: =INDEX($BL$5:$BL$36,MATCH($BH120,$BH$5:$BH$36,0))+BI119 -> 40.42300015 | BJ120: =INDEX($BK$5:$BK$36,MATCH($BH120,$BH$5:$BH$36,0))+BJ119 -> 284.9961536 | CI120: =INDEX($BJ$5:$BJ$36,MATCH(CI$44,$BH$5:$BH$36,0)) -> 13.1835391 | CM120: 4.481657947
BI121: =BI120 -> 40.42300015 | BJ121: =BJ120 -> 284.9961536 | CI121: 0 | CJ121: 0 | CM121: 4.481657947
BI122: =BI120 -> 40.42300015 | BJ122: =BJ120 -> 284.9961536 | CJ122: =CJ123 -> 14.53922541 | CM122: 4.481657947
BH123: =BH120+1 -> 26 | BI123: =INDEX($BL$5:$BL$36,MATCH($BH123,$BH$5:$BH$36,0))+BI122 -> 42.58907315 | BJ123: =INDEX($BK$5:$BK$36,MATCH($BH123,$BH$5:$BH$36,0))+BJ122 -> 286.5729537 | CJ123: =INDEX($BJ$5:$BJ$36,MATCH(CJ$44,$BH$5:$BH$36,0)) -> 14.53922541 | CM123: 4.481657947
BI124: =BI123 -> 42.58907315 | BJ124: =BJ123 -> 286.5729537 | CJ124: 0 | CK124: 0 | CM124: 4.481657947
BI125: =BI123 -> 42.58907315 | BJ125: =BJ123 -> 286.5729537 | CK125: =CK126 -> 17.45450882 | CM125: 4.481657947
BH126: =BH123+1 -> 27 | BI126: =INDEX($BL$5:$BL$36,MATCH($BH126,$BH$5:$BH$36,0))+BI125 -> 51.25314515 | BJ126: =INDEX($BK$5:$BK$36,MATCH($BH126,$BH$5:$BH$36,0))+BJ125 -> 292.8801538 | CK126: =INDEX($BJ$5:$BJ$36,MATCH(CK$44,$BH$5:$BH$36,0)) -> 17.45450882 | CM126: 4.481657947
BI127: =BI126 -> 51.25314515 | BJ127: =BJ126 -> 292.8801538 | CK127: 0 | CL127: 0 | CM127: 4.481657947
BI128: =BI126 -> 51.25314515 | BJ128: =BJ126 -> 292.8801538 | CL128: =CL129 -> 76.60843599 | CM128: 4.481657947
BH129: =BH126+1 -> 28 | BI129: =INDEX($BL$5:$BL$36,MATCH($BH129,$BH$5:$BH$36,0))+BI128 -> 53.91319615 | BJ129: =INDEX($BK$5:$BK$36,MATCH($BH129,$BH$5:$BH$36,0))+BJ128 -> 304.6535938 | CL129: =INDEX($BJ$5:$BJ$36,MATCH(CL$44,$BH$5:$BH$36,0)) -> 76.60843599 | CM129: 4.481657947
BI130: =BI129 -> 53.91319615 | BJ130: =BJ129 -> 304.6535938 | CL130: 0 | CM130: 4.481657947
BI131: =BI129 -> 53.91319615 | BJ131: =BJ129 -> 304.6535938 | CM131: 4.481657947
BH132: =BH129+1 -> 29 | BI132: =INDEX($BL$5:$BL$36,MATCH($BH132,$BH$5:$BH$36,0))+BI131 ->  | BJ132: =INDEX($BK$5:$BK$36,MATCH($BH132,$BH$5:$BH$36,0))+BJ131 ->  | CM132: 4.481657947
BI133: =BI132 ->  | BJ133: =BJ132 ->  | CM133: 4.481657947
BI134: =BI132 ->  | BJ134: =BJ132 ->  | CM134: 4.481657947
BH135: =BH132+1 -> 30 | BI135: =INDEX($BL$5:$BL$36,MATCH($BH135,$BH$5:$BH$36,0))+BI134 ->  | BJ135: =INDEX($BK$5:$BK$36,MATCH($BH135,$BH$5:$BH$36,0))+BJ134 ->  | CM135: 4.481657947
BI136: =BI135 ->  | BJ136: =BJ135 ->  | CM136: 4.481657947
BI137: =BI135 ->  | BJ137: =BJ135 ->  | CM137: 4.481657947
BH138: =BH135+1 -> 31 | BI138: =INDEX($BL$5:$BL$36,MATCH($BH138,$BH$5:$BH$36,0))+BI137 ->  | BJ138: =INDEX($BK$5:$BK$36,MATCH($BH138,$BH$5:$BH$36,0))+BJ137 ->  | CM138: 4.481657947
BI139: =BI138 ->  | BJ139: =BJ138 ->  | CM139: 4.481657947
BI140: =BI138 ->  | BJ140: =BJ138 ->  | CM140: 4.481657947
BH141: =BH138+1 -> 32 | BI141: =INDEX($BL$5:$BL$36,MATCH($BH141,$BH$5:$BH$36,0))+BI140 ->  | BJ141: =INDEX($BK$5:$BK$36,MATCH($BH141,$BH$5:$BH$36,0))+BJ140 ->  | CM141: =CM140 -> 4.481657947
BI142: =BI141 ->  | BJ142: =BJ141 ->  | CM142: 4.481657947
BI143: =BI141 ->  | BJ143: =BJ141 ->  | CM143: 4.481657947
BJ144: 5000 | CM144: 4.481657947

Sheet Outputs_2020
B2: 2020 Supply Curve | P2: (Trillion Btu Natural Gas Savings Potential per Year versus Annual Net Levelized Cost)
BH3: Rank by Cost | BI3: Policy | BJ3: Annual Net Levelized Cost | BK3: Annual Energy Production | BL3: Peak Hour Gas Savings | BP3: For Axes
BE4: Annual Net Levelized Cost | BF4: Annual Savings Potential | BJ4: $/MMBtu NG | BK4: Trillion Btu NG | BL4: MMBtu NG | BN4: For display | BR4: Total Annual Savings | BT4: Max Cost | BU4: Min Cost
BH5: 1 | BI5: =INDEX(SC_2020!$AE$51:$AE$78,MATCH(BJ5,SC_2020!$AD$51:$AD$78,0)) -> Res. Gas EE | BJ5: =SMALL(SC_2020!$AD$51:$AD$78,BH5) -> -79.65539874 | BK5: =INDEX(SC_2020!$AF$51:$AF$78,MATCH($BJ5,SC_2020!$AD$51:$AD$78,0))*10^-6 -> 3.758369261 | BL5: =INDEX(SC_2020!$AG$51:$AG$78,MATCH($BJ5,SC_2020!$AD$51:$AD$78,0)) -> 235.9707488 | BN5: =IF(ROUND(BK5,3)=0,"","Include") -> Include | BP5: billion | BQ5: 2015 | BR5: =SUM(SC_2015!$AF$51:$AF$78)*10^-3 -> 304.6535938 | BT5: =MAX(SC_2015!$AD$51:$AD$80) -> 76.60843599 | BU5: =MIN(SC_2015!$AD$51:$AD$80) -> -79.65539874
BE6: ($/MMBtu) | BF6: (trillion Btu) | BH6: =BH5+1 -> 2 | BI6: =INDEX(SC_2020!$AE$51:$AE$78,MATCH(BJ6,SC_2020!$AD$51:$AD$78,0)) -> Appliance Standards | BJ6: =SMALL(SC_2020!$AD$51:$AD$78,BH6) -> -49.84912699 | BK6: =INDEX(SC_2020!$AF$51:$AF$78,MATCH($BJ6,SC_2020!$AD$51:$AD$78,0))*10^-6 -> 8.736 | BL6: =INDEX(SC_2020!$AG$51:$AG$78,MATCH($BJ6,SC_2020!$AD$51:$AD$78,0)) -> 902.283176 | BN6: =IF(ROUND(BK6,3)=0,"","Include") -> Include | BP6: trillion | BQ6: 2020 | BR6: =SUM(SC_2020!$AF$51:$AF$78)*10^-6 -> 74.66901175 | BT6: =MAX(SC_2020!$AD$51:$AD$79) -> 65.41807244 | BU6: =MIN(SC_2020!$AD$51:$AD$79) -> -79.65539874
BC7: =BH5 -> 1 | BD7: =BI5 -> Res. Gas EE | BE7: =BJ5 -> -79.65539874 | BF7: 3.758369261 | BH7: 3 | BI7: =INDEX(SC_2020!$AE$51:$AE$78,MATCH(BJ7,SC_2020!$AD$51:$AD$78,0)) -> CI Gas EE | BJ7: =SMALL(SC_2020!$AD$51:$AD$78,BH7) -> -25.00471073 | BK7: =INDEX(SC_2020!$AF$51:$AF$78,MATCH($BJ7,SC_2020!$AD$51:$AD$78,0))*10^-6 -> 4.121834251 | BL7: =INDEX(SC_2020!$AG$51:$AG$78,MATCH($BJ7,SC_2020!$AD$51:$AD$78,0)) -> 258.7910412 | BN7: Include | BP7: trillion | BQ7: 2030 | BR7: =SUM(SC_2030!$AF$51:$AF$79)*10^-6 -> 275.2230416 | BT7: =MAX(SC_2030!$AD$51:$AD$79) -> 47.22603935 | BU7: =MIN(SC_2030!$AD$51:$AD$79) -> -79.41212353
BC8: =BC7+1 -> 2 | BD8: =BI6 -> Appliance Standards | BE8: -49.84912699 | BF8: 8.736 | BH8: 4 | BI8: =INDEX(SC_2020!$AE$51:$AE$78,MATCH(BJ8,SC_2020!$AD$51:$AD$78,0)) -> LI Gas EE | BJ8: =SMALL(SC_2020!$AD$51:$AD$78,BH8) -> -17.38368655 | BK8: =INDEX(SC_2020!$AF$51:$AF$78,MATCH($BJ8,SC_2020!$AD$51:$AD$78,0))*10^-6 -> 0.5840364834 | BL8: =INDEX(SC_2020!$AG$51:$AG$78,MATCH($BJ8,SC_2020!$AD$51:$AD$78,0)) -> 36.66903429 | BN8: Include
BC9: =BC8+1 -> 3 | BD9: =BI7 -> CI Gas EE | BE9: -25.00471073 | BF9: 4.121834251 | BH9: 5 | BI9: =INDEX(SC_2020!$AE$51:$AE$78,MATCH(BJ9,SC_2020!$AD$51:$AD$78,0)) -> Res. Electric EE | BJ9: =SMALL(SC_2020!$AD$51:$AD$78,BH9) -> -16.23905297 | BK9: =INDEX(SC_2020!$AF$51:$AF$78,MATCH($BJ9,SC_2020!$AD$51:$AD$78,0))*10^-6 -> 1.147100422 | BL9: =INDEX(SC_2020!$AG$51:$AG$78,MATCH($BJ9,SC_2020!$AD$51:$AD$78,0)) -> 118.4764108 | BN9: Include | BS9: global | BT9: =MAX(BT5:BT7) -> 76.60843599 | BU9: =MIN(BU5:BU7) -> -79.65539874
BC10: 4 | BD10: LI Gas EE | BE10: -17.38368655 | BF10: 0.5840364834 | BH10: 6 | BI10: =INDEX(SC_2020!$AE$51:$AE$78,MATCH(BJ10,SC_2020!$AD$51:$AD$78,0)) -> CI Electric EE | BJ10: =SMALL(SC_2020!$AD$51:$AD$78,BH10) -> -13.6723141 | BK10: =INDEX(SC_2020!$AF$51:$AF$78,MATCH($BJ10,SC_2020!$AD$51:$AD$78,0))*10^-6 -> 4.577386202 | BL10: =INDEX(SC_2020!$AG$51:$AG$78,MATCH($BJ10,SC_2020!$AD$51:$AD$78,0)) -> 472.7677251 | BN10: Include
BC11: 5 | BD11: Res. Electric EE | BE11: -16.23905297 | BF11: 1.147100422 | BH11: 7 | BI11: =INDEX(SC_2020!$AE$51:$AE$78,MATCH(BJ11,SC_2020!$AD$51:$AD$78,0)) -> Anaerobic Digestion | BJ11: =SMALL(SC_2020!$AD$51:$AD$78,BH11) -> -8.88348707 | BK11: =INDEX(SC_2020!$AF$51:$AF$78,MATCH($BJ11,SC_2020!$AD$51:$AD$78,0))*10^-6 -> 1.324512 | BL11: =INDEX(SC_2020!$AG$51:$AG$78,MATCH($BJ11,SC_2020!$AD$51:$AD$78,0)) -> 144.400062 | BN11: Include | BP11: 75 | BR11: =BP11 -> 1900-03-15
BC12: 6 | BD12: CI Electric EE | BE12: -13.6723141 | BF12: 4.577386202 | BH12: 8 | BI12: =INDEX(SC_2020!$AE$51:$AE$78,MATCH(BJ12,SC_2020!$AD$51:$AD$78,0)) -> Large CHP | BJ12: =SMALL(SC_2020!$AD$51:$AD$78,BH12) -> -8.730515778 | BK12: =INDEX(SC_2020!$AF$51:$AF$78,MATCH($BJ12,SC_2020!$AD$51:$AD$78,0))*10^-6 -> 1.232532 | BL12: =INDEX(SC_2020!$AG$51:$AG$78,MATCH($BJ12,SC_2020!$AD$51:$AD$78,0)) -> 58.840684 | BN12: Include
BC13: 7 | BD13: Anaerobic Digestion | BE13: -8.88348707 | BF13: 1.324512 | BH13: 9 | BI13: =INDEX(SC_2020!$AE$51:$AE$78,MATCH(BJ13,SC_2020!$AD$51:$AD$78,0)) -> Landfill Gas | BJ13: =SMALL(SC_2020!$AD$51:$AD$78,BH13) -> -7.981888466 | BK13: =INDEX(SC_2020!$AF$51:$AF$78,MATCH($BJ13,SC_2020!$AD$51:$AD$78,0))*10^-6 -> 1.155 | BL13: =INDEX(SC_2020!$AG$51:$AG$78,MATCH($BJ13,SC_2020!$AD$51:$AD$78,0)) -> 144.400061 | BN13: Include
BC14: 8 | BD14: Large CHP | BE14: -8.730515778 | BF14: 1.232532 | BH14: 10 | BI14: =INDEX(SC_2020!$AE$51:$AE$78,MATCH(BJ14,SC_2020!$AD$51:$AD$78,0)) -> Converted Hydro | BJ14: =SMALL(SC_2020!$AD$51:$AD$78,BH14) -> -6.953338985 | BK14: =INDEX(SC_2020!$AF$51:$AF$78,MATCH($BJ14,SC_2020!$AD$51:$AD$78,0))*10^-6 -> 1.708 | BL14: =INDEX(SC_2020!$AG$51:$AG$78,MATCH($BJ14,SC_2020!$AD$51:$AD$78,0)) -> 440.420067 | BN14: Include
BC15: 9 | BD15: Landfill Gas | BE15: -7.981888466 | BF15: 1.155 | BH15: 11 | BI15: =INDEX(SC_2020!$AE$51:$AE$78,MATCH(BJ15,SC_2020!$AD$51:$AD$78,0)) -> LI Electric EE | BJ15: =SMALL(SC_2020!$AD$51:$AD$78,BH15) -> -4.920715997 | BK15: =INDEX(SC_2020!$AF$51:$AF$78,MATCH($BJ15,SC_2020!$AD$51:$AD$78,0))*10^-6 -> 0.1385281688 | BL15: =INDEX(SC_2020!$AG$51:$AG$78,MATCH($BJ15,SC_2020!$AD$51:$AD$78,0)) -> 14.30771852 | BN15: Include
BC16: 10 | BD16: Converted Hydro | BE16: -6.953338985 | BF16: 1.708 | BH16: 12 | BI16: =INDEX(SC_2020!$AE$51:$AE$78,MATCH(BJ16,SC_2020!$AD$51:$AD$78,0)) -> Small CHP | BJ16: =SMALL(SC_2020!$AD$51:$AD$78,BH16) -> -3.268686466 | BK16: =INDEX(SC_2020!$AF$51:$AF$78,MATCH($BJ16,SC_2020!$AD$51:$AD$78,0))*10^-6 -> 1.28772 | BL16: =INDEX(SC_2020!$AG$51:$AG$78,MATCH($BJ16,SC_2020!$AD$51:$AD$78,0)) -> 135.52706 | BN16: Include
BC17: 11 | BD17: LI Electric EE | BE17: -4.920715997 | BF17: 0.1385281688 | BH17: 13 | BI17: =INDEX(SC_2020!$AE$51:$AE$78,MATCH(BJ17,SC_2020!$AD$51:$AD$78,0)) -> Large Wind C4 | BJ17: =SMALL(SC_2020!$AD$51:$AD$78,BH17) -> 5.4e-05 | BK17: =INDEX(SC_2020!$AF$51:$AF$78,MATCH($BJ17,SC_2020!$AD$51:$AD$78,0))*10^-6 -> 5.4e-11 | BL17: =INDEX(SC_2020!$AG$51:$AG$78,MATCH($BJ17,SC_2020!$AD$51:$AD$78,0)) -> 5.4e-05
BC18: 12 | BD18: Small CHP | BE18: -3.268686466 | BF18: 1.28772 | BH18: 14 | BI18: =INDEX(SC_2020!$AE$51:$AE$78,MATCH(BJ18,SC_2020!$AD$51:$AD$78,0)) -> Biomass Power C1 | BJ18: =SMALL(SC_2020!$AD$51:$AD$78,BH18) -> 0.6917011902 | BK18: =INDEX(SC_2020!$AF$51:$AF$78,MATCH($BJ18,SC_2020!$AD$51:$AD$78,0))*10^-6 -> 1.177344 | BL18: =INDEX(SC_2020!$AG$51:$AG$78,MATCH($BJ18,SC_2020!$AD$51:$AD$78,0)) -> 144.400063 | BN18: Include
BC19: =BC18+1 -> 13 | BD19: =BI18 -> Biomass Power C1 | BE19: =BJ18 -> 0.6917011902 | BF19: 1.177344 | BH19: 15 | BI19: =INDEX(SC_2020!$AE$51:$AE$78,MATCH(BJ19,SC_2020!$AD$51:$AD$78,0)) -> Large Wind C5 | BJ19: =SMALL(SC_2020!$AD$51:$AD$78,BH19) -> 2.009712328 | BK19: =INDEX(SC_2020!$AF$51:$AF$78,MATCH($BJ19,SC_2020!$AD$51:$AD$78,0))*10^-6 -> 6.033888 | BL19: =INDEX(SC_2020!$AG$51:$AG$78,MATCH($BJ19,SC_2020!$AD$51:$AD$78,0)) -> 532.000053 | BN19: Include
BC20: =BC19+1 -> 14 | BD20: =BI19 -> Large Wind C5 | BE20: 2.009712328 | BF20: 6.033888 | BH20: 16 | BI20: =INDEX(SC_2020!$AE$51:$AE$78,MATCH(BJ20,SC_2020!$AD$51:$AD$78,0)) -> Biomass Power C2 | BJ20: =SMALL(SC_2020!$AD$51:$AD$78,BH20) -> 2.75420219 | BK20: =INDEX(SC_2020!$AF$51:$AF$78,MATCH($BJ20,SC_2020!$AD$51:$AD$78,0))*10^-6 -> 2.354688 | BL20: =INDEX(SC_2020!$AG$51:$AG$78,MATCH($BJ20,SC_2020!$AD$51:$AD$78,0)) -> 288.800064 | BN20: Include
BC21: 15 | BD21: =BI20 -> Biomass Power C2 | BE21: 2.75420219 | BF21: 2.354688 | BH21: 17 | BI21: =INDEX(SC_2020!$AE$51:$AE$78,MATCH(BJ21,SC_2020!$AD$51:$AD$78,0)) -> Utility-Scale PV | BJ21: =SMALL(SC_2020!$AD$51:$AD$78,BH21) -> 6.54002348 | BK21: =INDEX(SC_2020!$AF$51:$AF$78,MATCH($BJ21,SC_2020!$AD$51:$AD$78,0))*10^-6 -> 0.2163369601 | BL21: =INDEX(SC_2020!$AG$51:$AG$78,MATCH($BJ21,SC_2020!$AD$51:$AD$78,0)) -> 5.6e-05 | BN21: Include
B22: This chart zooms in to the marginal resources. The y-axis is truncated, but the x-axis is unchanged. | BC22: =BI38 -> Pipeline @ 80% winter usage | BE22: =BJ38 -> 4.481657947 | BF22: - | BH22: 18 | BI22: =INDEX(SC_2020!$AE$51:$AE$78,MATCH(BJ22,SC_2020!$AD$51:$AD$78,0)) -> Wind (<100 kW) | BJ22: =SMALL(SC_2020!$AD$51:$AD$78,BH22) -> 7.250835505 | BK22: =INDEX(SC_2020!$AF$51:$AF$78,MATCH($BJ22,SC_2020!$AD$51:$AD$78,0))*10^-6 -> 1.8396 | BL22: =INDEX(SC_2020!$AG$51:$AG$78,MATCH($BJ22,SC_2020!$AD$51:$AD$78,0)) -> 266.000052 | BN22: Include
BC23: =BC21+1 -> 16 | BD23: =BI21 -> Utility-Scale PV | BE23: =BJ21 -> 6.54002348 | BF23: 0.2163369601 | BH23: 19 | BI23: =INDEX(SC_2020!$AE$51:$AE$78,MATCH(BJ23,SC_2020!$AD$51:$AD$78,0)) -> Biomass Thermal | BJ23: =SMALL(SC_2020!$AD$51:$AD$78,BH23) -> 7.482061287 | BK23: =INDEX(SC_2020!$AF$51:$AF$78,MATCH($BJ23,SC_2020!$AD$51:$AD$78,0))*10^-6 -> 0.07558600007 | BL23: =INDEX(SC_2020!$AG$51:$AG$78,MATCH($BJ23,SC_2020!$AD$51:$AD$78,0)) -> 125.4057539 | BN23: Include
BC24: =BC23+1 -> 17 | BD24: =BI22 -> Wind (<100 kW) | BE24: 7.250835505 | BF24: 1.8396 | BH24: 20 | BI24: =INDEX(SC_2020!$AE$51:$AE$78,MATCH(BJ24,SC_2020!$AD$51:$AD$78,0)) -> Commercial PV | BJ24: =SMALL(SC_2020!$AD$51:$AD$78,BH24) -> 8.09600407 | BK24: =INDEX(SC_2020!$AF$51:$AF$78,MATCH($BJ24,SC_2020!$AD$51:$AD$78,0))*10^-6 -> 0.6622560001 | BL24: =INDEX(SC_2020!$AG$51:$AG$78,MATCH($BJ24,SC_2020!$AD$51:$AD$78,0)) -> 5.7e-05 | BN24: Include
BC25: 18 | BD25: =BI23 -> Biomass Thermal | BE25: 7.482061287 | BF25: 0.07558600007 | BH25: 21 | BI25: =INDEX(SC_2020!$AE$51:$AE$78,MATCH(BJ25,SC_2020!$AD$51:$AD$78,0)) -> Residential PV | BJ25: =SMALL(SC_2020!$AD$51:$AD$78,BH25) -> 9.869583675 | BK25: =INDEX(SC_2020!$AF$51:$AF$78,MATCH($BJ25,SC_2020!$AD$51:$AD$78,0))*10^-6 -> 0.04782960006 | BL25: =INDEX(SC_2020!$AG$51:$AG$78,MATCH($BJ25,SC_2020!$AD$51:$AD$78,0)) -> 5.8e-05 | BN25: Include
BC26: 19 | BD26: =BI24 -> Commercial PV | BE26: 8.09600407 | BF26: 0.6622560001 | BH26: 22 | BI26: =INDEX(SC_2020!$AE$51:$AE$78,MATCH(BJ26,SC_2020!$AD$51:$AD$78,0)) -> Biomass Power C3 | BJ26: =SMALL(SC_2020!$AD$51:$AD$78,BH26) -> 13.03396509 | BK26: =INDEX(SC_2020!$AF$51:$AF$78,MATCH($BJ26,SC_2020!$AD$51:$AD$78,0))*10^-6 -> 2.354688 | BL26: =INDEX(SC_2020!$AG$51:$AG$78,MATCH($BJ26,SC_2020!$AD$51:$AD$78,0)) -> 288.800065 | BN26: Include
BC27: 20 | BD27: =BI25 -> Residential PV | BE27: 9.869583675 | BF27: 0.04782960006 | BH27: 23 | BI27: =INDEX(SC_2020!$AE$51:$AE$78,MATCH(BJ27,SC_2020!$AD$51:$AD$78,0)) -> Offshore Wind | BJ27: =SMALL(SC_2020!$AD$51:$AD$78,BH27) -> 13.27658904 | BK27: =INDEX(SC_2020!$AF$51:$AF$78,MATCH($BJ27,SC_2020!$AD$51:$AD$78,0))*10^-6 -> 25.901568 | BL27: =INDEX(SC_2020!$AG$51:$AG$78,MATCH($BJ27,SC_2020!$AD$51:$AD$78,0)) -> 2128.000055 | BN27: Include
BC28: 21 | BD28: =BI26 -> Biomass Power C3 | BE28: 13.03396509 | BF28: 2.354688 | BH28: 24 | BI28: =INDEX(SC_2020!$AE$51:$AE$78,MATCH(BJ28,SC_2020!$AD$51:$AD$78,0)) -> Solar Hot Water | BJ28: =SMALL(SC_2020!$AD$51:$AD$78,BH28) -> 13.44692464 | BK28: =INDEX(SC_2020!$AF$51:$AF$78,MATCH($BJ28,SC_2020!$AD$51:$AD$78,0))*10^-6 -> 0.01889640007 | BL28: =INDEX(SC_2020!$AG$51:$AG$78,MATCH($BJ28,SC_2020!$AD$51:$AD$78,0)) -> 0.2513366355 | BN28: Include
BC29: 22 | BD29: =BI27 -> Offshore Wind | BE29: 13.27658904 | BF29: 25.901568 | BH29: 25 | BI29: =INDEX(SC_2020!$AE$51:$AE$78,MATCH(BJ29,SC_2020!$AD$51:$AD$78,0)) -> GS Heat Pump | BJ29: =SMALL(SC_2020!$AD$51:$AD$78,BH29) -> 16.20215921 | BK29: =INDEX(SC_2020!$AF$51:$AF$78,MATCH($BJ29,SC_2020!$AD$51:$AD$78,0))*10^-6 -> 0.01892160007 | BL29: =INDEX(SC_2020!$AG$51:$AG$78,MATCH($BJ29,SC_2020!$AD$51:$AD$78,0)) -> 25.992073 | BN29: Include
BC30: 23 | BD30: =BI28 -> Solar Hot Water | BE30: 13.44692464 | BF30: 0.01889640007 | BH30: 26 | BI30: =INDEX(SC_2020!$AE$51:$AE$78,MATCH(BJ30,SC_2020!$AD$51:$AD$78,0)) -> Biomass Power C4 | BJ30: =SMALL(SC_2020!$AD$51:$AD$78,BH30) -> 18.35390657 | BK30: =INDEX(SC_2020!$AF$51:$AF$78,MATCH($BJ30,SC_2020!$AD$51:$AD$78,0))*10^-6 -> 2.94336 | BL30: =INDEX(SC_2020!$AG$51:$AG$78,MATCH($BJ30,SC_2020!$AD$51:$AD$78,0)) -> 361.000066 | BN30: Include
BC31: 24 | BD31: =BI29 -> GS Heat Pump | BE31: 16.20215921 | BF31: 0.01892160007 | BH31: 27 | BI31: =INDEX(SC_2020!$AE$51:$AE$78,MATCH(BJ31,SC_2020!$AD$51:$AD$78,0)) -> AS Heat Pump | BJ31: =SMALL(SC_2020!$AD$51:$AD$78,BH31) -> 19.64766502 | BK31: =INDEX(SC_2020!$AF$51:$AF$78,MATCH($BJ31,SC_2020!$AD$51:$AD$78,0))*10^-6 -> 0.07568640007 | BL31: =INDEX(SC_2020!$AG$51:$AG$78,MATCH($BJ31,SC_2020!$AD$51:$AD$78,0)) -> 103.968072 | BN31: Include
BC32: =BC31+1 -> 25 | BD32: =BI30 -> Biomass Power C4 | BE32: 18.35390657 | BF32: 2.94336 | BH32: 28 | BI32: =INDEX(SC_2020!$AE$51:$AE$78,MATCH(BJ32,SC_2020!$AD$51:$AD$78,0)) -> Wind (<10 kW) | BJ32: =SMALL(SC_2020!$AD$51:$AD$78,BH32) -> 65.41807244 | BK32: =INDEX(SC_2020!$AF$51:$AF$78,MATCH($BJ32,SC_2020!$AD$51:$AD$78,0))*10^-6 -> 1.177344 | BL32: =INDEX(SC_2020!$AG$51:$AG$78,MATCH($BJ32,SC_2020!$AD$51:$AD$78,0)) -> 266.000051 | BN32: Include
BC33: =BC32+1 -> 26 | BD33: =BI31 -> AS Heat Pump | BE33: 19.64766502 | BF33: 0.07568640007
BC34: 27 | BD34: =BI32 -> Wind (<10 kW) | BE34: 65.41807244 | BF34: 1.177344
BI38: =SC_2015!AE79 -> Pipeline @ 80% winter usage | BJ38: =SC_2015!AD79 -> 4.481657947 | BN38: =COUNTIF($BN$5:$BN$36,"Include") -> 27
BI39: =SC_2015!AE80 -> 0 | BJ39: =SC_2015!AD80 -> 0
BK44: 1 | BL44: =BK44+1 -> 2 | BM44: =BL44+1 -> 3 | BN44: 4 | BO44: 5 | BP44: 6 | BQ44: 7 | BR44: 8 | BS44: 9 | BT44: 10 | BU44: 11 | BV44: 12 | BW44: 13 | BX44: 14 | BY44: 15 | BZ44: 16 | CA44: 17 | CB44: 18 | CC44: 19 | CD44: 20 | CE44: 21 | CF44: 22 | CG44: 23 | CH44: 24 | CI44: 25 | CJ44: 26 | CK44: 27 | CL44: 28 | CM44: 29 | CN44: 30 | CO44: 31 | CP44: 32
BI45: Peak | BJ45: Annual | BK45: =INDEX($BI$5:$BI$36,BK44) -> Res. Gas EE | BL45: =INDEX($BI$5:$BI$36,BL44) -> Appliance Standards | BM45: CI Gas EE | BN45: LI Gas EE | BO45: Res. Electric EE | BP45: CI Electric EE | BQ45: Anaerobic Digestion | BR45: Large CHP | BS45: Landfill Gas | BT45: Converted Hydro | BU45: LI Electric EE | BV45: Small CHP | BW45: Large Wind C4 | BX45: Biomass Power C1 | BY45: Large Wind C5 | BZ45: Biomass Power C2 | CA45: Utility-Scale PV | CB45: Wind (<100 kW) | CC45: Biomass Thermal | CD45: Commercial PV | CE45: Residential PV | CF45: Biomass Power C3 | CG45: Offshore Wind | CH45: Solar Hot Water | CI45: GS Heat Pump | CJ45: Biomass Power C4 | CK45: AS Heat Pump | CL45: Wind (<10 kW) | CM45: 0 | CN45: 0 | CO45: 0 | CP45: 0 | CQ45: =BI38 -> Pipeline @ 80% winter usage
BH46: 0 | BI46: 0 | BJ46: 0 | BK46: 0 | CQ46: =$BJ$38 -> 4.481657947
BI47: 0 | BJ47: 0 | BK47: =BK48 -> -79.65539874 | CQ47: =CQ46 -> 4.481657947
BH48: 1 | BI48: =INDEX($BL$5:$BL$36,MATCH($BH48,$BH$5:$BH$36,0))+BI47 -> 235.9707488 | BJ48: =INDEX($BK$5:$BK$36,MATCH($BH48,$BH$5:$BH$36,0))+BJ47 -> 3.758369261 | BK48: =INDEX($BJ$5:$BJ$36,MATCH(BK$44,$BH$5:$BH$36,0)) -> -79.65539874 | CQ48: =CQ47 -> 4.481657947
BI49: =BI48 -> 235.9707488 | BJ49: =BJ48 -> 3.758369261 | BK49: 0 | BL49: 0 | CQ49: 4.481657947
BI50: =BI48 -> 235.9707488 | BJ50: =BJ48 -> 3.758369261 | BL50: =BL51 -> -49.84912699 | CQ50: 4.481657947
BH51: =BH48+1 -> 2 | BI51: =INDEX($BL$5:$BL$36,MATCH($BH51,$BH$5:$BH$36,0))+BI50 -> 1138.253925 | BJ51: =INDEX($BK$5:$BK$36,MATCH($BH51,$BH$5:$BH$36,0))+BJ50 -> 12.49436926 | BL51: =INDEX($BJ$5:$BJ$36,MATCH(BL$44,$BH$5:$BH$36,0)) -> -49.84912699 | CQ51: 4.481657947
BI52: =BI51 -> 1138.253925 | BJ52: =BJ51 -> 12.49436926 | BL52: 0 | BM52: 0 | CQ52: 4.481657947
BI53: =BI51 -> 1138.253925 | BJ53: =BJ51 -> 12.49436926 | BM53: =BM54 -> -25.00471073 | CQ53: 4.481657947
BH54: =BH51+1 -> 3 | BI54: =INDEX($BL$5:$BL$36,MATCH($BH54,$BH$5:$BH$36,0))+BI53 -> 1397.044966 | BJ54: =INDEX($BK$5:$BK$36,MATCH($BH54,$BH$5:$BH$36,0))+BJ53 -> 16.61620351 | BM54: =INDEX($BJ$5:$BJ$36,MATCH(BM$44,$BH$5:$BH$36,0)) -> -25.00471073 | CQ54: 4.481657947
BI55: =BI54 -> 1397.044966 | BJ55: =BJ54 -> 16.61620351 | BM55: 0 | BN55: 0 | CQ55: 4.481657947
BI56: =BI54 -> 1397.044966 | BJ56: =BJ54 -> 16.61620351 | BN56: =BN57 -> -17.38368655 | CQ56: 4.481657947
BH57: =BH54+1 -> 4 | BI57: =INDEX($BL$5:$BL$36,MATCH($BH57,$BH$5:$BH$36,0))+BI56 -> 1433.714 | BJ57: =INDEX($BK$5:$BK$36,MATCH($BH57,$BH$5:$BH$36,0))+BJ56 -> 17.20024 | BN57: =INDEX($BJ$5:$BJ$36,MATCH(BN$44,$BH$5:$BH$36,0)) -> -17.38368655 | CQ57: 4.481657947
BI58: =BI57 -> 1433.714 | BJ58: =BJ57 -> 17.20024 | BN58: 0 | BO58: 0 | CQ58: 4.481657947
BI59: =BI57 -> 1433.714 | BJ59: =BJ57 -> 17.20024 | BO59: =BO60 -> -16.23905297 | CQ59: 4.481657947
BH60: =BH57+1 -> 5 | BI60: =INDEX($BL$5:$BL$36,MATCH($BH60,$BH$5:$BH$36,0))+BI59 -> 1552.190411 | BJ60: =INDEX($BK$5:$BK$36,MATCH($BH60,$BH$5:$BH$36,0))+BJ59 -> 18.34734042 | BO60: =INDEX($BJ$5:$BJ$36,MATCH(BO$44,$BH$5:$BH$36,0)) -> -16.23905297 | CQ60: 4.481657947
BI61: =BI60 -> 1552.190411 | BJ61: =BJ60 -> 18.34734042 | BO61: 0 | BP61: 0 | CQ61: 4.481657947
BI62: =BI60 -> 1552.190411 | BJ62: =BJ60 -> 18.34734042 | BP62: =BP63 -> -13.6723141 | CQ62: 4.481657947
BH63: =BH60+1 -> 6 | BI63: =INDEX($BL$5:$BL$36,MATCH($BH63,$BH$5:$BH$36,0))+BI62 -> 2024.958136 | BJ63: =INDEX($BK$5:$BK$36,MATCH($BH63,$BH$5:$BH$36,0))+BJ62 -> 22.92472662 | BP63: =INDEX($BJ$5:$BJ$36,MATCH(BP$44,$BH$5:$BH$36,0)) -> -13.6723141 | CQ63: 4.481657947
BI64: =BI63 -> 2024.958136 | BJ64: =BJ63 -> 22.92472662 | BP64: 0 | BQ64: 0 | CQ64: 4.481657947
BI65: =BI63 -> 2024.958136 | BJ65: =BJ63 -> 22.92472662 | BQ65: =BQ66 -> -8.88348707 | CQ65: 4.481657947
BH66: =BH63+1 -> 7 | BI66: =INDEX($BL$5:$BL$36,MATCH($BH66,$BH$5:$BH$36,0))+BI65 -> 2169.358198 | BJ66: =INDEX($BK$5:$BK$36,MATCH($BH66,$BH$5:$BH$36,0))+BJ65 -> 24.24923862 | BQ66: =INDEX($BJ$5:$BJ$36,MATCH(BQ$44,$BH$5:$BH$36,0)) -> -8.88348707 | CQ66: 4.481657947
BI67: =BI66 -> 2169.358198 | BJ67: =BJ66 -> 24.24923862 | BQ67: 0 | BR67: 0 | CQ67: 4.481657947
BI68: =BI66 -> 2169.358198 | BJ68: =BJ66 -> 24.24923862 | BR68: =BR69 -> -8.730515778 | CQ68: 4.481657947
BH69: =BH66+1 -> 8 | BI69: =INDEX($BL$5:$BL$36,MATCH($BH69,$BH$5:$BH$36,0))+BI68 -> 2228.198882 | BJ69: =INDEX($BK$5:$BK$36,MATCH($BH69,$BH$5:$BH$36,0))+BJ68 -> 25.48177062 | BR69: =INDEX($BJ$5:$BJ$36,MATCH(BR$44,$BH$5:$BH$36,0)) -> -8.730515778 | CQ69: 4.481657947
BI70: =BI69 -> 2228.198882 | BJ70: =BJ69 -> 25.48177062 | BR70: 0 | BS70: 0 | CQ70: 4.481657947
BI71: =BI69 -> 2228.198882 | BJ71: =BJ69 -> 25.48177062 | BS71: =BS72 -> -7.981888466 | CQ71: 4.481657947
BH72: =BH69+1 -> 9 | BI72: =INDEX($BL$5:$BL$36,MATCH($BH72,$BH$5:$BH$36,0))+BI71 -> 2372.598943 | BJ72: =INDEX($BK$5:$BK$36,MATCH($BH72,$BH$5:$BH$36,0))+BJ71 -> 26.63677062 | BS72: =INDEX($BJ$5:$BJ$36,MATCH(BS$44,$BH$5:$BH$36,0)) -> -7.981888466 | CQ72: 4.481657947
BI73: =BI72 -> 2372.598943 | BJ73: =BJ72 -> 26.63677062 | BS73: 0 | BT73: 0 | CQ73: 4.481657947
BI74: =BI72 -> 2372.598943 | BJ74: =BJ72 -> 26.63677062 | BT74: =BT75 -> -6.953338985 | CQ74: 4.481657947
BH75: =BH72+1 -> 10 | BI75: =INDEX($BL$5:$BL$36,MATCH($BH75,$BH$5:$BH$36,0))+BI74 -> 2813.01901 | BJ75: =INDEX($BK$5:$BK$36,MATCH($BH75,$BH$5:$BH$36,0))+BJ74 -> 28.34477062 | BT75: =INDEX($BJ$5:$BJ$36,MATCH(BT$44,$BH$5:$BH$36,0)) -> -6.953338985 | CQ75: 4.481657947
BI76: =BI75 -> 2813.01901 | BJ76: =BJ75 -> 28.34477062 | BT76: 0 | BU76: 0 | CQ76: 4.481657947
BI77: =BI75 -> 2813.01901 | BJ77: =BJ75 -> 28.34477062 | BU77: =BU78 -> -4.920715997 | CQ77: 4.481657947
BH78: =BH75+1 -> 11 | BI78: =INDEX($BL$5:$BL$36,MATCH($BH78,$BH$5:$BH$36,0))+BI77 -> 2827.326729 | BJ78: =INDEX($BK$5:$BK$36,MATCH($BH78,$BH$5:$BH$36,0))+BJ77 -> 28.48329879 | BU78: =INDEX($BJ$5:$BJ$36,MATCH(BU$44,$BH$5:$BH$36,0)) -> -4.920715997 | CQ78: 4.481657947
BI79: =BI78 -> 2827.326729 | BJ79: =BJ78 -> 28.48329879 | BU79: 0 | BV79: 0 | CQ79: 4.481657947
BI80: =BI78 -> 2827.326729 | BJ80: =BJ78 -> 28.48329879 | BV80: =BV81 -> -3.268686466 | CQ80: 4.481657947
BH81: =BH78+1 -> 12 | BI81: =INDEX($BL$5:$BL$36,MATCH($BH81,$BH$5:$BH$36,0))+BI80 -> 2962.853789 | BJ81: =INDEX($BK$5:$BK$36,MATCH($BH81,$BH$5:$BH$36,0))+BJ80 -> 29.77101879 | BV81: =INDEX($BJ$5:$BJ$36,MATCH(BV$44,$BH$5:$BH$36,0)) -> -3.268686466 | CQ81: 4.481657947
BI82: =BI81 -> 2962.853789 | BJ82: =BJ81 -> 29.77101879 | BV82: 0 | BW82: 0 | CQ82: 4.481657947
BI83: =BI81 -> 2962.853789 | BJ83: =BJ81 -> 29.77101879 | BW83: =BW84 -> 5.4e-05 | CQ83: 4.481657947
BH84: =BH81+1 -> 13 | BI84: =INDEX($BL$5:$BL$36,MATCH($BH84,$BH$5:$BH$36,0))+BI83 -> 2962.853843 | BJ84: =INDEX($BK$5:$BK$36,MATCH($BH84,$BH$5:$BH$36,0))+BJ83 -> 29.77101879 | BW84: =INDEX($BJ$5:$BJ$36,MATCH(BW$44,$BH$5:$BH$36,0)) -> 5.4e-05 | CQ84: 4.481657947
BI85: =BI84 -> 2962.853843 | BJ85: =BJ84 -> 29.77101879 | BW85: 0 | BX85: 0 | CQ85: 4.481657947
BI86: =BI84 -> 2962.853843 | BJ86: =BJ84 -> 29.77101879 | BX86: =BX87 -> 0.6917011902 | CQ86: 4.481657947
BH87: =BH84+1 -> 14 | BI87: =INDEX($BL$5:$BL$36,MATCH($BH87,$BH$5:$BH$36,0))+BI86 -> 3107.253906 | BJ87: =INDEX($BK$5:$BK$36,MATCH($BH87,$BH$5:$BH$36,0))+BJ86 -> 30.94836279 | BX87: =INDEX($BJ$5:$BJ$36,MATCH(BX$44,$BH$5:$BH$36,0)) -> 0.6917011902 | CQ87: 4.481657947
BI88: =BI87 -> 3107.253906 | BJ88: =BJ87 -> 30.94836279 | BX88: 0 | BY88: 0 | CQ88: 4.481657947
BI89: =BI87 -> 3107.253906 | BJ89: =BJ87 -> 30.94836279 | BY89: =BY90 -> 2.009712328 | CQ89: 4.481657947
BH90: =BH87+1 -> 15 | BI90: =INDEX($BL$5:$BL$36,MATCH($BH90,$BH$5:$BH$36,0))+BI89 -> 3639.253959 | BJ90: =INDEX($BK$5:$BK$36,MATCH($BH90,$BH$5:$BH$36,0))+BJ89 -> 36.98225079 | BY90: =INDEX($BJ$5:$BJ$36,MATCH(BY$44,$BH$5:$BH$36,0)) -> 2.009712328 | CQ90: 4.481657947
BI91: =BI90 -> 3639.253959 | BJ91: =BJ90 -> 36.98225079 | BY91: 0 | BZ91: 0 | CQ91: 4.481657947
BI92: =BI90 -> 3639.253959 | BJ92: =BJ90 -> 36.98225079 | BZ92: =BZ93 -> 2.75420219 | CQ92: 4.481657947
BH93: =BH90+1 -> 16 | BI93: =INDEX($BL$5:$BL$36,MATCH($BH93,$BH$5:$BH$36,0))+BI92 -> 3928.054023 | BJ93: =INDEX($BK$5:$BK$36,MATCH($BH93,$BH$5:$BH$36,0))+BJ92 -> 39.33693879 | BZ93: =INDEX($BJ$5:$BJ$36,MATCH(BZ$44,$BH$5:$BH$36,0)) -> 2.75420219 | CQ93: 4.481657947
BI94: =BI93 -> 3928.054023 | BJ94: =BJ93 -> 39.33693879 | BZ94: 0 | CA94: 0 | CQ94: 4.481657947
BI95: =BI93 -> 3928.054023 | BJ95: =BJ93 -> 39.33693879 | CA95: =CA96 -> 6.54002348 | CQ95: 4.481657947
BH96: =BH93+1 -> 17 | BI96: =INDEX($BL$5:$BL$36,MATCH($BH96,$BH$5:$BH$36,0))+BI95 -> 3928.054079 | BJ96: =INDEX($BK$5:$BK$36,MATCH($BH96,$BH$5:$BH$36,0))+BJ95 -> 39.55327575 | CA96: =INDEX($BJ$5:$BJ$36,MATCH(CA$44,$BH$5:$BH$36,0)) -> 6.54002348 | CQ96: 4.481657947
BI97: =BI96 -> 3928.054079 | BJ97: =BJ96 -> 39.55327575 | CA97: 0 | CB97: 0 | CQ97: 4.481657947
BI98: =BI96 -> 3928.054079 | BJ98: =BJ96 -> 39.55327575 | CB98: =CB99 -> 7.250835505 | CQ98: 4.481657947
BH99: =BH96+1 -> 18 | BI99: =INDEX($BL$5:$BL$36,MATCH($BH99,$BH$5:$BH$36,0))+BI98 -> 4194.054131 | BJ99: =INDEX($BK$5:$BK$36,MATCH($BH99,$BH$5:$BH$36,0))+BJ98 -> 41.39287575 | CB99: =INDEX($BJ$5:$BJ$36,MATCH(CB$44,$BH$5:$BH$36,0)) -> 7.250835505 | CQ99: 4.481657947
BI100: =BI99 -> 4194.054131 | BJ100: =BJ99 -> 41.39287575 | CB100: 0 | CC100: 0 | CQ100: 4.481657947
BI101: =BI99 -> 4194.054131 | BJ101: =BJ99 -> 41.39287575 | CC101: =CC102 -> 7.482061287 | CQ101: 4.481657947
BH102: =BH99+1 -> 19 | BI102: =INDEX($BL$5:$BL$36,MATCH($BH102,$BH$5:$BH$36,0))+BI101 -> 4319.459885 | BJ102: =INDEX($BK$5:$BK$36,MATCH($BH102,$BH$5:$BH$36,0))+BJ101 -> 41.46846175 | CC102: =INDEX($BJ$5:$BJ$36,MATCH(CC$44,$BH$5:$BH$36,0)) -> 7.482061287 | CQ102: 4.481657947
BI103: =BI102 -> 4319.459885 | BJ103: =BJ102 -> 41.46846175 | CC103: 0 | CD103: 0 | CQ103: 4.481657947
BI104: =BI102 -> 4319.459885 | BJ104: =BJ102 -> 41.46846175 | CD104: =CD105 -> 8.09600407 | CQ104: 4.481657947
BH105: =BH102+1 -> 20 | BI105: =INDEX($BL$5:$BL$36,MATCH($BH105,$BH$5:$BH$36,0))+BI104 -> 4319.459942 | BJ105: =INDEX($BK$5:$BK$36,MATCH($BH105,$BH$5:$BH$36,0))+BJ104 -> 42.13071775 | CD105: =INDEX($BJ$5:$BJ$36,MATCH(CD$44,$BH$5:$BH$36,0)) -> 8.09600407 | CQ105: 4.481657947
BI106: =BI105 -> 4319.459942 | BJ106: =BJ105 -> 42.13071775 | CD106: 0 | CE106: 0 | CQ106: 4.481657947
BI107: =BI105 -> 4319.459942 | BJ107: =BJ105 -> 42.13071775 | CE107: =CE108 -> 9.869583675 | CQ107: 4.481657947
BH108: =BH105+1 -> 21 | BI108: =INDEX($BL$5:$BL$36,MATCH($BH108,$BH$5:$BH$36,0))+BI107 -> 4319.46 | BJ108: =INDEX($BK$5:$BK$36,MATCH($BH108,$BH$5:$BH$36,0))+BJ107 -> 42.17854735 | CE108: =INDEX($BJ$5:$BJ$36,MATCH(CE$44,$BH$5:$BH$36,0)) -> 9.869583675 | CQ108: 4.481657947
BI109: =BI108 -> 4319.46 | BJ109: =BJ108 -> 42.17854735 | CE109: 0 | CF109: 0 | CQ109: 4.481657947
BI110: =BI108 -> 4319.46 | BJ110: =BJ108 -> 42.17854735 | CF110: =CF111 -> 13.03396509 | CQ110: 4.481657947
BH111: =BH108+1 -> 22 | BI111: =INDEX($BL$5:$BL$36,MATCH($BH111,$BH$5:$BH$36,0))+BI110 -> 4608.260065 | BJ111: =INDEX($BK$5:$BK$36,MATCH($BH111,$BH$5:$BH$36,0))+BJ110 -> 44.53323535 | CF111: =INDEX($BJ$5:$BJ$36,MATCH(CF$44,$BH$5:$BH$36,0)) -> 13.03396509 | CQ111: 4.481657947
BI112: =BI111 -> 4608.260065 | BJ112: =BJ111 -> 44.53323535 | CF112: 0 | CG112: 0 | CQ112: =CQ111 -> 4.481657947
BI113: =BI111 -> 4608.260065 | BJ113: =BJ111 -> 44.53323535 | CG113: =CG114 -> 13.27658904 | CQ113: 4.481657947
BH114: =BH111+1 -> 23 | BI114: =INDEX($BL$5:$BL$36,MATCH($BH114,$BH$5:$BH$36,0))+BI113 -> 6736.26012 | BJ114: =INDEX($BK$5:$BK$36,MATCH($BH114,$BH$5:$BH$36,0))+BJ113 -> 70.43480335 | CG114: =INDEX($BJ$5:$BJ$36,MATCH(CG$44,$BH$5:$BH$36,0)) -> 13.27658904 | CQ114: 4.481657947
BI115: =BI114 -> 6736.26012 | BJ115: =BJ114 -> 70.43480335 | CG115: 0 | CH115: 0 | CQ115: 4.481657947
BI116: =BI114 -> 6736.26012 | BJ116: =BJ114 -> 70.43480335 | CH116: =CH117 -> 13.44692464 | CQ116: 4.481657947
BH117: =BH114+1 -> 24 | BI117: =INDEX($BL$5:$BL$36,MATCH($BH117,$BH$5:$BH$36,0))+BI116 -> 6736.511456 | BJ117: =INDEX($BK$5:$BK$36,MATCH($BH117,$BH$5:$BH$36,0))+BJ116 -> 70.45369975 | CH117: =INDEX($BJ$5:$BJ$36,MATCH(CH$44,$BH$5:$BH$36,0)) -> 13.44692464 | CQ117: 4.481657947
BI118: =BI117 -> 6736.511456 | BJ118: =BJ117 -> 70.45369975 | CH118: 0 | CI118: 0 | CQ118: 4.481657947
BI119: =BI117 -> 6736.511456 | BJ119: =BJ117 -> 70.45369975 | CI119: =CI120 -> 16.20215921 | CQ119: 4.481657947
BH120: =BH117+1 -> 25 | BI120: =INDEX($BL$5:$BL$36,MATCH($BH120,$BH$5:$BH$36,0))+BI119 -> 6762.503529 | BJ120: =INDEX($BK$5:$BK$36,MATCH($BH120,$BH$5:$BH$36,0))+BJ119 -> 70.47262135 | CI120: =INDEX($BJ$5:$BJ$36,MATCH(CI$44,$BH$5:$BH$36,0)) -> 16.20215921 | CQ120: 4.481657947
BI121: =BI120 -> 6762.503529 | BJ121: =BJ120 -> 70.47262135 | CI121: 0 | CJ121: 0 | CQ121: 4.481657947
BI122: =BI120 -> 6762.503529 | BJ122: =BJ120 -> 70.47262135 | CJ122: =CJ123 -> 18.35390657 | CQ122: 4.481657947
BH123: =BH120+1 -> 26 | BI123: =INDEX($BL$5:$BL$36,MATCH($BH123,$BH$5:$BH$36,0))+BI122 -> 7123.503595 | BJ123: =INDEX($BK$5:$BK$36,MATCH($BH123,$BH$5:$BH$36,0))+BJ122 -> 73.41598135 | CJ123: =INDEX($BJ$5:$BJ$36,MATCH(CJ$44,$BH$5:$BH$36,0)) -> 18.35390657 | CQ123: 4.481657947
BI124: =BI123 -> 7123.503595 | BJ124: =BJ123 -> 73.41598135 | CJ124: 0 | CK124: 0 | CQ124: 4.481657947
BI125: =BI123 -> 7123.503595 | BJ125: =BJ123 -> 73.41598135 | CK125: =CK126 -> 19.64766502 | CQ125: 4.481657947
BH126: =BH123+1 -> 27 | BI126: =INDEX($BL$5:$BL$36,MATCH($BH126,$BH$5:$BH$36,0))+BI125 -> 7227.471667 | BJ126: =INDEX($BK$5:$BK$36,MATCH($BH126,$BH$5:$BH$36,0))+BJ125 -> 73.49166775 | CK126: =INDEX($BJ$5:$BJ$36,MATCH(CK$44,$BH$5:$BH$36,0)) -> 19.64766502 | CQ126: 4.481657947
BI127: =BI126 -> 7227.471667 | BJ127: =BJ126 -> 73.49166775 | CK127: 0 | CL127: 0 | CQ127: 4.481657947
BI128: =BI126 -> 7227.471667 | BJ128: =BJ126 -> 73.49166775 | CL128: =CL129 -> 65.41807244 | CQ128: 4.481657947
BH129: =BH126+1 -> 28 | BI129: =INDEX($BL$5:$BL$36,MATCH($BH129,$BH$5:$BH$36,0))+BI128 -> 7493.471718 | BJ129: =INDEX($BK$5:$BK$36,MATCH($BH129,$BH$5:$BH$36,0))+BJ128 -> 74.66901175 | CL129: =INDEX($BJ$5:$BJ$36,MATCH(CL$44,$BH$5:$BH$36,0)) -> 65.41807244 | CQ129: 4.481657947
BI130: =BI129 -> 7493.471718 | BJ130: =BJ129 -> 74.66901175 | CL130: 0 | CM130: 0 | CQ130: 4.481657947
BI131: =BI129 -> 7493.471718 | BJ131: =BJ129 -> 74.66901175 | CM131: =CM132 ->  | CQ131: 4.481657947
BH132: =BH129+1 -> 29 | BI132: =INDEX($BL$5:$BL$36,MATCH($BH132,$BH$5:$BH$36,0))+BI131 ->  | BJ132: =INDEX($BK$5:$BK$36,MATCH($BH132,$BH$5:$BH$36,0))+BJ131 ->  | CM132: =INDEX($BJ$5:$BJ$36,MATCH(CM$44,$BH$5:$BH$36,0)) ->  | CQ132: 4.481657947
BI133: =BI132 ->  | BJ133: =BJ132 ->  | CM133: 0 | CN133: 0 | CQ133: 4.481657947
BI134: =BI132 ->  | BJ134: =BJ132 ->  | CN134: =CN135 ->  | CQ134: 4.481657947
BH135: =BH132+1 -> 30 | BI135: =INDEX($BL$5:$BL$36,MATCH($BH135,$BH$5:$BH$36,0))+BI134 ->  | BJ135: =INDEX($BK$5:$BK$36,MATCH($BH135,$BH$5:$BH$36,0))+BJ134 ->  | CN135: =INDEX($BJ$5:$BJ$36,MATCH(CN$44,$BH$5:$BH$36,0)) ->  | CQ135: 4.481657947
BI136: =BI135 ->  | BJ136: =BJ135 ->  | CN136: 0 | CO136: 0 | CQ136: 4.481657947
BI137: =BI135 ->  | BJ137: =BJ135 ->  | CO137: =CO138 ->  | CQ137: 4.481657947
BH138: =BH135+1 -> 31 | BI138: =INDEX($BL$5:$BL$36,MATCH($BH138,$BH$5:$BH$36,0))+BI137 ->  | BJ138: =INDEX($BK$5:$BK$36,MATCH($BH138,$BH$5:$BH$36,0))+BJ137 ->  | CO138: =INDEX($BJ$5:$BJ$36,MATCH(CO$44,$BH$5:$BH$36,0)) ->  | CQ138: 4.481657947
BI139: =BI138 ->  | BJ139: =BJ138 ->  | CO139: 0 | CP139: 0 | CQ139: 4.481657947
BI140: =BI138 ->  | BJ140: =BJ138 ->  | CP140: =CP141 ->  | CQ140: 4.481657947
BH141: =BH138+1 -> 32 | BI141: =INDEX($BL$5:$BL$36,MATCH($BH141,$BH$5:$BH$36,0))+BI140 ->  | BJ141: =INDEX($BK$5:$BK$36,MATCH($BH141,$BH$5:$BH$36,0))+BJ140 ->  | CP141: =INDEX($BJ$5:$BJ$36,MATCH(CP$44,$BH$5:$BH$36,0)) ->  | CQ141: =CQ140 -> 4.481657947
BI142: =BI141 ->  | BJ142: =BJ141 ->  | CP142: 0 | CQ142: =CQ141 -> 4.481657947
BI143: =BI141 ->  | BJ143: =BJ141 ->  | CQ143: =CQ142 -> 4.481657947
BJ144: 1500 | CQ144: =CQ143 -> 4.481657947

Sheet Outputs_2030
B2: 2030 Supply Curve | P2: (Trillion Btu Natural Gas Savings Potential per Year versus Annual Net Levelized Cost)
BH3: Rank by Cost | BI3: Policy | BJ3: Annual Net Levelized Cost | BK3: Annual Energy Production | BL3: Peak Hour Gas Savings | BP3: For Axes
BE4: Annual Net Levelized Cost | BF4: Annual Savings Potential | BJ4: $/MMBtu NG | BK4: Trillion Btu NG | BL4: MMBtu NG | BN4: For display | BR4: Total Annual Savings | BT4: Max Cost | BU4: Min Cost
BH5: 1 | BI5: =INDEX(SC_2030!$AE$51:$AE$78,MATCH(BJ5,SC_2030!$AD$51:$AD$78,0)) -> Res. Gas EE | BJ5: =SMALL(SC_2030!$AD$51:$AD$78,BH5) -> -79.41212353 | BK5: =INDEX(SC_2030!$AF$51:$AF$78,MATCH($BJ5,SC_2030!$AD$51:$AD$78,0))*10^-6 -> 5.290472554 | BL5: =INDEX(SC_2030!$AG$51:$AG$78,MATCH($BJ5,SC_2030!$AD$51:$AD$78,0)) -> 332.1644487 | BN5: =IF(ROUND(BK5,3)=0,"","Include") -> Include | BP5: billion | BQ5: 2015 | BR5: =SUM(SC_2015!$AF$51:$AF$78)*10^-3 -> 304.6535938 | BT5: =MAX(SC_2015!$AD$51:$AD$80) -> 76.60843599 | BU5: =MIN(SC_2015!$AD$51:$AD$80) -> -79.65539874
BE6: ($/MMBtu) | BF6: (trillion Btu) | BH6: =BH5+1 -> 2 | BI6: =INDEX(SC_2030!$AE$51:$AE$78,MATCH(BJ6,SC_2030!$AD$51:$AD$78,0)) -> Appliance Standards | BJ6: =SMALL(SC_2030!$AD$51:$AD$78,BH6) -> -49.46958805 | BK6: =INDEX(SC_2030!$AF$51:$AF$78,MATCH($BJ6,SC_2030!$AD$51:$AD$78,0))*10^-6 -> 25.0488 | BL6: =INDEX(SC_2030!$AG$51:$AG$78,MATCH($BJ6,SC_2030!$AD$51:$AD$78,0)) -> 2587.123359 | BN6: =IF(ROUND(BK6,3)=0,"","Include") -> Include | BP6: trillion | BQ6: 2020 | BR6: =SUM(SC_2020!$AF$51:$AF$78)*10^-6 -> 74.66901175 | BT6: =MAX(SC_2020!$AD$51:$AD$79) -> 65.41807244 | BU6: =MIN(SC_2020!$AD$51:$AD$79) -> -79.65539874
BC7: =BH5 -> 1 | BD7: =BI5 -> Res. Gas EE | BE7: =BJ5 -> -79.41212353 | BF7: =BK5 -> 5.290472554 | BH7: 3 | BI7: =INDEX(SC_2030!$AE$51:$AE$78,MATCH(BJ7,SC_2030!$AD$51:$AD$78,0)) -> CI Gas EE | BJ7: =SMALL(SC_2030!$AD$51:$AD$78,BH7) -> -27.8051801 | BK7: =INDEX(SC_2030!$AF$51:$AF$78,MATCH($BJ7,SC_2030!$AD$51:$AD$78,0))*10^-6 -> 9.748497558 | BL7: =INDEX(SC_2030!$AG$51:$AG$78,MATCH($BJ7,SC_2030!$AD$51:$AD$78,0)) -> 612.0632808 | BN7: Include | BP7: trillion | BQ7: 2030 | BR7: =SUM(SC_2030!$AF$51:$AF$79)*10^-6 -> 275.2230416 | BT7: =MAX(SC_2030!$AD$51:$AD$79) -> 47.22603935 | BU7: =MIN(SC_2030!$AD$51:$AD$79) -> -79.41212353
BC8: =BC7+1 -> 2 | BD8: =BI6 -> Appliance Standards | BE8: -49.46958805 | BF8: 25.0488 | BH8: 4 | BI8: =INDEX(SC_2030!$AE$51:$AE$78,MATCH(BJ8,SC_2030!$AD$51:$AD$78,0)) -> Res. Electric EE | BJ8: =SMALL(SC_2030!$AD$51:$AD$78,BH8) -> -23.92431294 | BK8: =INDEX(SC_2030!$AF$51:$AF$78,MATCH($BJ8,SC_2030!$AD$51:$AD$78,0))*10^-6 -> 2.604729262 | BL8: =INDEX(SC_2030!$AG$51:$AG$78,MATCH($BJ8,SC_2030!$AD$51:$AD$78,0)) -> 269.0251603 | BN8: Include
BC9: =BC8+1 -> 3 | BD9: =BI7 -> CI Gas EE | BE9: =BJ7 -> -27.8051801 | BF9: =BK7 -> 9.748497558 | BH9: 5 | BI9: =INDEX(SC_2030!$AE$51:$AE$78,MATCH(BJ9,SC_2030!$AD$51:$AD$78,0)) -> CI Electric EE | BJ9: =SMALL(SC_2030!$AD$51:$AD$78,BH9) -> -21.35757408 | BK9: =INDEX(SC_2030!$AF$51:$AF$78,MATCH($BJ9,SC_2030!$AD$51:$AD$78,0))*10^-6 -> 15.38210555 | BL9: =INDEX(SC_2030!$AG$51:$AG$78,MATCH($BJ9,SC_2030!$AD$51:$AD$78,0)) -> 1588.715038 | BN9: Include | BS9: global | BT9: =MAX(BT5:BT7) -> 76.60843599 | BU9: =MIN(BU5:BU7) -> -79.65539874
BC10: 4 | BD10: Res. Electric EE | BE10: -23.92431294 | BF10: 2.604729262 | BH10: 6 | BI10: =INDEX(SC_2030!$AE$51:$AE$78,MATCH(BJ10,SC_2030!$AD$51:$AD$78,0)) -> LI Gas EE | BJ10: =SMALL(SC_2030!$AD$51:$AD$78,BH10) -> -20.18415592 | BK10: =INDEX(SC_2030!$AF$51:$AF$78,MATCH($BJ10,SC_2030!$AD$51:$AD$78,0))*10^-6 -> 1.818670615 | BL10: =INDEX(SC_2030!$AG$51:$AG$78,MATCH($BJ10,SC_2030!$AD$51:$AD$78,0)) -> 114.1860174 | BN10: Include
BC11: 5 | BD11: CI Electric EE | BE11: -21.35757408 | BF11: 15.38210555 | BH11: 7 | BI11: =INDEX(SC_2030!$AE$51:$AE$78,MATCH(BJ11,SC_2030!$AD$51:$AD$78,0)) -> Large CHP | BJ11: =SMALL(SC_2030!$AD$51:$AD$78,BH11) -> -17.54735387 | BK11: =INDEX(SC_2030!$AF$51:$AF$78,MATCH($BJ11,SC_2030!$AD$51:$AD$78,0))*10^-6 -> 2.465064 | BL11: =INDEX(SC_2030!$AG$51:$AG$78,MATCH($BJ11,SC_2030!$AD$51:$AD$78,0)) -> 117.681309 | BN11: Include | BP11: 275 | BR11: =BP11 -> 1900-10-01
BC12: 6 | BD12: LI Gas EE | BE12: -20.18415592 | BF12: 1.818670615 | BH12: 8 | BI12: =INDEX(SC_2030!$AE$51:$AE$78,MATCH(BJ12,SC_2030!$AD$51:$AD$78,0)) -> Anaerobic Digestion | BJ12: =SMALL(SC_2030!$AD$51:$AD$78,BH12) -> -17.11771021 | BK12: =INDEX(SC_2030!$AF$51:$AF$78,MATCH($BJ12,SC_2030!$AD$51:$AD$78,0))*10^-6 -> 0.3973536001 | BL12: =INDEX(SC_2030!$AG$51:$AG$78,MATCH($BJ12,SC_2030!$AD$51:$AD$78,0)) -> 43.320062 | BN12: Include
BC13: 7 | BD13: Large CHP | BE13: -17.54735387 | BF13: 2.465064 | BH13: 9 | BI13: =INDEX(SC_2030!$AE$51:$AE$78,MATCH(BJ13,SC_2030!$AD$51:$AD$78,0)) -> Landfill Gas | BJ13: =SMALL(SC_2030!$AD$51:$AD$78,BH13) -> -15.58620891 | BK13: =INDEX(SC_2030!$AF$51:$AF$78,MATCH($BJ13,SC_2030!$AD$51:$AD$78,0))*10^-6 -> 0.3465000001 | BL13: =INDEX(SC_2030!$AG$51:$AG$78,MATCH($BJ13,SC_2030!$AD$51:$AD$78,0)) -> 43.320061 | BN13: Include
BC14: 8 | BD14: Anaerobic Digestion | BE14: -17.11771021 | BF14: 0.3973536001 | BH14: 10 | BI14: =INDEX(SC_2030!$AE$51:$AE$78,MATCH(BJ14,SC_2030!$AD$51:$AD$78,0)) -> Converted Hydro | BJ14: =SMALL(SC_2030!$AD$51:$AD$78,BH14) -> -14.63783193 | BK14: =INDEX(SC_2030!$AF$51:$AF$78,MATCH($BJ14,SC_2030!$AD$51:$AD$78,0))*10^-6 -> 1.568 | BL14: =INDEX(SC_2030!$AG$51:$AG$78,MATCH($BJ14,SC_2030!$AD$51:$AD$78,0)) -> 404.320067 | BN14: Include
BC15: 9 | BD15: Landfill Gas | BE15: -15.58620891 | BF15: 0.3465000001 | BH15: 11 | BI15: =INDEX(SC_2030!$AE$51:$AE$78,MATCH(BJ15,SC_2030!$AD$51:$AD$78,0)) -> Small CHP | BJ15: =SMALL(SC_2030!$AD$51:$AD$78,BH15) -> -13.04197539 | BK15: =INDEX(SC_2030!$AF$51:$AF$78,MATCH($BJ15,SC_2030!$AD$51:$AD$78,0))*10^-6 -> 2.39148 | BL15: =INDEX(SC_2030!$AG$51:$AG$78,MATCH($BJ15,SC_2030!$AD$51:$AD$78,0)) -> 251.69306 | BN15: Include
BC16: 10 | BD16: Converted Hydro | BE16: -14.63783193 | BF16: 1.568 | BH16: 12 | BI16: =INDEX(SC_2030!$AE$51:$AE$78,MATCH(BJ16,SC_2030!$AD$51:$AD$78,0)) -> LI Electric EE | BJ16: =SMALL(SC_2030!$AD$51:$AD$78,BH16) -> -12.60597597 | BK16: =INDEX(SC_2030!$AF$51:$AF$78,MATCH($BJ16,SC_2030!$AD$51:$AD$78,0))*10^-6 -> 0.3018582462 | BL16: =INDEX(SC_2030!$AG$51:$AG$78,MATCH($BJ16,SC_2030!$AD$51:$AD$78,0)) -> 31.17699157 | BN16: Include
BC17: =BC16+1 -> 11 | BD17: =BI15 -> Small CHP | BE17: =BJ15 -> -13.04197539 | BF17: =BK15 -> 2.39148 | BH17: 13 | BI17: =INDEX(SC_2030!$AE$51:$AE$78,MATCH(BJ17,SC_2030!$AD$51:$AD$78,0)) -> Biomass Power C1 | BJ17: =SMALL(SC_2030!$AD$51:$AD$78,BH17) -> -6.911187218 | BK17: =INDEX(SC_2030!$AF$51:$AF$78,MATCH($BJ17,SC_2030!$AD$51:$AD$78,0))*10^-6 -> 1.177344 | BL17: =INDEX(SC_2030!$AG$51:$AG$78,MATCH($BJ17,SC_2030!$AD$51:$AD$78,0)) -> 144.400063 | BN17: Include
BC18: =BC17+1 -> 12 | BD18: =BI16 -> LI Electric EE | BE18: -12.60597597 | BF18: 0.3018582462 | BH18: 14 | BI18: =INDEX(SC_2030!$AE$51:$AE$78,MATCH(BJ18,SC_2030!$AD$51:$AD$78,0)) -> Utility-Scale PV | BJ18: =SMALL(SC_2030!$AD$51:$AD$78,BH18) -> -6.305589935 | BK18: =INDEX(SC_2030!$AF$51:$AF$78,MATCH($BJ18,SC_2030!$AD$51:$AD$78,0))*10^-6 -> 2.1633696 | BL18: =INDEX(SC_2030!$AG$51:$AG$78,MATCH($BJ18,SC_2030!$AD$51:$AD$78,0)) -> 5.6e-05 | BN18: Include
BC19: =BC18+1 -> 13 | BD19: =BI17 -> Biomass Power C1 | BE19: -6.911187218 | BF19: 1.177344 | BH19: 15 | BI19: =INDEX(SC_2030!$AE$51:$AE$78,MATCH(BJ19,SC_2030!$AD$51:$AD$78,0)) -> Commercial PV | BJ19: =SMALL(SC_2030!$AD$51:$AD$78,BH19) -> -6.138217785 | BK19: =INDEX(SC_2030!$AF$51:$AF$78,MATCH($BJ19,SC_2030!$AD$51:$AD$78,0))*10^-6 -> 10.596096 | BL19: =INDEX(SC_2030!$AG$51:$AG$78,MATCH($BJ19,SC_2030!$AD$51:$AD$78,0)) -> 5.7e-05 | BN19: Include
BC20: 14 | BD20: =BI18 -> Utility-Scale PV | BE20: -6.305589935 | BF20: 2.1633696 | BH20: 16 | BI20: =INDEX(SC_2030!$AE$51:$AE$78,MATCH(BJ20,SC_2030!$AD$51:$AD$78,0)) -> Large Wind C5 | BJ20: =SMALL(SC_2030!$AD$51:$AD$78,BH20) -> -5.75208851 | BK20: =INDEX(SC_2030!$AF$51:$AF$78,MATCH($BJ20,SC_2030!$AD$51:$AD$78,0))*10^-6 -> 14.8345344 | BL20: =INDEX(SC_2030!$AG$51:$AG$78,MATCH($BJ20,SC_2030!$AD$51:$AD$78,0)) -> 1276.800053 | BN20: Include
BC21: =BC20+1 -> 15 | BD21: =BI19 -> Commercial PV | BE21: -6.138217785 | BF21: 10.596096 | BH21: 17 | BI21: =INDEX(SC_2030!$AE$51:$AE$78,MATCH(BJ21,SC_2030!$AD$51:$AD$78,0)) -> Large Wind C4 | BJ21: =SMALL(SC_2030!$AD$51:$AD$78,BH21) -> -5.004842948 | BK21: =INDEX(SC_2030!$AF$51:$AF$78,MATCH($BJ21,SC_2030!$AD$51:$AD$78,0))*10^-6 -> 23.54688 | BL21: =INDEX(SC_2030!$AG$51:$AG$78,MATCH($BJ21,SC_2030!$AD$51:$AD$78,0)) -> 2128.000054 | BN21: Include
B22: This chart zooms in to the marginal resources. The y-axis is truncated, but the x-axis is unchanged. | BC22: =BC21+1 -> 16 | BD22: =BI20 -> Large Wind C5 | BE22: -5.75208851 | BF22: 14.8345344 | BH22: 18 | BI22: =INDEX(SC_2030!$AE$51:$AE$78,MATCH(BJ22,SC_2030!$AD$51:$AD$78,0)) -> Residential PV | BJ22: =SMALL(SC_2030!$AD$51:$AD$78,BH22) -> -4.922521104 | BK22: =INDEX(SC_2030!$AF$51:$AF$78,MATCH($BJ22,SC_2030!$AD$51:$AD$78,0))*10^-6 -> 2.39148 | BL22: =INDEX(SC_2030!$AG$51:$AG$78,MATCH($BJ22,SC_2030!$AD$51:$AD$78,0)) -> 5.8e-05 | BN22: Include
BC23: =BC22+1 -> 17 | BD23: =BI21 -> Large Wind C4 | BE23: -5.004842948 | BF23: 23.54688 | BH23: 19 | BI23: =INDEX(SC_2030!$AE$51:$AE$78,MATCH(BJ23,SC_2030!$AD$51:$AD$78,0)) -> Biomass Power C2 | BJ23: =SMALL(SC_2030!$AD$51:$AD$78,BH23) -> -4.848686218 | BK23: =INDEX(SC_2030!$AF$51:$AF$78,MATCH($BJ23,SC_2030!$AD$51:$AD$78,0))*10^-6 -> 2.354688 | BL23: =INDEX(SC_2030!$AG$51:$AG$78,MATCH($BJ23,SC_2030!$AD$51:$AD$78,0)) -> 288.800064 | BN23: Include
BC24: 18 | BD24: =BI22 -> Residential PV | BE24: -4.922521104 | BF24: 2.39148 | BH24: 20 | BI24: =INDEX(SC_2030!$AE$51:$AE$78,MATCH(BJ24,SC_2030!$AD$51:$AD$78,0)) -> Wind (<100 kW) | BJ24: =SMALL(SC_2030!$AD$51:$AD$78,BH24) -> -3.416775173 | BK24: =INDEX(SC_2030!$AF$51:$AF$78,MATCH($BJ24,SC_2030!$AD$51:$AD$78,0))*10^-6 -> 5.5188 | BL24: =INDEX(SC_2030!$AG$51:$AG$78,MATCH($BJ24,SC_2030!$AD$51:$AD$78,0)) -> 798.000052 | BN24: Include
BC25: =BC24+1 -> 19 | BD25: =BI23 -> Biomass Power C2 | BE25: =BJ23 -> -4.848686218 | BF25: =BK23 -> 2.354688 | BH25: 21 | BI25: =INDEX(SC_2030!$AE$51:$AE$78,MATCH(BJ25,SC_2030!$AD$51:$AD$78,0)) -> Offshore Wind | BJ25: =SMALL(SC_2030!$AD$51:$AD$78,BH25) -> 0.3666127049 | BK25: =INDEX(SC_2030!$AF$51:$AF$78,MATCH($BJ25,SC_2030!$AD$51:$AD$78,0))*10^-6 -> 132.4512 | BL25: =INDEX(SC_2030!$AG$51:$AG$78,MATCH($BJ25,SC_2030!$AD$51:$AD$78,0)) -> 10640.00006 | BN25: Include
BC26: =BC25+1 -> 20 | BD26: =BI24 -> Wind (<100 kW) | BE26: =BJ24 -> -3.416775173 | BF26: =BK24 -> 5.5188 | BH26: 22 | BI26: =INDEX(SC_2030!$AE$51:$AE$78,MATCH(BJ26,SC_2030!$AD$51:$AD$78,0)) -> Biomass Thermal | BJ26: =SMALL(SC_2030!$AD$51:$AD$78,BH26) -> 3.581701975 | BK26: =INDEX(SC_2030!$AF$51:$AF$78,MATCH($BJ26,SC_2030!$AD$51:$AD$78,0))*10^-6 -> 1.126428 | BL26: =INDEX(SC_2030!$AG$51:$AG$78,MATCH($BJ26,SC_2030!$AD$51:$AD$78,0)) -> 1868.870872 | BN26: Include
BC27: =BC26+1 -> 21 | BD27: =BI25 -> Offshore Wind | BE27: =BJ25 -> 0.3666127049 | BF27: =BK25 -> 132.4512 | BH27: 23 | BI27: =INDEX(SC_2030!$AE$51:$AE$78,MATCH(BJ27,SC_2030!$AD$51:$AD$78,0)) -> Biomass Power C3 | BJ27: =SMALL(SC_2030!$AD$51:$AD$78,BH27) -> 5.431076687 | BK27: =INDEX(SC_2030!$AF$51:$AF$78,MATCH($BJ27,SC_2030!$AD$51:$AD$78,0))*10^-6 -> 3.532032 | BL27: =INDEX(SC_2030!$AG$51:$AG$78,MATCH($BJ27,SC_2030!$AD$51:$AD$78,0)) -> 433.200065 | BN27: Include
BC28: =BC27+1 -> 22 | BD28: =BI26 -> Biomass Thermal | BE28: =BJ26 -> 3.581701975 | BF28: 1.126428 | BH28: 24 | BI28: =INDEX(SC_2030!$AE$51:$AE$78,MATCH(BJ28,SC_2030!$AD$51:$AD$78,0)) -> Biomass Power C4 | BJ28: =SMALL(SC_2030!$AD$51:$AD$78,BH28) -> 10.75101816 | BK28: =INDEX(SC_2030!$AF$51:$AF$78,MATCH($BJ28,SC_2030!$AD$51:$AD$78,0))*10^-6 -> 4.120704 | BL28: =INDEX(SC_2030!$AG$51:$AG$78,MATCH($BJ28,SC_2030!$AD$51:$AD$78,0)) -> 505.400066 | BN28: Include
BC29: =BI38 -> Pipeline @ 80% winter usage | BE29: =BJ38 -> 4.481657947 | BF29: - | BH29: 25 | BI29: =INDEX(SC_2030!$AE$51:$AE$78,MATCH(BJ29,SC_2030!$AD$51:$AD$78,0)) -> GS Heat Pump | BJ29: =SMALL(SC_2030!$AD$51:$AD$78,BH29) -> 20.35545878 | BK29: =INDEX(SC_2030!$AF$51:$AF$78,MATCH($BJ29,SC_2030!$AD$51:$AD$78,0))*10^-6 -> 0.2819318401 | BL29: =INDEX(SC_2030!$AG$51:$AG$78,MATCH($BJ29,SC_2030!$AD$51:$AD$78,0)) -> 387.280873 | BN29: Include
BC30: =BC28+1 -> 23 | BD30: =BI27 -> Biomass Power C3 | BE30: =BJ27 -> 5.431076687 | BF30: =BK27 -> 3.532032 | BH30: 26 | BI30: =INDEX(SC_2030!$AE$51:$AE$78,MATCH(BJ30,SC_2030!$AD$51:$AD$78,0)) -> AS Heat Pump | BJ30: =SMALL(SC_2030!$AD$51:$AD$78,BH30) -> 25.96691425 | BK30: =INDEX(SC_2030!$AF$51:$AF$78,MATCH($BJ30,SC_2030!$AD$51:$AD$78,0))*10^-6 -> 1.12772736 | BL30: =INDEX(SC_2030!$AG$51:$AG$78,MATCH($BJ30,SC_2030!$AD$51:$AD$78,0)) -> 1549.123272 | BN30: Include
BC31: =BC30+1 -> 24 | BD31: =BI28 -> Biomass Power C4 | BE31: 10.75101816 | BF31: 4.120704 | BH31: 27 | BI31: =INDEX(SC_2030!$AE$51:$AE$78,MATCH(BJ31,SC_2030!$AD$51:$AD$78,0)) -> Solar Hot Water | BJ31: =SMALL(SC_2030!$AD$51:$AD$78,BH31) -> 31.03814081 | BK31: =INDEX(SC_2030!$AF$51:$AF$78,MATCH($BJ31,SC_2030!$AD$51:$AD$78,0))*10^-6 -> 0.2816070001 | BL31: =INDEX(SC_2030!$AG$51:$AG$78,MATCH($BJ31,SC_2030!$AD$51:$AD$78,0)) -> 3.744560621 | BN31: Include
BC32: 25 | BD32: GS Heat Pump | BE32: 20.35545878 | BF32: 0.2819318401 | BH32: 28 | BI32: =INDEX(SC_2030!$AE$51:$AE$78,MATCH(BJ32,SC_2030!$AD$51:$AD$78,0)) -> Wind (<10 kW) | BJ32: =SMALL(SC_2030!$AD$51:$AD$78,BH32) -> 47.22603935 | BK32: =INDEX(SC_2030!$AF$51:$AF$78,MATCH($BJ32,SC_2030!$AD$51:$AD$78,0))*10^-6 -> 2.354688 | BL32: =INDEX(SC_2030!$AG$51:$AG$78,MATCH($BJ32,SC_2030!$AD$51:$AD$78,0)) -> 532.000051 | BN32: Include
BC33: =BC32+1 -> 26 | BD33: AS Heat Pump | BE33: 25.96691425 | BF33: 1.12772736
BC34: =BC33+1 -> 27 | BD34: Solar Hot Water | BE34: 31.03814081 | BF34: 0.2816070001
BC35: =BC34+1 -> 28 | BD35: Wind (<10 kW) | BE35: 47.22603935 | BF35: 2.354688
BI38: =SC_2015!AE79 -> Pipeline @ 80% winter usage | BJ38: =SC_2015!AD79 -> 4.481657947 | BN38: =COUNTIF($BN$5:$BN$36,"Include") -> 28
BI39: =SC_2015!AE80 -> 0 | BJ39: =SC_2015!AD80 -> 0
BK44: 1 | BL44: =BK44+1 -> 2 | BM44: =BL44+1 -> 3 | BN44: 4 | BO44: 5 | BP44: 6 | BQ44: 7 | BR44: 8 | BS44: 9 | BT44: 10 | BU44: 11 | BV44: 12 | BW44: 13 | BX44: 14 | BY44: 15 | BZ44: 16 | CA44: 17 | CB44: 18 | CC44: 19 | CD44: 20 | CE44: 21 | CF44: 22 | CG44: 23 | CH44: 24 | CI44: 25 | CJ44: 26 | CK44: 27 | CL44: 28
BI45: Peak | BJ45: Annual | BK45: =INDEX($BI$5:$BI$36,BK44) -> Res. Gas EE | BL45: =INDEX($BI$5:$BI$36,BL44) -> Appliance Standards | BM45: CI Gas EE | BN45: Res. Electric EE | BO45: CI Electric EE | BP45: LI Gas EE | BQ45: Large CHP | BR45: Anaerobic Digestion | BS45: Landfill Gas | BT45: Converted Hydro | BU45: Small CHP | BV45: LI Electric EE | BW45: Biomass Power C1 | BX45: Utility-Scale PV | BY45: Commercial PV | BZ45: Large Wind C5 | CA45: Large Wind C4 | CB45: Residential PV | CC45: Biomass Power C2 | CD45: Wind (<100 kW) | CE45: Offshore Wind | CF45: Biomass Thermal | CG45: Biomass Power C3 | CH45: Biomass Power C4 | CI45: GS Heat Pump | CJ45: AS Heat Pump | CK45: Solar Hot Water | CL45: Wind (<10 kW) | CM45: =BI38 -> Pipeline @ 80% winter usage
BH46: 0 | BI46: 0 | BJ46: 0 | BK46: 0 | CM46: =$BJ$38 -> 4.481657947
BI47: 0 | BJ47: 0 | BK47: =BK48 -> -79.41212353 | CM47: =CM46 -> 4.481657947
BH48: 1 | BI48: =INDEX($BL$5:$BL$36,MATCH($BH48,$BH$5:$BH$36,0))+BI47 -> 332.1644487 | BJ48: =INDEX($BK$5:$BK$36,MATCH($BH48,$BH$5:$BH$36,0))+BJ47 -> 5.290472554 | BK48: =INDEX($BJ$5:$BJ$36,MATCH(BK$44,$BH$5:$BH$36,0)) -> -79.41212353 | CM48: =CM47 -> 4.481657947
BI49: =BI48 -> 332.1644487 | BJ49: =BJ48 -> 5.290472554 | BK49: 0 | BL49: 0 | CM49: 4.481657947
BI50: =BI48 -> 332.1644487 | BJ50: =BJ48 -> 5.290472554 | BL50: =BL51 -> -49.46958805 | CM50: 4.481657947
BH51: =BH48+1 -> 2 | BI51: =INDEX($BL$5:$BL$36,MATCH($BH51,$BH$5:$BH$36,0))+BI50 -> 2919.287807 | BJ51: =INDEX($BK$5:$BK$36,MATCH($BH51,$BH$5:$BH$36,0))+BJ50 -> 30.33927255 | BL51: =INDEX($BJ$5:$BJ$36,MATCH(BL$44,$BH$5:$BH$36,0)) -> -49.46958805 | CM51: 4.481657947
BI52: =BI51 -> 2919.287807 | BJ52: =BJ51 -> 30.33927255 | BL52: 0 | BM52: 0 | CM52: 4.481657947
BI53: =BI51 -> 2919.287807 | BJ53: =BJ51 -> 30.33927255 | BM53: =BM54 -> -27.8051801 | CM53: 4.481657947
BH54: =BH51+1 -> 3 | BI54: =INDEX($BL$5:$BL$36,MATCH($BH54,$BH$5:$BH$36,0))+BI53 -> 3531.351088 | BJ54: =INDEX($BK$5:$BK$36,MATCH($BH54,$BH$5:$BH$36,0))+BJ53 -> 40.08777011 | BM54: =INDEX($BJ$5:$BJ$36,MATCH(BM$44,$BH$5:$BH$36,0)) -> -27.8051801 | CM54: 4.481657947
BI55: =BI54 -> 3531.351088 | BJ55: =BJ54 -> 40.08777011 | BM55: 0 | BN55: 0 | CM55: 4.481657947
BI56: =BI54 -> 3531.351088 | BJ56: =BJ54 -> 40.08777011 | BN56: =BN57 -> -23.92431294 | CM56: 4.481657947
BH57: =BH54+1 -> 4 | BI57: =INDEX($BL$5:$BL$36,MATCH($BH57,$BH$5:$BH$36,0))+BI56 -> 3800.376248 | BJ57: =INDEX($BK$5:$BK$36,MATCH($BH57,$BH$5:$BH$36,0))+BJ56 -> 42.69249937 | BN57: =INDEX($BJ$5:$BJ$36,MATCH(BN$44,$BH$5:$BH$36,0)) -> -23.92431294 | CM57: 4.481657947
BI58: =BI57 -> 3800.376248 | BJ58: =BJ57 -> 42.69249937 | BN58: 0 | BO58: 0 | CM58: 4.481657947
BI59: =BI57 -> 3800.376248 | BJ59: =BJ57 -> 42.69249937 | BO59: =BO60 -> -21.35757408 | CM59: 4.481657947
BH60: =BH57+1 -> 5 | BI60: =INDEX($BL$5:$BL$36,MATCH($BH60,$BH$5:$BH$36,0))+BI59 -> 5389.091286 | BJ60: =INDEX($BK$5:$BK$36,MATCH($BH60,$BH$5:$BH$36,0))+BJ59 -> 58.07460492 | BO60: =INDEX($BJ$5:$BJ$36,MATCH(BO$44,$BH$5:$BH$36,0)) -> -21.35757408 | CM60: 4.481657947
BI61: =BI60 -> 5389.091286 | BJ61: =BJ60 -> 58.07460492 | BO61: 0 | BP61: 0 | CM61: 4.481657947
BI62: =BI60 -> 5389.091286 | BJ62: =BJ60 -> 58.07460492 | BP62: =BP63 -> -20.18415592 | CM62: 4.481657947
BH63: =BH60+1 -> 6 | BI63: =INDEX($BL$5:$BL$36,MATCH($BH63,$BH$5:$BH$36,0))+BI62 -> 5503.277304 | BJ63: =INDEX($BK$5:$BK$36,MATCH($BH63,$BH$5:$BH$36,0))+BJ62 -> 59.89327554 | BP63: =INDEX($BJ$5:$BJ$36,MATCH(BP$44,$BH$5:$BH$36,0)) -> -20.18415592 | CM63: 4.481657947
BI64: =BI63 -> 5503.277304 | BJ64: =BJ63 -> 59.89327554 | BP64: 0 | BQ64: 0 | CM64: 4.481657947
BI65: =BI63 -> 5503.277304 | BJ65: =BJ63 -> 59.89327554 | BQ65: =BQ66 -> -17.54735387 | CM65: 4.481657947
BH66: =BH63+1 -> 7 | BI66: =INDEX($BL$5:$BL$36,MATCH($BH66,$BH$5:$BH$36,0))+BI65 -> 5620.958613 | BJ66: =INDEX($BK$5:$BK$36,MATCH($BH66,$BH$5:$BH$36,0))+BJ65 -> 62.35833954 | BQ66: =INDEX($BJ$5:$BJ$36,MATCH(BQ$44,$BH$5:$BH$36,0)) -> -17.54735387 | CM66: 4.481657947
BI67: =BI66 -> 5620.958613 | BJ67: =BJ66 -> 62.35833954 | BQ67: 0 | BR67: 0 | CM67: 4.481657947
BI68: =BI66 -> 5620.958613 | BJ68: =BJ66 -> 62.35833954 | BR68: =BR69 -> -17.11771021 | CM68: 4.481657947
BH69: =BH66+1 -> 8 | BI69: =INDEX($BL$5:$BL$36,MATCH($BH69,$BH$5:$BH$36,0))+BI68 -> 5664.278675 | BJ69: =INDEX($BK$5:$BK$36,MATCH($BH69,$BH$5:$BH$36,0))+BJ68 -> 62.75569314 | BR69: =INDEX($BJ$5:$BJ$36,MATCH(BR$44,$BH$5:$BH$36,0)) -> -17.11771021 | CM69: 4.481657947
BI70: =BI69 -> 5664.278675 | BJ70: =BJ69 -> 62.75569314 | BR70: 0 | BS70: 0 | CM70: 4.481657947
BI71: =BI69 -> 5664.278675 | BJ71: =BJ69 -> 62.75569314 | BS71: =BS72 -> -15.58620891 | CM71: 4.481657947
BH72: =BH69+1 -> 9 | BI72: =INDEX($BL$5:$BL$36,MATCH($BH72,$BH$5:$BH$36,0))+BI71 -> 5707.598736 | BJ72: =INDEX($BK$5:$BK$36,MATCH($BH72,$BH$5:$BH$36,0))+BJ71 -> 63.10219314 | BS72: =INDEX($BJ$5:$BJ$36,MATCH(BS$44,$BH$5:$BH$36,0)) -> -15.58620891 | CM72: 4.481657947
BI73: =BI72 -> 5707.598736 | BJ73: =BJ72 -> 63.10219314 | BS73: 0 | BT73: 0 | CM73: 4.481657947
BI74: =BI72 -> 5707.598736 | BJ74: =BJ72 -> 63.10219314 | BT74: =BT75 -> -14.63783193 | CM74: 4.481657947
BH75: =BH72+1 -> 10 | BI75: =INDEX($BL$5:$BL$36,MATCH($BH75,$BH$5:$BH$36,0))+BI74 -> 6111.918803 | BJ75: =INDEX($BK$5:$BK$36,MATCH($BH75,$BH$5:$BH$36,0))+BJ74 -> 64.67019314 | BT75: =INDEX($BJ$5:$BJ$36,MATCH(BT$44,$BH$5:$BH$36,0)) -> -14.63783193 | CM75: 4.481657947
BI76: =BI75 -> 6111.918803 | BJ76: =BJ75 -> 64.67019314 | BT76: 0 | BU76: 0 | CM76: 4.481657947
BI77: =BI75 -> 6111.918803 | BJ77: =BJ75 -> 64.67019314 | BU77: =BU78 -> -13.04197539 | CM77: 4.481657947
BH78: =BH75+1 -> 11 | BI78: =INDEX($BL$5:$BL$36,MATCH($BH78,$BH$5:$BH$36,0))+BI77 -> 6363.611863 | BJ78: =INDEX($BK$5:$BK$36,MATCH($BH78,$BH$5:$BH$36,0))+BJ77 -> 67.06167314 | BU78: =INDEX($BJ$5:$BJ$36,MATCH(BU$44,$BH$5:$BH$36,0)) -> -13.04197539 | CM78: 4.481657947
BI79: =BI78 -> 6363.611863 | BJ79: =BJ78 -> 67.06167314 | BU79: 0 | BV79: 0 | CM79: 4.481657947
BI80: =BI78 -> 6363.611863 | BJ80: =BJ78 -> 67.06167314 | BV80: =BV81 -> -12.60597597 | CM80: 4.481657947
BH81: =BH78+1 -> 12 | BI81: =INDEX($BL$5:$BL$36,MATCH($BH81,$BH$5:$BH$36,0))+BI80 -> 6394.788854 | BJ81: =INDEX($BK$5:$BK$36,MATCH($BH81,$BH$5:$BH$36,0))+BJ80 -> 67.36353139 | BV81: =INDEX($BJ$5:$BJ$36,MATCH(BV$44,$BH$5:$BH$36,0)) -> -12.60597597 | CM81: 4.481657947
BI82: =BI81 -> 6394.788854 | BJ82: =BJ81 -> 67.36353139 | BV82: 0 | BW82: 0 | CM82: 4.481657947
BI83: =BI81 -> 6394.788854 | BJ83: =BJ81 -> 67.36353139 | BW83: =BW84 -> -6.911187218 | CM83: 4.481657947
BH84: =BH81+1 -> 13 | BI84: =INDEX($BL$5:$BL$36,MATCH($BH84,$BH$5:$BH$36,0))+BI83 -> 6539.188917 | BJ84: =INDEX($BK$5:$BK$36,MATCH($BH84,$BH$5:$BH$36,0))+BJ83 -> 68.54087539 | BW84: =INDEX($BJ$5:$BJ$36,MATCH(BW$44,$BH$5:$BH$36,0)) -> -6.911187218 | CM84: 4.481657947
BI85: =BI84 -> 6539.188917 | BJ85: =BJ84 -> 68.54087539 | BW85: 0 | BX85: 0 | CM85: 4.481657947
BI86: =BI84 -> 6539.188917 | BJ86: =BJ84 -> 68.54087539 | BX86: =BX87 -> -6.305589935 | CM86: 4.481657947
BH87: =BH84+1 -> 14 | BI87: =INDEX($BL$5:$BL$36,MATCH($BH87,$BH$5:$BH$36,0))+BI86 -> 6539.188973 | BJ87: =INDEX($BK$5:$BK$36,MATCH($BH87,$BH$5:$BH$36,0))+BJ86 -> 70.70424499 | BX87: =INDEX($BJ$5:$BJ$36,MATCH(BX$44,$BH$5:$BH$36,0)) -> -6.305589935 | CM87: 4.481657947
BI88: =BI87 -> 6539.188973 | BJ88: =BJ87 -> 70.70424499 | BX88: 0 | BY88: 0 | CM88: 4.481657947
BI89: =BI87 -> 6539.188973 | BJ89: =BJ87 -> 70.70424499 | BY89: =BY90 -> -6.138217785 | CM89: 4.481657947
BH90: =BH87+1 -> 15 | BI90: =INDEX($BL$5:$BL$36,MATCH($BH90,$BH$5:$BH$36,0))+BI89 -> 6539.18903 | BJ90: =INDEX($BK$5:$BK$36,MATCH($BH90,$BH$5:$BH$36,0))+BJ89 -> 81.30034099 | BY90: =INDEX($BJ$5:$BJ$36,MATCH(BY$44,$BH$5:$BH$36,0)) -> -6.138217785 | CM90: 4.481657947
BI91: =BI90 -> 6539.18903 | BJ91: =BJ90 -> 81.30034099 | BY91: 0 | BZ91: 0 | CM91: 4.481657947
BI92: =BI90 -> 6539.18903 | BJ92: =BJ90 -> 81.30034099 | BZ92: =BZ93 -> -5.75208851 | CM92: 4.481657947
BH93: =BH90+1 -> 16 | BI93: =INDEX($BL$5:$BL$36,MATCH($BH93,$BH$5:$BH$36,0))+BI92 -> 7815.989083 | BJ93: =INDEX($BK$5:$BK$36,MATCH($BH93,$BH$5:$BH$36,0))+BJ92 -> 96.13487539 | BZ93: =INDEX($BJ$5:$BJ$36,MATCH(BZ$44,$BH$5:$BH$36,0)) -> -5.75208851 | CM93: 4.481657947
BI94: =BI93 -> 7815.989083 | BJ94: =BJ93 -> 96.13487539 | BZ94: 0 | CA94: 0 | CM94: 4.481657947
BI95: =BI93 -> 7815.989083 | BJ95: =BJ93 -> 96.13487539 | CA95: =CA96 -> -5.004842948 | CM95: 4.481657947
BH96: =BH93+1 -> 17 | BI96: =INDEX($BL$5:$BL$36,MATCH($BH96,$BH$5:$BH$36,0))+BI95 -> 9943.989137 | BJ96: =INDEX($BK$5:$BK$36,MATCH($BH96,$BH$5:$BH$36,0))+BJ95 -> 119.6817554 | CA96: =INDEX($BJ$5:$BJ$36,MATCH(CA$44,$BH$5:$BH$36,0)) -> -5.004842948 | CM96: 4.481657947
BI97: =BI96 -> 9943.989137 | BJ97: =BJ96 -> 119.6817554 | CA97: 0 | CB97: 0 | CM97: 4.481657947
BI98: =BI96 -> 9943.989137 | BJ98: =BJ96 -> 119.6817554 | CB98: =CB99 -> -4.922521104 | CM98: 4.481657947
BH99: =BH96+1 -> 18 | BI99: =INDEX($BL$5:$BL$36,MATCH($BH99,$BH$5:$BH$36,0))+BI98 -> 9943.989195 | BJ99: =INDEX($BK$5:$BK$36,MATCH($BH99,$BH$5:$BH$36,0))+BJ98 -> 122.0732354 | CB99: =INDEX($BJ$5:$BJ$36,MATCH(CB$44,$BH$5:$BH$36,0)) -> -4.922521104 | CM99: 4.481657947
BI100: =BI99 -> 9943.989195 | BJ100: =BJ99 -> 122.0732354 | CB100: 0 | CC100: 0 | CM100: 4.481657947
BI101: =BI99 -> 9943.989195 | BJ101: =BJ99 -> 122.0732354 | CC101: =CC102 -> -4.848686218 | CM101: 4.481657947
BH102: =BH99+1 -> 19 | BI102: =INDEX($BL$5:$BL$36,MATCH($BH102,$BH$5:$BH$36,0))+BI101 -> 10232.78926 | BJ102: =INDEX($BK$5:$BK$36,MATCH($BH102,$BH$5:$BH$36,0))+BJ101 -> 124.4279234 | CC102: =INDEX($BJ$5:$BJ$36,MATCH(CC$44,$BH$5:$BH$36,0)) -> -4.848686218 | CM102: 4.481657947
BI103: =BI102 -> 10232.78926 | BJ103: =BJ102 -> 124.4279234 | CC103: 0 | CD103: 0 | CM103: 4.481657947
BI104: =BI102 -> 10232.78926 | BJ104: =BJ102 -> 124.4279234 | CD104: =CD105 -> -3.416775173 | CM104: 4.481657947
BH105: =BH102+1 -> 20 | BI105: =INDEX($BL$5:$BL$36,MATCH($BH105,$BH$5:$BH$36,0))+BI104 -> 11030.78931 | BJ105: =INDEX($BK$5:$BK$36,MATCH($BH105,$BH$5:$BH$36,0))+BJ104 -> 129.9467234 | CD105: =INDEX($BJ$5:$BJ$36,MATCH(CD$44,$BH$5:$BH$36,0)) -> -3.416775173 | CM105: 4.481657947
BI106: =BI105 -> 11030.78931 | BJ106: =BJ105 -> 129.9467234 | CD106: 0 | CE106: 0 | CM106: 4.481657947
BI107: =BI105 -> 11030.78931 | BJ107: =BJ105 -> 129.9467234 | CE107: =CE108 -> 0.3666127049 | CM107: 4.481657947
BH108: =BH105+1 -> 21 | BI108: =INDEX($BL$5:$BL$36,MATCH($BH108,$BH$5:$BH$36,0))+BI107 -> 21670.78937 | BJ108: =INDEX($BK$5:$BK$36,MATCH($BH108,$BH$5:$BH$36,0))+BJ107 -> 262.3979234 | CE108: =INDEX($BJ$5:$BJ$36,MATCH(CE$44,$BH$5:$BH$36,0)) -> 0.3666127049 | CM108: 4.481657947
BI109: =BI108 -> 21670.78937 | BJ109: =BJ108 -> 262.3979234 | CE109: 0 | CF109: 0 | CM109: 4.481657947
BI110: =BI108 -> 21670.78937 | BJ110: =BJ108 -> 262.3979234 | CF110: =CF111 -> 3.581701975 | CM110: 4.481657947
BH111: =BH108+1 -> 22 | BI111: =INDEX($BL$5:$BL$36,MATCH($BH111,$BH$5:$BH$36,0))+BI110 -> 23539.66024 | BJ111: =INDEX($BK$5:$BK$36,MATCH($BH111,$BH$5:$BH$36,0))+BJ110 -> 263.5243514 | CF111: =INDEX($BJ$5:$BJ$36,MATCH(CF$44,$BH$5:$BH$36,0)) -> 3.581701975 | CM111: 4.481657947
BI112: =BI111 -> 23539.66024 | BJ112: =BJ111 -> 263.5243514 | CF112: 0 | CG112: 0 | CM112: =CM111 -> 4.481657947
BI113: =BI111 -> 23539.66024 | BJ113: =BJ111 -> 263.5243514 | CG113: =CG114 -> 5.431076687 | CM113: 4.481657947
BH114: =BH111+1 -> 23 | BI114: =INDEX($BL$5:$BL$36,MATCH($BH114,$BH$5:$BH$36,0))+BI113 -> 23972.8603 | BJ114: =INDEX($BK$5:$BK$36,MATCH($BH114,$BH$5:$BH$36,0))+BJ113 -> 267.0563834 | CG114: =INDEX($BJ$5:$BJ$36,MATCH(CG$44,$BH$5:$BH$36,0)) -> 5.431076687 | CM114: 4.481657947
BI115: =BI114 -> 23972.8603 | BJ115: =BJ114 -> 267.0563834 | CG115: 0 | CH115: 0 | CM115: 4.481657947
BI116: =BI114 -> 23972.8603 | BJ116: =BJ114 -> 267.0563834 | CH116: =CH117 -> 10.75101816 | CM116: 4.481657947
BH117: =BH114+1 -> 24 | BI117: =INDEX($BL$5:$BL$36,MATCH($BH117,$BH$5:$BH$36,0))+BI116 -> 24478.26037 | BJ117: =INDEX($BK$5:$BK$36,MATCH($BH117,$BH$5:$BH$36,0))+BJ116 -> 271.1770874 | CH117: =INDEX($BJ$5:$BJ$36,MATCH(CH$44,$BH$5:$BH$36,0)) -> 10.75101816 | CM117: 4.481657947
BI118: =BI117 -> 24478.26037 | BJ118: =BJ117 -> 271.1770874 | CH118: 0 | CI118: 0 | CM118: 4.481657947
BI119: =BI117 -> 24478.26037 | BJ119: =BJ117 -> 271.1770874 | CI119: =CI120 -> 20.35545878 | CM119: 4.481657947
BH120: =BH117+1 -> 25 | BI120: =INDEX($BL$5:$BL$36,MATCH($BH120,$BH$5:$BH$36,0))+BI119 -> 24865.54124 | BJ120: =INDEX($BK$5:$BK$36,MATCH($BH120,$BH$5:$BH$36,0))+BJ119 -> 271.4590192 | CI120: =INDEX($BJ$5:$BJ$36,MATCH(CI$44,$BH$5:$BH$36,0)) -> 20.35545878 | CM120: 4.481657947
BI121: =BI120 -> 24865.54124 | BJ121: =BJ120 -> 271.4590192 | CI121: 0 | CJ121: 0 | CM121: 4.481657947
BI122: =BI120 -> 24865.54124 | BJ122: =BJ120 -> 271.4590192 | CJ122: =CJ123 -> 25.96691425 | CM122: 4.481657947
BH123: =BH120+1 -> 26 | BI123: =INDEX($BL$5:$BL$36,MATCH($BH123,$BH$5:$BH$36,0))+BI122 -> 26414.66451 | BJ123: =INDEX($BK$5:$BK$36,MATCH($BH123,$BH$5:$BH$36,0))+BJ122 -> 272.5867466 | CJ123: =INDEX($BJ$5:$BJ$36,MATCH(CJ$44,$BH$5:$BH$36,0)) -> 25.96691425 | CM123: 4.481657947
BI124: =BI123 -> 26414.66451 | BJ124: =BJ123 -> 272.5867466 | CJ124: 0 | CK124: 0 | CM124: 4.481657947
BI125: =BI123 -> 26414.66451 | BJ125: =BJ123 -> 272.5867466 | CK125: =CK126 -> 31.03814081 | CM125: 4.481657947
BH126: =BH123+1 -> 27 | BI126: =INDEX($BL$5:$BL$36,MATCH($BH126,$BH$5:$BH$36,0))+BI125 -> 26418.40908 | BJ126: =INDEX($BK$5:$BK$36,MATCH($BH126,$BH$5:$BH$36,0))+BJ125 -> 272.8683536 | CK126: =INDEX($BJ$5:$BJ$36,MATCH(CK$44,$BH$5:$BH$36,0)) -> 31.03814081 | CM126: 4.481657947
BI127: =BI126 -> 26418.40908 | BJ127: =BJ126 -> 272.8683536 | CK127: 0 | CL127: 0 | CM127: 4.481657947
BI128: =BI126 -> 26418.40908 | BJ128: =BJ126 -> 272.8683536 | CL128: =CL129 -> 47.22603935 | CM128: 4.481657947
BH129: =BH126+1 -> 28 | BI129: =INDEX($BL$5:$BL$36,MATCH($BH129,$BH$5:$BH$36,0))+BI128 -> 26950.40913 | BJ129: =INDEX($BK$5:$BK$36,MATCH($BH129,$BH$5:$BH$36,0))+BJ128 -> 275.2230416 | CL129: =INDEX($BJ$5:$BJ$36,MATCH(CL$44,$BH$5:$BH$36,0)) -> 47.22603935 | CM129: 4.481657947
BI130: =BI129 -> 26950.40913 | BJ130: =BJ129 -> 275.2230416 | CL130: 0 | CM130: 4.481657947
BI131: =BI129 -> 26950.40913 | BJ131: =BJ129 -> 275.2230416 | CM131: 4.481657947
BH132: =BH129+1 -> 29 | BI132: =INDEX($BL$5:$BL$36,MATCH($BH132,$BH$5:$BH$36,0))+BI131 ->  | BJ132: =INDEX($BK$5:$BK$36,MATCH($BH132,$BH$5:$BH$36,0))+BJ131 ->  | CM132: 4.481657947
BI133: =BI132 ->  | BJ133: =BJ132 ->  | CM133: 4.481657947
BI134: =BI132 ->  | BJ134: =BJ132 ->  | CM134: 4.481657947
BH135: =BH132+1 -> 30 | BI135: =INDEX($BL$5:$BL$36,MATCH($BH135,$BH$5:$BH$36,0))+BI134 ->  | BJ135: =INDEX($BK$5:$BK$36,MATCH($BH135,$BH$5:$BH$36,0))+BJ134 ->  | CM135: 4.481657947
BI136: =BI135 ->  | BJ136: =BJ135 ->  | CM136: 4.481657947
BI137: =BI135 ->  | BJ137: =BJ135 ->  | CM137: 4.481657947
BH138: =BH135+1 -> 31 | BI138: =INDEX($BL$5:$BL$36,MATCH($BH138,$BH$5:$BH$36,0))+BI137 ->  | BJ138: =INDEX($BK$5:$BK$36,MATCH($BH138,$BH$5:$BH$36,0))+BJ137 ->  | CM138: 4.481657947
BI139: =BI138 ->  | BJ139: =BJ138 ->  | CM139: 4.481657947
BI140: =BI138 ->  | BJ140: =BJ138 ->  | CM140: 4.481657947
BH141: =BH138+1 -> 32 | BI141: =INDEX($BL$5:$BL$36,MATCH($BH141,$BH$5:$BH$36,0))+BI140 ->  | BJ141: =INDEX($BK$5:$BK$36,MATCH($BH141,$BH$5:$BH$36,0))+BJ140 ->  | CM141: =CM140 -> 4.481657947
BI142: =BI141 ->  | BJ142: =BJ141 ->  | CM142: =CM141 -> 4.481657947
BI143: =BI141 ->  | BJ143: =BJ141 ->  | CM143: =CM142 -> 4.481657947
BJ144: 1500 | CM144: =CM143 -> 4.481657947

Sheet Output_To_MarketAnalytics
B2: All values incremental to Base Case
B4: Attributes | C4: 1 | D4: 2 | E4: 3 | F4: 4 | G4: 5 | H4: 6 | I4: 7 | J4: 8 | K4: 9 | L4: 10 | M4: 11 | N4: 12 | O4: 13 | P4: 14 | Q4: 15 | R4: 16 | S4: 17 | T4: 18 | U4: 19 | V4: 20 | W4: 21 | X4: 25 | Y4: 26 | Z4: 27 | AA4: 28 | AB4: 29 | AC4: 30 | AD4: 31
C5: Wind (<10 kW) | D5: Wind (<100 kW) | E5: Large Wind C5 | F5: Large Wind C4 | G5: Offshore Wind | H5: Utility-Scale PV | I5: Commercial PV | J5: Residential PV | K5: Large CHP | L5: Small CHP | M5: Landfill Gas | N5: Anaerobic Digestion | O5: Biomass Power C1 | P5: Biomass Power C2 | Q5: Biomass Power C3 | R5: Biomass Power C4 | S5: Converted Hydro | T5: Res. Electric EE | U5: LI Electric EE | V5: CI Electric EE | W5: Appliance Standards | X5: AS Heat Pump | Y5: GS Heat Pump | Z5: Solar Hot Water | AA5: Biomass Thermal | AB5: Res. Gas EE | AC5: LI Gas EE | AD5: CI Gas EE
B6: Technology | C6: Electric | D6: Electric | E6: Electric | F6: Electric | G6: Electric | H6: Electric | I6: Electric | J6: Electric | K6: Electric | L6: Electric | M6: Electric | N6: Electric | O6: Electric | P6: Electric | Q6: Electric | R6: Electric | S6: Electric | T6: Electric | U6: Electric | V6: Electric | W6: Electric | X6: Gas | Y6: Gas | Z6: Gas | AA6: Gas | AB6: Gas | AC6: Gas | AD6: Gas
B7: Market Analytics? | C7: Yes | D7: Yes | E7: Yes | F7: Yes | G7: Yes | H7: Yes | I7: Yes | J7: Yes | K7: Yes | L7: Yes | M7: Yes | N7: Yes | O7: Yes | P7: Yes | Q7: Yes | R7: Yes | S7: Yes | T7: Yes | U7: Yes | V7: Yes | W7: Yes | X7: No | Y7: No | Z7: No | AA7: No | AB7: No | AC7: No | AD7: No
B8: Measure Type | C8: DG | D8: DG | E8: Utility | F8: Utility | G8: Utility | H8: Utility | I8: DG | J8: DG | K8: DG | L8: DG | M8: DG | N8: DG | O8: Utility | P8: Utility | Q8: Utility | R8: Utility | S8: Utility | T8: EE | U8: EE | V8: EE | W8: EE | X8: DG | Y8: DG | Z8: DG | AA8: DG | AB8: EE | AC8: EE | AD8: EE
B9: Demand/Supply | C9: =IF(C8="Utility","Supply","Demand") -> Demand | D9: =IF(D8="Utility","Supply","Demand") -> Demand | E9: =IF(E8="Utility","Supply","Demand") -> Supply | F9: Supply | G9: Supply | H9: Supply | I9: Demand | J9: Demand | K9: Demand | L9: Demand | M9: Demand | N9: Demand | O9: Supply | P9: Supply | Q9: Supply | R9: Supply | S9: Supply | T9: Demand | U9: Demand | V9: Demand | W9: Demand | X9: =IF(X8="Utility","Supply","Demand") -> Demand | Y9: =IF(Y8="Utility","Supply","Demand") -> Demand | Z9: =IF(Z8="Utility","Supply","Demand") -> Demand | AA9: =IF(AA8="Utility","Supply","Demand") -> Demand | AB9: =IF(AB8="Utility","Supply","Demand") -> Demand | AC9: =IF(AC8="Utility","Supply","Demand") -> Demand | AD9: =IF(AD8="Utility","Supply","Demand") -> Demand
B10: Available in 2015? | C10: =IF(INDEX(SC_2015!$AE$9:$AE$39,C4)=1,"Y","") -> Y | D10: =IF(INDEX(SC_2015!$AE$9:$AE$39,D4)=1,"Y","") -> Y | E10: =IF(INDEX(SC_2015!$AE$9:$AE$39,E4)=1,"Y","") ->  | F10: =IF(INDEX(SC_2015!$AE$9:$AE$39,F4)=1,"Y","") ->  | G10: =IF(INDEX(SC_2015!$AE$9:$AE$39,G4)=1,"Y","") ->  | H10: =IF(INDEX(SC_2015!$AE$9:$AE$39,H4)=1,"Y","") ->  | I10: =IF(INDEX(SC_2015!$AE$9:$AE$39,I4)=1,"Y","") -> Y | J10: =IF(INDEX(SC_2015!$AE$9:$AE$39,J4)=1,"Y","") -> Y | K10: =IF(INDEX(SC_2015!$AE$9:$AE$39,K4)=1,"Y","") ->  | L10: =IF(INDEX(SC_2015!$AE$9:$AE$39,L4)=1,"Y","") -> Y | M10: =IF(INDEX(SC_2015!$AE$9:$AE$39,M4)=1,"Y","") -> Y | N10: =IF(INDEX(SC_2015!$AE$9:$AE$39,N4)=1,"Y","") -> Y | O10: =IF(INDEX(SC_2015!$AE$9:$AE$39,O4)=1,"Y","") ->  | P10: =IF(INDEX(SC_2015!$AE$9:$AE$39,P4)=1,"Y","") ->  | Q10: =IF(INDEX(SC_2015!$AE$9:$AE$39,Q4)=1,"Y","") ->  | R10: =IF(INDEX(SC_2015!$AE$9:$AE$39,R4)=1,"Y","") ->  | S10: =IF(INDEX(SC_2015!$AE$9:$AE$39,S4)=1,"Y","") -> Y | T10: =IF(INDEX(SC_2015!$AE$9:$AE$39,T4)=1,"Y","") ->  | U10: =IF(INDEX(SC_2015!$AE$9:$AE$39,U4)=1,"Y","") ->  | V10: =IF(INDEX(SC_2015!$AE$9:$AE$39,V4)=1,"Y","") ->  | W10: =IF(INDEX(SC_2015!$AE$9:$AE$39,W4)=1,"Y","") ->  | X10: =IF(INDEX(SC_2015!$AE$9:$AE$39,X4)=1,"Y","") -> Y | Y10: =IF(INDEX(SC_2015!$AE$9:$AE$39,Y4)=1,"Y","") -> Y | Z10: =IF(INDEX(SC_2015!$AE$9:$AE$39,Z4)=1,"Y","") -> Y | AA10: =IF(INDEX(SC_2015!$AE$9:$AE$39,AA4)=1,"Y","") -> Y | AB10: =IF(INDEX(SC_2015!$AE$9:$AE$39,AB4)=1,"Y","") ->  | AC10: =IF(INDEX(SC_2015!$AE$9:$AE$39,AC4)=1,"Y","") ->  | AD10: =IF(INDEX(SC_2015!$AE$9:$AE$39,AD4)=1,"Y","") -> 
B11: Available in 2020? | C11: =IF(INDEX(SC_2020!$AE$9:$AE$39,C4)=1,"Y","") -> Y | D11: =IF(INDEX(SC_2020!$AE$9:$AE$39,D4)=1,"Y","") -> Y | E11: =IF(INDEX(SC_2020!$AE$9:$AE$39,E4)=1,"Y","") -> Y | F11: =IF(INDEX(SC_2020!$AE$9:$AE$39,F4)=1,"Y","") ->  | G11: =IF(INDEX(SC_2020!$AE$9:$AE$39,G4)=1,"Y","") -> Y | H11: =IF(INDEX(SC_2020!$AE$9:$AE$39,H4)=1,"Y","") -> Y | I11: =IF(INDEX(SC_2020!$AE$9:$AE$39,I4)=1,"Y","") -> Y | J11: =IF(INDEX(SC_2020!$AE$9:$AE$39,J4)=1,"Y","") -> Y | K11: =IF(INDEX(SC_2020!$AE$9:$AE$39,K4)=1,"Y","") -> Y | L11: =IF(INDEX(SC_2020!$AE$9:$AE$39,L4)=1,"Y","") -> Y | M11: =IF(INDEX(SC_2020!$AE$9:$AE$39,M4)=1,"Y","") -> Y | N11: =IF(INDEX(SC_2020!$AE$9:$AE$39,N4)=1,"Y","") -> Y | O11: =IF(INDEX(SC_2020!$AE$9:$AE$39,O4)=1,"Y","") -> Y | P11: =IF(INDEX(SC_2020!$AE$9:$AE$39,P4)=1,"Y","") -> Y | Q11: =IF(INDEX(SC_2020!$AE$9:$AE$39,Q4)=1,"Y","") -> Y | R11: =IF(INDEX(SC_2020!$AE$9:$AE$39,R4)=1,"Y","") -> Y | S11: =IF(INDEX(SC_2020!$AE$9:$AE$39,S4)=1,"Y","") -> Y | T11: =IF(INDEX(SC_2020!$AE$9:$AE$39,T4)=1,"Y","") -> Y | U11: =IF(INDEX(SC_2020!$AE$9:$AE$39,U4)=1,"Y","") -> Y | V11: =IF(INDEX(SC_2020!$AE$9:$AE$39,V4)=1,"Y","") -> Y | W11: =IF(INDEX(SC_2020!$AE$9:$AE$39,W4)=1,"Y","") -> Y | X11: =IF(INDEX(SC_2020!$AE$9:$AE$39,X4)=1,"Y","") -> Y | Y11: =IF(INDEX(SC_2020!$AE$9:$AE$39,Y4)=1,"Y","") -> Y | Z11: =IF(INDEX(SC_2020!$AE$9:$AE$39,Z4)=1,"Y","") -> Y | AA11: =IF(INDEX(SC_2020!$AE$9:$AE$39,AA4)=1,"Y","") -> Y | AB11: =IF(INDEX(SC_2020!$AE$9:$AE$39,AB4)=1,"Y","") -> Y | AC11: =IF(INDEX(SC_2020!$AE$9:$AE$39,AC4)=1,"Y","") -> Y | AD11: =IF(INDEX(SC_2020!$AE$9:$AE$39,AD4)=1,"Y","") -> Y
B12: Available in 2030? | C12: =IF(INDEX(SC_2030!$AE$9:$AE$39,C4)=1,"Y","") -> Y | D12: =IF(INDEX(SC_2030!$AE$9:$AE$39,D4)=1,"Y","") -> Y | E12: =IF(INDEX(SC_2030!$AE$9:$AE$39,E4)=1,"Y","") -> Y | F12: =IF(INDEX(SC_2030!$AE$9:$AE$39,F4)=1,"Y","") -> Y | G12: =IF(INDEX(SC_2030!$AE$9:$AE$39,G4)=1,"Y","") -> Y | H12: =IF(INDEX(SC_2030!$AE$9:$AE$39,H4)=1,"Y","") -> Y | I12: =IF(INDEX(SC_2030!$AE$9:$AE$39,I4)=1,"Y","") -> Y | J12: =IF(INDEX(SC_2030!$AE$9:$AE$39,J4)=1,"Y","") -> Y | K12: =IF(INDEX(SC_2030!$AE$9:$AE$39,K4)=1,"Y","") -> Y | L12: =IF(INDEX(SC_2030!$AE$9:$AE$39,L4)=1,"Y","") -> Y | M12: =IF(INDEX(SC_2030!$AE$9:$AE$39,M4)=1,"Y","") -> Y | N12: =IF(INDEX(SC_2030!$AE$9:$AE$39,N4)=1,"Y","") -> Y | O12: =IF(INDEX(SC_2030!$AE$9:$AE$39,O4)=1,"Y","") -> Y | P12: =IF(INDEX(SC_2030!$AE$9:$AE$39,P4)=1,"Y","") -> Y | Q12: =IF(INDEX(SC_2030!$AE$9:$AE$39,Q4)=1,"Y","") -> Y | R12: =IF(INDEX(SC_2030!$AE$9:$AE$39,R4)=1,"Y","") -> Y | S12: =IF(INDEX(SC_2030!$AE$9:$AE$39,S4)=1,"Y","") -> Y | T12: =IF(INDEX(SC_2030!$AE$9:$AE$39,T4)=1,"Y","") -> Y | U12: =IF(INDEX(SC_2030!$AE$9:$AE$39,U4)=1,"Y","") -> Y | V12: =IF(INDEX(SC_2030!$AE$9:$AE$39,V4)=1,"Y","") -> Y | W12: =IF(INDEX(SC_2030!$AE$9:$AE$39,W4)=1,"Y","") -> Y | X12: =IF(INDEX(SC_2030!$AE$9:$AE$39,X4)=1,"Y","") -> Y | Y12: =IF(INDEX(SC_2030!$AE$9:$AE$39,Y4)=1,"Y","") -> Y | Z12: =IF(INDEX(SC_2030!$AE$9:$AE$39,Z4)=1,"Y","") -> Y | AA12: =IF(INDEX(SC_2030!$AE$9:$AE$39,AA4)=1,"Y","") -> Y | AB12: =IF(INDEX(SC_2030!$AE$9:$AE$39,AB4)=1,"Y","") -> Y | AC12: =IF(INDEX(SC_2030!$AE$9:$AE$39,AC4)=1,"Y","") -> Y | AD12: =IF(INDEX(SC_2030!$AE$9:$AE$39,AD4)=1,"Y","") -> Y
B13: Cleared in 2015? | C13: =IF(INDEX(SC_2015!$AF$9:$AF$39,C$4)=1,"Y","") ->  | D13: =IF(INDEX(SC_2015!$AF$9:$AF$39,D$4)=1,"Y","") ->  | E13: =IF(INDEX(SC_2015!$AF$9:$AF$39,E$4)=1,"Y","") ->  | F13: =IF(INDEX(SC_2015!$AF$9:$AF$39,F$4)=1,"Y","") ->  | G13: =IF(INDEX(SC_2015!$AF$9:$AF$39,G$4)=1,"Y","") ->  | H13: =IF(INDEX(SC_2015!$AF$9:$AF$39,H$4)=1,"Y","") ->  | I13: =IF(INDEX(SC_2015!$AF$9:$AF$39,I$4)=1,"Y","") ->  | J13: =IF(INDEX(SC_2015!$AF$9:$AF$39,J$4)=1,"Y","") ->  | K13: =IF(INDEX(SC_2015!$AF$9:$AF$39,K$4)=1,"Y","") ->  | L13: =IF(INDEX(SC_2015!$AF$9:$AF$39,L$4)=1,"Y","") -> Y | M13: =IF(INDEX(SC_2015!$AF$9:$AF$39,M$4)=1,"Y","") -> Y | N13: =IF(INDEX(SC_2015!$AF$9:$AF$39,N$4)=1,"Y","") -> Y | O13: =IF(INDEX(SC_2015!$AF$9:$AF$39,O$4)=1,"Y","") ->  | P13: =IF(INDEX(SC_2015!$AF$9:$AF$39,P$4)=1,"Y","") ->  | Q13: =IF(INDEX(SC_2015!$AF$9:$AF$39,Q$4)=1,"Y","") ->  | R13: =IF(INDEX(SC_2015!$AF$9:$AF$39,R$4)=1,"Y","") ->  | S13: =IF(INDEX(SC_2015!$AF$9:$AF$39,S$4)=1,"Y","") -> Y | T13: =IF(INDEX(SC_2015!$AF$9:$AF$39,T$4)=1,"Y","") ->  | U13: =IF(INDEX(SC_2015!$AF$9:$AF$39,U$4)=1,"Y","") ->  | V13: =IF(INDEX(SC_2015!$AF$9:$AF$39,V$4)=1,"Y","") ->  | W13: =IF(INDEX(SC_2015!$AF$9:$AF$39,W$4)=1,"Y","") ->  | X13: =IF(INDEX(SC_2015!$AF$9:$AF$39,X$4)=1,"Y","") ->  | Y13: =IF(INDEX(SC_2015!$AF$9:$AF$39,Y$4)=1,"Y","") ->  | Z13: =IF(INDEX(SC_2015!$AF$9:$AF$39,Z$4)=1,"Y","") -> Y | AA13: =IF(INDEX(SC_2015!$AF$9:$AF$39,AA$4)=1,"Y","") ->  | AB13: =IF(INDEX(SC_2015!$AF$9:$AF$39,AB$4)=1,"Y","") ->  | AC13: =IF(INDEX(SC_2015!$AF$9:$AF$39,AC$4)=1,"Y","") ->  | AD13: =IF(INDEX(SC_2015!$AF$9:$AF$39,AD$4)=1,"Y","") -> 
B14: Cleared in 2020? | C14: =IF(INDEX(SC_2020!$AF$9:$AF$39,C$4)=1,"Y","") ->  | D14: =IF(INDEX(SC_2020!$AF$9:$AF$39,D$4)=1,"Y","") ->  | E14: =IF(INDEX(SC_2020!$AF$9:$AF$39,E$4)=1,"Y","") -> Y | F14: =IF(INDEX(SC_2020!$AF$9:$AF$39,F$4)=1,"Y","") ->  | G14: =IF(INDEX(SC_2020!$AF$9:$AF$39,G$4)=1,"Y","") ->  | H14: =IF(INDEX(SC_2020!$AF$9:$AF$39,H$4)=1,"Y","") ->  | I14: =IF(INDEX(SC_2020!$AF$9:$AF$39,I$4)=1,"Y","") ->  | J14: =IF(INDEX(SC_2020!$AF$9:$AF$39,J$4)=1,"Y","") ->  | K14: =IF(INDEX(SC_2020!$AF$9:$AF$39,K$4)=1,"Y","") -> Y | L14: =IF(INDEX(SC_2020!$AF$9:$AF$39,L$4)=1,"Y","") -> Y | M14: =IF(INDEX(SC_2020!$AF$9:$AF$39,M$4)=1,"Y","") -> Y | N14: =IF(INDEX(SC_2020!$AF$9:$AF$39,N$4)=1,"Y","") -> Y | O14: =IF(INDEX(SC_2020!$AF$9:$AF$39,O$4)=1,"Y","") -> Y | P14: =IF(INDEX(SC_2020!$AF$9:$AF$39,P$4)=1,"Y","") -> Y | Q14: =IF(INDEX(SC_2020!$AF$9:$AF$39,Q$4)=1,"Y","") ->  | R14: =IF(INDEX(SC_2020!$AF$9:$AF$39,R$4)=1,"Y","") ->  | S14: =IF(INDEX(SC_2020!$AF$9:$AF$39,S$4)=1,"Y","") -> Y | T14: =IF(INDEX(SC_2020!$AF$9:$AF$39,T$4)=1,"Y","") -> Y | U14: =IF(INDEX(SC_2020!$AF$9:$AF$39,U$4)=1,"Y","") -> Y | V14: =IF(INDEX(SC_2020!$AF$9:$AF$39,V$4)=1,"Y","") -> Y | W14: =IF(INDEX(SC_2020!$AF$9:$AF$39,W$4)=1,"Y","") -> Y | X14: =IF(INDEX(SC_2020!$AF$9:$AF$39,X$4)=1,"Y","") ->  | Y14: =IF(INDEX(SC_2020!$AF$9:$AF$39,Y$4)=1,"Y","") ->  | Z14: =IF(INDEX(SC_2020!$AF$9:$AF$39,Z$4)=1,"Y","") ->  | AA14: =IF(INDEX(SC_2020!$AF$9:$AF$39,AA$4)=1,"Y","") ->  | AB14: =IF(INDEX(SC_2020!$AF$9:$AF$39,AB$4)=1,"Y","") -> Y | AC14: =IF(INDEX(SC_2020!$AF$9:$AF$39,AC$4)=1,"Y","") -> Y | AD14: =IF(INDEX(SC_2020!$AF$9:$AF$39,AD$4)=1,"Y","") -> Y
B15: Cleared in 2030? | C15: =IF(INDEX(SC_2030!$AF$9:$AF$39,C$4)=1,"Y","") ->  | D15: =IF(INDEX(SC_2030!$AF$9:$AF$39,D$4)=1,"Y","") -> Y | E15: =IF(INDEX(SC_2030!$AF$9:$AF$39,E$4)=1,"Y","") -> Y | F15: =IF(INDEX(SC_2030!$AF$9:$AF$39,F$4)=1,"Y","") -> Y | G15: =IF(INDEX(SC_2030!$AF$9:$AF$39,G$4)=1,"Y","") -> Y | H15: =IF(INDEX(SC_2030!$AF$9:$AF$39,H$4)=1,"Y","") -> Y | I15: =IF(INDEX(SC_2030!$AF$9:$AF$39,I$4)=1,"Y","") -> Y | J15: =IF(INDEX(SC_2030!$AF$9:$AF$39,J$4)=1,"Y","") -> Y | K15: =IF(INDEX(SC_2030!$AF$9:$AF$39,K$4)=1,"Y","") -> Y | L15: =IF(INDEX(SC_2030!$AF$9:$AF$39,L$4)=1,"Y","") -> Y | M15: =IF(INDEX(SC_2030!$AF$9:$AF$39,M$4)=1,"Y","") -> Y | N15: =IF(INDEX(SC_2030!$AF$9:$AF$39,N$4)=1,"Y","") -> Y | O15: =IF(INDEX(SC_2030!$AF$9:$AF$39,O$4)=1,"Y","") -> Y | P15: =IF(INDEX(SC_2030!$AF$9:$AF$39,P$4)=1,"Y","") -> Y | Q15: =IF(INDEX(SC_2030!$AF$9:$AF$39,Q$4)=1,"Y","") ->  | R15: =IF(INDEX(SC_2030!$AF$9:$AF$39,R$4)=1,"Y","") ->  | S15: =IF(INDEX(SC_2030!$AF$9:$AF$39,S$4)=1,"Y","") -> Y | T15: =IF(INDEX(SC_2030!$AF$9:$AF$39,T$4)=1,"Y","") -> Y | U15: =IF(INDEX(SC_2030!$AF$9:$AF$39,U$4)=1,"Y","") -> Y | V15: =IF(INDEX(SC_2030!$AF$9:$AF$39,V$4)=1,"Y","") -> Y | W15: =IF(INDEX(SC_2030!$AF$9:$AF$39,W$4)=1,"Y","") -> Y | X15: =IF(INDEX(SC_2030!$AF$9:$AF$39,X$4)=1,"Y","") ->  | Y15: =IF(INDEX(SC_2030!$AF$9:$AF$39,Y$4)=1,"Y","") ->  | Z15: =IF(INDEX(SC_2030!$AF$9:$AF$39,Z$4)=1,"Y","") ->  | AA15: =IF(INDEX(SC_2030!$AF$9:$AF$39,AA$4)=1,"Y","") -> Y | AB15: =IF(INDEX(SC_2030!$AF$9:$AF$39,AB$4)=1,"Y","") -> Y | AC15: =IF(INDEX(SC_2030!$AF$9:$AF$39,AC$4)=1,"Y","") -> Y | AD15: =IF(INDEX(SC_2030!$AF$9:$AF$39,AD$4)=1,"Y","") -> Y
B17: Total Capacity (MW)
C18: =C5 -> Wind (<10 kW) | D18: Wind (<100 kW) | E18: Large Wind C5 | F18: Large Wind C4 | G18: Offshore Wind | H18: Utility-Scale PV | I18: Commercial PV | J18: Residential PV | K18: Large CHP | L18: Small CHP | M18: Landfill Gas | N18: Anaerobic Digestion | O18: Biomass Power C1 | P18: Biomass Power C2 | Q18: Biomass Power C3 | R18: Biomass Power C4 | S18: Converted Hydro | T18: Res. Electric EE | U18: LI Electric EE | V18: CI Electric EE | W18: Appliance Standards | X18: AS Heat Pump | Y18: GS Heat Pump | Z18: Solar Hot Water | AA18: Biomass Thermal | AB18: Res. Gas EE | AC18: LI Gas EE | AD18: CI Gas EE
B19: 2015 | C19: =IF(C$13="Y",INDEX(SC_2015!$D$9:$D$40,C$4),0) -> 0 | D19: =IF(D$13="Y",INDEX(SC_2015!$D$9:$D$40,D$4),0) -> 0 | E19: =IF(E$13="Y",INDEX(SC_2015!$D$9:$D$40,E$4),0) -> 0 | F19: =IF(F$13="Y",INDEX(SC_2015!$D$9:$D$40,F$4),0) -> 0 | G19: =IF(G$13="Y",INDEX(SC_2015!$D$9:$D$40,G$4),0) -> 0 | H19: =IF(H$13="Y",INDEX(SC_2015!$D$9:$D$40,H$4),0) -> 0 | I19: =IF(I$13="Y",INDEX(SC_2015!$D$9:$D$40,I$4),0) -> 0 | J19: =IF(J$13="Y",INDEX(SC_2015!$D$9:$D$40,J$4),0) -> 0 | K19: =IF(K$13="Y",INDEX(SC_2015!$D$9:$D$40,K$4),0) -> 0 | L19: =IF(L$13="Y",INDEX(SC_2015!$D$9:$D$40,L$4),0) -> 5 | M19: =IF(M$13="Y",INDEX(SC_2015!$D$9:$D$40,M$4),0) -> 0.3 | N19: =IF(N$13="Y",INDEX(SC_2015!$D$9:$D$40,N$4),0) -> 0.3 | O19: =IF(O$13="Y",INDEX(SC_2015!$D$9:$D$40,O$4),0) -> 0 | P19: =IF(P$13="Y",INDEX(SC_2015!$D$9:$D$40,P$4),0) -> 0 | Q19: =IF(Q$13="Y",INDEX(SC_2015!$D$9:$D$40,Q$4),0) -> 0 | R19: =IF(R$13="Y",INDEX(SC_2015!$D$9:$D$40,R$4),0) -> 0 | S19: =IF(S$13="Y",INDEX(SC_2015!$D$9:$D$40,S$4),0) -> 0.5 | T19: =IF(T$13="Y",INDEX(SC_2015!$D$9:$D$40,T$4),0) -> 0 | U19: =IF(U$13="Y",INDEX(SC_2015!$D$9:$D$40,U$4),0) -> 0 | V19: =IF(V$13="Y",INDEX(SC_2015!$D$9:$D$40,V$4),0) -> 0 | W19: =IF(W$13="Y",INDEX(SC_2015!$D$9:$D$40,W$4),0) -> 0 | X19: =IF(X$13="Y",INDEX(SC_2015!$D$9:$D$40,X$4),0) -> 0 | Y19: =IF(Y$13="Y",INDEX(SC_2015!$D$9:$D$40,Y$4),0) -> 0 | Z19: =IF(Z$13="Y",INDEX(SC_2015!$D$9:$D$40,Z$4),0) -> 0 | AA19: =IF(AA$13="Y",INDEX(SC_2015!$D$9:$D$40,AA$4),0) -> 0 | AB19: =IF(AB$13="Y",INDEX(SC_2015!$D$9:$D$40,AB$4),0) -> 0 | AC19: =IF(AC$13="Y",INDEX(SC_2015!$D$9:$D$40,AC$4),0) -> 0 | AD19: =IF(AD$13="Y",INDEX(SC_2015!$D$9:$D$40,AD$4),0) -> 0
B20: 2016-2020 | C20: =IF(C$14="Y",INDEX(SC_2020!$D$9:$D$40,C$4),0) -> 0 | D20: =IF(D$14="Y",INDEX(SC_2020!$D$9:$D$40,D$4),0) -> 0 | E20: =IF(E$14="Y",INDEX(SC_2020!$D$9:$D$40,E$4),0) -> 200 | F20: =IF(F$14="Y",INDEX(SC_2020!$D$9:$D$40,F$4),0) -> 0 | G20: =IF(G$14="Y",INDEX(SC_2020!$D$9:$D$40,G$4),0) -> 0 | H20: =IF(H$14="Y",INDEX(SC_2020!$D$9:$D$40,H$4),0) -> 0 | I20: =IF(I$14="Y",INDEX(SC_2020!$D$9:$D$40,I$4),0) -> 0 | J20: =IF(J$14="Y",INDEX(SC_2020!$D$9:$D$40,J$4),0) -> 0 | K20: =IF(K$14="Y",INDEX(SC_2020!$D$9:$D$40,K$4),0) -> 25 | L20: =IF(L$14="Y",INDEX(SC_2020!$D$9:$D$40,L$4),0) -> 35 | M20: =IF(M$14="Y",INDEX(SC_2020!$D$9:$D$40,M$4),0) -> 20 | N20: =IF(N$14="Y",INDEX(SC_2020!$D$9:$D$40,N$4),0) -> 20 | O20: =IF(O$14="Y",INDEX(SC_2020!$D$9:$D$40,O$4),0) -> 20 | P20: =IF(P$14="Y",INDEX(SC_2020!$D$9:$D$40,P$4),0) -> 40 | Q20: =IF(Q$14="Y",INDEX(SC_2020!$D$9:$D$40,Q$4),0) -> 0 | R20: =IF(R$14="Y",INDEX(SC_2020!$D$9:$D$40,R$4),0) -> 0 | S20: =IF(S$14="Y",INDEX(SC_2020!$D$9:$D$40,S$4),0) -> 61 | T20: =IF(T$14="Y",INDEX(SC_2020!$D$9:$D$40,T$4),0) -> 28.34362267 | U20: =IF(U$14="Y",INDEX(SC_2020!$D$9:$D$40,U$4),0) -> 3.422882661 | V20: =IF(V$14="Y",INDEX(SC_2020!$D$9:$D$40,V$4),0) -> 113.1023098 | W20: =IF(W$14="Y",INDEX(SC_2020!$D$9:$D$40,W$4),0) -> 215.8572022 | X20: =IF(X$14="Y",INDEX(SC_2020!$D$9:$D$40,X$4),0) -> 0 | Y20: =IF(Y$14="Y",INDEX(SC_2020!$D$9:$D$40,Y$4),0) -> 0 | Z20: =IF(Z$14="Y",INDEX(SC_2020!$D$9:$D$40,Z$4),0) -> 0 | AA20: =IF(AA$14="Y",INDEX(SC_2020!$D$9:$D$40,AA$4),0) -> 0 | AB20: =IF(AB$14="Y",INDEX(SC_2020!$D$9:$D$40,AB$4),0) -> 0 | AC20: =IF(AC$14="Y",INDEX(SC_2020!$D$9:$D$40,AC$4),0) -> 0 | AD20: =IF(AD$14="Y",INDEX(SC_2020!$D$9:$D$40,AD$4),0) -> 0
B21: 2021-2030 | C21: =IF(C$15="Y",INDEX(SC_2030!$D$9:$D$40,C$4),0) -> 0 | D21: =IF(D$15="Y",INDEX(SC_2030!$D$9:$D$40,D$4),0) -> 300 | E21: =IF(E$15="Y",INDEX(SC_2030!$D$9:$D$40,E$4),0) -> 480 | F21: =IF(F$15="Y",INDEX(SC_2030!$D$9:$D$40,F$4),0) -> 800 | G21: =IF(G$15="Y",INDEX(SC_2030!$D$9:$D$40,G$4),0) -> 4000 | H21: =IF(H$15="Y",INDEX(SC_2030!$D$9:$D$40,H$4),0) -> 160 | I21: =IF(I$15="Y",INDEX(SC_2030!$D$9:$D$40,I$4),0) -> 800 | J21: =IF(J$15="Y",INDEX(SC_2030!$D$9:$D$40,J$4),0) -> 200 | K21: =IF(K$15="Y",INDEX(SC_2030!$D$9:$D$40,K$4),0) -> 50 | L21: =IF(L$15="Y",INDEX(SC_2030!$D$9:$D$40,L$4),0) -> 65 | M21: =IF(M$15="Y",INDEX(SC_2030!$D$9:$D$40,M$4),0) -> 6 | N21: =IF(N$15="Y",INDEX(SC_2030!$D$9:$D$40,N$4),0) -> 6 | O21: =IF(O$15="Y",INDEX(SC_2030!$D$9:$D$40,O$4),0) -> 20 | P21: =IF(P$15="Y",INDEX(SC_2030!$D$9:$D$40,P$4),0) -> 40 | Q21: =IF(Q$15="Y",INDEX(SC_2030!$D$9:$D$40,Q$4),0) -> 0 | R21: =IF(R$15="Y",INDEX(SC_2030!$D$9:$D$40,R$4),0) -> 0 | S21: =IF(S$15="Y",INDEX(SC_2030!$D$9:$D$40,S$4),0) -> 56 | T21: =IF(T$15="Y",INDEX(SC_2030!$D$9:$D$40,T$4),0) -> 64.36006992 | U21: =IF(U$15="Y",INDEX(SC_2030!$D$9:$D$40,U$4),0) -> 7.458593916 | V21: =IF(V$15="Y",INDEX(SC_2030!$D$9:$D$40,V$4),0) -> 380.0753511 | W21: =IF(W$15="Y",INDEX(SC_2030!$D$9:$D$40,W$4),0) -> 618.9290162 | X21: =IF(X$15="Y",INDEX(SC_2030!$D$9:$D$40,X$4),0) -> 0 | Y21: =IF(Y$15="Y",INDEX(SC_2030!$D$9:$D$40,Y$4),0) -> 0 | Z21: =IF(Z$15="Y",INDEX(SC_2030!$D$9:$D$40,Z$4),0) -> 0 | AA21: =IF(AA$15="Y",INDEX(SC_2030!$D$9:$D$40,AA$4),0) -> 0 | AB21: =IF(AB$15="Y",INDEX(SC_2030!$D$9:$D$40,AB$4),0) -> 0 | AC21: =IF(AC$15="Y",INDEX(SC_2030!$D$9:$D$40,AC$4),0) -> 0 | AD21: =IF(AD$15="Y",INDEX(SC_2030!$D$9:$D$40,AD$4),0) -> 0
B23: Total Capacity (MW)
C24: =C18 -> Wind (<10 kW) | D24: Wind (<100 kW) | E24: Large Wind C5 | F24: Large Wind C4 | G24: Offshore Wind | H24: Utility-Scale PV | I24: Commercial PV | J24: Residential PV | K24: Large CHP | L24: Small CHP | M24: Landfill Gas | N24: Anaerobic Digestion | O24: Biomass Power C1 | P24: Biomass Power C2 | Q24: Biomass Power C3 | R24: Biomass Power C4 | S24: Converted Hydro | T24: Res. Electric EE | U24: LI Electric EE | V24: CI Electric EE | W24: Appliance Standards | X24: AS Heat Pump | Y24: GS Heat Pump | Z24: Solar Hot Water | AA24: Biomass Thermal | AB24: Res. Gas EE | AC24: LI Gas EE | AD24: CI Gas EE
B25: 2015 | C25: =C19 -> 0 | D25: 0 | E25: 0 | F25: 0 | G25: 0 | H25: 0 | I25: 0 | J25: 0 | K25: 0 | L25: 5 | M25: 0.3 | N25: 0.3 | O25: 0 | P25: 0 | Q25: 0 | R25: 0 | S25: 0.5 | T25: 0 | U25: 0 | V25: 0 | W25: 0 | X25: 0 | Y25: 0 | Z25: 0 | AA25: 0 | AB25: 0 | AC25: 0 | AD25: 0
B26: 2016 | C26: =(C$30-C$25)/5+C25 -> 0 | D26: =(D$30-D$25)/5+D25 -> 0 | E26: 40 | F26: 0 | G26: 0 | H26: 0 | I26: 0 | J26: 0 | K26: 5 | L26: 12 | M26: 4.3 | N26: 4.3 | O26: 4 | P26: 8 | Q26: 0 | R26: 0 | S26: 12.7 | T26: 5.668724534 | U26: 0.6845765322 | V26: 22.62046197 | W26: 43.17144043 | X26: 0 | Y26: 0 | Z26: 0 | AA26: 0 | AB26: 0 | AC26: 0 | AD26: 0
B27: 2017 | C27: =(C$30-C$25)/5+C26 -> 0 | D27: 0 | E27: 80 | F27: 0 | G27: 0 | H27: 0 | I27: 0 | J27: 0 | K27: 10 | L27: 19 | M27: 8.3 | N27: 8.3 | O27: 8 | P27: 16 | Q27: 0 | R27: 0 | S27: 24.9 | T27: 11.33744907 | U27: 1.369153064 | V27: 45.24092393 | W27: 86.34288086 | X27: 0 | Y27: 0 | Z27: 0 | AA27: 0 | AB27: 0 | AC27: 0 | AD27: 0
B28: 2018 | C28: 0 | D28: 0 | E28: 120 | F28: 0 | G28: 0 | H28: 0 | I28: 0 | J28: 0 | K28: 15 | L28: 26 | M28: 12.3 | N28: 12.3 | O28: 12 | P28: 24 | Q28: 0 | R28: 0 | S28: 37.1 | T28: 17.0061736 | U28: 2.053729597 | V28: 67.8613859 | W28: 129.5143213 | X28: 0 | Y28: 0 | Z28: 0 | AA28: 0 | AB28: 0 | AC28: 0 | AD28: 0
B29: 2019 | C29: 0 | D29: 0 | E29: 160 | F29: 0 | G29: 0 | H29: 0 | I29: 0 | J29: 0 | K29: 20 | L29: 33 | M29: 16.3 | N29: 16.3 | O29: 16 | P29: 32 | Q29: 0 | R29: 0 | S29: 49.3 | T29: 22.67489814 | U29: 2.738306129 | V29: 90.48184787 | W29: 172.6857617 | X29: 0 | Y29: 0 | Z29: 0 | AA29: 0 | AB29: 0 | AC29: 0 | AD29: 0
B30: 2020 | C30: =C20+C25 -> 0 | D30: 0 | E30: 200 | F30: 0 | G30: 0 | H30: 0 | I30: 0 | J30: 0 | K30: 25 | L30: 40 | M30: 20.3 | N30: 20.3 | O30: 20 | P30: 40 | Q30: 0 | R30: 0 | S30: 61.5 | T30: 28.34362267 | U30: 3.422882661 | V30: 113.1023098 | W30: 215.8572022 | X30: 0 | Y30: 0 | Z30: 0 | AA30: 0 | AB30: 0 | AC30: 0 | AD30: 0
B31: 2021 | C31: =(C$40-C$30)/10+C30 -> 0 | D31: =(D$40-D$30)/10+D30 -> 30 | E31: 248 | F31: 80 | G31: 400 | H31: 16 | I31: 80 | J31: 20 | K31: 30 | L31: 46.5 | M31: 20.9 | N31: 20.9 | O31: 22 | P31: 44 | Q31: 0 | R31: 0 | S31: 67.1 | T31: 34.77962966 | U31: 4.168742053 | V31: 151.1098449 | W31: 277.7501038 | X31: 0 | Y31: 0 | Z31: 0 | AA31: 0 | AB31: 0 | AC31: 0 | AD31: 0
B32: 2022 | C32: =(C$40-C$30)/10+C31 -> 0 | D32: 60 | E32: 296 | F32: 160 | G32: 800 | H32: 32 | I32: 160 | J32: 40 | K32: 35 | L32: 53 | M32: 21.5 | N32: 21.5 | O32: 24 | P32: 48 | Q32: 0 | R32: 0 | S32: 72.7 | T32: 41.21563665 | U32: 4.914601444 | V32: 189.1173801 | W32: 339.6430054 | X32: 0 | Y32: 0 | Z32: 0 | AA32: 0 | AB32: 0 | AC32: 0 | AD32: 0
B33: 2023 | C33: 0 | D33: 90 | E33: 344 | F33: 240 | G33: 1200 | H33: 48 | I33: 240 | J33: 60 | K33: 40 | L33: 59.5 | M33: 22.1 | N33: 22.1 | O33: 26 | P33: 52 | Q33: 0 | R33: 0 | S33: 78.3 | T33: 47.65164365 | U33: 5.660460836 | V33: 227.1249152 | W33: 401.535907 | X33: 0 | Y33: 0 | Z33: 0 | AA33: 0 | AB33: 0 | AC33: 0 | AD33: 0
B34: 2024 | C34: 0 | D34: 120 | E34: 392 | F34: 320 | G34: 1600 | H34: 64 | I34: 320 | J34: 80 | K34: 45 | L34: 66 | M34: 22.7 | N34: 22.7 | O34: 28 | P34: 56 | Q34: 0 | R34: 0 | S34: 83.9 | T34: 54.08765064 | U34: 6.406320228 | V34: 265.1324503 | W34: 463.4288086 | X34: 0 | Y34: 0 | Z34: 0 | AA34: 0 | AB34: 0 | AC34: 0 | AD34: 0
B35: 2025 | C35: 0 | D35: 150 | E35: 440 | F35: 400 | G35: 2000 | H35: 80 | I35: 400 | J35: 100 | K35: 50 | L35: 72.5 | M35: 23.3 | N35: 23.3 | O35: 30 | P35: 60 | Q35: 0 | R35: 0 | S35: 89.5 | T35: 60.52365763 | U35: 7.152179619 | V35: 303.1399854 | W35: 525.3217103 | X35: 0 | Y35: 0 | Z35: 0 | AA35: 0 | AB35: 0 | AC35: 0 | AD35: 0
B36: 2026 | C36: 0 | D36: 180 | E36: 488 | F36: 480 | G36: 2400 | H36: 96 | I36: 480 | J36: 120 | K36: 55 | L36: 79 | M36: 23.9 | N36: 23.9 | O36: 32 | P36: 64 | Q36: 0 | R36: 0 | S36: 95.1 | T36: 66.95966462 | U36: 7.898039011 | V36: 341.1475205 | W36: 587.2146119 | X36: 0 | Y36: 0 | Z36: 0 | AA36: 0 | AB36: 0 | AC36: 0 | AD36: 0
B37: 2027 | C37: 0 | D37: 210 | E37: 536 | F37: 560 | G37: 2800 | H37: 112 | I37: 560 | J37: 140 | K37: 60 | L37: 85.5 | M37: 24.5 | N37: 24.5 | O37: 34 | P37: 68 | Q37: 0 | R37: 0 | S37: 100.7 | T37: 73.39567161 | U37: 8.643898403 | V37: 379.1550556 | W37: 649.1075135 | X37: 0 | Y37: 0 | Z37: 0 | AA37: 0 | AB37: 0 | AC37: 0 | AD37: 0
B38: 2028 | C38: 0 | D38: 240 | E38: 584 | F38: 640 | G38: 3200 | H38: 128 | I38: 640 | J38: 160 | K38: 65 | L38: 92 | M38: 25.1 | N38: 25.1 | O38: 36 | P38: 72 | Q38: 0 | R38: 0 | S38: 106.3 | T38: 79.83167861 | U38: 9.389757794 | V38: 417.1625907 | W38: 711.0004151 | X38: 0 | Y38: 0 | Z38: 0 | AA38: 0 | AB38: 0 | AC38: 0 | AD38: 0
B39: 2029 | C39: 0 | D39: 270 | E39: 632 | F39: 720 | G39: 3600 | H39: 144 | I39: 720 | J39: 180 | K39: =(K$40-K$30)/10+K38 -> 70 | L39: =(L$40-L$30)/10+L38 -> 98.5 | M39: =(M$40-M$30)/10+M38 -> 25.7 | N39: =(N$40-N$30)/10+N38 -> 25.7 | O39: =(O$40-O$30)/10+O38 -> 38 | P39: =(P$40-P$30)/10+P38 -> 76 | Q39: =(Q$40-Q$30)/10+Q38 -> 0 | R39: =(R$40-R$30)/10+R38 -> 0 | S39: =(S$40-S$30)/10+S38 -> 111.9 | T39: =(T$40-T$30)/10+T38 -> 86.2676856 | U39: =(U$40-U$30)/10+U38 -> 10.13561719 | V39: =(V$40-V$30)/10+V38 -> 455.1701259 | W39: =(W$40-W$30)/10+W38 -> 772.8933167 | X39: =(X$40-X$30)/10+X38 -> 0 | Y39: =(Y$40-Y$30)/10+Y38 -> 0 | Z39: =(Z$40-Z$30)/10+Z38 -> 0 | AA39: =(AA$40-AA$30)/10+AA38 -> 0 | AB39: =(AB$40-AB$30)/10+AB38 -> 0 | AC39: =(AC$40-AC$30)/10+AC38 -> 0 | AD39: =(AD$40-AD$30)/10+AD38 -> 0
B40: 2030 | C40: =C21+C30 -> 0 | D40: 300 | E40: 680 | F40: 800 | G40: 4000 | H40: 160 | I40: 800 | J40: 200 | K40: 75 | L40: 105 | M40: 26.3 | N40: 26.3 | O40: 40 | P40: 80 | Q40: 0 | R40: 0 | S40: 117.5 | T40: 92.70369259 | U40: 10.88147658 | V40: 493.177661 | W40: 834.7862183 | X40: 0 | Y40: 0 | Z40: 0 | AA40: 0 | AB40: 0 | AC40: 0 | AD40: 0
B42: Incremental Annual Savings (MWh / Year)
C43: =C$5 -> Wind (<10 kW) | D43: =D$5 -> Wind (<100 kW) | E43: Large Wind C5 | F43: Large Wind C4 | G43: Offshore Wind | H43: Utility-Scale PV | I43: Commercial PV | J43: Residential PV | K43: Large CHP | L43: Small CHP | M43: Landfill Gas | N43: Anaerobic Digestion | O43: Biomass Power C1 | P43: Biomass Power C2 | Q43: Biomass Power C3 | R43: Biomass Power C4 | S43: Converted Hydro | T43: Res. Electric EE | U43: LI Electric EE | V43: CI Electric EE | W43: Appliance Standards | X43: AS Heat Pump | Y43: GS Heat Pump | Z43: Solar Hot Water | AA43: Biomass Thermal | AB43: Res. Gas EE | AC43: LI Gas EE | AD43: CI Gas EE
B44: 2015 | C44: =IF(C$13="Y",INDEX(SC_2015!$E$9:$E$40,C$4),0) -> 0 | D44: =IF(D$13="Y",INDEX(SC_2015!$E$9:$E$40,D$4),0) -> 0 | E44: =IF(E$13="Y",INDEX(SC_2015!$E$9:$E$40,E$4),0) -> 0 | F44: =IF(F$13="Y",INDEX(SC_2015!$E$9:$E$40,F$4),0) -> 0 | G44: =IF(G$13="Y",INDEX(SC_2015!$E$9:$E$40,G$4),0) -> 0 | H44: =IF(H$13="Y",INDEX(SC_2015!$E$9:$E$40,H$4),0) -> 0 | I44: =IF(I$13="Y",INDEX(SC_2015!$E$9:$E$40,I$4),0) -> 0 | J44: =IF(J$13="Y",INDEX(SC_2015!$E$9:$E$40,J$4),0) -> 0 | K44: =IF(K$13="Y",INDEX(SC_2015!$E$9:$E$40,K$4),0) -> 0 | L44: =IF(L$13="Y",INDEX(SC_2015!$E$9:$E$40,L$4),0) -> 21900 | M44: =IF(M$13="Y",INDEX(SC_2015!$E$9:$E$40,M$4),0) -> 2062.5 | N44: =IF(N$13="Y",INDEX(SC_2015!$E$9:$E$40,N$4),0) -> 2365.2 | O44: =IF(O$13="Y",INDEX(SC_2015!$E$9:$E$40,O$4),0) -> 0 | P44: =IF(P$13="Y",INDEX(SC_2015!$E$9:$E$40,P$4),0) -> 0 | Q44: =IF(Q$13="Y",INDEX(SC_2015!$E$9:$E$40,Q$4),0) -> 0 | R44: =IF(R$13="Y",INDEX(SC_2015!$E$9:$E$40,R$4),0) -> 0 | S44: =IF(S$13="Y",INDEX(SC_2015!$E$9:$E$40,S$4),0) -> 1666.666667 | T44: =IF(T$13="Y",INDEX(SC_2015!$E$9:$E$40,T$4),0) -> 0 | U44: =IF(U$13="Y",INDEX(SC_2015!$E$9:$E$40,U$4),0) -> 0 | V44: =IF(V$13="Y",INDEX(SC_2015!$E$9:$E$40,V$4),0) -> 0 | W44: =IF(W$13="Y",INDEX(SC_2015!$E$9:$E$40,W$4),0) -> 0 | X44: =IF(X$13="Y",INDEX(SC_2015!$E$9:$E$40,X$4),0) -> 0 | Y44: =IF(Y$13="Y",INDEX(SC_2015!$E$9:$E$40,Y$4),0) -> 0 | Z44: =IF(Z$13="Y",INDEX(SC_2015!$E$9:$E$40,Z$4),0) -> 0 | AA44: =IF(AA$13="Y",INDEX(SC_2015!$E$9:$E$40,AA$4),0) -> 0 | AB44: =IF(AB$13="Y",INDEX(SC_2015!$E$9:$E$40,AB$4),0) -> 0 | AC44: =IF(AC$13="Y",INDEX(SC_2015!$E$9:$E$40,AC$4),0) -> 0 | AD44: =IF(AD$13="Y",INDEX(SC_2015!$E$9:$E$40,AD$4),0) -> 0
B45: 2016-2020 | C45: =IF(C$14="Y",INDEX(SC_2020!$E$9:$E$40,C$4),0) -> 0 | D45: =IF(D$14="Y",INDEX(SC_2020!$E$9:$E$40,D$4),0) -> 0 | E45: =IF(E$14="Y",INDEX(SC_2020!$E$9:$E$40,E$4),0) -> 718320 | F45: =IF(F$14="Y",INDEX(SC_2020!$E$9:$E$40,F$4),0) -> 0 | G45: =IF(G$14="Y",INDEX(SC_2020!$E$9:$E$40,G$4),0) -> 0 | H45: =IF(H$14="Y",INDEX(SC_2020!$E$9:$E$40,H$4),0) -> 0 | I45: =IF(I$14="Y",INDEX(SC_2020!$E$9:$E$40,I$4),0) -> 0 | J45: =IF(J$14="Y",INDEX(SC_2020!$E$9:$E$40,J$4),0) -> 0 | K45: =IF(K$14="Y",INDEX(SC_2020!$E$9:$E$40,K$4),0) -> 146730 | L45: =IF(L$14="Y",INDEX(SC_2020!$E$9:$E$40,L$4),0) -> 153300 | M45: =IF(M$14="Y",INDEX(SC_2020!$E$9:$E$40,M$4),0) -> 137500 | N45: =IF(N$14="Y",INDEX(SC_2020!$E$9:$E$40,N$4),0) -> 157680 | O45: =IF(O$14="Y",INDEX(SC_2020!$E$9:$E$40,O$4),0) -> 140160 | P45: =IF(P$14="Y",INDEX(SC_2020!$E$9:$E$40,P$4),0) -> 280320 | Q45: =IF(Q$14="Y",INDEX(SC_2020!$E$9:$E$40,Q$4),0) -> 0 | R45: =IF(R$14="Y",INDEX(SC_2020!$E$9:$E$40,R$4),0) -> 0 | S45: =IF(S$14="Y",INDEX(SC_2020!$E$9:$E$40,S$4),0) -> 203333.3333 | T45: =IF(T$14="Y",INDEX(SC_2020!$E$9:$E$40,T$4),0) -> 136559.574 | U45: =IF(U$14="Y",INDEX(SC_2020!$E$9:$E$40,U$4),0) -> 16491.44866 | V45: =IF(V$14="Y",INDEX(SC_2020!$E$9:$E$40,V$4),0) -> 544926.9288 | W45: =IF(W$14="Y",INDEX(SC_2020!$E$9:$E$40,W$4),0) -> 1040000 | X45: =IF(X$14="Y",INDEX(SC_2020!$E$9:$E$40,X$4),0) -> 0 | Y45: =IF(Y$14="Y",INDEX(SC_2020!$E$9:$E$40,Y$4),0) -> 0 | Z45: =IF(Z$14="Y",INDEX(SC_2020!$E$9:$E$40,Z$4),0) -> 0 | AA45: =IF(AA$14="Y",INDEX(SC_2020!$E$9:$E$40,AA$4),0) -> 0 | AB45: =IF(AB$14="Y",INDEX(SC_2020!$E$9:$E$40,AB$4),0) -> 0 | AC45: =IF(AC$14="Y",INDEX(SC_2020!$E$9:$E$40,AC$4),0) -> 0 | AD45: =IF(AD$14="Y",INDEX(SC_2020!$E$9:$E$40,AD$4),0) -> 0
B46: 2021-2030 | C46: =IF(C$15="Y",INDEX(SC_2030!$E$9:$E$40,C$4),0) -> 0 | D46: =IF(D$15="Y",INDEX(SC_2030!$E$9:$E$40,D$4),0) -> 657000 | E46: =IF(E$15="Y",INDEX(SC_2030!$E$9:$E$40,E$4),0) -> 1766016 | F46: =IF(F$15="Y",INDEX(SC_2030!$E$9:$E$40,F$4),0) -> 2803200 | G46: =IF(G$15="Y",INDEX(SC_2030!$E$9:$E$40,G$4),0) -> 15768000 | H46: =IF(H$15="Y",INDEX(SC_2030!$E$9:$E$40,H$4),0) -> 257544 | I46: =IF(I$15="Y",INDEX(SC_2030!$E$9:$E$40,I$4),0) -> 1261440 | J46: =IF(J$15="Y",INDEX(SC_2030!$E$9:$E$40,J$4),0) -> 284700 | K46: =IF(K$15="Y",INDEX(SC_2030!$E$9:$E$40,K$4),0) -> 293460 | L46: =IF(L$15="Y",INDEX(SC_2030!$E$9:$E$40,L$4),0) -> 284700 | M46: =IF(M$15="Y",INDEX(SC_2030!$E$9:$E$40,M$4),0) -> 41250 | N46: =IF(N$15="Y",INDEX(SC_2030!$E$9:$E$40,N$4),0) -> 47304 | O46: =IF(O$15="Y",INDEX(SC_2030!$E$9:$E$40,O$4),0) -> 140160 | P46: =IF(P$15="Y",INDEX(SC_2030!$E$9:$E$40,P$4),0) -> 280320 | Q46: =IF(Q$15="Y",INDEX(SC_2030!$E$9:$E$40,Q$4),0) -> 0 | R46: =IF(R$15="Y",INDEX(SC_2030!$E$9:$E$40,R$4),0) -> 0 | S46: =IF(S$15="Y",INDEX(SC_2030!$E$9:$E$40,S$4),0) -> 186666.6667 | T46: =IF(T$15="Y",INDEX(SC_2030!$E$9:$E$40,T$4),0) -> 310086.8169 | U46: =IF(U$15="Y",INDEX(SC_2030!$E$9:$E$40,U$4),0) -> 35935.50549 | V46: =IF(V$15="Y",INDEX(SC_2030!$E$9:$E$40,V$4),0) -> 1831203.042 | W46: =IF(W$15="Y",INDEX(SC_2030!$E$9:$E$40,W$4),0) -> 2982000 | X46: =IF(X$15="Y",INDEX(SC_2030!$E$9:$E$40,X$4),0) -> 0 | Y46: =IF(Y$15="Y",INDEX(SC_2030!$E$9:$E$40,Y$4),0) -> 0 | Z46: =IF(Z$15="Y",INDEX(SC_2030!$E$9:$E$40,Z$4),0) -> 0 | AA46: =IF(AA$15="Y",INDEX(SC_2030!$E$9:$E$40,AA$4),0) -> 0 | AB46: =IF(AB$15="Y",INDEX(SC_2030!$E$9:$E$40,AB$4),0) -> 0 | AC46: =IF(AC$15="Y",INDEX(SC_2030!$E$9:$E$40,AC$4),0) -> 0 | AD46: =IF(AD$15="Y",INDEX(SC_2030!$E$9:$E$40,AD$4),0) -> 0
B48: Incremental Annual Savings (MWh / Year) | T48: From G:\14-128 MA DOER Low Demand Scenario\Task 2. Supply Curve\EE workbook (20141112 PK).xlsx
C49: =C43 -> Wind (<10 kW) | D49: Wind (<100 kW) | E49: Large Wind C5 | F49: Large Wind C4 | G49: Offshore Wind | H49: Utility-Scale PV | I49: Commercial PV | J49: Residential PV | K49: Large CHP | L49: Small CHP | M49: Landfill Gas | N49: Anaerobic Digestion | O49: Biomass Power C1 | P49: Biomass Power C2 | Q49: Biomass Power C3 | R49: Biomass Power C4 | S49: Converted Hydro | T49: Res. Electric EE | U49: LI Electric EE | V49: CI Electric EE | W49: Appliance Standards | X49: AS Heat Pump | Y49: GS Heat Pump | Z49: Solar Hot Water | AA49: Biomass Thermal | AB49: Res. Gas EE | AC49: LI Gas EE | AD49: CI Gas EE | AF49: Sum of Electric EE and Appliance standards
B50: 2015 | C50: =C44 -> 0 | D50: =D44 -> 0 | E50: 0 | F50: 0 | G50: 0 | H50: 0 | I50: 0 | J50: 0 | K50: 0 | L50: 21900 | M50: 2062.5 | N50: 2365.2 | O50: 0 | P50: 0 | Q50: 0 | R50: 0 | S50: 1666.666667 | T50: 0 | U50: 0 | V50: 0 | W50: 0 | X50: 0 | Y50: 0 | Z50: 0 | AA50: 0 | AB50: 0 | AC50: 0 | AD50: 0 | AF50: =SUM(T50:W50) -> 0
B51: 2016 | C51: =(C$55-C$50)/5+C50 -> 0 | D51: =(D$55-D$50)/5+D50 -> 0 | E51: 143664 | F51: 0 | G51: 0 | H51: 0 | I51: 0 | J51: 0 | K51: 29346 | L51: 52560 | M51: 29562.5 | N51: 33901.2 | O51: 28032 | P51: 56064 | Q51: 0 | R51: 0 | S51: 42333.33333 | T51: 9543.799477 | U51: 1037.345284 | V51: 26882.00935 | W51: 208000 | X51: 0 | Y51: 0 | Z51: 0 | AA51: 0 | AB51: 0 | AC51: 0 | AD51: 0 | AF51: =SUM(T51:W51) -> 245463.1541
B52: 2017 | C52: =(C$55-C$50)/5+C51 -> 0 | D52: 0 | E52: 287328 | F52: 0 | G52: 0 | H52: 0 | I52: 0 | J52: 0 | K52: 58692 | L52: 83220 | M52: 57062.5 | N52: 65437.2 | O52: 56064 | P52: 112128 | Q52: 0 | R52: 0 | S52: 83000 | T52: 32689.64446 | U52: 3521.357704 | V52: 98370.86586 | W52: 416000 | X52: 0 | Y52: 0 | Z52: 0 | AA52: 0 | AB52: 0 | AC52: 0 | AD52: 0 | AF52: 550581.868
B53: 2018 | C53: 0 | D53: 0 | E53: 430992 | F53: 0 | G53: 0 | H53: 0 | I53: 0 | J53: 0 | K53: 88038 | L53: 113880 | M53: 84562.5 | N53: 96973.2 | O53: 84096 | P53: 168192 | Q53: 0 | R53: 0 | S53: 123666.6667 | T53: 64663.60936 | U53: 7126.373576 | V53: 213609.5233 | W53: 624000 | X53: 0 | Y53: 0 | Z53: 0 | AA53: 0 | AB53: 0 | AC53: 0 | AD53: 0 | AF53: 909399.5063
B54: 2019 | C54: 0 | D54: 0 | E54: 574656 | F54: 0 | G54: 0 | H54: 0 | I54: 0 | J54: 0 | K54: 117384 | L54: 144540 | M54: 112062.5 | N54: 128509.2 | O54: 112128 | P54: 224256 | Q54: 0 | R54: 0 | S54: 164333.3333 | T54: 101130.0665 | U54: 11869.72701 | V54: 377768.5402 | W54: 832000 | X54: 0 | Y54: 0 | Z54: 0 | AA54: 0 | AB54: 0 | AC54: 0 | AD54: 0 | AF54: 1322768.334
B55: 2020 | C55: =C45+C50 -> 0 | D55: =D45+D50 -> 0 | E55: 718320 | F55: 0 | G55: 0 | H55: 0 | I55: 0 | J55: 0 | K55: 146730 | L55: 175200 | M55: 139562.5 | N55: 160045.2 | O55: 140160 | P55: 280320 | Q55: 0 | R55: 0 | S55: 205000 | T55: 136559.574 | U55: 16491.44866 | V55: 544926.9288 | W55: 1040000 | X55: 0 | Y55: 0 | Z55: 0 | AA55: 0 | AB55: 0 | AC55: 0 | AD55: 0 | AF55: 1737977.951
B56: 2021 | C56: =(C$65-C$55)/10+C55 -> 0 | D56: =(D$65-D$55)/10+D55 -> 65700 | E56: 894921.6 | F56: 280320 | G56: 1576800 | H56: 25754.4 | I56: 126144 | J56: 28470 | K56: 176076 | L56: 203670 | M56: 143687.5 | N56: 164775.6 | O56: 154176 | P56: 308352 | Q56: 0 | R56: 0 | S56: 223666.6667 | T56: 168325.7427 | U56: 20800.68781 | V56: 717932.1059 | W56: 1338200 | X56: 0 | Y56: 0 | Z56: 0 | AA56: 0 | AB56: 0 | AC56: 0 | AD56: 0 | AF56: 2245258.536
B57: 2022 | C57: =(C$65-C$55)/10+C56 -> 0 | D57: 131400 | E57: 1071523.2 | F57: 560640 | G57: 3153600 | H57: 51508.8 | I57: 252288 | J57: 56940 | K57: 205422 | L57: 232140 | M57: 147812.5 | N57: 169506 | O57: 168192 | P57: 336384 | Q57: 0 | R57: 0 | S57: 242333.3333 | T57: 197419.6665 | U57: 23924.84964 | V57: 896665.5724 | W57: 1636400 | X57: 0 | Y57: 0 | Z57: 0 | AA57: 0 | AB57: 0 | AC57: 0 | AD57: 0 | AF57: 2754410.089
B58: 2023 | C58: 0 | D58: 197100 | E58: 1248124.8 | F58: 840960 | G58: 4730400 | H58: 77263.2 | I58: 378432 | J58: 85410 | K58: 234768 | L58: 260610 | M58: 151937.5 | N58: 174236.4 | O58: 182208 | P58: 364416 | Q58: 0 | R58: 0 | S58: 261000 | T58: 225170.4151 | U58: 26525.53352 | V58: 1079136.659 | W58: 1934600 | X58: 0 | Y58: 0 | Z58: 0 | AA58: 0 | AB58: 0 | AC58: 0 | AD58: 0 | AF58: 3265432.608
B59: 2024 | C59: 0 | D59: 262800 | E59: 1424726.4 | F59: 1121280 | G59: 6307200 | H59: 103017.6 | I59: 504576 | J59: 113880 | K59: 264114 | L59: 289080 | M59: 156062.5 | N59: 178966.8 | O59: 196224 | P59: 392448 | Q59: 0 | R59: 0 | S59: 279666.6667 | T59: 253421.5704 | U59: 29746.39743 | V59: 1262402.752 | W59: 2232800 | X59: 0 | Y59: 0 | Z59: 0 | AA59: 0 | AB59: 0 | AC59: 0 | AD59: 0 | AF59: 3778370.719
B60: 2025 | C60: 0 | D60: 328500 | E60: 1601328 | F60: 1401600 | G60: 7884000 | H60: 128772 | I60: 630720 | J60: 142350 | K60: 293460 | L60: 317550 | M60: 160187.5 | N60: 183697.2 | O60: 210240 | P60: 420480 | Q60: 0 | R60: 0 | S60: 298333.3333 | T60: 282593.1886 | U60: 33170.53589 | V60: 1446477.94 | W60: 2531000 | X60: 0 | Y60: 0 | Z60: 0 | AA60: 0 | AB60: 0 | AC60: 0 | AD60: 0 | AF60: 4293241.665
B61: 2026 | C61: 0 | D61: 394200 | E61: 1777929.6 | F61: 1681920 | G61: 9460800 | H61: 154526.4 | I61: 756864 | J61: 170820 | K61: 322806 | L61: 346020 | M61: 164312.5 | N61: 188427.6 | O61: 224256 | P61: 448512 | Q61: 0 | R61: 0 | S61: 317000 | T61: 312457.1507 | U61: 36675.94107 | V61: 1631729.75 | W61: 2829200 | X61: 0 | Y61: 0 | Z61: 0 | AA61: 0 | AB61: 0 | AC61: 0 | AD61: 0 | AF61: 4810062.841
B62: 2027 | C62: 0 | D62: 459900 | E62: 1954531.2 | F62: 1962240 | G62: 11037600 | H62: 180280.8 | I62: 883008 | J62: 199290 | K62: 352152 | L62: 374490 | M62: 168437.5 | N62: 193158 | O62: 238272 | P62: 476544 | Q62: 0 | R62: 0 | S62: 335666.6667 | T62: 342522.2877 | U62: 40204.95998 | V62: 1818724.556 | W62: 3127400 | X62: 0 | Y62: 0 | Z62: 0 | AA62: 0 | AB62: 0 | AC62: 0 | AD62: 0 | AF62: 5328851.803
B63: 2028 | C63: 0 | D63: 525600 | E63: 2131132.8 | F63: 2242560 | G63: 12614400 | H63: 206035.2 | I63: 1009152 | J63: 227760 | K63: 381498 | L63: 402960 | M63: 172562.5 | N63: 197888.4 | O63: 252288 | P63: 504576 | Q63: 0 | R63: 0 | S63: 354333.3333 | T63: 376558.616 | U63: 44200.11378 | V63: 2003267.532 | W63: 3425600 | X63: 0 | Y63: 0 | Z63: 0 | AA63: 0 | AB63: 0 | AC63: 0 | AD63: 0 | AF63: 5849626.262
B64: 2029 | C64: 0 | D64: 591300 | E64: 2307734.4 | F64: 2522880 | G64: 14191200 | H64: 231789.6 | I64: 1135296 | J64: 256230 | K64: =(K$65-K$55)/10+K63 -> 410844 | L64: =(L$65-L$55)/10+L63 -> 431430 | M64: =(M$65-M$55)/10+M63 -> 176687.5 | N64: =(N$65-N$55)/10+N63 -> 202618.8 | O64: =(O$65-O$55)/10+O63 -> 266304 | P64: =(P$65-P$55)/10+P63 -> 532608 | Q64: =(Q$65-Q$55)/10+Q63 -> 0 | R64: =(R$65-R$55)/10+R63 -> 0 | S64: =(S$65-S$55)/10+S63 -> 373000 | T64: 411445.497 | U64: 48295.10468 | V64: 2188863.487 | W64: =(W$65-W$55)/10+W63 -> 3723800 | X64: =(X$65-X$55)/10+X63 -> 0 | Y64: =(Y$65-Y$55)/10+Y63 -> 0 | Z64: =(Z$65-Z$55)/10+Z63 -> 0 | AA64: =(AA$65-AA$55)/10+AA63 -> 0 | AB64: =(AB$65-AB$55)/10+AB63 -> 0 | AC64: =(AC$65-AC$55)/10+AC63 -> 0 | AD64: =(AD$65-AD$55)/10+AD63 -> 0 | AF64: 6372404.089
B65: 2030 | C65: =C46+C55 -> 0 | D65: =D46+D55 -> 657000 | E65: 2484336 | F65: 2803200 | G65: 15768000 | H65: 257544 | I65: 1261440 | J65: 284700 | K65: 440190 | L65: 459900 | M65: 180812.5 | N65: 207349.2 | O65: 280320 | P65: 560640 | Q65: 0 | R65: 0 | S65: 391666.6667 | T65: 446646.3909 | U65: 52426.95415 | V65: 2376129.971 | W65: 4022000 | X65: 0 | Y65: 0 | Z65: 0 | AA65: 0 | AB65: 0 | AC65: 0 | AD65: 0 | AF65: 6897203.316
B67: Incremental Winter Peak Hour Savings (Peak Hour MW) | T67: From G:\14-128 MA DOER Low Demand Scenario\Task 2. Supply Curve\EE workbook (20141112 PK).xlsx
C68: =C5 -> Wind (<10 kW) | D68: =D5 -> Wind (<100 kW) | E68: Large Wind C5 | F68: Large Wind C4 | G68: Offshore Wind | H68: Utility-Scale PV | I68: Commercial PV | J68: Residential PV | K68: Large CHP | L68: Small CHP | M68: Landfill Gas | N68: Anaerobic Digestion | O68: Biomass Power C1 | P68: Biomass Power C2 | Q68: Biomass Power C3 | R68: Biomass Power C4 | S68: Converted Hydro | T68: Res. Electric EE | U68: LI Electric EE | V68: CI Electric EE | W68: Appliance Standards | X68: AS Heat Pump | Y68: GS Heat Pump | Z68: Solar Hot Water | AA68: Biomass Thermal | AB68: Res. Gas EE | AC68: LI Gas EE | AD68: CI Gas EE | AF68: Sum of Electric EE and Appliance standards
B69: 2015 | T69: 0 | U69: 0 | V69: 0 | AF69: =SUM(T69:W69) -> 0
B70: 2016 | T70: 2.136917769 | U70: 0.292200112 | V70: 3.028090898 | AF70: 5.457208779
B71: 2017 | T71: 7.319420559 | U71: 0.9918983887 | V71: 11.08086526 | AF71: 19.39218421
B72: 2018 | T72: 14.47859588 | U72: 2.007361666 | V72: 24.06178218 | AF72: 40.54773973
B73: 2019 | T73: 22.64366898 | U73: 3.343472628 | V73: 42.55327284 | AF73: 68.54041444
B74: 2020 | T74: 30.5765624 | U74: 4.645322267 | V74: 61.38262405 | AF74: 96.60450871
B75: 2021 | T75: 37.68921083 | U75: 5.859151628 | V75: 80.87057955 | AF75: 124.418942
B76: 2022 | T76: 44.20352652 | U76: 6.739167616 | V76: 101.0037912 | AF76: 151.9464853
B77: 2023 | T77: 50.41709669 | U77: 7.471729987 | V77: 121.5580225 | AF77: 179.4468491
B78: 2024 | T78: 56.74271113 | U78: 8.378985083 | V78: 142.2018061 | AF78: 207.3235024
B79: 2025 | T79: 63.27442309 | U79: 9.343498691 | V79: 162.9367295 | AF79: 235.5546513
B80: 2026 | T80: 69.96115528 | U80: 10.33090356 | V80: 183.8041919 | AF80: 264.0962507
B81: 2027 | T81: 76.69293183 | U81: 11.32495996 | V81: 204.8679919 | AF81: 292.8858837
B82: 2028 | T82: 84.31388353 | U82: 12.45031755 | V82: 225.6556086 | AF82: 322.4198097
B83: 2029 | T83: 92.1252794 | U83: 13.60379732 | V83: 246.5618368 | AF83: 352.2909136
B84: 2030 | T84: 100.0069848 | U84: 14.76765944 | V84: 267.6562397 | AF84: 382.4308839
B86: Incremental Annual Savings (MMBtu / Year)
C87: =C5 -> Wind (<10 kW) | D87: Wind (<100 kW) | E87: Large Wind C5 | F87: Large Wind C4 | G87: Offshore Wind | H87: Utility-Scale PV | I87: Commercial PV | J87: Residential PV | K87: Large CHP | L87: Small CHP | M87: Landfill Gas | N87: Anaerobic Digestion | O87: Biomass Power C1 | P87: Biomass Power C2 | Q87: Biomass Power C3 | R87: Biomass Power C4 | S87: Converted Hydro | T87: Res. Electric EE | U87: LI Electric EE | V87: CI Electric EE | W87: Appliance Standards | X87: AS Heat Pump | Y87: GS Heat Pump | Z87: Solar Hot Water | AA87: Biomass Thermal | AB87: Res. Gas EE | AC87: LI Gas EE | AD87: CI Gas EE
B88: 2015 | C88: =IF(C$13="Y",INDEX(SC_2015!$F$9:$F$40,C$4),0) -> 0 | D88: =IF(D$13="Y",INDEX(SC_2015!$F$9:$F$40,D$4),0) -> 0 | E88: =IF(E$13="Y",INDEX(SC_2015!$F$9:$F$40,E$4),0) -> 0 | F88: =IF(F$13="Y",INDEX(SC_2015!$F$9:$F$40,F$4),0) -> 0 | G88: =IF(G$13="Y",INDEX(SC_2015!$F$9:$F$40,G$4),0) -> 0 | H88: =IF(H$13="Y",INDEX(SC_2015!$F$9:$F$40,H$4),0) -> 0 | I88: =IF(I$13="Y",INDEX(SC_2015!$F$9:$F$40,I$4),0) -> 0 | J88: =IF(J$13="Y",INDEX(SC_2015!$F$9:$F$40,J$4),0) -> 0 | K88: =IF(K$13="Y",INDEX(SC_2015!$F$9:$F$40,K$4),0) -> 0 | L88: =IF(L$13="Y",INDEX(SC_2015!$F$9:$F$40,L$4),0) -> 183960 | M88: =IF(M$13="Y",INDEX(SC_2015!$F$9:$F$40,M$4),0) -> 17325 | N88: =IF(N$13="Y",INDEX(SC_2015!$F$9:$F$40,N$4),0) -> 19867.68 | O88: =IF(O$13="Y",INDEX(SC_2015!$F$9:$F$40,O$4),0) -> 0 | P88: =IF(P$13="Y",INDEX(SC_2015!$F$9:$F$40,P$4),0) -> 0 | Q88: =IF(Q$13="Y",INDEX(SC_2015!$F$9:$F$40,Q$4),0) -> 0 | R88: =IF(R$13="Y",INDEX(SC_2015!$F$9:$F$40,R$4),0) -> 0 | S88: =IF(S$13="Y",INDEX(SC_2015!$F$9:$F$40,S$4),0) -> 14000 | W88: =IF(W$13="Y",INDEX(SC_2015!$F$9:$F$40,W$4),0) -> 0 | X88: =IF(X$13="Y",INDEX(SC_2015!$F$9:$F$40,X$4),0) -> 0 | Y88: =IF(Y$13="Y",INDEX(SC_2015!$F$9:$F$40,Y$4),0) -> 0 | Z88: =IF(Z$13="Y",INDEX(SC_2015!$F$9:$F$40,Z$4),0) -> 1572.8 | AA88: =IF(AA$13="Y",INDEX(SC_2015!$F$9:$F$40,AA$4),0) -> 0
B89: 2016-2020 | C89: =IF(C$14="Y",INDEX(SC_2020!$F$9:$F$40,C$4),0) -> 0 | D89: =IF(D$14="Y",INDEX(SC_2020!$F$9:$F$40,D$4),0) -> 0 | E89: =IF(E$14="Y",INDEX(SC_2020!$F$9:$F$40,E$4),0) -> 6033888 | F89: =IF(F$14="Y",INDEX(SC_2020!$F$9:$F$40,F$4),0) -> 0 | G89: =IF(G$14="Y",INDEX(SC_2020!$F$9:$F$40,G$4),0) -> 0 | H89: =IF(H$14="Y",INDEX(SC_2020!$F$9:$F$40,H$4),0) -> 0 | I89: =IF(I$14="Y",INDEX(SC_2020!$F$9:$F$40,I$4),0) -> 0 | J89: =IF(J$14="Y",INDEX(SC_2020!$F$9:$F$40,J$4),0) -> 0 | K89: =IF(K$14="Y",INDEX(SC_2020!$F$9:$F$40,K$4),0) -> 1232532 | L89: =IF(L$14="Y",INDEX(SC_2020!$F$9:$F$40,L$4),0) -> 1287720 | M89: =IF(M$14="Y",INDEX(SC_2020!$F$9:$F$40,M$4),0) -> 1155000 | N89: =IF(N$14="Y",INDEX(SC_2020!$F$9:$F$40,N$4),0) -> 1324512 | O89: =IF(O$14="Y",INDEX(SC_2020!$F$9:$F$40,O$4),0) -> 1177344 | P89: =IF(P$14="Y",INDEX(SC_2020!$F$9:$F$40,P$4),0) -> 2354688 | Q89: =IF(Q$14="Y",INDEX(SC_2020!$F$9:$F$40,Q$4),0) -> 0 | R89: =IF(R$14="Y",INDEX(SC_2020!$F$9:$F$40,R$4),0) -> 0 | S89: =IF(S$14="Y",INDEX(SC_2020!$F$9:$F$40,S$4),0) -> 1708000 | W89: =IF(W$14="Y",INDEX(SC_2020!$F$9:$F$40,W$4),0) -> 8736000 | X89: =IF(X$14="Y",INDEX(SC_2020!$F$9:$F$40,X$4),0) -> 0 | Y89: =IF(Y$14="Y",INDEX(SC_2020!$F$9:$F$40,Y$4),0) -> 0 | Z89: =IF(Z$14="Y",INDEX(SC_2020!$F$9:$F$40,Z$4),0) -> 0 | AA89: =IF(AA$14="Y",INDEX(SC_2020!$F$9:$F$40,AA$4),0) -> 0
B90: 2021-2030 | C90: =IF(C$15="Y",INDEX(SC_2030!$F$9:$F$40,C$4),0) -> 0 | D90: =IF(D$15="Y",INDEX(SC_2030!$F$9:$F$40,D$4),0) -> 5518800 | E90: =IF(E$15="Y",INDEX(SC_2030!$F$9:$F$40,E$4),0) -> 14834534.4 | F90: =IF(F$15="Y",INDEX(SC_2030!$F$9:$F$40,F$4),0) -> 23546880 | G90: =IF(G$15="Y",INDEX(SC_2030!$F$9:$F$40,G$4),0) -> 132451200 | H90: =IF(H$15="Y",INDEX(SC_2030!$F$9:$F$40,H$4),0) -> 2163369.6 | I90: =IF(I$15="Y",INDEX(SC_2030!$F$9:$F$40,I$4),0) -> 10596096 | J90: =IF(J$15="Y",INDEX(SC_2030!$F$9:$F$40,J$4),0) -> 2391480 | K90: =IF(K$15="Y",INDEX(SC_2030!$F$9:$F$40,K$4),0) -> 2465064 | L90: =IF(L$15="Y",INDEX(SC_2030!$F$9:$F$40,L$4),0) -> 2391480 | M90: =IF(M$15="Y",INDEX(SC_2030!$F$9:$F$40,M$4),0) -> 346500 | N90: =IF(N$15="Y",INDEX(SC_2030!$F$9:$F$40,N$4),0) -> 397353.6 | O90: =IF(O$15="Y",INDEX(SC_2030!$F$9:$F$40,O$4),0) -> 1177344 | P90: =IF(P$15="Y",INDEX(SC_2030!$F$9:$F$40,P$4),0) -> 2354688 | Q90: =IF(Q$15="Y",INDEX(SC_2030!$F$9:$F$40,Q$4),0) -> 0 | R90: =IF(R$15="Y",INDEX(SC_2030!$F$9:$F$40,R$4),0) -> 0 | S90: =IF(S$15="Y",INDEX(SC_2030!$F$9:$F$40,S$4),0) -> 1568000 | W90: =IF(W$15="Y",INDEX(SC_2030!$F$9:$F$40,W$4),0) -> 25048800 | X90: =IF(X$15="Y",INDEX(SC_2030!$F$9:$F$40,X$4),0) -> 0 | Y90: =IF(Y$15="Y",INDEX(SC_2030!$F$9:$F$40,Y$4),0) -> 0 | Z90: =IF(Z$15="Y",INDEX(SC_2030!$F$9:$F$40,Z$4),0) -> 0 | AA90: =IF(AA$15="Y",INDEX(SC_2030!$F$9:$F$40,AA$4),0) -> 1126428
B92: Incremental Annual Savings (MMBtu / Year) | AB92: From G:\14-128 MA DOER Low Demand Scenario\Task 2. Supply Curve\EE workbook (20141112 PK).xlsx
C93: =C87 -> Wind (<10 kW) | D93: Wind (<100 kW) | E93: Large Wind C5 | F93: Large Wind C4 | G93: Offshore Wind | H93: Utility-Scale PV | I93: Commercial PV | J93: Residential PV | K93: Large CHP | L93: Small CHP | M93: Landfill Gas | N93: Anaerobic Digestion | O93: Biomass Power C1 | P93: Biomass Power C2 | Q93: Biomass Power C3 | R93: Biomass Power C4 | S93: Converted Hydro | T93: Res. Electric EE | U93: LI Electric EE | V93: CI Electric EE | W93: Appliance Standards | X93: AS Heat Pump | Y93: GS Heat Pump | Z93: Solar Hot Water | AA93: Biomass Thermal | AB93: Res. Gas EE | AC93: LI Gas EE | AD93: CI Gas EE
B94: 2015 | C94: =C88 -> 0 | D94: 0 | E94: 0 | F94: 0 | G94: 0 | H94: 0 | I94: 0 | J94: 0 | K94: 0 | L94: 183960 | M94: 17325 | N94: 19867.68 | O94: 0 | P94: 0 | Q94: 0 | R94: 0 | S94: 14000 | T94: =T50*annual_marginal_heat_rate -> 0 | U94: 0 | V94: 0 | W94: =W88 -> 0 | X94: 0 | Y94: 0 | Z94: 1572.8 | AA94: 0 | AB94: 0 | AC94: 0 | AD94: 0
B95: 2016 | C95: =(C$99-C$94)/5+C94 -> 0 | D95: 0 | E95: 1206777.6 | F95: 0 | G95: 0 | H95: 0 | I95: 0 | J95: 0 | K95: 246506.4 | L95: 441504 | M95: 248325 | N95: 284770.08 | O95: 235468.8 | P95: 470937.6 | Q95: 0 | R95: 0 | S95: 355600 | T95: 80167.91561 | U95: 8713.700386 | V95: 225808.8785 | W95: =(W$99-W$94)/5+W94 -> 1747200 | X95: =(X$99-X$94)/5+X94 -> 0 | Y95: 0 | Z95: 1572.8 | AA95: 0 | AB95: 569652.3286 | AC95: 539194.0324 | AD95: 81814.37938
B96: 2017 | C96: =(C$99-C$94)/5+C95 -> 0 | D96: =(D$99-D$94)/5+D95 -> 0 | E96: 2413555.2 | F96: 0 | G96: 0 | H96: 0 | I96: 0 | J96: 0 | K96: 493012.8 | L96: 699048 | M96: 479325 | N96: =(N$99-N$94)/5+N95 -> 549672.48 | O96: 470937.6 | P96: 941875.2 | Q96: 0 | R96: 0 | S96: 697200 | T96: 274593.0135 | U96: 29579.40472 | V96: 826315.2732 | W96: 3494400 | X96: 0 | Y96: 0 | Z96: 1572.8 | AA96: 0 | AB96: 646312.7452 | AC96: 617808.5831 | AD96: 91573.85611
B97: 2018 | C97: 0 | D97: 0 | E97: 3620332.8 | F97: 0 | G97: 0 | H97: 0 | I97: 0 | J97: 0 | K97: 739519.2 | L97: 956592 | M97: 710325 | N97: 814574.88 | O97: 706406.4 | P97: 1412812.8 | Q97: 0 | R97: 0 | S97: 1038800 | T97: 543174.3186 | U97: 59861.53804 | V97: 1794319.996 | W97: 5241600 | X97: 0 | Y97: 0 | Z97: 1572.8 | AA97: 0 | AB97: 708293.2941 | AC97: 709219.1968 | AD97: 103217.1377
B98: 2019 | C98: 0 | D98: 0 | E98: 4827110.4 | F98: 0 | G98: 0 | H98: 0 | I98: 0 | J98: 0 | K98: 986025.6 | L98: 1214136 | M98: 941325 | N98: 1079477.28 | O98: 941875.2 | P98: 1883750.4 | Q98: 0 | R98: 0 | S98: 1380400 | T98: 849492.559 | U98: 99705.70691 | V98: 3173255.737 | W98: 6988800 | X98: 0 | Y98: 0 | Z98: 1572.8 | AA98: 0 | AB98: 763730.1479 | AC98: 806387.391 | AD98: 115646.5337
B99: 2020 | C99: =C89+C94 -> 0 | D99: 0 | E99: 6033888 | F99: 0 | G99: 0 | H99: 0 | I99: 0 | J99: 0 | K99: 1232532 | L99: 1471680 | M99: 1172325 | N99: 1344379.68 | O99: 1177344 | P99: 2354688 | Q99: 0 | R99: 0 | S99: 1722000 | T99: 1147100.422 | U99: 138528.1688 | V99: 4577386.202 | W99: =W89+W94 -> 8736000 | X99: 0 | Y99: 0 | Z99: 1572.8 | AA99: 0 | AB99: 748528.3824 | AC99: 820917.1878 | AD99: 116318.5025
B100: 2021 | C100: =(C$109-C$99)/10+C99 -> 0 | D100: 551880 | E100: 7517341.44 | F100: 2354688 | G100: 13245120 | H100: 216336.96 | I100: 1059609.6 | J100: 239148 | K100: 1479038.4 | L100: 1710828 | M100: 1206975 | N100: 1384115.04 | O100: 1295078.4 | P100: 2590156.8 | Q100: 0 | R100: 0 | S100: 1878800 | T100: 1413936.239 | U100: 174725.7776 | V100: 6030629.689 | W100: =(W$109-W$99)/10+W99 -> 11240880 | X100: 0 | Y100: 0 | Z100: 1572.8 | AA100: 112642.8 | AB100: 732768.5885 | AC100: 833510.7103 | AD100: 119484.7738
B101: 2022 | C101: =(C$109-C$99)/10+C100 -> 0 | D101: =(D$109-D$99)/10+D100 -> 1103760 | E101: 9000794.88 | F101: 4709376 | G101: 26490240 | H101: 432673.92 | I101: 2119219.2 | J101: 478296 | K101: 1725544.8 | L101: 1949976 | M101: 1241625 | N101: =(N$109-N$99)/10+N100 -> 1423850.4 | O101: 1412812.8 | P101: 2825625.6 | Q101: 0 | R101: 0 | S101: 2035600 | T101: 1658325.199 | U101: 200968.737 | V101: 7531990.809 | W101: 13745760 | X101: 0 | Y101: 0 | Z101: 1572.8 | AA101: 225285.6 | AB101: 701143.8028 | AC101: 862278.5331 | AD101: 122341.7367
B102: 2023 | C102: 0 | D102: 1655640 | E102: 10484248.32 | F102: 7064064 | G102: 39735360 | H102: 649010.88 | I102: 3178828.8 | J102: 717444 | K102: 1972051.2 | L102: 2189124 | M102: 1276275 | N102: 1463585.76 | O102: 1530547.2 | P102: 3061094.4 | Q102: 0 | R102: 0 | S102: 2192400 | T102: 1891431.487 | U102: 222814.4815 | V102: 9064747.939 | W102: 16250640 | X102: 0 | Y102: 0 | Z102: 1572.8 | AA102: 337928.4 | AB102: 671725.768 | AC102: 885853.797 | AD102: 128184.5076
B103: 2024 | C103: 0 | D103: 2207520 | E103: 11967701.76 | F103: 9418752 | G103: 52980480 | H103: 865347.84 | I103: 4238438.4 | J103: 956592 | K103: 2218557.6 | L103: 2428272 | M103: 1310925 | N103: 1503321.12 | O103: 1648281.6 | P103: 3296563.2 | Q103: 0 | R103: 0 | S103: 2349200 | T103: 2128741.192 | U103: 249869.7384 | V103: 10604183.11 | W103: 18755520 | X103: 0 | Y103: 0 | Z103: 1572.8 | AA103: 450571.2 | AB103: 652500.668 | AC103: 900389.6596 | AD103: 132873.745
B104: 2025 | C104: 0 | D104: 2759400 | E104: 13451155.2 | F104: 11773440 | G104: 66225600 | H104: 1081684.8 | I104: 5298048 | J104: 1195740 | K104: 2465064 | L104: 2667420 | M104: 1345575 | N104: 1543056.48 | O104: 1766016 | P104: 3532032 | Q104: 0 | R104: 0 | S104: 2506000 | T104: 2373782.784 | U104: 278632.5015 | V104: 12150414.7 | W104: 21260400 | X104: 0 | Y104: 0 | Z104: 1572.8 | AA104: 563214 | AB104: 636678.3161 | AC104: 911281.2068 | AD104: 137804.5497
B105: 2026 | C105: 0 | D105: 3311280 | E105: 14934608.64 | F105: 14128128 | G105: 79470720 | H105: 1298021.76 | I105: 6357657.6 | J105: 1434888 | K105: 2711570.4 | L105: 2906568 | M105: 1380225 | N105: 1582791.84 | O105: 1883750.4 | P105: 3767500.8 | Q105: 0 | R105: 0 | S105: 2662800 | T105: 2624640.066 | U105: 308077.905 | V105: 13706529.9 | W105: 23765280 | X105: 0 | Y105: 0 | Z105: 1572.8 | AA105: 675856.8 | AB105: 622537.6927 | AC105: 922171.3447 | AD105: 141055.0352
B106: 2027 | C106: 0 | D106: 3863160 | E106: 16418062.08 | F106: 16482816 | G106: 92715840 | H106: 1514358.72 | I106: 7417267.2 | J106: 1674036 | K106: 2958076.8 | L106: 3145716 | M106: 1414875 | N106: 1622527.2 | O106: 2001484.8 | P106: 4002969.6 | Q106: 0 | R106: 0 | S106: 2819600 | T106: 2877187.217 | U106: 337721.6639 | V106: 15277286.27 | W106: 26270160 | X106: 0 | Y106: 0 | Z106: 1572.8 | AA106: 788499.6 | AB106: 615155.047 | AC106: 923349.5344 | AD106: 147259.4912
B107: 2028 | C107: 0 | D107: 4415040 | E107: 17901515.52 | F107: 18837504 | G107: 105960960 | H107: 1730695.68 | I107: 8476876.8 | J107: 1913184 | K107: 3204583.2 | L107: 3384864 | M107: 1449525 | N107: 1662262.56 | O107: 2119219.2 | P107: 4238438.4 | Q107: 0 | R107: 0 | S107: 2976400 | T107: 3163092.375 | U107: 371280.9557 | V107: 16827447.27 | W107: 28775040 | X107: 0 | Y107: 0 | Z107: 1572.8 | AA107: 901142.4 | AB107: 607155.458 | AC107: 928031.6209 | AD107: 150576.9937
B108: 2029 | C108: 0 | D108: =(D$109-D$99)/10+D107 -> 4966920 | E108: 19384968.96 | F108: 21192192 | G108: 119206080 | H108: 1947032.64 | I108: 9536486.4 | J108: 2152332 | K108: =(K$109-K$99)/10+K107 -> 3451089.6 | L108: =(L$109-L$99)/10+L107 -> 3624012 | M108: =(M$109-M$99)/10+M107 -> 1484175 | N108: =(N$109-N$99)/10+N107 -> 1701997.92 | O108: =(O$109-O$99)/10+O107 -> 2236953.6 | P108: =(P$109-P$99)/10+P107 -> 4473907.2 | Q108: =(Q$109-Q$99)/10+Q107 -> 0 | R108: =(R$109-R$99)/10+R107 -> 0 | S108: =(S$109-S$99)/10+S107 -> 3133200 | T108: 3456142.175 | U108: 405678.8793 | V108: 18386453.29 | W108: =(W$109-W$99)/10+W107 -> 31279920 | X108: =(X$109-X$99)/10+X107 -> 0 | Y108: =(Y$109-Y$99)/10+Y107 -> 0 | Z108: =(Z$109-Z$99)/10+Z107 -> 1572.8 | AA108: =(AA$109-AA$99)/10+AA107 -> 1013785.2 | AB108: 604109.1133 | AC108: 925996.279 | AD108: 155658.6804
B109: 2030 | C109: =C90+C99 -> 0 | D109: 5518800 | E109: 20868422.4 | F109: 23546880 | G109: 132451200 | H109: 2163369.6 | I109: 10596096 | J109: 2391480 | K109: 3697596 | L109: 3863160 | M109: 1518825 | N109: 1741733.28 | O109: 2354688 | P109: 4709376 | Q109: 0 | R109: 0 | S109: 3290000 | T109: 3751829.684 | U109: 440386.4149 | V109: 19959491.75 | W109: =W90+W99 -> 33784800 | X109: 0 | Y109: 0 | Z109: 1572.8 | AA109: 1126428 | AB109: 602412.301 | AC109: 923395.355 | AD109: 159956.4167
B111: Incremental Winter Peak Hour Savings (MMBtu / Peak Hour)
C112: =C$5 -> Wind (<10 kW) | D112: =D$5 -> Wind (<100 kW) | E112: Large Wind C5 | F112: Large Wind C4 | G112: Offshore Wind | H112: Utility-Scale PV | I112: Commercial PV | J112: Residential PV | K112: Large CHP | L112: Small CHP | M112: Landfill Gas | N112: Anaerobic Digestion | O112: Biomass Power C1 | P112: Biomass Power C2 | Q112: Biomass Power C3 | R112: Biomass Power C4 | S112: Converted Hydro | T112: Res. Electric EE | U112: LI Electric EE | V112: CI Electric EE | W112: Appliance Standards | X112: AS Heat Pump | Y112: GS Heat Pump | Z112: Solar Hot Water | AA112: Biomass Thermal | AB112: Res. Gas EE | AC112: LI Gas EE | AD112: CI Gas EE
B113: 2015 | C113: =IF(C$13="Y",INDEX(SC_2015!$T$9:$T$40,C$4),0) -> 0 | D113: =IF(D$13="Y",INDEX(SC_2015!$T$9:$T$40,D$4),0) -> 0 | E113: =IF(E$13="Y",INDEX(SC_2015!$T$9:$T$40,E$4),0) -> 0 | F113: =IF(F$13="Y",INDEX(SC_2015!$T$9:$T$40,F$4),0) -> 0 | G113: =IF(G$13="Y",INDEX(SC_2015!$T$9:$T$40,G$4),0) -> 0 | H113: =IF(H$13="Y",INDEX(SC_2015!$T$9:$T$40,H$4),0) -> 0 | I113: =IF(I$13="Y",INDEX(SC_2015!$T$9:$T$40,I$4),0) -> 0 | J113: =IF(J$13="Y",INDEX(SC_2015!$T$9:$T$40,J$4),0) -> 0 | K113: =IF(K$13="Y",INDEX(SC_2015!$T$9:$T$40,K$4),0) -> 0 | L113: =IF(L$13="Y",INDEX(SC_2015!$T$9:$T$40,L$4),0) -> 19.361 | M113: =IF(M$13="Y",INDEX(SC_2015!$T$9:$T$40,M$4),0) -> 2.166 | N113: =IF(N$13="Y",INDEX(SC_2015!$T$9:$T$40,N$4),0) -> 2.166 | O113: =IF(O$13="Y",INDEX(SC_2015!$T$9:$T$40,O$4),0) -> 0 | P113: =IF(P$13="Y",INDEX(SC_2015!$T$9:$T$40,P$4),0) -> 0 | Q113: =IF(Q$13="Y",INDEX(SC_2015!$T$9:$T$40,Q$4),0) -> 0 | R113: =IF(R$13="Y",INDEX(SC_2015!$T$9:$T$40,R$4),0) -> 0 | S113: =IF(S$13="Y",INDEX(SC_2015!$T$9:$T$40,S$4),0) -> 3.61 | W113: =IF(W$13="Y",INDEX(SC_2015!$T$9:$T$40,W$4),0) -> 0 | X113: =IF(X$13="Y",INDEX(SC_2015!$T$9:$T$40,X$4),0) -> 0 | Y113: =IF(Y$13="Y",INDEX(SC_2015!$T$9:$T$40,Y$4),0) -> 0 | Z113: =IF(Z$13="Y",INDEX(SC_2015!$T$9:$T$40,Z$4),0) -> 0.02091328894 | AA113: =IF(AA$13="Y",INDEX(SC_2015!$T$9:$T$40,AA$4),0) -> 0
B114: 2016-2020 | C114: =IF(C$14="Y",INDEX(SC_2020!$T$9:$T$40,C$4),0) -> 0 | D114: =IF(D$14="Y",INDEX(SC_2020!$T$9:$T$40,D$4),0) -> 0 | E114: =IF(E$14="Y",INDEX(SC_2020!$T$9:$T$40,E$4),0) -> 532 | F114: =IF(F$14="Y",INDEX(SC_2020!$T$9:$T$40,F$4),0) -> 0 | G114: =IF(G$14="Y",INDEX(SC_2020!$T$9:$T$40,G$4),0) -> 0 | H114: =IF(H$14="Y",INDEX(SC_2020!$T$9:$T$40,H$4),0) -> 0 | I114: =IF(I$14="Y",INDEX(SC_2020!$T$9:$T$40,I$4),0) -> 0 | J114: =IF(J$14="Y",INDEX(SC_2020!$T$9:$T$40,J$4),0) -> 0 | K114: =IF(K$14="Y",INDEX(SC_2020!$T$9:$T$40,K$4),0) -> 58.840625 | L114: =IF(L$14="Y",INDEX(SC_2020!$T$9:$T$40,L$4),0) -> 135.527 | M114: =IF(M$14="Y",INDEX(SC_2020!$T$9:$T$40,M$4),0) -> 144.4 | N114: =IF(N$14="Y",INDEX(SC_2020!$T$9:$T$40,N$4),0) -> 144.4 | O114: =IF(O$14="Y",INDEX(SC_2020!$T$9:$T$40,O$4),0) -> 144.4 | P114: =IF(P$14="Y",INDEX(SC_2020!$T$9:$T$40,P$4),0) -> 288.8 | Q114: =IF(Q$14="Y",INDEX(SC_2020!$T$9:$T$40,Q$4),0) -> 0 | R114: =IF(R$14="Y",INDEX(SC_2020!$T$9:$T$40,R$4),0) -> 0 | S114: =IF(S$14="Y",INDEX(SC_2020!$T$9:$T$40,S$4),0) -> 440.42 | W114: =IF(W$14="Y",INDEX(SC_2020!$T$9:$T$40,W$4),0) -> 902.283105 | X114: =IF(X$14="Y",INDEX(SC_2020!$T$9:$T$40,X$4),0) -> 0 | Y114: =IF(Y$14="Y",INDEX(SC_2020!$T$9:$T$40,Y$4),0) -> 0 | Z114: =IF(Z$14="Y",INDEX(SC_2020!$T$9:$T$40,Z$4),0) -> 0 | AA114: =IF(AA$14="Y",INDEX(SC_2020!$T$9:$T$40,AA$4),0) -> 0
B115: 2021-2030 | C115: =IF(C$15="Y",INDEX(SC_2030!$T$9:$T$40,C$4),0) -> 0 | D115: =IF(D$15="Y",INDEX(SC_2030!$T$9:$T$40,D$4),0) -> 798 | E115: =IF(E$15="Y",INDEX(SC_2030!$T$9:$T$40,E$4),0) -> 1276.8 | F115: =IF(F$15="Y",INDEX(SC_2030!$T$9:$T$40,F$4),0) -> 2128 | G115: =IF(G$15="Y",INDEX(SC_2030!$T$9:$T$40,G$4),0) -> 10640 | H115: =IF(H$15="Y",INDEX(SC_2030!$T$9:$T$40,H$4),0) -> 0 | I115: =IF(I$15="Y",INDEX(SC_2030!$T$9:$T$40,I$4),0) -> 0 | J115: =IF(J$15="Y",INDEX(SC_2030!$T$9:$T$40,J$4),0) -> 0 | K115: =IF(K$15="Y",INDEX(SC_2030!$T$9:$T$40,K$4),0) -> 117.68125 | L115: =IF(L$15="Y",INDEX(SC_2030!$T$9:$T$40,L$4),0) -> 251.693 | M115: =IF(M$15="Y",INDEX(SC_2030!$T$9:$T$40,M$4),0) -> 43.32 | N115: =IF(N$15="Y",INDEX(SC_2030!$T$9:$T$40,N$4),0) -> 43.32 | O115: =IF(O$15="Y",INDEX(SC_2030!$T$9:$T$40,O$4),0) -> 144.4 | P115: =IF(P$15="Y",INDEX(SC_2030!$T$9:$T$40,P$4),0) -> 288.8 | Q115: =IF(Q$15="Y",INDEX(SC_2030!$T$9:$T$40,Q$4),0) -> 0 | R115: =IF(R$15="Y",INDEX(SC_2030!$T$9:$T$40,R$4),0) -> 0 | S115: =IF(S$15="Y",INDEX(SC_2030!$T$9:$T$40,S$4),0) -> 404.32 | W115: =IF(W$15="Y",INDEX(SC_2030!$T$9:$T$40,W$4),0) -> 2587.123288 | X115: =IF(X$15="Y",INDEX(SC_2030!$T$9:$T$40,X$4),0) -> 0 | Y115: =IF(Y$15="Y",INDEX(SC_2030!$T$9:$T$40,Y$4),0) -> 0 | Z115: =IF(Z$15="Y",INDEX(SC_2030!$T$9:$T$40,Z$4),0) -> 0 | AA115: =IF(AA$15="Y",INDEX(SC_2030!$T$9:$T$40,AA$4),0) -> 1868.870797
B117: Incremental Winter Peak Hour Savings (MMBtu / Peak Hour)
C118: =C$5 -> Wind (<10 kW) | D118: =D$5 -> Wind (<100 kW) | E118: Large Wind C5 | F118: Large Wind C4 | G118: Offshore Wind | H118: Utility-Scale PV | I118: Commercial PV | J118: Residential PV | K118: Large CHP | L118: Small CHP | M118: Landfill Gas | N118: Anaerobic Digestion | O118: Biomass Power C1 | P118: Biomass Power C2 | Q118: Biomass Power C3 | R118: Biomass Power C4 | S118: Converted Hydro | T118: Res. Electric EE | U118: LI Electric EE | V118: CI Electric EE | W118: Appliance Standards | X118: AS Heat Pump | Y118: GS Heat Pump | Z118: Solar Hot Water | AA118: Biomass Thermal | AB118: Res. Gas EE | AC118: LI Gas EE | AD118: CI Gas EE
B119: 2015 | C119: =C113 -> 0 | D119: 0 | E119: 0 | F119: 0 | G119: 0 | H119: 0 | I119: 0 | J119: 0 | K119: 0 | L119: 19.361 | M119: 2.166 | N119: 2.166 | O119: 0 | P119: 0 | Q119: 0 | R119: 0 | S119: 3.61 | T119: =T69*winter_marginal_heat_rate*SC_2030!$C$26 -> 0 | U119: =U69*winter_marginal_heat_rate*SC_2030!$C$26 -> 0 | V119: =V69*winter_marginal_heat_rate*SC_2030!$C$26 -> 0 | W119: =W113 -> 0 | X119: 0 | Y119: 0 | Z119: 0.02091328894 | AA119: 0 | AB119: 0 | AC119: 0 | AD119: 0
B120: 2016 | C120: =(C$124-C$119)/5+C119 -> 0 | D120: =(D$124-D$119)/5+D119 -> 0 | E120: 106.4 | F120: 0 | G120: 0 | H120: 0 | I120: 0 | J120: 0 | K120: 11.768125 | L120: 46.4664 | M120: 31.046 | N120: 31.046 | O120: 28.88 | P120: 57.76 | Q120: 0 | R120: 0 | S120: 91.694 | T120: =T70*winter_marginal_heat_rate*SC_2030!$C$26 -> 8.932316273 | U120: =U70*winter_marginal_heat_rate*SC_2030!$C$26 -> 1.221396468 | V120: =V70*winter_marginal_heat_rate*SC_2030!$C$26 -> 12.65741995 | W120: 180.456621 | X120: 0 | Y120: 0 | Z120: 0.02091328894 | AA120: 0 | AB120: 309.6609745 | AC120: 44.47400488 | AD120: 293.1039533
B121: 2017 | C121: =(C$124-C$119)/5+C120 -> 0 | D121: 0 | E121: 212.8 | F121: 0 | G121: 0 | H121: 0 | I121: 0 | J121: 0 | K121: 23.53625 | L121: 73.5718 | M121: 59.926 | N121: 59.926 | O121: 57.76 | P121: 115.52 | Q121: 0 | R121: 0 | S121: 179.778 | T121: =T71*winter_marginal_heat_rate*SC_2030!$C$26 -> 30.59517794 | U121: =U71*winter_marginal_heat_rate*SC_2030!$C$26 -> 4.146135265 | V121: =V71*winter_marginal_heat_rate*SC_2030!$C$26 -> 46.3180168 | W121: 360.913242 | X121: 0 | Y121: 0 | Z121: 0.02091328894 | AA121: 0 | AB121: 351.3333036 | AC121: 49.77922163 | AD121: 335.8385427
B122: 2018 | C122: 0 | D122: 0 | E122: 319.2 | F122: 0 | G122: 0 | H122: 0 | I122: 0 | J122: 0 | K122: 35.304375 | L122: 100.6772 | M122: 88.806 | N122: 88.806 | O122: 86.64 | P122: 173.28 | Q122: 0 | R122: 0 | S122: 267.862 | T122: =T72*winter_marginal_heat_rate*SC_2030!$C$26 -> 60.5205308 | U122: =U72*winter_marginal_heat_rate*SC_2030!$C$26 -> 8.390771762 | V122: =V72*winter_marginal_heat_rate*SC_2030!$C$26 -> 100.5782495 | W122: 541.369863 | X122: 0 | Y122: 0 | Z122: 0.02091328894 | AA122: 0 | AB122: 385.0257089 | AC122: 56.108468 | AD122: 385.5290263
B123: 2019 | C123: 0 | D123: 0 | E123: 425.6 | F123: 0 | G123: 0 | H123: 0 | I123: 0 | J123: 0 | K123: 47.0725 | L123: 127.7826 | M123: 117.686 | N123: 117.686 | O123: 115.52 | P123: 231.04 | Q123: 0 | R123: 0 | S123: 355.946 | T123: =T73*winter_marginal_heat_rate*SC_2030!$C$26 -> 94.65053632 | U123: =U73*winter_marginal_heat_rate*SC_2030!$C$26 -> 13.97571559 | V123: =V73*winter_marginal_heat_rate*SC_2030!$C$26 -> 177.8726805 | W123: 721.826484 | X123: 0 | Y123: 0 | Z123: 0.02091328894 | AA123: 0 | AB123: 415.160985 | AC123: 62.86504335 | AD123: 438.3493102
B124: 2020 | C124: =C114+C119 -> 0 | D124: 0 | E124: 532 | F124: 0 | G124: 0 | H124: 0 | I124: 0 | J124: 0 | K124: 58.840625 | L124: 154.888 | M124: 146.566 | N124: 146.566 | O124: 144.4 | P124: 288.8 | Q124: 0 | R124: 0 | S124: 444.03 | T124: =T74*winter_marginal_heat_rate*SC_2030!$C$26 -> 127.8100308 | U124: =U74*winter_marginal_heat_rate*SC_2030!$C$26 -> 19.41744708 | V124: =V74*winter_marginal_heat_rate*SC_2030!$C$26 -> 256.5793685 | W124: =W114+W119 -> 902.283105 | X124: 0 | Y124: 0 | Z124: 0.02091328894 | AA124: 0 | AB124: 406.8973594 | AC124: 63.23032315 | AD124: 446.2476559
B125: 2021 | C125: =(C$134-C$124)/10+C124 -> 0 | D125: =(D$134-D$124)/10+D124 -> 79.8 | E125: 659.68 | F125: 212.8 | G125: 1064 | H125: 0 | I125: 0 | J125: 0 | K125: 70.60875 | L125: 180.0573 | M125: 150.898 | N125: 150.898 | O125: 158.84 | P125: 317.68 | Q125: 0 | R125: 0 | S125: 484.462 | T125: =T75*winter_marginal_heat_rate*SC_2030!$C$26 -> 157.5409013 | U125: =U75*winter_marginal_heat_rate*SC_2030!$C$26 -> 24.4912538 | V125: =V75*winter_marginal_heat_rate*SC_2030!$C$26 -> 338.0390225 | W125: 1160.995434 | X125: 0 | Y125: 0 | Z125: 0.02091328894 | AA125: 186.8870797 | AB125: 398.3303917 | AC125: 64.95149695 | AD125: 453.0934498
B126: 2022 | C126: =(C$134-C$124)/10+C125 -> 0 | D126: 159.6 | E126: 787.36 | F126: 425.6 | G126: 2128 | H126: 0 | I126: 0 | J126: 0 | K126: 82.376875 | L126: 205.2266 | M126: 155.23 | N126: 155.23 | O126: 173.28 | P126: 346.56 | Q126: 0 | R126: 0 | S126: 524.894 | T126: =T76*winter_marginal_heat_rate*SC_2030!$C$26 -> 184.7707409 | U126: =U76*winter_marginal_heat_rate*SC_2030!$C$26 -> 28.16972064 | V126: =V76*winter_marginal_heat_rate*SC_2030!$C$26 -> 422.1958472 | W126: 1419.707763 | X126: 0 | Y126: 0 | Z126: 0.02091328894 | AA126: 373.7741595 | AB126: 381.1392709 | AC126: 66.50453181 | AD126: 468.7315357
B127: 2023 | C127: 0 | D127: 239.4 | E127: 915.04 | F127: 638.4 | G127: 3192 | H127: 0 | I127: 0 | J127: 0 | K127: 94.145 | L127: 230.3959 | M127: 159.562 | N127: 159.562 | O127: 187.72 | P127: 375.44 | Q127: 0 | R127: 0 | S127: 565.326 | T127: =T77*winter_marginal_heat_rate*SC_2030!$C$26 -> 210.7434641 | U127: =U77*winter_marginal_heat_rate*SC_2030!$C$26 -> 31.23183134 | V127: =V77*winter_marginal_heat_rate*SC_2030!$C$26 -> 508.1125339 | W127: 1678.420091 | X127: 0 | Y127: 0 | Z127: 0.02091328894 | AA127: 560.6612392 | AB127: 365.1477321 | AC127: 69.68064125 | AD127: 481.5469651
B128: 2024 | C128: 0 | D128: 319.2 | E128: 1042.72 | F128: 851.2 | G128: 4256 | H128: 0 | I128: 0 | J128: 0 | K128: 105.913125 | L128: 255.5652 | M128: 163.894 | N128: 163.894 | O128: 202.16 | P128: 404.32 | Q128: 0 | R128: 0 | S128: 605.758 | T128: =T78*winter_marginal_heat_rate*SC_2030!$C$26 -> 237.1845325 | U128: =U78*winter_marginal_heat_rate*SC_2030!$C$26 -> 35.02415765 | V128: =V78*winter_marginal_heat_rate*SC_2030!$C$26 -> 594.4035497 | W128: 1937.13242 | X128: 0 | Y128: 0 | Z128: 0.02091328894 | AA128: 747.548319 | AB128: 354.6970363 | AC128: 72.22969395 | AD128: 489.4486082
B129: 2025 | C129: 0 | D129: 399 | E129: 1170.4 | F129: 1064 | G129: 5320 | H129: 0 | I129: 0 | J129: 0 | K129: 117.68125 | L129: 280.7345 | M129: 168.226 | N129: 168.226 | O129: 216.6 | P129: 433.2 | Q129: 0 | R129: 0 | S129: 646.19 | T129: =T79*winter_marginal_heat_rate*SC_2030!$C$26 -> 264.4870885 | U129: =U79*winter_marginal_heat_rate*SC_2030!$C$26 -> 39.05582453 | V129: =V79*winter_marginal_heat_rate*SC_2030!$C$26 -> 681.0755294 | W129: 2195.844749 | X129: 0 | Y129: 0 | Z129: 0.02091328894 | AA129: 934.4353987 | AB129: 346.0960623 | AC129: 74.91006178 | AD129: 495.3692144
B130: 2026 | C130: 0 | D130: 478.8 | E130: 1298.08 | F130: 1276.8 | G130: 6384 | H130: 0 | I130: 0 | J130: 0 | K130: 129.449375 | L130: 305.9038 | M130: 172.558 | N130: 172.558 | O130: 231.04 | P130: 462.08 | Q130: 0 | R130: 0 | S130: 686.622 | T130: =T80*winter_marginal_heat_rate*SC_2030!$C$26 -> 292.4376291 | U130: =U80*winter_marginal_heat_rate*SC_2030!$C$26 -> 43.18317689 | V130: =V80*winter_marginal_heat_rate*SC_2030!$C$26 -> 768.301522 | W130: 2454.557078 | X130: 0 | Y130: 0 | Z130: 0.02091328894 | AA130: 1121.322478 | AB130: 338.4092698 | AC130: 76.67701415 | AD130: 501.2890545
B131: 2027 | C131: 0 | D131: 558.6 | E131: 1425.76 | F131: 1489.6 | G131: 7448 | H131: 0 | I131: 0 | J131: 0 | K131: 141.2175 | L131: 331.0731 | M131: 176.89 | N131: 176.89 | O131: 245.48 | P131: 490.96 | Q131: 0 | R131: 0 | S131: 727.054 | T131: =T81*winter_marginal_heat_rate*SC_2030!$C$26 -> 320.5764551 | U131: =U81*winter_marginal_heat_rate*SC_2030!$C$26 -> 47.33833265 | V131: =V81*winter_marginal_heat_rate*SC_2030!$C$26 -> 856.3482061 | W131: 2713.269406 | X131: 0 | Y131: 0 | Z131: 0.02091328894 | AA131: 1308.209558 | AB131: 334.3960899 | AC131: 80.04973431 | AD131: 501.9295142
B132: 2028 | C132: 0 | D132: 638.4 | E132: 1553.44 | F132: 1702.4 | G132: 8512 | H132: 0 | I132: 0 | J132: 0 | K132: 152.985625 | L132: 356.2424 | M132: 181.222 | N132: 181.222 | O132: 259.92 | P132: 519.84 | Q132: 0 | R132: 0 | S132: 767.486 | T132: =T82*winter_marginal_heat_rate*SC_2030!$C$26 -> 352.4320331 | U132: =U82*winter_marginal_heat_rate*SC_2030!$C$26 -> 52.04232737 | V132: =V82*winter_marginal_heat_rate*SC_2030!$C$26 -> 943.2404441 | W132: 2971.981735 | X132: 0 | Y132: 0 | Z132: 0.02091328894 | AA132: 1495.096638 | AB132: 330.0475419 | AC132: 81.85311684 | AD132: 504.4746797
B133: 2029 | C133: 0 | D133: 718.2 | E133: 1681.12 | F133: 1915.2 | G133: 9576 | H133: 0 | I133: 0 | J133: 0 | K133: =(K$134-K$124)/10+K132 -> 164.75375 | L133: =(L$134-L$124)/10+L132 -> 381.4117 | M133: =(M$134-M$124)/10+M132 -> 185.554 | N133: =(N$134-N$124)/10+N132 -> 185.554 | O133: =(O$134-O$124)/10+O132 -> 274.36 | P133: =(P$134-P$124)/10+P132 -> 548.72 | Q133: =(Q$134-Q$124)/10+Q132 -> 0 | R133: =(R$134-R$124)/10+R132 -> 0 | S133: =(S$134-S$124)/10+S132 -> 807.918 | T133: =T83*winter_marginal_heat_rate*SC_2030!$C$26 -> 385.0836679 | U133: =U83*winter_marginal_heat_rate*SC_2030!$C$26 -> 56.86387282 | V133: =V83*winter_marginal_heat_rate*SC_2030!$C$26 -> 1030.628478 | W133: =(W$134-W$124)/10+W132 -> 3230.694064 | X133: =(X$134-X$124)/10+X132 -> 0 | Y133: =(Y$134-Y$124)/10+Y132 -> 0 | Z133: =(Z$134-Z$124)/10+Z132 -> 0.02091328894 | AA133: =(AA$134-AA$124)/10+AA132 -> 1681.983718 | AB133: 328.3915597 | AC133: 84.61550357 | AD133: 503.3682752
B134: 2030 | C134: =C115+C124 -> 0 | D134: 798 | E134: 1808.8 | F134: 2128 | G134: 10640 | H134: 0 | I134: 0 | J134: 0 | K134: 176.521875 | L134: 406.581 | M134: 189.886 | N134: 189.886 | O134: 288.8 | P134: 577.6 | Q134: 0 | R134: 0 | S134: 848.35 | T134: =T84*winter_marginal_heat_rate*SC_2030!$C$26 -> 418.0291964 | U134: =U84*winter_marginal_heat_rate*SC_2030!$C$26 -> 61.72881646 | V134: =V84*winter_marginal_heat_rate*SC_2030!$C$26 -> 1118.803082 | W134: =W115+W124 -> 3489.406393 | X134: 0 | Y134: 0 | Z134: 0.02091328894 | AA134: 1868.870797 | AB134: 327.4691786 | AC134: 86.9517377 | AD134: 501.9544222
B136: Capacity Factor (%) | F136: Values are highlighted in yellow if costs do not exist for a stated year.
C137: =C$5 -> Wind (<10 kW) | D137: =D$5 -> Wind (<100 kW) | E137: Large Wind C5 | F137: Large Wind C4 | G137: Offshore Wind | H137: Utility-Scale PV | I137: Commercial PV | J137: Residential PV | K137: Large CHP | L137: Small CHP | M137: Landfill Gas | N137: Anaerobic Digestion | O137: Biomass Power C1 | P137: Biomass Power C2 | Q137: Biomass Power C3 | R137: Biomass Power C4 | S137: Converted Hydro | T137: Res. Electric EE | U137: LI Electric EE | V137: CI Electric EE | W137: Appliance Standards | X137: AS Heat Pump | Y137: GS Heat Pump | Z137: Solar Hot Water | AA137: Biomass Thermal | AB137: Res. Gas EE | AC137: LI Gas EE | AD137: CI Gas EE
B138: 2015 | C138: =IF(C$10="Y",INDEX(SC_2015!$C$9:$C$39,C$4),0) -> 0.16 | D138: =IF(D$10="Y",INDEX(SC_2015!$C$9:$C$39,D$4),0) -> 0.25 | E138: =E143 -> 0.41 | F138: =F143 -> 0.39 | G138: 0.44 | H138: =IF(H$10="Y",INDEX(SC_2015!$C$9:$C$39,H$4),0) -> 0 | I138: =IF(I$10="Y",INDEX(SC_2015!$C$9:$C$39,I$4),0) -> 0.144 | J138: =IF(J$10="Y",INDEX(SC_2015!$C$9:$C$39,J$4),0) -> 0.13 | K138: =K$143 -> 0.67 | L138: =IF(L$10="Y",INDEX(SC_2015!$C$9:$C$39,L$4),0) -> 0.5 | M138: =IF(M$10="Y",INDEX(SC_2015!$C$9:$C$39,M$4),0) -> 0.7848173516 | N138: =IF(N$10="Y",INDEX(SC_2015!$C$9:$C$39,N$4),0) -> 0.9 | O138: =O$143 -> 0.8 | P138: =P$143 -> 0.8 | Q138: 0.8 | R138: 0.8 | S138: =IF(S$10="Y",INDEX(SC_2015!$C$9:$C$39,S$4),0) -> 0.3805175038 | W138: =W$143 -> 0.55 | X138: =IF(X$10="Y",INDEX(SC_2015!$C$9:$C$39,X$4),0) -> 0 | Y138: =IF(Y$10="Y",INDEX(SC_2015!$C$9:$C$39,Y$4),0) -> 0 | Z138: =IF(Z$10="Y",INDEX(SC_2015!$C$9:$C$39,Z$4),0) -> 0 | AA138: =IF(AA$10="Y",INDEX(SC_2015!$C$9:$C$39,AA$4),0) -> 0
B139: 2016 | C139: =(C$143-C$138)/5+C138 -> 0.16 | D139: =(D$143-D$138)/5+D138 -> 0.25 | E139: 0.41 | F139: 0.39 | G139: 0.44 | H139: 0.0294 | I139: 0.144 | J139: 0.13 | K139: 0.67 | L139: 0.5 | M139: 0.7848173516 | N139: 0.9 | O139: 0.8 | P139: 0.8 | Q139: 0.8 | R139: 0.8 | S139: 0.3805175038 | W139: 0.55 | X139: 0 | Y139: 0 | Z139: 0 | AA139: 0
B140: 2017 | C140: =(C$143-C$138)/5+C139 -> 0.16 | D140: 0.25 | E140: 0.41 | F140: 0.39 | G140: 0.44 | H140: 0.0588 | I140: 0.144 | J140: 0.13 | K140: 0.67 | L140: 0.5 | M140: 0.7848173516 | N140: 0.9 | O140: 0.8 | P140: 0.8 | Q140: 0.8 | R140: 0.8 | S140: 0.3805175038 | W140: 0.55 | X140: 0 | Y140: 0 | Z140: 0 | AA140: 0
B141: 2018 | C141: 0.16 | D141: 0.25 | E141: 0.41 | F141: 0.39 | G141: 0.44 | H141: 0.0882 | I141: 0.144 | J141: 0.13 | K141: 0.67 | L141: 0.5 | M141: 0.7848173516 | N141: 0.9 | O141: 0.8 | P141: 0.8 | Q141: 0.8 | R141: 0.8 | S141: 0.3805175038 | W141: 0.55 | X141: 0 | Y141: 0 | Z141: 0 | AA141: 0
B142: 2019 | C142: 0.16 | D142: 0.25 | E142: 0.41 | F142: 0.39 | G142: 0.44 | H142: 0.1176 | I142: 0.144 | J142: 0.13 | K142: 0.67 | L142: 0.5 | M142: 0.7848173516 | N142: 0.9 | O142: 0.8 | P142: 0.8 | Q142: 0.8 | R142: 0.8 | S142: 0.3805175038 | W142: 0.55 | X142: 0 | Y142: 0 | Z142: 0 | AA142: 0
B143: 2020 | C143: =IF(C$11="Y",INDEX(SC_2020!$C$9:$C$39,C$4),0) -> 0.16 | D143: =IF(D$11="Y",INDEX(SC_2020!$C$9:$C$39,D$4),0) -> 0.25 | E143: =IF(E$11="Y",INDEX(SC_2020!$C$9:$C$39,E$4),0) -> 0.41 | F143: =Large_Wind!H6 -> 0.39 | G143: =IF(G$11="Y",INDEX(SC_2020!$C$9:$C$39,G$4),0) -> 0.44 | H143: =IF(H$11="Y",INDEX(SC_2020!$C$9:$C$39,H$4),0) -> 0.147 | I143: =IF(I$11="Y",INDEX(SC_2020!$C$9:$C$39,I$4),0) -> 0.144 | J143: =IF(J$11="Y",INDEX(SC_2020!$C$9:$C$39,J$4),0) -> 0.13 | K143: =IF(K$11="Y",INDEX(SC_2020!$C$9:$C$39,K$4),0) -> 0.67 | L143: =IF(L$11="Y",INDEX(SC_2020!$C$9:$C$39,L$4),0) -> 0.5 | M143: =IF(M$11="Y",INDEX(SC_2020!$C$9:$C$39,M$4),0) -> 0.7848173516 | N143: =IF(N$11="Y",INDEX(SC_2020!$C$9:$C$39,N$4),0) -> 0.9 | O143: =IF(O$11="Y",INDEX(SC_2020!$C$9:$C$39,O$4),0) -> 0.8 | P143: =IF(P$11="Y",INDEX(SC_2020!$C$9:$C$39,P$4),0) -> 0.8 | Q143: =IF(Q$11="Y",INDEX(SC_2020!$C$9:$C$39,Q$4),0) -> 0.8 | R143: =IF(R$11="Y",INDEX(SC_2020!$C$9:$C$39,R$4),0) -> 0.8 | S143: =IF(S$11="Y",INDEX(SC_2020!$C$9:$C$39,S$4),0) -> 0.3805175038 | W143: =IF(W$11="Y",INDEX(SC_2020!$C$9:$C$39,W$4),0) -> 0.55 | X143: =IF(X$11="Y",INDEX(SC_2020!$C$9:$C$39,X$4),0) -> 0 | Y143: =IF(Y$11="Y",INDEX(SC_2020!$C$9:$C$39,Y$4),0) -> 0 | Z143: =IF(Z$11="Y",INDEX(SC_2020!$C$9:$C$39,Z$4),0) -> 0 | AA143: =IF(AA$11="Y",INDEX(SC_2020!$C$9:$C$39,AA$4),0) -> 0
B144: 2021 | C144: =(C$153-C$143)/10+C143 -> 0.16 | D144: =(D$153-D$143)/10+D143 -> 0.25 | E144: 0.411 | F144: 0.391 | G144: 0.441 | H144: 0.147 | I144: 0.144 | J144: 0.13 | K144: 0.67 | L144: 0.5 | M144: 0.7848173516 | N144: 0.9 | O144: 0.8 | P144: 0.8 | Q144: 0.8 | R144: 0.8 | S144: 0.3805175038 | W144: 0.55 | X144: 0 | Y144: 0 | Z144: 0 | AA144: 0
B145: 2022 | C145: =(C$153-C$143)/10+C144 -> 0.16 | D145: 0.25 | E145: 0.412 | F145: 0.392 | G145: 0.442 | H145: 0.147 | I145: 0.144 | J145: 0.13 | K145: 0.67 | L145: 0.5 | M145: 0.7848173516 | N145: 0.9 | O145: 0.8 | P145: 0.8 | Q145: 0.8 | R145: 0.8 | S145: 0.3805175038 | W145: 0.55 | X145: 0 | Y145: 0 | Z145: 0 | AA145: 0
B146: 2023 | C146: 0.16 | D146: 0.25 | E146: 0.413 | F146: 0.393 | G146: 0.443 | H146: 0.147 | I146: 0.144 | J146: 0.13 | K146: 0.67 | L146: 0.5 | M146: 0.7848173516 | N146: 0.9 | O146: 0.8 | P146: 0.8 | Q146: 0.8 | R146: 0.8 | S146: 0.3805175038 | W146: 0.55 | X146: 0 | Y146: 0 | Z146: 0 | AA146: 0
B147: 2024 | C147: 0.16 | D147: 0.25 | E147: 0.414 | F147: 0.394 | G147: 0.444 | H147: 0.147 | I147: 0.144 | J147: 0.13 | K147: 0.67 | L147: 0.5 | M147: 0.7848173516 | N147: 0.9 | O147: 0.8 | P147: 0.8 | Q147: 0.8 | R147: 0.8 | S147: 0.3805175038 | W147: 0.55 | X147: 0 | Y147: 0 | Z147: 0 | AA147: 0
B148: 2025 | C148: 0.16 | D148: 0.25 | E148: 0.415 | F148: 0.395 | G148: 0.445 | H148: 0.147 | I148: 0.144 | J148: 0.13 | K148: 0.67 | L148: 0.5 | M148: 0.7848173516 | N148: 0.9 | O148: 0.8 | P148: 0.8 | Q148: 0.8 | R148: 0.8 | S148: 0.3805175038 | W148: 0.55 | X148: 0 | Y148: 0 | Z148: 0 | AA148: 0
B149: 2026 | C149: 0.16 | D149: 0.25 | E149: 0.416 | F149: 0.396 | G149: 0.446 | H149: 0.147 | I149: 0.144 | J149: 0.13 | K149: 0.67 | L149: 0.5 | M149: 0.7848173516 | N149: 0.9 | O149: 0.8 | P149: 0.8 | Q149: 0.8 | R149: 0.8 | S149: 0.3805175038 | W149: 0.55 | X149: 0 | Y149: 0 | Z149: 0 | AA149: 0
B150: 2027 | C150: 0.16 | D150: 0.25 | E150: 0.417 | F150: 0.397 | G150: 0.447 | H150: 0.147 | I150: 0.144 | J150: 0.13 | K150: 0.67 | L150: 0.5 | M150: 0.7848173516 | N150: 0.9 | O150: 0.8 | P150: 0.8 | Q150: 0.8 | R150: 0.8 | S150: 0.3805175038 | W150: 0.55 | X150: 0 | Y150: 0 | Z150: 0 | AA150: 0
B151: 2028 | C151: 0.16 | D151: 0.25 | E151: 0.418 | F151: 0.398 | G151: 0.448 | H151: 0.147 | I151: 0.144 | J151: 0.13 | K151: 0.67 | L151: 0.5 | M151: 0.7848173516 | N151: 0.9 | O151: 0.8 | P151: 0.8 | Q151: 0.8 | R151: 0.8 | S151: 0.3805175038 | W151: 0.55 | X151: 0 | Y151: 0 | Z151: 0 | AA151: 0
B152: 2029 | C152: 0.16 | D152: 0.25 | E152: 0.419 | F152: 0.399 | G152: 0.449 | H152: 0.147 | I152: 0.144 | J152: 0.13 | K152: =(K$153-K$143)/10+K151 -> 0.67 | L152: =(L$153-L$143)/10+L151 -> 0.5 | M152: =(M$153-M$143)/10+M151 -> 0.7848173516 | N152: =(N$153-N$143)/10+N151 -> 0.9 | O152: =(O$153-O$143)/10+O151 -> 0.8 | P152: =(P$153-P$143)/10+P151 -> 0.8 | Q152: =(Q$153-Q$143)/10+Q151 -> 0.8 | R152: =(R$153-R$143)/10+R151 -> 0.8 | S152: =(S$153-S$143)/10+S151 -> 0.3805175038 | W152: =(W$153-W$143)/10+W151 -> 0.55 | X152: =(X$153-X$143)/10+X151 -> 0 | Y152: =(Y$153-Y$143)/10+Y151 -> 0 | Z152: =(Z$153-Z$143)/10+Z151 -> 0 | AA152: =(AA$153-AA$143)/10+AA151 -> 0
B153: 2030 | C153: =IF(C$12="Y",INDEX(SC_2030!$C$9:$C$39,C$4),0) -> 0.16 | D153: =IF(D$12="Y",INDEX(SC_2030!$C$9:$C$39,D$4),0) -> 0.25 | E153: =IF(E$12="Y",INDEX(SC_2030!$C$9:$C$39,E$4),0) -> 0.42 | F153: =IF(F$12="Y",INDEX(SC_2030!$C$9:$C$39,F$4),0) -> 0.4 | G153: =IF(G$12="Y",INDEX(SC_2030!$C$9:$C$39,G$4),0) -> 0.45 | H153: =IF(H$12="Y",INDEX(SC_2030!$C$9:$C$39,H$4),0) -> 0.147 | I153: =IF(I$12="Y",INDEX(SC_2030!$C$9:$C$39,I$4),0) -> 0.144 | J153: =IF(J$12="Y",INDEX(SC_2030!$C$9:$C$39,J$4),0) -> 0.13 | K153: =IF(K$12="Y",INDEX(SC_2030!$C$9:$C$39,K$4),0) -> 0.67 | L153: =IF(L$12="Y",INDEX(SC_2030!$C$9:$C$39,L$4),0) -> 0.5 | M153: =IF(M$12="Y",INDEX(SC_2030!$C$9:$C$39,M$4),0) -> 0.7848173516 | N153: =IF(N$12="Y",INDEX(SC_2030!$C$9:$C$39,N$4),0) -> 0.9 | O153: =IF(O$12="Y",INDEX(SC_2030!$C$9:$C$39,O$4),0) -> 0.8 | P153: =IF(P$12="Y",INDEX(SC_2030!$C$9:$C$39,P$4),0) -> 0.8 | Q153: =IF(Q$12="Y",INDEX(SC_2030!$C$9:$C$39,Q$4),0) -> 0.8 | R153: =IF(R$12="Y",INDEX(SC_2030!$C$9:$C$39,R$4),0) -> 0.8 | S153: =IF(S$12="Y",INDEX(SC_2030!$C$9:$C$39,S$4),0) -> 0.3805175038 | W153: =IF(W$12="Y",INDEX(SC_2030!$C$9:$C$39,W$4),0) -> 0.55 | X153: =IF(X$12="Y",INDEX(SC_2030!$C$9:$C$39,X$4),0) -> 0 | Y153: =IF(Y$12="Y",INDEX(SC_2030!$C$9:$C$39,Y$4),0) -> 0 | Z153: =IF(Z$12="Y",INDEX(SC_2030!$C$9:$C$39,Z$4),0) -> 0 | AA153: =IF(AA$12="Y",INDEX(SC_2030!$C$9:$C$39,AA$4),0) -> 0
B155: Capacity Factor (%) for cleared resources
C156: =C$5 -> Wind (<10 kW) | D156: =D$5 -> Wind (<100 kW) | E156: Large Wind C5 | F156: Large Wind C4 | G156: Offshore Wind | H156: Utility-Scale PV | I156: Commercial PV | J156: Residential PV | K156: Large CHP | L156: Small CHP | M156: Landfill Gas | N156: Anaerobic Digestion | O156: Biomass Power C1 | P156: Biomass Power C2 | Q156: Biomass Power C3 | R156: Biomass Power C4 | S156: Converted Hydro | T156: Res. Electric EE | U156: LI Electric EE | V156: CI Electric EE | W156: Appliance Standards | X156: AS Heat Pump | Y156: GS Heat Pump | Z156: Solar Hot Water | AA156: Biomass Thermal | AB156: Res. Gas EE | AC156: LI Gas EE | AD156: CI Gas EE
B157: 2015 | C157: =IF(C25=0,"",C138) ->  | L157: 0.5 | M157: 0.7848173516 | N157: 0.9 | S157: 0.3805175038
B158: 2016 | C158: =IF(C26=0,"",C139) ->  | E158: 0.41 | K158: 0.67 | L158: 0.5 | M158: 0.7848173516 | N158: 0.9 | O158: 0.8 | P158: 0.8 | S158: 0.3805175038 | T158: 0 | U158: 0 | V158: 0 | W158: 0.55
B159: 2017 | C159: =IF(C27=0,"",C140) ->  | E159: 0.41 | K159: 0.67 | L159: 0.5 | M159: 0.7848173516 | N159: 0.9 | O159: 0.8 | P159: 0.8 | S159: 0.3805175038 | T159: 0 | U159: 0 | V159: 0 | W159: 0.55
B160: 2018 | C160: =IF(C28=0,"",C141) ->  | E160: 0.41 | K160: 0.67 | L160: 0.5 | M160: 0.7848173516 | N160: 0.9 | O160: 0.8 | P160: 0.8 | S160: 0.3805175038 | T160: 0 | U160: 0 | V160: 0 | W160: 0.55
B161: 2019 | C161: =IF(C29=0,"",C142) ->  | E161: 0.41 | K161: 0.67 | L161: 0.5 | M161: 0.7848173516 | N161: 0.9 | O161: 0.8 | P161: 0.8 | S161: 0.3805175038 | T161: 0 | U161: 0 | V161: 0 | W161: 0.55
B162: 2020 | C162: =IF(C30=0,"",C143) ->  | E162: 0.41 | K162: 0.67 | L162: 0.5 | M162: 0.7848173516 | N162: 0.9 | O162: 0.8 | P162: 0.8 | S162: 0.3805175038 | T162: 0 | U162: 0 | V162: 0 | W162: 0.55
B163: 2021 | C163: =IF(C31=0,"",C144) ->  | D163: 0.25 | E163: 0.411 | F163: 0.391 | G163: 0.441 | H163: 0.147 | I163: 0.144 | J163: 0.13 | K163: 0.67 | L163: 0.5 | M163: 0.7848173516 | N163: 0.9 | O163: 0.8 | P163: 0.8 | S163: 0.3805175038 | T163: 0 | U163: 0 | V163: 0 | W163: 0.55
B164: 2022 | C164: =IF(C32=0,"",C145) ->  | D164: 0.25 | E164: 0.412 | F164: 0.392 | G164: 0.442 | H164: 0.147 | I164: 0.144 | J164: 0.13 | K164: 0.67 | L164: 0.5 | M164: 0.7848173516 | N164: 0.9 | O164: 0.8 | P164: 0.8 | S164: 0.3805175038 | T164: 0 | U164: 0 | V164: 0 | W164: 0.55
B165: 2023 | C165: =IF(C33=0,"",C146) ->  | D165: 0.25 | E165: 0.413 | F165: 0.393 | G165: 0.443 | H165: 0.147 | I165: 0.144 | J165: 0.13 | K165: 0.67 | L165: 0.5 | M165: 0.7848173516 | N165: 0.9 | O165: 0.8 | P165: 0.8 | S165: 0.3805175038 | T165: 0 | U165: 0 | V165: 0 | W165: 0.55
B166: 2024 | C166: =IF(C34=0,"",C147) ->  | D166: 0.25 | E166: 0.414 | F166: 0.394 | G166: 0.444 | H166: 0.147 | I166: 0.144 | J166: 0.13 | K166: 0.67 | L166: 0.5 | M166: 0.7848173516 | N166: 0.9 | O166: 0.8 | P166: 0.8 | S166: 0.3805175038 | T166: 0 | U166: 0 | V166: 0 | W166: 0.55
B167: 2025 | C167: =IF(C35=0,"",C148) ->  | D167: 0.25 | E167: 0.415 | F167: 0.395 | G167: 0.445 | H167: 0.147 | I167: 0.144 | J167: 0.13 | K167: 0.67 | L167: 0.5 | M167: 0.7848173516 | N167: 0.9 | O167: 0.8 | P167: 0.8 | S167: 0.3805175038 | T167: 0 | U167: 0 | V167: 0 | W167: 0.55
B168: 2026 | C168: =IF(C36=0,"",C149) ->  | D168: 0.25 | E168: 0.416 | F168: 0.396 | G168: 0.446 | H168: 0.147 | I168: 0.144 | J168: 0.13 | K168: 0.67 | L168: 0.5 | M168: 0.7848173516 | N168: 0.9 | O168: 0.8 | P168: 0.8 | S168: 0.3805175038 | T168: 0 | U168: 0 | V168: 0 | W168: 0.55
B169: 2027 | C169: =IF(C37=0,"",C150) ->  | D169: 0.25 | E169: 0.417 | F169: 0.397 | G169: 0.447 | H169: 0.147 | I169: 0.144 | J169: 0.13 | K169: 0.67 | L169: 0.5 | M169: 0.7848173516 | N169: 0.9 | O169: 0.8 | P169: 0.8 | S169: 0.3805175038 | T169: 0 | U169: 0 | V169: 0 | W169: 0.55
B170: 2028 | C170: =IF(C38=0,"",C151) ->  | D170: 0.25 | E170: 0.418 | F170: 0.398 | G170: 0.448 | H170: 0.147 | I170: 0.144 | J170: 0.13 | K170: 0.67 | L170: 0.5 | M170: 0.7848173516 | N170: 0.9 | O170: 0.8 | P170: 0.8 | S170: 0.3805175038 | T170: 0 | U170: 0 | V170: 0 | W170: 0.55
B171: 2029 | C171: =IF(C39=0,"",C152) ->  | D171: 0.25 | E171: 0.419 | F171: 0.399 | G171: 0.449 | H171: 0.147 | I171: 0.144 | J171: 0.13 | K171: 0.67 | L171: 0.5 | M171: 0.7848173516 | N171: 0.9 | O171: 0.8 | P171: 0.8 | S171: 0.3805175038 | T171: 0 | U171: 0 | V171: 0 | W171: 0.55
B172: 2030 | C172: =IF(C40=0,"",C153) ->  | D172: 0.25 | E172: 0.42 | F172: 0.4 | G172: 0.45 | H172: 0.147 | I172: 0.144 | J172: 0.13 | K172: 0.67 | L172: 0.5 | M172: 0.7848173516 | N172: 0.9 | O172: 0.8 | P172: 0.8 | S172: 0.3805175038 | T172: 0 | U172: 0 | V172: 0 | W172: 0.55
B174: Non-Levelized Capital Costs (2013 $/kW) | F174: Values are highlighted in yellow if costs do not exist for a stated year.
C175: =C$5 -> Wind (<10 kW) | D175: =D$5 -> Wind (<100 kW) | E175: Large Wind C5 | F175: Large Wind C4 | G175: Offshore Wind | H175: Utility-Scale PV | I175: Commercial PV | J175: Residential PV | K175: Large CHP | L175: Small CHP | M175: Landfill Gas | N175: Anaerobic Digestion | O175: Biomass Power C1 | P175: Biomass Power C2 | Q175: Biomass Power C3 | R175: Biomass Power C4 | S175: Converted Hydro | T175: Res. Electric EE | U175: LI Electric EE | V175: CI Electric EE | W175: Appliance Standards | X175: AS Heat Pump | Y175: GS Heat Pump | Z175: Solar Hot Water | AA175: Biomass Thermal | AB175: Res. Gas EE | AC175: LI Gas EE | AD175: CI Gas EE
B176: 2015 | C176: =IF(C$10="Y",INDEX(SC_2015!$G$9:$G$39,C$4),0) -> 11500 | D176: =IF(D$10="Y",INDEX(SC_2015!$G$9:$G$39,D$4),0) -> 5000 | E176: =E$181 -> 2359.142005 | F176: =F$181 -> 2459.651578 | G176: =G$181 -> 5600 | H176: =GroundPV!E4 -> 2202.289824 | I176: =IF(I$10="Y",INDEX(SC_2015!$G$9:$G$39,I$4),0) -> 2593.018664 | J176: =IF(J$10="Y",INDEX(SC_2015!$G$9:$G$39,J$4),0) -> 2841.66429 | K176: =Large_CHP!E4 -> 1531 | L176: =IF(L$10="Y",INDEX(SC_2015!$G$9:$G$39,L$4),0) -> 2180.977342 | M176: =IF(M$10="Y",INDEX(SC_2015!$G$9:$G$39,M$4),0) -> 1420.832145 | N176: =IF(N$10="Y",INDEX(SC_2015!$G$9:$G$39,N$4),0) -> 4102.064502 | O176: =O$181 -> 4175 | P176: =P$181 -> 4175 | Q176: =Q$181 -> 4175 | R176: =R$181 -> 4175 | S176: =IF(S$10="Y",INDEX(SC_2015!$G$9:$G$39,S$4),0) -> 2083.333333 | T176: =IF(T$10="Y",INDEX(SC_2015!$G$9:$G$39,T$4),0) -> 0 | U176: =IF(U$10="Y",INDEX(SC_2015!$G$9:$G$39,U$4),0) -> 0 | V176: =IF(V$10="Y",INDEX(SC_2015!$G$9:$G$39,V$4),0) -> 0 | W176: =IF(W$10="Y",INDEX(SC_2015!$G$9:$G$39,W$4),0) -> 0 | X176: =IF(X$10="Y",INDEX(SC_2015!$G$9:$G$39,X$4),0) -> 281898.1481 | Y176: =IF(Y$10="Y",INDEX(SC_2015!$G$9:$G$39,Y$4),0) -> 324979.1667 | Z176: =IF(Z$10="Y",INDEX(SC_2015!$G$9:$G$39,Z$4),0) -> 53.34987228 | AA176: =IF(AA$10="Y",INDEX(SC_2015!$G$9:$G$39,AA$4),0) -> 367964.0292 | AB176: =IF(AB$10="Y",INDEX(SC_2015!$G$9:$G$39,AB$4),0) -> 0 | AC176: =IF(AC$10="Y",INDEX(SC_2015!$G$9:$G$39,AC$4),0) -> 0 | AD176: =IF(AD$10="Y",INDEX(SC_2015!$G$9:$G$39,AD$4),0) -> 0
B177: 2016 | C177: =(C$181-C$176)/5+C176 -> 11040 | D177: 4800 | E177: 2359.142005 | F177: 2459.651578 | G177: 5600 | H177: 2208.379105 | I177: 2642.747789 | J177: 2861.961892 | K177: 1574.8 | L177: 2236.181874 | M177: =(M$181-M$176)/5+M176 -> 1420.832145 | N177: 4102.064502 | O177: 4175 | P177: 4175 | Q177: 4175 | R177: 4175 | S177: 2083.333333 | T177: 0 | U177: =(U$181-U$176)/5+U176 -> 0 | V177: 0 | W177: 0 | X177: 281898.1481 | Y177: 324979.1667 | Z177: 55.11457817 | AA177: 367964.0292 | AB177: 0 | AC177: =(AC$181-AC$176)/5+AC176 -> 0 | AD177: 0
B178: 2017 | C178: 10580 | D178: 4600 | E178: 2359.142005 | F178: 2459.651578 | G178: 5600 | H178: 2214.468386 | I178: 2692.476914 | J178: 2882.259494 | K178: 1618.6 | L178: 2291.386405 | M178: 1420.832145 | N178: 4102.064502 | O178: 4175 | P178: 4175 | Q178: 4175 | R178: 4175 | S178: 2083.333333 | T178: 0 | U178: 0 | V178: 0 | W178: 0 | X178: 281898.1481 | Y178: 324979.1667 | Z178: 56.87928405 | AA178: 367964.0292 | AB178: 0 | AC178: 0 | AD178: 0
B179: 2018 | C179: 10120 | D179: 4400 | E179: 2359.142005 | F179: 2459.651578 | G179: 5600 | H179: 2220.557666 | I179: 2742.20604 | J179: 2902.557096 | K179: 1662.4 | L179: 2346.590937 | M179: 1420.832145 | N179: 4102.064502 | O179: 4175 | P179: 4175 | Q179: 4175 | R179: 4175 | S179: 2083.333333 | T179: 0 | U179: 0 | V179: 0 | W179: 0 | X179: 281898.1481 | Y179: 324979.1667 | Z179: 58.64398993 | AA179: 367964.0292 | AB179: 0 | AC179: 0 | AD179: 0
B180: 2019 | C180: 9660 | D180: 4200 | E180: 2359.142005 | F180: 2459.651578 | G180: 5600 | H180: 2226.646947 | I180: 2791.935165 | J180: 2922.854698 | K180: 1706.2 | L180: 2401.795468 | M180: 1420.832145 | N180: 4102.064502 | O180: 4175 | P180: 4175 | Q180: 4175 | R180: 4175 | S180: 2083.333333 | T180: 0 | U180: 0 | V180: 0 | W180: 0 | X180: 281898.1481 | Y180: 324979.1667 | Z180: 60.40869581 | AA180: 367964.0292 | AB180: 0 | AC180: 0 | AD180: 0
B181: 2020 | C181: =IF(C$11="Y",INDEX(SC_2020!$G$9:$G$39,C$4),0) -> 9200 | D181: =IF(D$11="Y",INDEX(SC_2020!$G$9:$G$39,D$4),0) -> 4000 | E181: =IF(E$11="Y",INDEX(SC_2020!$G$9:$G$39,E$4),0) -> 2359.142005 | F181: =Large_Wind!$H$4 -> 2459.651578 | G181: =IF(G$11="Y",INDEX(SC_2020!$G$9:$G$39,G$4),0) -> 5600 | H181: =IF(H$11="Y",INDEX(SC_2020!$G$9:$G$39,H$4),0) -> 2232.736228 | I181: =IF(I$11="Y",INDEX(SC_2020!$G$9:$G$39,I$4),0) -> 2841.66429 | J181: =IF(J$11="Y",INDEX(SC_2020!$G$9:$G$39,J$4),0) -> 2943.1523 | K181: =IF(K$11="Y",INDEX(SC_2020!$G$9:$G$39,K$4),0) -> 1750 | L181: =IF(L$11="Y",INDEX(SC_2020!$G$9:$G$39,L$4),0) -> 2457 | M181: =IF(M$11="Y",INDEX(SC_2020!$G$9:$G$39,M$4),0) -> 1420.832145 | N181: =IF(N$11="Y",INDEX(SC_2020!$G$9:$G$39,N$4),0) -> 4102.064502 | O181: =IF(O$11="Y",INDEX(SC_2020!$G$9:$G$39,O$4),0) -> 4175 | P181: =IF(P$11="Y",INDEX(SC_2020!$G$9:$G$39,P$4),0) -> 4175 | Q181: =IF(Q$11="Y",INDEX(SC_2020!$G$9:$G$39,Q$4),0) -> 4175 | R181: =IF(R$11="Y",INDEX(SC_2020!$G$9:$G$39,R$4),0) -> 4175 | S181: =IF(S$11="Y",INDEX(SC_2020!$G$9:$G$39,S$4),0) -> 2083.333333 | T181: =IF(T$11="Y",INDEX(SC_2020!$G$9:$G$39,T$4),0) -> 0 | U181: =IF(U$11="Y",INDEX(SC_2020!$G$9:$G$39,U$4),0) -> 0 | V181: =IF(V$11="Y",INDEX(SC_2020!$G$9:$G$39,V$4),0) -> 0 | W181: =IF(W$11="Y",INDEX(SC_2020!$G$9:$G$39,W$4),0) -> 0 | X181: =IF(X$11="Y",INDEX(SC_2020!$G$9:$G$39,X$4),0) -> 281898.1481 | Y181: =IF(Y$11="Y",INDEX(SC_2020!$G$9:$G$39,Y$4),0) -> 324979.1667 | Z181: =IF(Z$11="Y",INDEX(SC_2020!$G$9:$G$39,Z$4),0) -> 62.17340169 | AA181: =IF(AA$11="Y",INDEX(SC_2020!$G$9:$G$39,AA$4),0) -> 367964.0292 | AB181: =IF(AB$11="Y",INDEX(SC_2020!$G$9:$G$39,AB$4),0) -> 0 | AC181: =IF(AC$11="Y",INDEX(SC_2020!$G$9:$G$39,AC$4),0) -> 0 | AD181: =IF(AD$11="Y",INDEX(SC_2020!$G$9:$G$39,AD$4),0) -> 0
B182: 2021 | C182: =(C$191-C$181)/10+C181 -> 9085 | D182: =(D$191-D$181)/10+D181 -> 3950 | E182: =(E$191-E$181)/10+E181 -> 2359.142005 | F182: =(F$191-F$181)/10+F181 -> 2459.651578 | G182: =(G$191-G$181)/10+G181 -> 5516 | H182: =(H$191-H$181)/10+H181 -> 2169.462605 | I182: =(I$191-I$181)/10+I181 -> 2764.997861 | J182: =(J$191-J$181)/10+J181 -> 2863.83707 | K182: =(K$191-K$181)/10+K181 -> 1750 | L182: =(L$191-L$181)/10+L181 -> 2457 | M182: =(M$191-M$181)/10+M181 -> 1420.832145 | N182: =(N$191-N$181)/10+N181 -> 4102.064502 | O182: =(O$191-O$181)/10+O181 -> 4175 | P182: =(P$191-P$181)/10+P181 -> 4175 | Q182: =(Q$191-Q$181)/10+Q181 -> 4175 | R182: =(R$191-R$181)/10+R181 -> 4175 | S182: =(S$191-S$181)/10+S181 -> 2083.333333 | T182: =(T$191-T$181)/10+T181 -> 0 | U182: =(U$191-U$181)/10+U181 -> 0 | V182: =(V$191-V$181)/10+V181 -> 0 | W182: =(W$191-W$181)/10+W181 -> 0 | X182: =(X$191-X$181)/10+X181 -> 281898.1481 | Y182: =(Y$191-Y$181)/10+Y181 -> 324979.1667 | Z182: =(Z$191-Z$181)/10+Z181 -> 64.52634287 | AA182: =(AA$191-AA$181)/10+AA181 -> 367964.0292 | AB182: =(AB$191-AB$181)/10+AB181 -> 0 | AC182: =(AC$191-AC$181)/10+AC181 -> 0 | AD182: =(AD$191-AD$181)/10+AD181 -> 0
B183: 2022 | C183: 8970 | D183: 3900 | E183: 2359.142005 | F183: 2459.651578 | G183: 5432 | H183: 2106.188982 | I183: 2688.331432 | J183: 2784.52184 | K183: 1750 | L183: 2457 | M183: 1420.832145 | N183: 4102.064502 | O183: 4175 | P183: 4175 | Q183: 4175 | R183: 4175 | S183: 2083.333333 | T183: 0 | U183: 0 | V183: 0 | W183: 0 | X183: 281898.1481 | Y183: 324979.1667 | Z183: 66.87928405 | AA183: 367964.0292 | AB183: 0 | AC183: 0 | AD183: 0
B184: 2023 | C184: 8855 | D184: 3850 | E184: 2359.142005 | F184: 2459.651578 | G184: 5348 | H184: 2042.915359 | I184: 2611.665003 | J184: 2705.20661 | K184: 1750 | L184: 2457 | M184: 1420.832145 | N184: 4102.064502 | O184: 4175 | P184: 4175 | Q184: 4175 | R184: 4175 | S184: 2083.333333 | T184: 0 | U184: 0 | V184: 0 | W184: 0 | X184: 281898.1481 | Y184: 324979.1667 | Z184: 69.23222522 | AA184: 367964.0292 | AB184: 0 | AC184: 0 | AD184: 0
B185: 2024 | C185: 8740 | D185: 3800 | E185: 2359.142005 | F185: 2459.651578 | G185: 5264 | H185: 1979.641737 | I185: 2534.998574 | J185: 2625.89138 | K185: 1750 | L185: 2457 | M185: 1420.832145 | N185: 4102.064502 | O185: 4175 | P185: 4175 | Q185: 4175 | R185: 4175 | S185: 2083.333333 | T185: 0 | U185: 0 | V185: 0 | W185: 0 | X185: 281898.1481 | Y185: 324979.1667 | Z185: 71.5851664 | AA185: 367964.0292 | AB185: 0 | AC185: 0 | AD185: 0
B186: 2025 | C186: 8625 | D186: 3750 | E186: 2359.142005 | F186: 2459.651578 | G186: 5180 | H186: 1916.368114 | I186: 2458.332145 | J186: 2546.57615 | K186: 1750 | L186: 2457 | M186: 1420.832145 | N186: 4102.064502 | O186: 4175 | P186: 4175 | Q186: 4175 | R186: 4175 | S186: 2083.333333 | T186: 0 | U186: 0 | V186: 0 | W186: 0 | X186: 281898.1481 | Y186: 324979.1667 | Z186: 73.93810758 | AA186: 367964.0292 | AB186: 0 | AC186: 0 | AD186: 0
B187: 2026 | C187: 8510 | D187: 3700 | E187: 2359.142005 | F187: 2459.651578 | G187: 5096 | H187: 1853.094491 | I187: 2381.665716 | J187: 2467.26092 | K187: 1750 | L187: 2457 | M187: 1420.832145 | N187: 4102.064502 | O187: 4175 | P187: 4175 | Q187: 4175 | R187: 4175 | S187: 2083.333333 | T187: 0 | U187: 0 | V187: 0 | W187: 0 | X187: 281898.1481 | Y187: 324979.1667 | Z187: 76.29104875 | AA187: 367964.0292 | AB187: 0 | AC187: 0 | AD187: 0
B188: 2027 | C188: 8395 | D188: 3650 | E188: 2359.142005 | F188: 2459.651578 | G188: 5012 | H188: 1789.820868 | I188: 2304.999287 | J188: 2387.94569 | K188: 1750 | L188: 2457 | M188: 1420.832145 | N188: 4102.064502 | O188: 4175 | P188: 4175 | Q188: 4175 | R188: 4175 | S188: 2083.333333 | T188: 0 | U188: 0 | V188: 0 | W188: 0 | X188: 281898.1481 | Y188: 324979.1667 | Z188: 78.64398993 | AA188: 367964.0292 | AB188: 0 | AC188: 0 | AD188: 0
B189: 2028 | C189: 8280 | D189: 3600 | E189: 2359.142005 | F189: 2459.651578 | G189: 4928 | H189: 1726.547246 | I189: 2228.332858 | J189: 2308.63046 | K189: 1750 | L189: 2457 | M189: 1420.832145 | N189: 4102.064502 | O189: 4175 | P189: 4175 | Q189: 4175 | R189: 4175 | S189: 2083.333333 | T189: 0 | U189: 0 | V189: 0 | W189: 0 | X189: 281898.1481 | Y189: 324979.1667 | Z189: 80.99693111 | AA189: 367964.0292 | AB189: 0 | AC189: 0 | AD189: 0
B190: 2029 | C190: 8165 | D190: 3550 | E190: 2359.142005 | F190: 2459.651578 | G190: 4844 | H190: 1663.273623 | I190: 2151.666429 | J190: 2229.31523 | K190: 1750 | L190: 2457 | M190: 1420.832145 | N190: 4102.064502 | O190: 4175 | P190: 4175 | Q190: 4175 | R190: 4175 | S190: 2083.333333 | T190: 0 | U190: 0 | V190: 0 | W190: 0 | X190: 281898.1481 | Y190: 324979.1667 | Z190: 83.34987228 | AA190: 367964.0292 | AB190: 0 | AC190: 0 | AD190: 0
B191: 2030 | C191: =IF(C$12="Y",INDEX(SC_2030!$G$9:$G$39,C$4),0) -> 8050 | D191: =IF(D$12="Y",INDEX(SC_2030!$G$9:$G$39,D$4),0) -> 3500 | E191: =IF(E$12="Y",INDEX(SC_2030!$G$9:$G$39,E$4),0) -> 2359.142005 | F191: =IF(F$12="Y",INDEX(SC_2030!$G$9:$G$39,F$4),0) -> 2459.651578 | G191: =IF(G$12="Y",INDEX(SC_2030!$G$9:$G$39,G$4),0) -> 4760 | H191: =IF(H$12="Y",INDEX(SC_2030!$G$9:$G$39,H$4),0) -> 1600 | I191: =IF(I$12="Y",INDEX(SC_2030!$G$9:$G$39,I$4),0) -> 2075 | J191: =IF(J$12="Y",INDEX(SC_2030!$G$9:$G$39,J$4),0) -> 2150 | K191: =IF(K$12="Y",INDEX(SC_2030!$G$9:$G$39,K$4),0) -> 1750 | L191: =IF(L$12="Y",INDEX(SC_2030!$G$9:$G$39,L$4),0) -> 2457 | M191: =IF(M$12="Y",INDEX(SC_2030!$G$9:$G$39,M$4),0) -> 1420.832145 | N191: =IF(N$12="Y",INDEX(SC_2030!$G$9:$G$39,N$4),0) -> 4102.064502 | O191: =IF(O$12="Y",INDEX(SC_2030!$G$9:$G$39,O$4),0) -> 4175 | P191: =IF(P$12="Y",INDEX(SC_2030!$G$9:$G$39,P$4),0) -> 4175 | Q191: =IF(Q$12="Y",INDEX(SC_2030!$G$9:$G$39,Q$4),0) -> 4175 | R191: =IF(R$12="Y",INDEX(SC_2030!$G$9:$G$39,R$4),0) -> 4175 | S191: =IF(S$12="Y",INDEX(SC_2030!$G$9:$G$39,S$4),0) -> 2083.333333 | T191: =IF(T$12="Y",INDEX(SC_2030!$G$9:$G$39,T$4),0) -> 0 | U191: =IF(U$12="Y",INDEX(SC_2030!$G$9:$G$39,U$4),0) -> 0 | V191: =IF(V$12="Y",INDEX(SC_2030!$G$9:$G$39,V$4),0) -> 0 | W191: =IF(W$12="Y",INDEX(SC_2030!$G$9:$G$39,W$4),0) -> 0 | X191: =IF(X$12="Y",INDEX(SC_2030!$G$9:$G$39,X$4),0) -> 281898.1481 | Y191: =IF(Y$12="Y",INDEX(SC_2030!$G$9:$G$39,Y$4),0) -> 324979.1667 | Z191: =IF(Z$12="Y",INDEX(SC_2030!$G$9:$G$39,Z$4),0) -> 85.70281346 | AA191: =IF(AA$12="Y",INDEX(SC_2030!$G$9:$G$39,AA$4),0) -> 367964.0292 | AB191: =IF(AB$12="Y",INDEX(SC_2030!$G$9:$G$39,AB$4),0) -> 0 | AC191: =IF(AC$12="Y",INDEX(SC_2030!$G$9:$G$39,AC$4),0) -> 0 | AD191: =IF(AD$12="Y",INDEX(SC_2030!$G$9:$G$39,AD$4),0) -> 0
B193: Annual Fixed O&M (2013 $/kW-year) | F193: Values are highlighted in yellow if costs do not exist for a stated year.
C194: =C$5 -> Wind (<10 kW) | D194: =D$5 -> Wind (<100 kW) | E194: Large Wind C5 | F194: Large Wind C4 | G194: Offshore Wind | H194: Utility-Scale PV | I194: Commercial PV | J194: Residential PV | K194: Large CHP | L194: Small CHP | M194: Landfill Gas | N194: Anaerobic Digestion | O194: Biomass Power C1 | P194: Biomass Power C2 | Q194: Biomass Power C3 | R194: Biomass Power C4 | S194: Converted Hydro | T194: Res. Electric EE | U194: LI Electric EE | V194: CI Electric EE | W194: Appliance Standards | X194: AS Heat Pump | Y194: GS Heat Pump | Z194: Solar Hot Water | AA194: Biomass Thermal | AB194: Res. Gas EE | AC194: LI Gas EE | AD194: CI Gas EE
B195: 2015 | C195: =IF(C$10="Y",INDEX(SC_2015!$J$9:$J$39,C$4),0) -> 25 | D195: =IF(D$10="Y",INDEX(SC_2015!$J$9:$J$39,D$4),0) -> 25 | E195: =$E$200 -> 50 | F195: =$F$210 -> 50 | G195: =$G$200 -> 115 | H195: =IF(H$10="Y",INDEX(SC_2015!$J$9:$J$39,H$4),0) -> 0 | I195: =IF(I$10="Y",INDEX(SC_2015!$J$9:$J$39,I$4),0) -> 25 | J195: =IF(J$10="Y",INDEX(SC_2015!$J$9:$J$39,J$4),0) -> 25 | K195: =IF(K$10="Y",INDEX(SC_2015!$J$9:$J$39,K$4),0) -> 0 | L195: =IF(L$10="Y",INDEX(SC_2015!$J$9:$J$39,L$4),0) -> 0 | M195: =IF(M$10="Y",INDEX(SC_2015!$J$9:$J$39,M$4),0) -> 131.9344134 | N195: =IF(N$10="Y",INDEX(SC_2015!$J$9:$J$39,N$4),0) -> 0 | O195: =O$200 -> 105 | P195: =P$200 -> 105 | Q195: 105 | R195: 105 | S195: =IF(S$10="Y",INDEX(SC_2015!$J$9:$J$39,S$4),0) -> 14.13 | T195: =IF(T$10="Y",INDEX(SC_2015!$J$9:$J$39,T$4),0) -> 0 | U195: =IF(U$10="Y",INDEX(SC_2015!$J$9:$J$39,U$4),0) -> 0 | V195: =IF(V$10="Y",INDEX(SC_2015!$J$9:$J$39,V$4),0) -> 0 | W195: =IF(W$10="Y",INDEX(SC_2015!$J$9:$J$39,W$4),0) -> 0 | X195: =IF(X$10="Y",INDEX(SC_2015!$J$9:$J$39,X$4),0) -> 2000 | Y195: =IF(Y$10="Y",INDEX(SC_2015!$J$9:$J$39,Y$4),0) -> 2000 | Z195: =IF(Z$10="Y",INDEX(SC_2015!$J$9:$J$39,Z$4),0) -> 0 | AA195: =IF(AA$10="Y",INDEX(SC_2015!$J$9:$J$39,AA$4),0) -> 879.3103448 | AB195: =IF(AB$10="Y",INDEX(SC_2015!$J$9:$J$39,AB$4),0) -> 0 | AC195: =IF(AC$10="Y",INDEX(SC_2015!$J$9:$J$39,AC$4),0) -> 0 | AD195: =IF(AD$10="Y",INDEX(SC_2015!$J$9:$J$39,AD$4),0) -> 0
B196: 2016 | C196: =(C$200-C$195)/5+C195 -> 43 | D196: =(D$200-D$195)/5+D195 -> 25 | E196: 50 | F196: 50 | G196: 115 | H196: 3.15 | I196: 24.8 | J196: 24.8 | K196: 0 | L196: 0 | M196: 131.9344134 | N196: 0 | O196: 105 | P196: 105 | Q196: 105 | R196: 105 | S196: 14.13 | T196: 0 | U196: 0 | V196: 0 | W196: 0 | X196: 2000 | Y196: 2000 | Z196: 0 | AA196: 879.3103448 | AB196: 0 | AC196: 0 | AD196: 0
B197: 2017 | C197: =(C$200-C$195)/5+C196 -> 61 | D197: 25 | E197: 50 | F197: 50 | G197: 115 | H197: 6.3 | I197: 24.6 | J197: 24.6 | K197: 0 | L197: 0 | M197: 131.9344134 | N197: 0 | O197: 105 | P197: 105 | Q197: 105 | R197: 105 | S197: 14.13 | T197: 0 | U197: 0 | V197: 0 | W197: 0 | X197: 2000 | Y197: 2000 | Z197: 0 | AA197: 879.3103448 | AB197: 0 | AC197: 0 | AD197: 0
